{"text_format":"1","workbook":"xlsx","n_sheets":62,"sheets":["Drop down lists","Q&A","Hyrje","METT 4 Përmbledhje","Data lookups","Paneli Kryesor","Atributet e zonës së mbrojtur","PA attributes data sheet","Vlerësimi i kërcënimeve","Threat data for export","Reports Data","METT 4 Pyetjet dhe Rezultatet","Question_data_dump","1.","2.","3.","4.","5.","6.","7.","7A.","8.","9.","10.","11.","12.","13.","14.","15.","16.","17.","18.","19.","20.","21.","22.","23.","24.","25.","26.","27.","28.","29.","30.","31.","31A.","32.","33.","34.","Common text","Vlerësimi i detajuar i vlerave","35.","35A.","36.","36A.","Vlerësimi i detajuar i llojeve ","Q&A_Alb","37.","Vlerësimi i detajuar habitatet","38.","Plani i Veprimeve për menaxhim","Identifikimi i vlerave"],"not_rendered":{"charts":5,"images":4,"macros":1,"external_links":0,"defined_names":53,"comments":0,"pivot_tables":0},"unopened":[],"bounds":{"document_bytes":16777216,"sheet_cells":100000,"rows_first":2000,"rows_last":500,"rows_between":2000,"halvings":0,"cell_chars":16384,"cell_head_chars":4096},"cells_cut":0,"cells_raw":0,"read":"whole","date_system":"1900"}

{"sheet":"Drop down lists","index":0,"n_rows":93,"n_cols":2,"rows_kept":93,"cut":false,"hidden":true,"merged":[]}
["Kategoritë e ZM"]
[]
["Kategoria Ia - Rezervat Strikt Natyror\n\n\n\n\n\n","Ia"]
["Kategoria Ib - Zonë e jetës së egër","Ib"]
["Kategoria II - Park Kombëtar","II"]
["Kategoria III - Monument/Veçori Natyre","III"]
["Kategoria IV - Zonë për menaxhimin e habitateve/llojeve","IV"]
["Kategoria V - Peizazh i Mbrojtur tokësor/detar","V"]
["Kategoria VI - Zonë e mbrojtur me përdorim të qëndrueshëm të burimeve natyrore","VI"]
["Pa përcaktuar/Pa njohur"]
[]
[]
["Përgjigje Po/Jo"]
["Po"]
["Jo"]
[]
["Kriteret e Trashëgimisë Botërore"]
["i "]
["ii "]
["iii"]
["iv"]
["v "]
["vi"]
["vii"]
["viii"]
["ix"]
["x "]
[]
["Zona të rëndësishme për biodiversitetin"]
["KBA"]
["IBA"]
["AZE"]
["EBSA"]
["IPA"]
[]
[]
["Mënyra e Qeverisjes"]
["Shtetërore"]
["Private"]
["Komunitetet lokale apo indigjenët"]
["Bashkë-menaxhim"]
["Tjetër"]
[]
["Shërbimet e ekosistemit"]
["Ushqime të egra përfshirë peshkun"]
["Bujqësi/Akuakulturë tradicionale"]
["Mbështetje për bujqësinë (pjalmimi, kontrolli I dëmtuesve)"]
["Uji (cilësia/sasia)"]
["Lëndë drusore dhe prodhime të dyta pyjore"]
["Shëndet (ilaçe, ushtrime, mendore)"]
["Zbutje e klimës (sekuestrimi/ruajtja e karbonit)"]
["Reduktimi i rreziqeve nga katastrofat"]
["Kulturore, shpirtërore, estetike"]
["Turizëm dhe rekreacion"]
["Edukim dhe Kërkim"]
["Tjetër"]
[]
["Vlerësimi i kërcënimeve"]
["Shumë i lartë"]
["I lartë"]
["Mesatar"]
["I ulët"]
[]
["Vlerësimi i kushteve"]
["Shumë mirë"]
["Mirë"]
["Mesatar"]
["Keq"]
["Nuk e di"]
[]
["Vlerësimi i trendit"]
["Duke u përmirësuar"]
["I Qëndrueshëm"]
["Duke u përkeqësuar"]
["Nuk e di"]
[]
["Vlerësimi i detajuar I habitateve dhe llojeve"]
["Në rritje"]
["I qëndrueshëm"]
["Në rënie"]
[]
["Duke u përmirësuar"]
["I Qëndrueshëm"]
["Duke u përkeqësuar"]
[]
["Kategoritë e ZM"]
["Ia"]
["Ib"]
["II"]
["III"]
["IV"]
["V "]
["VI"]

{"sheet":"Q&A","index":1,"n_rows":9,"n_cols":38,"rows_kept":9,"cut":false,"hidden":true,"merged":[]}
[]
[]
["1. Legal Status  ","2. Protected area objectives","3. Protected area regulations/controls","4. Planning for adjacent land/sea use ","5. Protected area design","6. Protected area boundary demarcation","7. Management planning ","8. Regular work plan ","9. Resource inventory  ","10. Staff numbers  ","11. Knowledge and skills","12. Current budget ","13. Security of budget ","14. Management of budget  ","15. Equipment and facilities","16. Law enforcement","17. Protection systems  ","18. Staff security ","19. Research  ","20. Monitoring and evaluation  ","21. Resource management  ","22. Climate change","23. Carbon capture","24. Ecosystem services","25. Education and awareness ","26. State and commercial neighbours","27. Commercial tourism operators  ","28. Fees  ","29. Visitor facilities and services ","30. Indigenous people ","31. Local communities ","32. Livelihood benefits","33. Threats","34. Connectivity","35. Condition of natural values","36. Condition of cultural values","37. Conservation status of key indicator species","38. Conservation status of habitats"]
["Does the PA have legal status or is it established under \"other effective means\"?","Is management undertaken according to agreed objectives?\n","Are appropriate regulations/controls in place to manage land/sea use and activities (such as hunting, NTFP, logging, mining, fishing)?","Does land and sea use planning outside of the protected area recognise the protected area and contribute to the achievement of management objectives?","Is the protected area the right size and shape to protect species, habitats, ecological processes and water catchments of key conservation concern?","Is the boundary known and demarcated?","Is there a management plan or equivalent and is it being implemented?\n","Is there a regular work plan and is it being implemented?","Do you have enough information to manage the area?","Are there enough people to manage the protected area?","Do the people involved in managing the protected area have the necessary knowledge and skills?","Is the current budget sufficient?","Is the budget secure?","Is the budget managed to ensure effective administration of the protected area?","Are equipment and facilities sufficient for management needs?\n","Can staff (i.e. those with responsibility for managing the site) enforce protected area legislation and regulation?\n","Are systems (e.g. patrols, permits, intelligence gathering etc) in place to control access/resource use in the protected area?","Do protected area staff have safe working conditions and does management prioritise safety?","Is there a programme of management-orientated survey and research work?","Are management activities regularly monitored, evaluated and adapted?\n","Is active resource management being undertaken?","Is the protected area consciously managed to adapt to climate change?","Is the protected area being consciously managed to prevent carbon loss and to encourage further carbon capture?","Does management consider ecosystem service provision?","Is there a planned education and awareness programme linked to the objectives and needs?","Is there co-operation with neighbouring land/sea State and commercial users? ","Do commercial tour operators contribute to protected area management?","If fees (i.e. entry fees or fines) are applied, do they help protected area management?","Are visitor facilities and services adequate?","Are Indigenous people involved in management decisions?","Do local communities living in or near the protected area have input to management decisions?","Is the protected area providing sustained livelihood benefits to local communities and/or Indigenous people?","Are the threats to the main values of the protected area being effectively addressed? ","Have the requirements for functional connectivity have been assessed and implemented? ","What is the condition of the important natural values of the protected area as compared to when it was first designated?  ","What is the condition of the important cultural values of the protected area as compared to when it was first designated?  ","37. Conservation status of key indicator species","38. Conservation status of habitats"]
["Help for answering this question: this usually only refers to state-managed protected areas. In the case of many privately protected areas and Indigenous and community conserved areas (ICCAs) legal status is not an option and this question is not applicable. Where such protected areas do have some formal status (e.g. a covenant or legal recognition of Indigenous Protected Areas) the assessment below should be completed.","Help for answering this question: this usually only refers to state-managed protected areas. In the case of many privately protected areas and Indigenous and community conserved areas (ICCAs) legal status is not an option and this question is not applicable. Where such protected areas do have some formal status (e.g. a covenant or legal recognition of Indigenous Protected Areas) the assessment below should be completed.\n","Help for answering this question: this refer to the existence of both legal regulations and customary controls; for instance, protected areas managed by private individuals, trusts or communities should still have clear rules regarding use of land and water. \n\n","Help for answering this question: while planning for land and water use outside the protected area is generally outside the control of the protected area manager, the decisions made can significantly affect the protected area so it is important that the potential impacts of plans are assessed. Examples could include upstream dams that cut of water flows, major fish farming developments that increase pollution and create significant disturbance, or large-scale clearing in surrounding areas that isolate the protected area from other habitat areas. \n","Help for answering this question: issues to consider here include whether key species are adequately protected (for instance it would be an issue if a marine protected area omitted a nearby area where many of the constituent species bred), whether it is large enough to support viable populations and whether events outside the protected area could undermine its value (for instance if a hydroelectric power project dammed a river and interrupted flow). It is also important to consider, where possible, projected future climate change influence in this assessment: for instance if sea level rises is there space in the protected area for a mangrove forest to retreat inland?\n","Help for answering this question: it is important staff, stakeholders and rightsholders recognise the boundary and that people know if they are encroaching the protected area. Maps and/or GPS systems are generally used to create the protected area boundary officially recorded in gazettement; however the boundary on the ground can be different, and often associated with specific feature, there is often a need therefore for boundaries to be interpreted according to the local context.","Help for answering this question: in most cases this will be a formal management plan, written down and in the case of government-managed protected areas often also approved by the relevant department or ministry. In other cases, management plans may be less formal, agreed through discussion with community members, and existing only as oral agreements, minutes of meetings or other customary arrangements. The aim of this question is to see whether or not management is following a set and logical course. \n","Help for answering this question: this will usually refer to an annual plan, aimed at implementing the next stage of the management plan. You can answer this question even if you don’t have a management plan in place. gain, this can be formal (written down and approved) or informal but it must be known about and agreed by all relevant parties.","Help for answering this question: in this case “resources” refers primarily to biological and cultural values of the site. Have there been recent surveys of plant and animal species? Do managers know where culturally important sites or sacred natural sites exist so these can be protected? In Actions to improve management it is important to identify knowledge gaps and suggestions for future surveys.","Help for answering this question: this assessment should address whether the protected area has sufficient staff to effectively manage the site; it should consider all people staff working even if supported by the government (e.g. the Army), NGOs or other funding sources. Answering this question might be slightly more difficult for privately protected areas or community-managed sites; here consider if there are sufficient people with the capacity to manage rather than “employment” in a traditional sense. ","Help for answering this question: this question addresses whether there is the necessary skills to effectively manage the site. Responses can identify where training programmes are needed which can be noted in the Actions to improve management field. \n","Help for answering this question: this question relates to the total amount of budget, rather than to budget security, addressed in the next question (13). It is important to answer this question in terms of how much budget is needed to fulfil the management plan and site objectives, not just the fulfilment of the annual workplan. The assessment should consider all available budget at the time including project funds and donor support. \n","Help for answering this question: the main question here is whether the budget is reliant on intermittent project funding or whether there is a reasonable chance of it being maintained over time – for instance because it is a core part of a government budget, or maintained through a private organisation, community, or has low costs and strong volunteer support. \n","Help for answering this question: this question assesses whether budget expenditure is properly planned and monitored through the year or are there over or under-spends? Consider if are accounts published annually and audited? \n","Help for answering this question: this could include equipment such as vehicles, communication systems, tools, uniforms and contributory materials like fuel. Facilities can be buildings and other important infrastructure that is needed to manage the protected area, such as guard posts, offices etc. Note that visitor facilities are specifically dealt with in question 29.","Help for answering this question: issues to consider include personal capacity (training, skills) and sufficiency of equipment and infrastructure (vehicles, routes to access remote areas, etc.) and includes an assessment of whether are staff familiar with laws, regulations and prosecution requirements. “Staff” relates to both those formally employed and those responsible for management in other governance types. ","Help for answering this question: the question focuses particularly on enforcement, and will be applicable in places where there is pressure from poaching, encroachment, illegal mining etc. In protected areas with no such pressures, designation and management can be judged “largely or wholly effective”. This is less about capacity and resources for enforcement (already addressed in question 16) and more aimed at whether this capacity is being used effectively. \n","Help for answering this question: this question assesses whether the safety of staff is considered in management including the mitigation of threats where possible (e.g. adequate equipment, training, etc) and the provision of support to minimise impacts when staff security is impacted (e.g. medical and life insurance etc). ","Help for answering this question: this includes both research work carried out by the protected area itself but more usually by associates, volunteers, students, citizen science and academics. Monitoring and evaluation is addressed in another question (20); here the emphasis is on particular research projects that can help to understand and thus better manage the site. The presence of researchers is not enough to evoke the top score, but only if research is properly integrated into the needs of protected area management.\n","Help for answering this question: this question addresses both monitoring and evaluation of the management activities of the protected area which assess the condition of key values and threats of the protected area. In the evidence and justification section it would be useful to list what is monitored and how often. As with research the stress is on properly integrating the results into protected area management. ","Help for answering this question: management here refers to activities in addition to enforcement needed to ensure effective conservation of critical habitats, species, ecological processes and cultural values.  It can include restoration and habitat creation, fire control, monitoring of population numbers, fencing where necessary and the control of invasive species. Where sustainable resource extraction is permitted, management will include monitoring of these resources, possibly introduction of temporary zoning etc. Management also includes active steps to protect culturally and spiritually important sites.\n","Help for answering this question: this question focusses on management adaptions to predicted climate change, and how these are already being implemented. Adaptation to climate change means reducing the vulnerability of natural and human systems against actual or expected climate change effects.\n\n\n\n\n","Help for answering this question: carbon capture and storage describe the process of capturing and storing carbon dioxide before it is released into the atmosphere. Methods for \"preventing carbon loss\" in protected areas will depend on the ecosystems being managed and can range from reducing deforestation and other natural vegetation loss, preventing fire, maintaining natural water regimes, etc. Carbon capture can also be enhanced, where appropriate, through ecosystem restoration or other habitat management that increases the storage of carbon in standing vegetation or in the soil.\n\n\n\n\n","Help for answering this question: does management consider ecosystem service provision? This investigates both whether existing or potential ecosystems services are even known about and, if so, whether some or all of them are being managed for. Because this is potentially an endless question, it is suggested that answers focus on the major ecosystem services already identified in the attributes section. Given that this is still a fairly new issue for many protected area managers the Actions to improve management section should be fairly specific about actions and next steps. \n\n\n\n\n\n","Help for answering this question: this question covers education both for learning establishments, such as schools’ programmes, and the provision of more general educational opportunities for local communities or recreational visitors. Consideration needs to be made on what is appropriate depending on the location and context of the protected area. \n","There is no contact between managers and neighbouring State and commercial land/sea users","Help for answering this question: the presence of a protected area is a draw to tourists and thus a boost to the commercial trade. Tourism operators should be natural partners with protected areas, but this does not always happen. If this question generates a low score, the Actions to improve management field could identify some of the key people it would be important to talk to and develop cooperation with.","Help for answering this question:  not all protected areas should or do collect fees; this question is not applicable in these cases. Where fees are an expected part of the protected area management, this question assesses whether they are used to help management or simply disappear into the government and provide no support for the protected area.","Help for answering this question: not all protected areas need visitor facilities; this question is judging against the perceived need. Issue of adequacy and appropriateness is critical, protected areas with low visitation do not require extensive visitor facilities. This question should focus mainly on facilities inside the protected area but also may consider facilities immediately adjacent to the protected areas where these impact on the visitor experience directly","Help for answering this question: this will be not applicable in cases where there are no Indigenous people present. Note that different countries use a range of terms to describe such cultures: ethnic minorities, traditional peoples etc. Consider both formal consultation or less formal contact when judging the answer and consider issue of governance and equity. If possible, it would be useful to also discuss with the Indigenous people and understand how included they feel. ","Help for answering this question: this assesses the level of influence communities have on the overall decision: mere consultation is rarely sufficient. \"Relevant decisions\" refers to all decisions about aspects of management that affect local communities and their relationship and interaction with the protected area. \n","Help for answering this question: this question is aimed explicitly at local communities. Benefits can include direct jobs, Payment for Ecosystem Service schemes, indirect benefits from increased tourism or sales to visitors, and other options such as guiding. To score 3 on this indicator, economic activity associated with the protected area should be a substantial contributor to the local economy. This indicator only refers to economic benefits arising from legal or sanctioned activities which do not impact the protected areas conservation objectives and not those arising from illegal activities.\n","Help for answering this question: this should consider the threats identified in the threat assessment as having the greatest extent and severity. The focus is then on how the identified threats are being managed. We suggest scoring B if only a few threats have been addressed or threats have only been partially addressed, a C if most threats have been addressed and a D if all threats have been addressed.\n\n\n\n","Help for answering this question: protected areas remain vulnerable if the species they contain are genetically isolated and the protected area acts like an island. This question focuses on functional connectivity of the protected area, addressing its direct linkages to other natural ecosystems, use of biological corridors, etc. This question may also be not applicable for some sites (e.g. remote offshore islands protected because of unique flora and fauna, or micro-reserves established to protect particular crop wild relatives).\n\n\n\n\n","Help for answering this question: Consider the values specified in the Protected Area Attributes datasheet and any information on status and trend in the Detailed Assessment of Values sheet. The assessment here should be an overall summary across the main values of the protected area.\n","Help for answering this question: many protected areas contain important cultural values: sacred natural sites, pilgrimage routes, historic buildings, archaeological remains, etc. Protected area managers are generally at least in part responsible for the upkeep of these; in the case of some privately protected areas or ICCAs these may be the main values stimulating protection. \n","Help for answering this question: this is one of the key questions to find out how well the protected area is doing. If your protected area implements a monitoring protocol to regularly measure the condition of key indicator species using specific indicators and defined thresholds, the conclusions from your monitoring activities will help answer this question. You should consider the results of the Detailed assessment of species from the previous worksheet where this has been completed. In the absence of this detailed assessment because of lack of data on individual species. ","Help for answering this question: this question focuses on the status of habitats within the protected area over the last five years previous to the date of the assessment. If your protected area implements a monitoring protocol to regularly measure the condition of habitats using specific indicators and defined thresholds, the conclusions from your monitoring activities will help answer this question. We suggest you score C in cases where some but not all habitats have improved substantially."]
["The protected area is not gazetted or has not been established through \"other effective means\"","No firm objectives have been agreed for the protected area ","There are no regulations/controls for managing land/sea use and activities in the protected area ","Adjacent land/sea use planning does not take the existence of the protected area into account and activities/policies have a negative impact on the objectives of the protected area","Inadequacies in protected area design mean achieving the major objectives of the protected area is very difficult","The boundary of the protected area is not known by the management authority or local residents/neighbouring land/sea users ","No management planning has been undertaken","No regular work plan exists \n","There is little or no information available on the critical habitats, species, ecological processes and cultural values of the protected area ","There are no people managing the protected area but they are required","Knowledge and skills needed to manage the protected area are completely inadequate","There is no available budget for management","There is no secure budget for the protected area and management is wholly reliant on outside or highly variable funding  ","Budget management is very poor and significantly undermines management","There are little or no equipment and facilities for management needs"," Staff have no effective capacity/resources/authority to enforce protected area legislation and regulations","Protection systems do not exist or are not effective in controlling access/resource use, but they are required","Staff safety is seriously compromised due to lack of effective measures to mitigate threats and provide a safe working environment","There is no survey or research work taking place in the protected area","There is no monitoring and evaluation in the protected area","Active resource management of critical habitats, species, ecological processes and cultural values is not being undertaken, but is required  ","There have been no efforts to consider adaptation to climate change in management ","Carbon storage and carbon dioxide capture have not been considered in management of the protected area","The ecosystem services delivered by the protected area are not understood","There is no education and awareness programme","There is contact between managers and neighbouring State and commercial land/sea users but little or no cooperation","There is little or no contact between managers and tourism operators using the protected area","Although fees are theoretically applied, they are not collected","There are no visitor facilities and services despite an identified need","Are Indigenous people involved in management decisions?","Local communities have no input into decisions relating to the management of the protected area","The protected area does not deliver any livelihood benefits to local communities/ Indigenous people","The threats to the main values are not being addressed by management","The requirements for functional connectivity have not been assessed or considered","Many important natural values are being severely degraded   ","Many important cultural values are being severely degraded   ","The conservation status of key indicator species is undesirable and has worsened over the last five years","The conservation status of habitats is undesirable and has worsened over the last five years"]
["There is agreement that the protected area should be established but the process has not yet begun","The protected area has agreed objectives, but is not managed to achieve these objectives","Some regulations/controls for managing land/sea use and activities in the protected area exist but these are major weaknesses","Adjacent land/sea use planning does not take the existence of the protected area into account, but activities are not detrimental to protected area objectives","Inadequacies in protected area design mean that achievement of major objectives is difficult, but some mitigating actions are being taken (e.g. agreements with adjacent land/sea managers for wildlife corridors or introduction of appropriate catchment management)","The boundary of the protected area is known by the management authority but is not known by local residents/neighbouring land/sea users ","A management plan/equivalent is being prepared or has been prepared but is not being implemented","A regular work plan exists but few of the activities are implemented","Information on the critical habitats, species, ecological processes and cultural values of the protected area is not sufficient to support planning and decision making ","The number of people managing the protected area is inadequate to meet management needs","Knowledge and skills are low relative to the needs of the protected area","The available budget is acceptable but could be increased to fully meet management needs","There is very little secure budget and the protected area could not meet its management needs without outside funding","Budget management is poor and constrains management","There are some equipment and facilities, but these are inadequate for most management needs","There are major deficiencies in staff capacity/resources/ authority to enforce protected area legislation and regulations ","Protection systems are only partially effective in controlling access/resource use","Staff safety is poor due to lack of effective measures to mitigate threats and/or lack of support to provide a safe working environment","There is a small amount of survey and research work, but it is not directed towards the needs of protected area management\n","There is some ad hoc monitoring and evaluation of the performance of management activities, but no system and/or regular collection of results","Very few of the requirements for active management of critical habitats, species, ecological processes and cultural values are being implemented","Some initial thought has taken place about likely impacts of climate change, but this has yet to be translated into management plans ","Carbon storage and carbon dioxide capture have been considered in general terms, but has not yet been significantly reflected in management","The ecosystem services delivered by the protected area are understood but no management actions required to ensure their continued delivery have been taken","There is a limited and ad hoc education and awareness programme","There is contact between managers and neighbouring State and commercial land/sea users, but only some co-operation ","There is contact between managers and tourism operators, but this is largely confined to administrative or regulatory matters","Fees are collected, but make no contribution to the protected area or its environs","Visitor facilities and services are inappropriate for current levels of visitation ","Indigenous people have some input into discussions relating to management but no direct role in management","Local communities have some input into discussions relating to management but no direct role in management","Benefits to local communties/Indigenous people from the protected area exist but are not significant contributors to livelihoods","Management of threats to the main values is only being conducted at a minimal level","The requirements for functional connectivity have been assessed but necessary actions have not been taken ","Some natural values are being severely degraded ","Some cultural values are being severely degraded ","The conservation status of key indicator species is undesirable and has remained unchanged over the last five years","The conservation status of habitats is undesirable and has remained unchanged over the last five years"]
["The protected area  is in the process of being established but the process is still incomplete (includes sites designated under international conventions, such as Ramsar, or local/traditional law such as community conserved areas, which do not yet have national legal status)","The protected area has agreed objectives, but is only partially managed to achieve these objectives","Regulations/control for managing land/sea use and activities in the protected area exist but there are some weaknesses or gaps","Adjacent land/sea use planning has some regard to the existence of the protected area and partially supports protected area objectives","Protected area design is not significantly constraining achievement of objectives, but could be improved (e.g. with respect to larger scale ecological processes)","The boundary of the protected area is known by both the management authority and local residents/neighbouring land/sea users but is not appropriately demarcated ","A management plan/equivalent exists but it is only being partially implemented because of funding constraints or other problems","A regular work plan exists, and many activities are implemented","Information on the critical habitats, species, ecological processes and cultural values of the protected area is sufficient for most key areas of planning and decision making ","The number of people managing the protected area is below below what is required to fully meet management needs","Knowledge and skills are adequate, but could be further improved to fully meet management needs","The available budget is acceptable but could be increased to fully meet management needs","There is a reasonably secure core budget for the management needs of the protected area, but many innovations and initiatives are reliant on outside funding","Budget management is adequate but could be improved","There are equipment and facilities, but still some gaps that constrain management","The staff have acceptable capacity/resources/ authority to enforce protected area legislation and regulations, but some deficiencies remain","Protection systems are moderately effective in controlling access/resource use","Staff safety is an important consideration for protected area managers and steps are taken to mitigate threats and provide a safe working environment, but improvements could be made","There is considerable survey and research work, but it is only partially directed towards the needs of protected area management","There is an agreed and implemented monitoring and evaluation system of the performance of management activities, but results do not feed back into management ","Many of the requirements for active management of critical habitats, species, ecological processes and cultural values are being implemented but some key issues are not being addressed","Limited plans have been drawn up about how to adapt management to predicted climate change, which may or may not be implemented ","There are active measures in place to reduce carbon loss from the protected area, but no conscious measures to increase carbon dioxide capture ","The ecosystem services delivered by the protected area are understood and some management actions required to ensure their continued delivery have been taken","There is an education and awareness programme, but it only partly meets management needs and could be improved","There is regular contact between managers and neighbouring State and commercial land/sea users, and substantial co-operation on management","There is limited co-operation between managers and tourism operators to enhance visitor experiences and maintain protected area values","Fees are collected, and make some contribution to the protected area and its environs","Visitor facilities and services are adequate for current levels of visitation but could be improved","Indigenous people directly contribute to some relevant decisions relating to management, but their involvement could be improved","Local communities directly contribute to some relevant  decisions relating to management, but their involvement could be improved","Benefits to local communities/Indigenous people from the protected area make a moderate contribution to livelihoods","Most of the significant threats to the main values are being substantially addressed by management","The requirements for functional connectivity have been assessed and some actions have been taken but not sufficient to achieve functional connectivity","Some natural values are being partially degraded, but the most important values have not been significantly impacted  ","Some cultural values are being partially degraded, but the most important values have not been significantly impacted  ","The conservation status of key indicator species is undesirable but has improved over the last five years","The conservation status of habitats is undesirable but has improved over the last five years"]
["The protected area has been formally gazetted or established through \"other effective means\"","The protected area has agreed objectives and is managed to achieve these objectives","Regulations/controlling for managing inappropriate land/sea use and activities in the protected area exist and provide an excellent basis for management","Adjacent land/sea use planning fully recognises the existence of the protected area and seeks to support protected area objectives","Protected area design helps achievement of objectives; it is appropriate for species and habitat conservation; and maintains ecological processes such as surface and groundwater flows at a catchment scale, natural disturbance patterns etc","The boundary of the protected area is known by the management authority and local residents/neighbouring land/sea users and is appropriately demarcated ","A management plan/equivalent exists and is being implemented","A regular work plan exists, and all activities are implemented","Information on the critical habitats, species, ecological processes and cultural values  of the protected area is sufficient to support all areas of planning and decision making ","The number of people managing the protected area is adequate to fully meet management needs","Knowledge and skills are aligned with the management needs of the protected area","The available budget is sufficient and meets the full management needs of the protected area","There is a secure budget for the protected area and its management needs ","Budget management is excellent","There are adequate equipment and facilities ","The staff have excellent capacity/resources/ authority to enforce protected area legislation and regulations","Protection systems are largely or wholly effective in controlling access/resource use","Staff safety is an important consideration for protected area managers and all reasonable steps are taken to mitigate threats and provide support to minimise impacts","There is a comprehensive, integrated programme of survey and research work, which is relevant to management needs","A good monitoring and evaluation system exists of the performance of management activities, is well implemented, and results are regularly used to adapt and improve management activities","Requirements for active management of critical habitats, species, ecological processes and cultural values are being substantially or fully implemented","Detailed plans have been drawn up about how to adapt management to predicted climate change, and these are already being implemented ","There are active measures in place both to reduce carbon loss from the protected area and to increase carbon dioxide capture","The ecosystem services delivered by the protected area are understood and all management actions required to ensure their continued delivery have been taken","There is an appropriate and effective education and awareness programme ","There is regular contact between managers and neighbouring State and commercial land/sea users, and substantial co-operation on management","There is good co-operation between managers and tourism operators to enhance visitor experiences and maintain protected area values ","Fees are collected and make a substantial contribution to the protected area and its environs","Visitor facilities and services are excellent for current levels of visitation","Indigenous people directly participate in all relevant decisions relating to management, e.g. co-management","Local communities directly participate in all relevant decisions relating to management, e.g. co-management","There is major flow of sustained livelihood benefits from the protected area to local communities/Indigenous people","The threats to the main values hare being comprehensively addressed by management","The requirements for functional connectivity have been assessed and necessary actions have been taken to achieve functional connectivity","Natural values are predominantly intact ","Cultural values are predominantly intact ","The conservation status of key indicator species is desirable or has significantly improved over the last five years","The conservation status of habitats is desirable or has significantly improved over the last five years"]

{"sheet":"Hyrje","index":2,"n_rows":37,"n_cols":14,"rows_kept":37,"cut":false,"hidden":false,"merged":[[4,2,11,6],[36,1,36,11],[28,1,28,2],[29,1,29,2],[30,1,30,2],[28,3,28,4],[29,3,29,4],[30,3,30,4],[32,1,32,2]]}
[]
[]
[]
[null,null,null,null,null,null,null,null,null,null,null,null,null,{"$f":"'Common text'!A3","v":"METT 4 Përmbledhje"}]
[null,null,{"$f":"'Common text'!A2","v":"MJETI I VLERËSIMIT TE EFEKTIVITETIT TË MENAXHIMIT\nVersioni 4"}]
[null,null,null,null,null,null,null,null,null,null,null,null,null,{"$f":"'Common text'!A4","v":"Paneli Kryesor"}]
[]
[null,null,null,null,null,null,null,null,null,null,null,null,null,{"$f":"'Common text'!A5","v":"Atributet e zonës së mbrojtur"}]
[]
[null,null,null,null,null,null,null,null,null,null,null,null,null,{"$f":"'Common text'!A6","v":"Ruaj"}]
[]
[null,null,null,null,null,null,null,null,null,null,null,null,null,{"$f":"'Common text'!A7","v":"Vendos PASSWORD për të gjitha fletët e punës"}]
[]
[null,null,null,null,null,null,null,null,null,null,null,null,null,{"$f":"'Common text'!A8","v":"Hiq PASSWORD për të gjitha fletët e punës"}]
[]
[]
[]
[]
[]
[]
[]
[]
[]
[]
[]
[]
[]
[]
[null,"Shteti"]
[null,"Emri i zonës së mbrojtur"]
[null,"Emri i përdoruesit"]
[]
[null,"Versioni 4.1"]
[]
[]
[]
[null,"Citim i rekomanduar\nStolton, S., Hockings, M. dhe Dudley, N. (2020). Management Effectiveness Tracking Tool. Reporting Progress on Protected Areas sites: Fourth Edition. Excel Workbook and Guidance. https://www.protectedplanet.net/en/thematic-areas/protected-areas-management-effectiveness-pame\n\nKy version i METT është përshtatur nga Stolton, S., Hockings, M., Dudley, N., MacKinnon, K., Whitten, T. dhe Leverington, F. (2007). Management Effectiveness Tracking Tool. Reporting Progress on Protected Areas sites: Second Edition. Gland, Zvicër: WWF\n \nEkipi i projektimit dhe zhvillimit të librit të punës në Excel\nMarc Hockings, Paul van Nimwegen dhe M.K.S. Pasha\n\nMbështetja financiare: Zhvillimi i librit të punës Excel u mbështet nga Zyra Rajonale e IUCN për Oqeanisë,  përmes programit BIOPAMA (www.biopama.org), WWF International, Conservation Assured|Tiger Standards dhe IUCN WCPA\n\nVerioni shqip i METT 4 është përkthyer nga Instituti për Ruajtjen e Natyrës në Shqipëri (INCA) me mbështetjen financiare të Prespa Ohrid Trust Fund (PONT)"]

{"sheet":"METT 4 Përmbledhje","index":3,"n_rows":24,"n_cols":3,"rows_kept":24,"cut":false,"hidden":false,"merged":[[0,0,0,1],[1,0,1,1],[23,0,23,1],[2,0,2,1],[5,0,5,1],[8,0,8,1],[10,0,10,1],[12,0,12,1],[14,0,14,1],[17,0,17,1],[19,0,19,1]]}
["Mjeti i vleësimit të efektivitetit të menaxhimit të zonave të mbrojtura, versioni 4 (METT-4)",null,{"$f":"'Common text'!A4","v":"Paneli Kryesor"}]
["Mirë se vini në METT-4. Ju lutemi përdorni këtë skedar excel në kombinim me dokumentin udhëzues dhe materialin bazë të ofruar. Për të gjithë ata që zbatojnë METT-in, ju sugjerojmë që së pari të rishikoni shpejt praktikat më të mira të përshkruara më poshtë. Faleminderit dhe suksese.....\n​",null,{"$f":"'Common text'!A5","v":"Atributet e zonës së mbrojtur"}]
["Planifikoni me kujdes zbatimin e METT"]
["1. Planifikoni procesin e zbatimit","Planifikoni procesin e zbatimit. Rishikoni pyetësorin e METT përpara se të ndërmerrni vlerësimin dhe vlerësoni informacionin e disponueshëm për ta plotësuar atë. Më pas rishikoni nevojat e trajnimit për kapacitetin dhe para-vlerësimin, përshtatjen, kohën, shtrirjen dhe shkallën, verifikimin, etj. Duhet t'i kushtohet vëmendje gjithashtu procesit – për shembull, si dhe ku zhvillohet më së miri një seminar për të maksimizuar pjesëmarrjen dhe kontributin. Aty ku planifikohet një ushtrim vlerësimi në shkallë të gjerë, një studim pilot për të provuar pyetësorin mund të jetë i dobishëm për të zbuluar çdo çështje që ka nevojë për sqarim."]
["2. Lini kohë të mjaftueshme për të përfunduar vlerësimin në tërësi.","Lini kohë të mjaftueshme për të përfunduar vlerësimin në tërësi. Një METT i mirë nuk mund të përfundojë në një orë; shumica e pyetjeve kërkojnë mendime serioze dhe shpesh kërkojnë konsultim dhe rishikim te skedarët e menaxhimit. METT-i i parë për një faqe të re ka të ngjarë të zgjasë të paktën një ditë, ndoshta dy. METT-et e përsëritura pasuese mund të jenë më të shpejta."]
["Bëjeni siç duhet dhe bëni të gjitha"]
["3. Plotësoni të gjithë METT-in duke përfshirë të gjitha pyetjet në fletët e të dhënave dhe seksionet narrative që lidhen me pyetjet me zgjedhje të shumëfishta.","Plotësoni të gjithë METT duke përfshirë të gjitha pyetjet në fletët e të dhënave dhe seksionet narrative që lidhen me pyetjet me zgjedhje të shumëfishta. Seksioni \"Veprimet për përmirësimin e menaxhimit\" është thelbësor pasi kjo krijon një listë kontrolli të veprimeve të kërkuara. Kjo mund të zhvillohet në ndërhyrje të menaxhimit dhe ofron një bazë për të kontrolluar nëse gjetjet e METT janë zbatuar në vlerësimet vijuese."]
["4. Përdorni të dhëna sasiore kudo që janë në dispozicion për të mbështetur vlerësimin.","Përdorni të dhëna sasiore kudo që janë të disponueshme për të mbështetur vlerësimin; kjo është më e rëndësishmja në pyetjet e rezultateve."]
["Përshtatni dhe përktheni"]
["5. Përshtatja inkurajohet.","Përshtatja inkurajohet pasi METT është një mjet gjenerik i krijuar për përdorim global; kështu që nuk ka gjasa të përshtatet në mënyrë të përsosur një zonë të mbrojtur (ose sistem, lloj, etj.). Në mënyrë ideale, përshtatjet duhet të ruajnë formatin bazë të METT dhe të shtojnë, në vend që të ndryshojnë, formulimin (p.sh. ofrimi i këshillave shtesë për interpretimin për kushtet lokale ose duke shtuar pyetje shtesë)."]
["Përsëriteni vlerësimin"]
["6. METT është krijuar për të gjurmuar progresin me kalimin e kohës.","Vendet/rrjetet që planifikojnë të zbatojnë METT duhet të synojnë të përsërisin vlerësimet çdo disa vjet; Në mënyrë ideale, METT duhet të jetë pjesë automatike e planifikimit dhe vlerësimit vjetor."]
["Konsultohuni dhe merrni konsensus"]
["7. Zbatimi i METT duhet kudo që të jetë e mundur të përfshijë një gamë të gjerë mbajtësish të të drejtave dhe palëve të interesuara për të ndihmuar në njohuritë e rezultateve të vlerësimit.","Zbatimi dhe aktivitetet vijuese të METT duhet të përfshijnë kudo që është e mundur një gamë të gjerë të të drejtave dhe palëve të interesuara për të ndihmuar në njohjen e rezultateve të vlerësimit; përfshirja e njerëzve jashtë agjencisë së menaxhimit të zonës së mbrojtur, siç janë komunitetet lokale, do të sjellë njohuri më të pasura."]
["Ndërtoni dhe udhëzoni kapacitetet  "]
["8. Këshillohet ngritja e kapaciteteve në mënyrë që të gjithë pjesëmarrësit të kuptojnë PAME.","Këshillohet ngritja e kapaciteteve në mënyrë që të gjithë pjesëmarrësit të kuptojnë PAME dhe qëllimin, mundësitë dhe kufizimet e METT."]
["9. Zhvillimi i një kuptimi të METT dhe se si mund të zbatohet në një juridiksion specifik do të ndihmojë në sigurimin e rezultateve të vlefshme.","Zhvilloni një kuptim më të mirë të METT përmes këshillave dhe udhëzimeve specifike të sitit/vendit, për të ndihmuar në sigurimin e pyetjeve METT interpretohen në të njëjtën mënyrë kur zbatohen në një nivel vend/portofoli."]
["Verifikoni rezultatet"]
["10. Proceset e verifikimit mund të jenë të dobishme.","Nëse vlerësohet e nevojshme të zhvillohet një proces verifikimi; këto mund të variojnë nga kontrolli i thjeshtë i METT-ve të përfunduara nga vlerësues të jashtëm deri tek ushtrimet më të hollësishme të verifikimit në terren që përfshijnë mbledhjen e të dhënave shtesë. Aty ku personeli ka kapacitet dhe burime, METT mund të plotësohet edhe me vlerësime më të detajuara, kërkime, monitorim të specieve, etj."]
["Zbatoni rekomandimet"]
["11. Përdorimi dhe shpërndarja e rezultateve.","Zbatimi i rezultateve të METT duhet të përfshijë menaxhimin adaptiv (p.sh. një plan veprimi për të adresuar shqetësimet, përdorimin e rezultateve në zhvillimin ose rishikimin e planeve të menaxhimit ose planeve operacionale vjetore, etj.) dhe proceset e komunikimit të planifikuara qartë (p.sh. prezantimet dhe raportet) me ndajnë rezultatet në nivel lokal, veçanërisht me pjesëmarrësit që ndihmuan në përfundimin e METT."]
["12. Ndani të dhënat në nivel kombëtar dhe ndërkombëtar","Së fundi, të dhënat duhet të ndahen në nivel kombëtar ose global, për shembull, duke dorëzuar të dhënat METT në bazën globale të të dhënave mbi efektivitetin e menaxhimit të zonave të mbrojtura të menaxhuara nga UNEP-WCMC, e cila është e mandatuar nga Konventa për Diversitetin Biologjik për të ruajtur këtë bazë të dhënash dhe për ta përdorur atë për CBD raportimi."]
[]
["Ndërsa METT origjinal përmban 30 pyetje, METT-4 i përdorur në këtë mjet Excel ka pyetje shtesë që janë shtuar për të forcuar dobinë e mjetit dhe për të parë kërcënimet ndaj vlerave, përshtatjen ndaj ndryshimeve klimatike dhe statusin e ruajtjes së specieve dhe habitateve tregues kyç. . Një version i METT u përgatit për KfW (Advanced METT) dhe ky version është përshtatur me lejen e tyre përmes një procesi të mbledhur nga WWF/IUCN në dhjetor 2019 dhe fillim të 2020. Kontaktet: Sue Stolton(sue@equilibriumresearch.com), Nigel Dudley ( nigel@equilibriumresearch.com) dhe Marc Hockings (marc@paconservation.com)."]

{"sheet":"Data lookups","index":4,"n_rows":33,"n_cols":3,"rows_kept":33,"cut":false,"hidden":true,"merged":[]}
[]
[null,null,2019]
[null,null,2020]
[null,null,2021]
[null,null,2022]
[null,null,2023]
[null,null,2024]
[null,null,2025]
[null,null,2026]
[null,null,2027]
[null,null,2028]
[null,null,2029]
[null,null,2030]
[null,null,2031]
[null,null,2032]
[null,null,2033]
[null,null,2034]
[null,null,2035]
[null,null,2036]
[null,null,2037]
[null,null,2038]
[null,null,2039]
[null,null,2040]
[null,null,2041]
[null,null,2042]
[null,null,2043]
[null,null,2044]
[null,null,2045]
[null,null,2046]
[null,null,2047]
[null,null,2048]
[null,null,2049]
[null,null,2050]

{"sheet":"Paneli Kryesor","index":5,"n_rows":50,"n_cols":27,"rows_kept":50,"cut":false,"hidden":false,"merged":[[0,1,0,4],[0,6,0,7],[42,13,43,18],[27,20,28,26],[42,20,43,24],[14,20,15,22],[2,1,3,9],[2,11,3,18],[27,1,28,11],[27,13,28,18],[2,20,3,24]]}
[null,{"$f":"'Atributet e zonës së mbrojtur'!B5","v":0},null,null,null,null,{"$f":"'Atributet e zonës së mbrojtur'!B59","v":"00:00:00"},null,null,null,null,null,null,null,null,null,null,null,null,null,null,null,null,null,null,{"$f":"'Common text'!A11","v":"METT 4 Pyetjet dhe rezultatet"}]
[]
[null,"1. Rezultatet e METT për elementë të menaxhimit",null,null,null,null,null,null,null,null,null,"2. Rezultatet e METT për elementë të menaxhimit",null,null,null,null,null,null,null,null,"3. Rezultatet e METT për element menaxherial (përqindje)"]
[]
[null,null,null,null,null,null,null,null,null,null,null,null,null,null,null,null,null,null,null,null,"Elementi","Rezultati juaj","Rezultati maksimal","Rezultati juaj ne %","Max %"]
[null,null,null,null,null,null,null,null,null,null,null,null,null,null,null,null,null,null,null,null,"Planifikimi",{"$f":"'METT 4 Pyetjet dhe Rezultatet'!E6+'METT 4 Pyetjet dhe Rezultatet'!E7+'METT 4 Pyetjet dhe Rezultatet'!E9+'METT 4 Pyetjet dhe Rezultatet'!E10+'METT 4 Pyetjet dhe Rezultatet'!E12+'METT 4 Pyetjet dhe Rezultatet'!E13+'METT 4 Pyetjet dhe Rezultatet'!E14","v":0},{"$f":"'METT 4 Pyetjet dhe Rezultatet'!D6+'METT 4 Pyetjet dhe Rezultatet'!D7+'METT 4 Pyetjet dhe Rezultatet'!D9+'METT 4 Pyetjet dhe Rezultatet'!D10+'METT 4 Pyetjet dhe Rezultatet'!D12+'METT 4 Pyetjet dhe Rezultatet'!D13+'METT 4 Pyetjet dhe Rezultatet'!D14","v":21},{"$f":"V6/W6","v":0},1]
[null,null,null,null,null,null,null,null,null,null,null,null,null,null,null,null,null,null,null,null,"Inputet",{"$f":"'METT 4 Pyetjet dhe Rezultatet'!E15+'METT 4 Pyetjet dhe Rezultatet'!E16+'METT 4 Pyetjet dhe Rezultatet'!E17+'METT 4 Pyetjet dhe Rezultatet'!E18+'METT 4 Pyetjet dhe Rezultatet'!E19+'METT 4 Pyetjet dhe Rezultatet'!E21","v":0},{"$f":"'METT 4 Pyetjet dhe Rezultatet'!D15+'METT 4 Pyetjet dhe Rezultatet'!D16+'METT 4 Pyetjet dhe Rezultatet'!D17+'METT 4 Pyetjet dhe Rezultatet'!D18+'METT 4 Pyetjet dhe Rezultatet'!D19+'METT 4 Pyetjet dhe Rezultatet'!D21","v":18},0,1]
[null,null,null,null,null,null,null,null,null,null,null,null,null,null,null,null,null,null,null,null,"Procesi",{"$f":"'METT 4 Pyetjet dhe Rezultatet'!E8+'METT 4 Pyetjet dhe Rezultatet'!E11+'METT 4 Pyetjet dhe Rezultatet'!E20+'METT 4 Pyetjet dhe Rezultatet'!E22+'METT 4 Pyetjet dhe Rezultatet'!E23+'METT 4 Pyetjet dhe Rezultatet'!E24+'METT 4 Pyetjet dhe Rezultatet'!E25+'METT 4 Pyetjet dhe Rezultatet'!E26+'METT 4 Pyetjet dhe Rezultatet'!E27+'METT 4 Pyetjet dhe Rezultatet'!E28+'METT 4 Pyetjet dhe Rezultatet'!E29+'METT 4 Pyetjet dhe Rezultatet'!E30+'METT 4 Pyetjet dhe Rezultatet'!E31+'METT 4 Pyetjet dhe Rezultatet'!E32+'METT 4 Pyetjet dhe Rezultatet'!E33+'METT 4 Pyetjet dhe Rezultatet'!E34++'METT 4 Pyetjet dhe Rezultatet'!E36+'METT 4 Pyetjet dhe Rezultatet'!E37+'METT 4 Pyetjet dhe Rezultatet'!E44+'METT 4 Pyetjet dhe Rezultatet'!E46","v":0},{"$f":"'METT 4 Pyetjet dhe Rezultatet'!D8+'METT 4 Pyetjet dhe Rezultatet'!D11+'METT 4 Pyetjet dhe Rezultatet'!D20+'METT 4 Pyetjet dhe Rezultatet'!D22+'METT 4 Pyetjet dhe Rezultatet'!D23+'METT 4 Pyetjet dhe Rezultatet'!D24+'METT 4 Pyetjet dhe Rezultatet'!D25+'METT 4 Pyetjet dhe Rezultatet'!D26+'METT 4 Pyetjet dhe Rezultatet'!D27+'METT 4 Pyetjet dhe Rezultatet'!D28+'METT 4 Pyetjet dhe Rezultatet'!D29+'METT 4 Pyetjet dhe Rezultatet'!D30+'METT 4 Pyetjet dhe Rezultatet'!D31+'METT 4 Pyetjet dhe Rezultatet'!D32+'METT 4 Pyetjet dhe Rezultatet'!D33+'METT 4 Pyetjet dhe Rezultatet'!D34++'METT 4 Pyetjet dhe Rezultatet'!D36+'METT 4 Pyetjet dhe Rezultatet'!D37+'METT 4 Pyetjet dhe Rezultatet'!D44+'METT 4 Pyetjet dhe Rezultatet'!D46","v":60},0,1]
[null,null,null,null,null,null,null,null,null,null,null,null,null,null,null,null,null,null,null,null,"Rezultatet",{"$f":"'METT 4 Pyetjet dhe Rezultatet'!E35+'METT 4 Pyetjet dhe Rezultatet'!E38+'METT 4 Pyetjet dhe Rezultatet'!E39+'METT 4 Pyetjet dhe Rezultatet'!E40+'METT 4 Pyetjet dhe Rezultatet'!E41","v":0},{"$f":"'METT 4 Pyetjet dhe Rezultatet'!D35+'METT 4 Pyetjet dhe Rezultatet'!D38+'METT 4 Pyetjet dhe Rezultatet'!D39+'METT 4 Pyetjet dhe Rezultatet'!D40+'METT 4 Pyetjet dhe Rezultatet'!D41","v":15},0,1]
[null,null,null,null,null,null,null,null,null,null,null,null,null,null,null,null,null,null,null,null,"Arritjet",{"$f":"'METT 4 Pyetjet dhe Rezultatet'!E43+'METT 4 Pyetjet dhe Rezultatet'!E45+'METT 4 Pyetjet dhe Rezultatet'!E48+'METT 4 Pyetjet dhe Rezultatet'!E50","v":0},{"$f":"'METT 4 Pyetjet dhe Rezultatet'!D43+'METT 4 Pyetjet dhe Rezultatet'!D45+'METT 4 Pyetjet dhe Rezultatet'!D48+'METT 4 Pyetjet dhe Rezultatet'!D50","v":12},0,1]
[null,null,null,null,null,null,null,null,null,null,null,null,null,null,null,null,null,null,null,null,"Total",{"$f":"SUM(V6:V10)","v":0},{"$f":"SUM(W6:W10)","v":126},0,1]
[]
[null,null,null,null,null,null,null,null,null,null,null,null,null,null,null,null,null,null,null,null," "]
[]
[null,null,null,null,null,null,null,null,null,null,null,null,null,null,null,null,null,null,null,null,"7. Gjendja e vlerave"]
[]
[null,null,null,null,null,null,null,null,null,null,null,null,null,null,null,null,null,null,null,null,"Vlera kryesore","Gjendja","Tendenca"]
[null,null,null,null,null,null,null,null,null,null,null,null,null,null,null,null,null,null,null,null,{"$f":"'Atributet e zonës së mbrojtur'!B31","v":0},{"$f":"'Vlerësimi i detajuar i vlerave'!B19","v":"Shumë mirë"},{"$f":"'Vlerësimi i detajuar i vlerave'!C19","v":0}]
[null,null,null,null,null,null,null,null,null,null,null,null,null,null,null,null,null,null,null,null,{"$f":"'Atributet e zonës së mbrojtur'!B32","v":0},{"$f":"'Vlerësimi i detajuar i vlerave'!B20","v":0},{"$f":"'Vlerësimi i detajuar i vlerave'!C20","v":0}]
[null,null,null,null,null,null,null,null,null,null,null,null,null,null,null,null,null,null,null,null,{"$f":"'Atributet e zonës së mbrojtur'!B33","v":0},{"$f":"'Vlerësimi i detajuar i vlerave'!B21","v":0},{"$f":"'Vlerësimi i detajuar i vlerave'!C21","v":0}]
[null,null,null,null,null,null,null,null,null,null,null,null,null,null,null,null,null,null,null,null,{"$f":"'Atributet e zonës së mbrojtur'!B34","v":0},{"$f":"'Vlerësimi i detajuar i vlerave'!B22","v":0},{"$f":"'Vlerësimi i detajuar i vlerave'!C22","v":0}]
[null,null,null,null,null,null,null,null,null,null,null,null,null,null,null,null,null,null,null,null,{"$f":"'Atributet e zonës së mbrojtur'!B35","v":0},{"$f":"'Vlerësimi i detajuar i vlerave'!B23","v":0},{"$f":"'Vlerësimi i detajuar i vlerave'!C23","v":0}]
[]
[]
[]
[]
[]
[null,"4. Kërcënimet",null,null,null,null,null,null,null,null,null,null,null,"5. Shkalla e Kërcënimit",null,null,null,null,null,null,"8. Statusi dhe tendenca në llojet e treguesve kyç"]
[]
[null,null,null,null,null,null,null,null,null,null,null,null,null,null,null,null,null,null,null,null,"Speciet","Shkalla","Madhësia e popullatës","Procesi Pop","Sipërfaqja e habitatit","Cilësi e habitatit","Shtrirja e kërcënimeve"]
[null,null,null,null,null,null,null,null,null,null,null,null,null,null,null,null,null,null,null,null,{"$f":"'Vlerësimi i detajuar i llojeve '!A12","v":0},{"$f":"'Vlerësimi i detajuar i llojeve '!B12","v":0},{"$f":"'Vlerësimi i detajuar i llojeve '!C12","v":0},{"$f":"'Vlerësimi i detajuar i llojeve '!D12","v":0},{"$f":"'Vlerësimi i detajuar i llojeve '!E12","v":0},{"$f":"'Vlerësimi i detajuar i llojeve '!F12","v":0},{"$f":"'Vlerësimi i detajuar i llojeve '!G12","v":0}]
[null,null,null,null,null,null,null,null,null,null,null,null,null,null,null,null,null,null,null,null,{"$f":"'Vlerësimi i detajuar i llojeve '!A13","v":0},{"$f":"'Vlerësimi i detajuar i llojeve '!B13","v":0},{"$f":"'Vlerësimi i detajuar i llojeve '!C13","v":0},{"$f":"'Vlerësimi i detajuar i llojeve '!D13","v":0},{"$f":"'Vlerësimi i detajuar i llojeve '!E13","v":0},{"$f":"'Vlerësimi i detajuar i llojeve '!F13","v":0},{"$f":"'Vlerësimi i detajuar i llojeve '!G13","v":0}]
[null,null,null,null,null,null,null,null,null,null,null,null,null,null,null,null,null,null,null,null,{"$f":"'Vlerësimi i detajuar i llojeve '!A14","v":0},{"$f":"'Vlerësimi i detajuar i llojeve '!B14","v":0},{"$f":"'Vlerësimi i detajuar i llojeve '!C14","v":0},{"$f":"'Vlerësimi i detajuar i llojeve '!D14","v":0},{"$f":"'Vlerësimi i detajuar i llojeve '!E14","v":0},{"$f":"'Vlerësimi i detajuar i llojeve '!F14","v":0},{"$f":"'Vlerësimi i detajuar i llojeve '!G14","v":0}]
[null,null,null,null,null,null,null,null,null,null,null,null,null,null,null,null,null,null,null,null,{"$f":"'Vlerësimi i detajuar i llojeve '!A15","v":0},{"$f":"'Vlerësimi i detajuar i llojeve '!B15","v":0},{"$f":"'Vlerësimi i detajuar i llojeve '!C15","v":0},{"$f":"'Vlerësimi i detajuar i llojeve '!D15","v":0},{"$f":"'Vlerësimi i detajuar i llojeve '!E15","v":0},{"$f":"'Vlerësimi i detajuar i llojeve '!F15","v":0},{"$f":"'Vlerësimi i detajuar i llojeve '!G15","v":0}]
[null,null,null,null,null,null,null,null,null,null,null,null,null,null,null,null,null,null,null,null,{"$f":"'Vlerësimi i detajuar i llojeve '!A16","v":0},{"$f":"'Vlerësimi i detajuar i llojeve '!B16","v":0},{"$f":"'Vlerësimi i detajuar i llojeve '!C16","v":0},{"$f":"'Vlerësimi i detajuar i llojeve '!D16","v":0},{"$f":"'Vlerësimi i detajuar i llojeve '!E16","v":0},{"$f":"'Vlerësimi i detajuar i llojeve '!F16","v":0},{"$f":"'Vlerësimi i detajuar i llojeve '!G16","v":0}]
[]
[]
[]
[]
[]
[]
[]
[null,null,null,null,null,null,null,null,null,null,null,null,null,"6. Ashpërsia e Kërcënimit",null,null,null,null,null,null,"9. Statusi dhe tendenca në habitate"]
[]
[null,null,null,null,null,null,null,null,null,null,null,null,null,null,null,null,null,null,null,null,"Habitatet kyçe","Shkalla","Sipërfaqja e habitatit","Struktura dhe funksioni","Shtrirja e kërcënimeve"]
[null,null,null,null,null,null,null,null,null,null,null,null,null,null,null,null,null,null,null,null,{"$f":"'Vlerësimi i detajuar habitatet'!A11","v":0},{"$f":"'Vlerësimi i detajuar habitatet'!B11","v":0},{"$f":"'Vlerësimi i detajuar habitatet'!C11","v":0},{"$f":"'Vlerësimi i detajuar habitatet'!D11","v":0},{"$f":"'Vlerësimi i detajuar habitatet'!E11","v":0}]
[null,null,null,null,null,null,null,null,null,null,null,null,null,null,null,null,null,null,null,null,{"$f":"'Vlerësimi i detajuar habitatet'!A12","v":0},{"$f":"'Vlerësimi i detajuar habitatet'!B12","v":0},{"$f":"'Vlerësimi i detajuar habitatet'!C12","v":0},{"$f":"'Vlerësimi i detajuar habitatet'!D12","v":0},{"$f":"'Vlerësimi i detajuar habitatet'!E12","v":0}]
[null,null,null,null,null,null,null,null,null,null,null,null,null,null,null,null,null,null,null,null,{"$f":"'Vlerësimi i detajuar habitatet'!A13","v":0},{"$f":"'Vlerësimi i detajuar habitatet'!B13","v":0},{"$f":"'Vlerësimi i detajuar habitatet'!C13","v":0},{"$f":"'Vlerësimi i detajuar habitatet'!D13","v":0},{"$f":"'Vlerësimi i detajuar habitatet'!E13","v":0}]
[null,null,null,null,null,null,null,null,null,null,null,null,null,null,null,null,null,null,null,null,{"$f":"'Vlerësimi i detajuar habitatet'!A14","v":0},{"$f":"'Vlerësimi i detajuar habitatet'!B14","v":0},{"$f":"'Vlerësimi i detajuar habitatet'!C14","v":0},{"$f":"'Vlerësimi i detajuar habitatet'!D14","v":0},{"$f":"'Vlerësimi i detajuar habitatet'!E14","v":0}]
[null,null,null,null,null,null,null,null,null,null,null,null,null,null,null,null,null,null,null,null,{"$f":"'Vlerësimi i detajuar habitatet'!A15","v":0},{"$f":"'Vlerësimi i detajuar habitatet'!B15","v":0},{"$f":"'Vlerësimi i detajuar habitatet'!C15","v":0},{"$f":"'Vlerësimi i detajuar habitatet'!D15","v":0},{"$f":"'Vlerësimi i detajuar habitatet'!E15","v":0}]

{"sheet":"Atributet e zonës së mbrojtur","index":6,"n_rows":59,"n_cols":5,"rows_kept":59,"cut":false,"hidden":false,"merged":[[0,0,0,3],[8,3,9,3]]}
["Informacion mbi atributet e zonës së mbrojtur",null,null,null,{"$f":"'Common text'!A12","v":"Fleta e Vlerësimit të kërcënimeve"}]
["Pyetjet","Përgjigjia juaj","Shënimet","Ndihmë për t'iu përgjigjur kësaj pyetjeje (shih gjithashtu Manualin METT për udhëzime më të hollësishme)",{"$f":"'Common text'!$A$13","v":"Eksporto Atributet e ZM"}]
["Shteti"]
["Vendndodhja e zonës së mbrojtur",null,null,"Provinca, shteti, qarku ose informacione të tjera vendndodhjeje"]
["Emri i zonës së mbrojtur"]
["Kodi i zonës sipas WDPA",null,null,"Kodet mund të gjenden në bazën botërore të të dhënave për zonat e mbrojtura (WDPA): https://www.protectedplanet.net/country/ALB"]
["Data e shpalljes",null,null,"\"Formati: DD/MM/VVVV\""]
["Emërtimet kombëtare",null,null,"Shënoni kategorinë kombëtare. Kjo është e rëndësishme sepse shpesh çdo emërtim ka politikat, rregullat dhe ndonjëherë legjislacionin e vet"]
["Kategoria e Zonave të Mbrojtura sipas IUCN",null,null,"Shumica, por jo të gjitha zonave të mbrojtura, u është caktuar një kategori IUCN e cila është e listuar në WDPA. Zgjidhni kategorinë përkatëse nga lista rënëse. Nëse më shumë se një kategori IUCN aplikohet në pjesë të zonës së mbrojtur, zgjidhni kategorinë me zonën më të madhe këtu dhe renditni të gjitha kategoritë e zbatueshme nën 'të tjera' në qelizën tjetër"]
["Kategoria e ZM sipas IUCN (Të tjera) - listoni numrat e kategorive që aplikohen"]
["Emërtimet ndërkombëtare - A është zona e listuar nën një emërtim/kategori ndërkombëtare?",null,null,"Nëse \"Po\", ju lutemi jepni detaje në fushat më poshtë duke përdorur menynë rënëse, tregoni se cilat janë të vlefshme për zonën që po vlerësohet"]
["Trashëgimia Botërore",null,null,"Shih whc.unesco.org/en/list\nJepni lidhjen e internetit në faqen e informacionit të faqes në faqen e internetit të UNESCO-s në fushën e shënimeve"]
["Kriteret e perzgjedhjes",null,null,"Kriteret për përcaktimin (kriteret nga i deri në x)"]
["Zonë RAMSAR",null,null,"Shih https://rsis.ramsar.org/\nJepni lidhjen e internetit në faqen e informacionit të faqes në faqen e internetit Ramsar në fushën e shënimeve"]
["Njeriu dhe Biosfera (MAB)",null,null,"Shih www.unesco.org/new/en/natural-sciences/environment/ecological-sciences/biosphere-reserves/world-network-wnbr/wnbr/\nJepni lidhjen e internetit në faqen e informacionit të faqes në faqen e internetit të UNESCO-s në fushën e shënimeve"]
["Emërtime të tjera",null,null,"(p.sh. Vendi i Trashëgimisë ASEAN) - ju lutemi shkruani përcaktimin(et)"]
["A është identifikuar zona si një vend me rëndësi të veçantë për biodiversitetin?",null,null,"Shihni Manualin për informacione të mëtejshme për secilin prej llojeve në listën rënëse. Klikoni çdo emërtim përkatës me radhë për të krijuar listën e emërtimeve të aplikueshme."]
["Detajet e qeverisjes",null,null,"Zgjidhni nga lista. Opsionet pasqyrojnë katër llojet e qeverisjes të identifikuara nga IUCN; për më shumë informacion shihni Udhëzimet për Aplikimin e Kategorive të Menaxhimit të Zonave të Mbrojtura (Dudley, 2008)."]
["Autoriteti Menaxhues",null,null,"Emri i organit përgjegjës për menaxhimin e zones"]
["Madhësia e zonës së mbrojtur (në km2)"]
["Stafi: A ka staf zona e mbrojtur?",null,null,"Tregoni nëse zona ka staf përgjegjës për menaxhimin"]
["Të përhershëm",null,null,"Tregoni numrin e personelit të përhershëm"]
["Të përkohshëm",null,null,"Tregoni numrin e personelit të përkohshëm"]
["Buxheti i disponueshëm",null,null,"Vjetore, duke mbuluar të gjitha fondet e disponueshme aktualisht për menaxhimin e sitit për vitin e vlerësimit (ose shifrat më të fundit të disponueshme - duke shënuar vitin në fushën e shënimeve nëse ky nuk është viti i vlerësimit)"]
["Monedha",null,null,"Tregoni emrin e monedhës së përdorur në raportimin e buxhetit - kjo normalisht do të jetë monedha vendase"]
["Fondet e operative",null,null,"Vjetore, në monedhën e përdorur për të raportuar buxhetin e disponueshëm"]
["Projekt apo fonde të tjera suplementare",null,null,"Vjetore, në monedhën e përdorur për të raportuar buxhetin e disponueshëm"]
["Numri vjetor i vizitorëve",null,null,"Shtoni numrin e saktë ose, kur nuk dihet, jepni një vlerësim; Në fushën Shënime jepni vitin që raportohet nëse ky është i ndryshëm nga viti për të cilin aplikohet vlerësimi"]
["Viti për të cilin raportohet numri i vizitorëve"]
["Cilat janë vlerat kryesore për të cilat është caktuar zona e mbrojtur","Udhëzime shtesë për identifikimin e vlerave kryesore",null,"Ju lutemi, renditni deri në pesë vlera kryesore (duke marrë parasysh vlerat natyrore dhe kulturore)."]
["Vlera kryesore 1"]
["Vlera kryesore 2"]
["Vlera kryesore 3"]
["Vlera kryesore 4"]
["Vlera kryesore 5"]
["Cilat janë shërbimet kryesore të ekosistemeve të ofruara nga zona e mbrojtur",null,null,"Ju lutemi, zgjidhni deri në tre shërbime kryesore të ekosistemit më poshtë duke përdorur listat rënëse."]
["Shërbimi kryesor i ekosistemit 1"]
["Shërbimi kryesor i ekosistemit 2"]
["Shërbimi kryesor i ekosistemit 3"]
["Për shërbime të tjera të Ekosistemit - ju lutemi specifikoni"]
["Rendisni dy objektivat më të rëndësishëm të menaxhimit të zonave të mbrojtura",null,null,"Është e rëndësishme të identifikohen objektivat kryesorë pasi vlerësimi i menaxhimit në METT u referohet atyre."]
["Objektivi i menaxhimit 1"]
["Objektivi i menaxhimit 2"]
["Numri i personave të përfshirë në kryerjen e vlerësimit",{"$f":"SUM(B45:B52)","v":0},null,"Kjo fushë përmbledh automatikisht numrin e njerëzve në secilën kategori më poshtë"]
["Menaxherë të ZM",null,null,"Shtoni numrin e njerëzve të përfshirë në kryerjen e vlerësimit për secilën nga këto kategori"]
["Stafi i ZM"]
["Stafi tjetër i agjencisë së ZM"]
["OJQ"]
["Komunitet lokal"]
["Donatorë"]
["Ekspertët e jashtëm"]
["Të tjera"]
["A është kryer vlerësimi i METT-it në bashkëpunim me një projekt të caktuar, në emër të një organizate apo donatori?"]
["Personi përgjegjës për plotësimin e METT"]
["Emri"]
["Përkatësia (institucioni)"]
["Email"]
["Viti kur po kryhet vlerësimi METT",null,null,"Formati VVVV - ky është viti në të cilin kryhet vlerësimi"]
["Data e kryerjes së Vlerësimit METT",null,null,"Formati: DD/MM/VVVV"]

{"sheet":"PA attributes data sheet","index":7,"n_rows":2,"n_cols":106,"rows_kept":2,"cut":false,"hidden":true,"merged":[]}
["PA name","PA name Notes","Country","Country Notes","Location","Location Notes","WDPA site code","WDPA site code Notes","Date of establishment ","Date of establishment Notes","National Designations","National Designations  Notes","IUCN PA Category","IUCN PA Category Notes","IUCN PA Category (Other)","IUCN PA Category (Other)  Notes","International designations","International designations Notes","World Heritage","World Heritage Notes","WH criteria Notes","WH criteria","Ramsar","Ramsar Notes","MAB","MAB Notes","Other ID","Other ID Notes","Biodiv site","Biodiv site Notes","Ownership","Ownership Notes","Authority  Notes","Authority","Size","Size Notes","Staff (y/n)","Staff (y/n)  Notes","Permanent","Permanent  Notes","Temporary","Temporary  Notes","Budget","Budget Notes","Recurrent","Recurrent Notes","Additional","Additional Notes","Visitors","Visitors Notes","Visit year","Visit year  Notes","Value 1","Value 1  Notes","Value 2","Value 2 Notes","Value 3","Value 3 Notes","Value 4","Value 4 Notes","Value 5","Value  Notes","ES1","ES1 Notes","ES2","ES2 Notes","ES3","ES3 Notes","ES other","ES other Notes","Obj 1","Obj 1 Notes","Obj 2","Obj 2 Notes","Assess No.","Assess No. Notes","Manager No","Manager No Notes","Pa staff no","Pa staff no Notes","Other staff","Other staff Notes","NGO","NGO Notes","Community","Community Notes","Donors","Donors Notes","Experts","Experts Notes","Other","Other Notes","Project","Project Notes","Responsible Name Notes","Responsible Name","Affiliation","Affiliation Notes","Email Notes","Email","Assessment Year","Assessment Year Notes","Date of assessment","PA name","PA name","PA name"]
[{"$f":"'Atributet e zonës së mbrojtur'!$B$5","v":0},{"$f":"'Atributet e zonës së mbrojtur'!$C$5","v":0},{"$f":"'Atributet e zonës së mbrojtur'!$B$3","v":0},{"$f":"'Atributet e zonës së mbrojtur'!$C$3","v":0},{"$f":"'Atributet e zonës së mbrojtur'!$B$4","v":0},{"$f":"'Atributet e zonës së mbrojtur'!$C$4","v":0},{"$f":"'Atributet e zonës së mbrojtur'!$B$6","v":0},{"$f":"'Atributet e zonës së mbrojtur'!$C$6","v":0},{"$f":"'Atributet e zonës së mbrojtur'!B7","v":"00:00:00"},{"$f":"'Atributet e zonës së mbrojtur'!C7","v":0},{"$f":"'Atributet e zonës së mbrojtur'!B8","v":0},{"$f":"'Atributet e zonës së mbrojtur'!C8","v":0},{"$f":"'Atributet e zonës së mbrojtur'!B9","v":0},{"$f":"'Atributet e zonës së mbrojtur'!C9","v":0},{"$f":"'Atributet e zonës së mbrojtur'!B10","v":0},{"$f":"'Atributet e zonës së mbrojtur'!C10","v":0},{"$f":"'Atributet e zonës së mbrojtur'!B11","v":0},{"$f":"'Atributet e zonës së mbrojtur'!C11","v":0},{"$f":"'Atributet e zonës së mbrojtur'!B12","v":0},{"$f":"'Atributet e zonës së mbrojtur'!C12","v":0},{"$f":"'Atributet e zonës së mbrojtur'!B13","v":0},{"$f":"'Atributet e zonës së mbrojtur'!C13","v":0},{"$f":"'Atributet e zonës së mbrojtur'!B14","v":0},{"$f":"'Atributet e zonës së mbrojtur'!C14","v":0},{"$f":"'Atributet e zonës së mbrojtur'!B15","v":0},{"$f":"'Atributet e zonës së mbrojtur'!C15","v":0},{"$f":"'Atributet e zonës së mbrojtur'!B16","v":0},{"$f":"'Atributet e zonës së mbrojtur'!C16","v":0},{"$f":"'Atributet e zonës së mbrojtur'!B17","v":0},{"$f":"'Atributet e zonës së mbrojtur'!C17","v":0},{"$f":"'Atributet e zonës së mbrojtur'!B18","v":0},{"$f":"'Atributet e zonës së mbrojtur'!C18","v":0},{"$f":"'Atributet e zonës së mbrojtur'!B19","v":0},{"$f":"'Atributet e zonës së mbrojtur'!C19","v":0},{"$f":"'Atributet e zonës së mbrojtur'!B20","v":0},{"$f":"'Atributet e zonës së mbrojtur'!C20","v":0},{"$f":"'Atributet e zonës së mbrojtur'!B21","v":0},{"$f":"'Atributet e zonës së mbrojtur'!C21","v":0},{"$f":"'Atributet e zonës së mbrojtur'!B22","v":0},{"$f":"'Atributet e zonës së mbrojtur'!C22","v":0},{"$f":"'Atributet e zonës së mbrojtur'!B23","v":0},{"$f":"'Atributet e zonës së mbrojtur'!C23","v":0},{"$f":"'Atributet e zonës së mbrojtur'!B24","v":0},{"$f":"'Atributet e zonës së mbrojtur'!C24","v":0},{"$f":"'Atributet e zonës së mbrojtur'!B26","v":0},{"$f":"'Atributet e zonës së mbrojtur'!C26","v":0},{"$f":"'Atributet e zonës së mbrojtur'!B27","v":0},{"$f":"'Atributet e zonës së mbrojtur'!C27","v":0},{"$f":"'Atributet e zonës së mbrojtur'!B28","v":0},{"$f":"'Atributet e zonës së mbrojtur'!C28","v":0},{"$f":"'Atributet e zonës së mbrojtur'!B29","v":0},{"$f":"'Atributet e zonës së mbrojtur'!C29","v":0},{"$f":"'Atributet e zonës së mbrojtur'!B31","v":0},{"$f":"'Atributet e zonës së mbrojtur'!C31","v":0},{"$f":"'Atributet e zonës së mbrojtur'!B32","v":0},{"$f":"'Atributet e zonës së mbrojtur'!C32","v":0},{"$f":"'Atributet e zonës së mbrojtur'!B33","v":0},{"$f":"'Atributet e zonës së mbrojtur'!C33","v":0},{"$f":"'Atributet e zonës së mbrojtur'!B34","v":0},{"$f":"'Atributet e zonës së mbrojtur'!C34","v":0},{"$f":"'Atributet e zonës së mbrojtur'!B35","v":0},{"$f":"'Atributet e zonës së mbrojtur'!C35","v":0},{"$f":"'Atributet e zonës së mbrojtur'!B37","v":0},{"$f":"'Atributet e zonës së mbrojtur'!C37","v":0},{"$f":"'Atributet e zonës së mbrojtur'!B38","v":0},{"$f":"'Atributet e zonës së mbrojtur'!C38","v":0},{"$f":"'Atributet e zonës së mbrojtur'!B39","v":0},{"$f":"'Atributet e zonës së mbrojtur'!C39","v":0},{"$f":"'Atributet e zonës së mbrojtur'!B40","v":0},{"$f":"'Atributet e zonës së mbrojtur'!C40","v":0},{"$f":"'Atributet e zonës së mbrojtur'!B42","v":0},{"$f":"'Atributet e zonës së mbrojtur'!C42","v":0},{"$f":"'Atributet e zonës së mbrojtur'!B43","v":0},{"$f":"'Atributet e zonës së mbrojtur'!C43","v":0},{"$f":"'Atributet e zonës së mbrojtur'!B44","v":0},{"$f":"'Atributet e zonës së mbrojtur'!C44","v":0},{"$f":"'Atributet e zonës së mbrojtur'!B45","v":0},{"$f":"'Atributet e zonës së mbrojtur'!C45","v":0},{"$f":"'Atributet e zonës së mbrojtur'!B46","v":0},{"$f":"'Atributet e zonës së mbrojtur'!C46","v":0},{"$f":"'Atributet e zonës së mbrojtur'!B47","v":0},{"$f":"'Atributet e zonës së mbrojtur'!C47","v":0},{"$f":"'Atributet e zonës së mbrojtur'!B48","v":0},{"$f":"'Atributet e zonës së mbrojtur'!C48","v":0},{"$f":"'Atributet e zonës së mbrojtur'!B49","v":0},{"$f":"'Atributet e zonës së mbrojtur'!C49","v":0},{"$f":"'Atributet e zonës së mbrojtur'!B50","v":0},{"$f":"'Atributet e zonës së mbrojtur'!C50","v":0},{"$f":"'Atributet e zonës së mbrojtur'!B51","v":0},{"$f":"'Atributet e zonës së mbrojtur'!C51","v":0},{"$f":"'Atributet e zonës së mbrojtur'!B52","v":0},{"$f":"'Atributet e zonës së mbrojtur'!C52","v":0},{"$f":"'Atributet e zonës së mbrojtur'!B53","v":0},{"$f":"'Atributet e zonës së mbrojtur'!C53","v":0},{"$f":"'Atributet e zonës së mbrojtur'!B55","v":0},{"$f":"'Atributet e zonës së mbrojtur'!C55","v":0},{"$f":"'Atributet e zonës së mbrojtur'!B56","v":0},{"$f":"'Atributet e zonës së mbrojtur'!C56","v":0},{"$f":"'Atributet e zonës së mbrojtur'!B57","v":0},{"$f":"'Atributet e zonës së mbrojtur'!C57","v":0},{"$f":"'Atributet e zonës së mbrojtur'!B58","v":0},{"$f":"'Atributet e zonës së mbrojtur'!C58","v":0},{"$f":"'Atributet e zonës së mbrojtur'!B59","v":"00:00:00"},{"$f":"'Atributet e zonës së mbrojtur'!C59","v":0}]

{"sheet":"Vlerësimi i kërcënimeve","index":8,"n_rows":64,"n_cols":10,"rows_kept":64,"cut":false,"hidden":false,"merged":[[22,0,26,0],[3,0,4,0],[6,0,9,0],[11,0,12,0],[14,0,16,0],[18,0,20,0],[28,0,33,0],[35,0,37,0],[39,0,45,0],[47,0,49,0],[51,0,55,0]]}
["Vlerësimi i detajuar i kërcënimeve"]
["Kategoria e kercenimit","Kërcënimi\n(shih më poshtë në kategorinë përkatëse, shëno të gjitha kërcënimet për zonën e mbrojtur)","Përshkrimi (jep detaje të kërcënimit në këtë fushë)","Cila nga vlerat kryesore është më e prekur nga kërcënimi\n(nga ato të listuara në fletën \"Atributet e zonës së mbrojtur\")","Shtrirja e kërcënimit\n(shihni klasifikimet në tekstin e ndihmës dhe zgjidhni nga lista rënëse)","Ashpërsia e kërcënimit\n(shihni klasifikimet në tekstin e ndihmës dhe zgjidhni nga lista rënëse)","Burim informacioni\n(Çfarë informacioni keni përdorur për të vlerësuar kërcënimin?)","Përgjigja e menaxhereve\n(Çfarë bën menaxhimi për të adresuar kërcënimin?)","Shënime"]
["1: Zhvillim rezidencial dhe komercial brenda një zone të mbrojtur\n","Strehimi dhe vendbanimi",null,null,null,null,null,null,null,{"$f":"'Common text'!A4","v":"Paneli Kryesor"}]
["Kërcënimet nga vendbanimet njerëzore ose përdorime të tjera të tokës jo bujqësore me një gjurmë të konsiderueshme","Zonat tregtare dhe industriale",null,null,null,null,null,null,null,{"$f":"'Common text'!A11","v":"METT 4 Pyetjet dhe rezultatet"}]
[null,"Infrastruktura e turizmit dhe rekreacionit",null,null,null,null,null,null,null,{"$f":"'Common text'!A16","v":"Eksporto të dhënat mbi Kërcënimet"}]
["2: Bujqësia dhe akuakultura brenda një zone të mbrojtur (përfshirë silvikulturën dhe marikulturën)\n","Kultivimi vjetor dhe shumëvjeçar i kulturave jo drunore"]
["Kërcënimet nga bujqësia dhe kullotja si rezultat i zgjerimit dhe intensifikimit bujqësor, duke përfshirë silvikulturën, marikulturën dhe akuakulturën ","Kultivimi i drogës (narkotikëve dhe drogave të tjera të paligjshme)"]
[null,"Plantacione me dru dhe tul"]
[null,"Blegtoria dhe kullotja"]
[null,"Akuakultura detare dhe e ujërave të ëmbla"]
["3. Prodhimi dhe minierat e energjisë\n","Nxjerrja e naftës dhe gazit"]
["Kërcënimet nga prodhimi i burimeve jobiologjike ","Minierat dhe guroret"]
[null,"Prodhimi i energjisë, duke përfshirë nga digat e hidrocentraleve, fermat e erës (në breg dhe në det) dhe panelet diellore"]
["4. Korridoret e transportit dhe të shërbimit\n","Rrugët dhe hekurudhat (përfshijnë kafshët e vrara në rrugë)"]
["Kërcënimet nga transporti dhe një sërë zhvillimesh lineare, duke përfshirë automjetet që përdorin disa prej tyre, si vdekshmëria e kafshëve të egra ","Linjat e shërbimeve dhe shërbimeve (p.sh. kabllot e energjisë elektrike, linjat telefonike,)"]
[null,"Infrastruktura e turizmit dhe rekreacionit"]
[null,"Shtigjet e fluturimit (p.sh. aeroplanë, balona me ajër të nxehtë, aeroplanë pa motor, etj.)"]
["5. Përdorimi dhe dëmtimi i burimeve biologjike\n","Gjuetia, vrasja dhe mbledhja e kafshëve tokësore (vendase) (përfshirë vrasjen e kafshëve si rezultat i konfliktit njerëzor/faze të egër)"]
["Kërcënimet nga përdorimi konsumues i burimeve biologjike \"të egra\" duke përfshirë efektet e vjeljes së qëllimshme dhe të paqëllimshme; gjithashtu persekutimi ose kontrolli i specieve specifike (vini re se kjo përfshin gjuetinë dhe vrasjen e kafshëve) ","Mbledhja e bimëve tokësore (vendase) ose produkteve bimore (jo drurë)"]
[null,"Prerjet"]
[null,"Peshkimi, vrasja dhe korrja e burimeve ujore (vendase)."]
["6. Ndërhyrjet dhe shqetësimet njerëzore\n","Aktivitete rekreative dhe turizëm"]
["Kërcënimet nga aktivitetet njerëzore që ndryshojnë, shkatërrojnë ose shqetësojnë habitatet dhe speciet që lidhen me përdorime jo-konsumuese të burimeve biologjike","Luftë, trazira civile dhe stërvitje ushtarake"]
[null,"Aktivitete kërkimore, arsimore dhe të tjera"]
[null,"Aktivitetet e autoritetit të parkut (p.sh. ndërtimi ose përdorimi i automjeteve, pikat e ujitjes artificiale dhe digat)"]
[null,"Vandalizëm i qëllimshëm, aktivitete shkatërruese ose kërcënime ndaj stafit dhe vizitorëve të zonës së mbrojtur"]
[null,"Ndikimet nga turizmi kulturor dhe fetar"]
["7. Modifikime të sistemit natyror\n","Pastrimi i habitatit"]
["Kërcënimet nga veprime të tjera që konvertojnë ose degradojnë habitatin ose ndryshojnë mënyrën se si funksionon ekosistemi","Zjarri dhe shuarja e zjarrit (përfshirë zjarrvënien)"]
[null,"Digat, modifikimi hidrologjik dhe menaxhimi/përdorimi i ujit"]
[null,"Rritja e fragmentimit"]
[null,"Izolimi nga habitatet e tjera natyrore (p.sh. shpyllëzimi, digat pa kalime efektive të kafshëve të egra ujore)"]
[null,"'Efekte të tjera skajore' në vlerat e parkut"]
[null,"Humbja e specieve kryesore (p.sh. grabitqarët kryesorë, pjalmuesit etj.)"]
["8. Speciet dhe gjenet invazive dhe të tjera problematike","Bimë invazive jo-vendase/të huaja (barërat e këqija)"]
[null,"Kafshët invazive jo-vendase/aliene"]
[null,"Patogjenë (jo vendas ose vendas, por që krijojnë probleme të reja/rritje)"]
[null,"Materiali gjenetik i prezantuar (p.sh. organizmat e modifikuar gjenetikisht)"]
["9. Ndotja që hyn ose krijohet\n","Ujërat e zeza shtëpiake dhe ujërat e zeza urbane"]
["Kërcënimet nga futja e materialeve ekzotike dhe/ose të tepërta ose të energjisë nga burimet pika dhe jo pika ","Ujërat e zeza dhe ujërat e zeza nga objektet e zonave të mbrojtura (p.sh. tualete, hotele etj.)"]
[null,"Efluentet dhe shkarkimet industriale, minerare dhe ushtarake (p.sh. temperatura të panatyrshme, të deoksigjenuara, kripësi më e lartë, ndotje të tjera)"]
[null,"Efluentet bujqësore dhe pyjore (p.sh. plehrat e tepërta ose pesticidet)"]
[null,"Plehrat dhe mbetjet e ngurta"]
[null,"Ndotësit e ajrit"]
[null,"Energjia e tepërt (p.sh. ndotja nga nxehtësia, dritat etj.)"]
[null,"Ndotja e zërit (sidomos nga rrugët)"]
["10. Ngjarjet gjeologjike\n","Vullkanet"]
["Ngjarjet gjeologjike mund të jenë pjesë e regjimeve të shqetësimeve natyrore në shumë ekosisteme, por ato mund të jenë një kërcënim nëse një specie ose habitat dëmtohet dhe ka humbur elasticitetin e tij dhe është i prekshëm ndaj shqetësimeve. Kapaciteti i njësisë menaxhuese për t'iu përgjigjur disa prej këtyre ndryshimeve mund të jetë i kufizuar.","Tërmetet/Cunami"]
[null,"Ortekët/ Rrëshqitjet e dheut"]
[null,"Erozioni dhe llumëzimi/depozitimi (p.sh. ndryshimet e vijës bregdetare ose të shtratit të lumit)"]
["11. Ndryshimet klimatike dhe moti i rëndë\n","Zhvendosja dhe ndryshimi i habitatit"]
["Kërcënimet nga ndryshimet afatgjata klimatike të cilat mund të lidhen me ngrohjen globale dhe ngjarje të tjera të rënda klimatike/mote jashtë gamës natyrore të variacionit","Thatësirat"]
[null,"Ekstremet e temperaturës"]
[null,"Stuhi dhe përmbytje"]
[null,"Acidifikimi i oqeanit"]
[null,"Rritja e nivelit të detit"]
["12. Kërcënimet kulturore dhe sociale","Humbja e lidhjeve kulturore, njohurive tradicionale dhe/ose praktikave dhe përdorimit të menaxhimit"]
[null,"Përkeqësimi natyror i vlerave të rëndësishme të siteve kulturore"]
[null,"Shkatërrimi i objekteve të trashëgimisë kulturore, kopshteve, objekteve etj."]
[null,"Humbja e zotërimit të tokës (përfshirë rrëmbimin e tokës)"]
["13. Problemet e qeverisjes","Politika kontradiktore nëpër sektorë"]
[null,"Konfuzion në lidhje me rolet dhe përgjegjësitë e qeverisë"]
["14. Të tjera"]
["15. Të tjera"]

{"sheet":"Threat data for export","index":9,"n_rows":2,"n_cols":436,"rows_kept":2,"cut":false,"hidden":true,"merged":[]}
["PA","Date","H/SD","H/SV","H/SE","H/SS","H/SIS","H/SMR","H/SN","C/ID","C/IV","C/IE","C/IS","C/IIS","C/IMR","C/IN","T/RD","T/RV","T/RE","T/RS","T/RIS","T/RMR","T/RN","C/CD","C/CV","C/CE","C/CS","C/CIS","C/CMR","C/CN","D/CD","D/CV","D/CE","D/CS","D/CIS","D/CMR","D/CN","W/PD","W/PV","W/PE","W/PS","W/PIS","W/PMR","W/PN","L/FD","L/FV","L/FE","L/FS","L/FIS","L/FMR","L/FN","A/QD","A/QV","A/QE","A/QS","A/QIS","A/QMR","A/QN","O/GD","O/GV","O/GE","O/GS","O/GIS","O/GMR","O/GN","M/QD","M/QV","M/QE","M/QS","M/QIS","M/QMR","M/QN","E/GD","E/GV","E/GE","E/GS","E/GIS","E/GMR","E/GN","R/RD","R/RV","R/RE","R/RS","R/RIS","R/RMR","R/RN","U/SD","U/SV","U/SE","U/SS","U/SIS","U/SMR","U/SN","S/LD","S/LV","S/LE","S/LS","S/LIS","S/LMR","S/LN","F/PD","F/PV","F/PE","F/PS","F/PIS","F/PMR","F/PN","H/KD","H/KV","H/KE","H/KS","H/KIS","H/KMR","H/KN","G/PD","G/PV","G/PE","G/PS","G/PIS","G/PMR","G/PN","L/GD","L/GV","L/GE","L/GS","L/GIS","L/GMR","L/GN","F/HD","F/HV","F/HE","F/HS","F/HIS","F/HMR","F/HN","R/TD","R/TV","R/TE","R/TS","R/TIS","R/TMR","R/TN","W/MD","W/MV","W/ME","W/MS","W/MIS","W/MMR","W/MN","R/ED","R/EV","R/EE","R/ES","R/EIS","R/EMR","R/EN","P/AD","P/AV","P/AE","P/AS","P/AIS","P/AMR","P/AN","D/VD","D/VV","D/VE","D/VS","D/VIS","D/VMR","D/VN","C/TD","C/TV","C/TE","C/TS","C/TIS","C/TMR","C/TN","H/CD","H/CV","H/CE","H/CS","H/CIS","H/CMR","H/CN","F/SD","F/SV","F/SE","F/SS","F/SIS","F/SMR","F/SN","D/HD","D/HV","D/HE","D/HS","D/HIS","D/HMR","D/HN","I/FD","I/FV","I/FE","I/FS","I/FIS","I/FMR","I/FN","I/HD","I/HV","I/HE","I/HS","I/HIS","I/HMR","I/HN","E/ED","E/EV","E/EE","E/ES","E/EIS","E/EMR","E/EN","K/SD","K/SV","K/SE","K/SS","K/SIS","K/SMR","K/SN","I/PD","I/PV","I/PE","I/PS","I/PIS","I/PMR","I/PN","I/AD","I/AV","I/AE","I/AS","I/AIS","I/AMR","I/AN","P/TD","P/TV","P/TE","P/TS","P/TIS","P/TMR","P/TN","G/MD","G/MV","G/ME","G/MS","G/MIS","G/MMR","G/MN","S/WD","S/WV","S/WE","S/WS","S/WIS","S/WMR","S/WN","S/PD","S/PV","S/PE","S/PS","S/PIS","S/PMR","S/PN","I/ED","I/EV","I/EE","I/ES","I/EIS","I/EMR","I/EN","A/FD","A/FV","A/FE","A/FS","A/FIS","A/FMR","A/FN","G/SD","G/SV","G/SE","G/SS","G/SIS","G/SMR","G/SN","A/PD","A/PV","A/PE","A/PS","A/PIS","A/PMR","A/PN","E/PD","E/PV","E/PE","E/PS","E/PIS","E/PMR","E/PN","S/PD","S/PV","S/PE","S/PS","S/PIS","S/PMR","S/PN","V/ED","V/EV","V/EE","V/ES","V/EIS","V/EMR","V/EN","E/TD","E/TV","E/TE","E/TS","E/TIS","E/TMR","E/TN","A/LD","A/LV","A/LE","A/LS","A/LIS","A/LMR","A/LN","E/SD","E/SV","E/SE","E/SS","E/SIS","E/SMR","E/SN","H/AD","H/AV","H/AE","H/AS","H/AIS","H/AMR","H/AN","D/RD","D/RV","D/RE","D/RS","D/RIS","D/RMR","D/RN","T/ED","T/EV","T/EE","T/ES","T/EIS","T/EMR","T/EN","S/FD","S/FV","S/FE","S/FS","S/FIS","S/FMR","S/FN","O/AD","O/AV","O/AE","O/AS","O/AIS","O/AMR","O/AN","S/RD","S/RV","S/RE","S/RS","S/RIS","S/RMR","S/RN","L/CD","L/CV","L/CE","L/CS","L/CIS","L/CMR","L/CN","N/DD","N/DV","N/DE","N/DS","N/DIS","N/DMR","N/DN","D/HD","D/HV","D/HE","D/HS","D/HIS","D/HMR","D/HN","L/TD","L/TV","L/TE","L/TS","L/TIS","L/TMR","L/TN","C/PD","C/PV","C/PE","C/PS","C/PIS","C/PMR","C/PN","G/RD","G/RV","G/RE","G/RS","G/RIS","G/RMR","G/RN","O/1D","O/1V","O/1E","O/1S","O/1IS","O/1MR","O/1N","O/2D","O/2V","O/2E","O/2S","O/2IS","O/2MR","O/2N"]
[{"$f":"'Atributet e zonës së mbrojtur'!B5","v":0},{"$f":"'Atributet e zonës së mbrojtur'!B59","v":"00:00:00"},{"$f":"'Vlerësimi i kërcënimeve'!$C3","v":0},{"$f":"'Vlerësimi i kërcënimeve'!$D3","v":0},{"$f":"'Vlerësimi i kërcënimeve'!$E3","v":0},{"$f":"'Vlerësimi i kërcënimeve'!$F3","v":0},{"$f":"'Vlerësimi i kërcënimeve'!$G3","v":0},{"$f":"'Vlerësimi i kërcënimeve'!$H3","v":0},{"$f":"'Vlerësimi i kërcënimeve'!$I3","v":0},{"$f":"'Vlerësimi i kërcënimeve'!$C4","v":0},{"$f":"'Vlerësimi i kërcënimeve'!$D4","v":0},{"$f":"'Vlerësimi i kërcënimeve'!$E4","v":0},{"$f":"'Vlerësimi i kërcënimeve'!$F4","v":0},{"$f":"'Vlerësimi i kërcënimeve'!$G4","v":0},{"$f":"'Vlerësimi i kërcënimeve'!$H4","v":0},{"$f":"'Vlerësimi i kërcënimeve'!$I4","v":0},{"$f":"'Vlerësimi i kërcënimeve'!$C5","v":0},{"$f":"'Vlerësimi i kërcënimeve'!$D5","v":0},{"$f":"'Vlerësimi i kërcënimeve'!$E5","v":0},{"$f":"'Vlerësimi i kërcënimeve'!$F5","v":0},{"$f":"'Vlerësimi i kërcënimeve'!$G5","v":0},{"$f":"'Vlerësimi i kërcënimeve'!$H5","v":0},{"$f":"'Vlerësimi i kërcënimeve'!$I5","v":0},{"$f":"'Vlerësimi i kërcënimeve'!$C6","v":0},{"$f":"'Vlerësimi i kërcënimeve'!$D6","v":0},{"$f":"'Vlerësimi i kërcënimeve'!$E6","v":0},{"$f":"'Vlerësimi i kërcënimeve'!$F6","v":0},{"$f":"'Vlerësimi i kërcënimeve'!$G6","v":0},{"$f":"'Vlerësimi i kërcënimeve'!$H6","v":0},{"$f":"'Vlerësimi i kërcënimeve'!$I6","v":0},{"$f":"'Vlerësimi i kërcënimeve'!$C7","v":0},{"$f":"'Vlerësimi i kërcënimeve'!$D7","v":0},{"$f":"'Vlerësimi i kërcënimeve'!$E7","v":0},{"$f":"'Vlerësimi i kërcënimeve'!$F7","v":0},{"$f":"'Vlerësimi i kërcënimeve'!$G7","v":0},{"$f":"'Vlerësimi i kërcënimeve'!$H7","v":0},{"$f":"'Vlerësimi i kërcënimeve'!$I7","v":0},{"$f":"'Vlerësimi i kërcënimeve'!$C8","v":0},{"$f":"'Vlerësimi i kërcënimeve'!$D8","v":0},{"$f":"'Vlerësimi i kërcënimeve'!$E8","v":0},{"$f":"'Vlerësimi i kërcënimeve'!$F8","v":0},{"$f":"'Vlerësimi i kërcënimeve'!$G8","v":0},{"$f":"'Vlerësimi i kërcënimeve'!$H8","v":0},{"$f":"'Vlerësimi i kërcënimeve'!$I8","v":0},{"$f":"'Vlerësimi i kërcënimeve'!$C9","v":0},{"$f":"'Vlerësimi i kërcënimeve'!$D9","v":0},{"$f":"'Vlerësimi i kërcënimeve'!$E9","v":0},{"$f":"'Vlerësimi i kërcënimeve'!$F9","v":0},{"$f":"'Vlerësimi i kërcënimeve'!$G9","v":0},{"$f":"'Vlerësimi i kërcënimeve'!$H9","v":0},{"$f":"'Vlerësimi i kërcënimeve'!$I9","v":0},{"$f":"'Vlerësimi i kërcënimeve'!$C10","v":0},{"$f":"'Vlerësimi i kërcënimeve'!$D10","v":0},{"$f":"'Vlerësimi i kërcënimeve'!$E10","v":0},{"$f":"'Vlerësimi i kërcënimeve'!$F10","v":0},{"$f":"'Vlerësimi i kërcënimeve'!$G10","v":0},{"$f":"'Vlerësimi i kërcënimeve'!$H10","v":0},{"$f":"'Vlerësimi i kërcënimeve'!$I10","v":0},{"$f":"'Vlerësimi i kërcënimeve'!$C11","v":0},{"$f":"'Vlerësimi i kërcënimeve'!$D11","v":0},{"$f":"'Vlerësimi i kërcënimeve'!$E11","v":0},{"$f":"'Vlerësimi i kërcënimeve'!$F11","v":0},{"$f":"'Vlerësimi i kërcënimeve'!$G11","v":0},{"$f":"'Vlerësimi i kërcënimeve'!$H11","v":0},{"$f":"'Vlerësimi i kërcënimeve'!$I11","v":0},{"$f":"'Vlerësimi i kërcënimeve'!$C12","v":0},{"$f":"'Vlerësimi i kërcënimeve'!$D12","v":0},{"$f":"'Vlerësimi i kërcënimeve'!$E12","v":0},{"$f":"'Vlerësimi i kërcënimeve'!$F12","v":0},{"$f":"'Vlerësimi i kërcënimeve'!$G12","v":0},{"$f":"'Vlerësimi i kërcënimeve'!$H12","v":0},{"$f":"'Vlerësimi i kërcënimeve'!$I12","v":0},{"$f":"'Vlerësimi i kërcënimeve'!$C13","v":0},{"$f":"'Vlerësimi i kërcënimeve'!$D13","v":0},{"$f":"'Vlerësimi i kërcënimeve'!$E13","v":0},{"$f":"'Vlerësimi i kërcënimeve'!$F13","v":0},{"$f":"'Vlerësimi i kërcënimeve'!$G13","v":0},{"$f":"'Vlerësimi i kërcënimeve'!$H13","v":0},{"$f":"'Vlerësimi i kërcënimeve'!$I13","v":0},{"$f":"'Vlerësimi i kërcënimeve'!$C14","v":0},{"$f":"'Vlerësimi i kërcënimeve'!$D14","v":0},{"$f":"'Vlerësimi i kërcënimeve'!$E14","v":0},{"$f":"'Vlerësimi i kërcënimeve'!$F14","v":0},{"$f":"'Vlerësimi i kërcënimeve'!$G14","v":0},{"$f":"'Vlerësimi i kërcënimeve'!$H14","v":0},{"$f":"'Vlerësimi i kërcënimeve'!$I14","v":0},{"$f":"'Vlerësimi i kërcënimeve'!$C15","v":0},{"$f":"'Vlerësimi i kërcënimeve'!$D15","v":0},{"$f":"'Vlerësimi i kërcënimeve'!$E15","v":0},{"$f":"'Vlerësimi i kërcënimeve'!$F15","v":0},{"$f":"'Vlerësimi i kërcënimeve'!$G15","v":0},{"$f":"'Vlerësimi i kërcënimeve'!$H15","v":0},{"$f":"'Vlerësimi i kërcënimeve'!$I15","v":0},{"$f":"'Vlerësimi i kërcënimeve'!$C16","v":0},{"$f":"'Vlerësimi i kërcënimeve'!$D16","v":0},{"$f":"'Vlerësimi i kërcënimeve'!$E16","v":0},{"$f":"'Vlerësimi i kërcënimeve'!$F16","v":0},{"$f":"'Vlerësimi i kërcënimeve'!$G16","v":0},{"$f":"'Vlerësimi i kërcënimeve'!$H16","v":0},{"$f":"'Vlerësimi i kërcënimeve'!$I16","v":0},{"$f":"'Vlerësimi i kërcënimeve'!$C17","v":0},{"$f":"'Vlerësimi i kërcënimeve'!$D17","v":0},{"$f":"'Vlerësimi i kërcënimeve'!$E17","v":0},{"$f":"'Vlerësimi i kërcënimeve'!$F17","v":0},{"$f":"'Vlerësimi i kërcënimeve'!$G17","v":0},{"$f":"'Vlerësimi i kërcënimeve'!$H17","v":0},{"$f":"'Vlerësimi i kërcënimeve'!$I17","v":0},{"$f":"'Vlerësimi i kërcënimeve'!$C18","v":0},{"$f":"'Vlerësimi i kërcënimeve'!$D18","v":0},{"$f":"'Vlerësimi i kërcënimeve'!$E18","v":0},{"$f":"'Vlerësimi i kërcënimeve'!$F18","v":0},{"$f":"'Vlerësimi i kërcënimeve'!$G18","v":0},{"$f":"'Vlerësimi i kërcënimeve'!$H18","v":0},{"$f":"'Vlerësimi i kërcënimeve'!$I18","v":0},{"$f":"'Vlerësimi i kërcënimeve'!$C19","v":0},{"$f":"'Vlerësimi i kërcënimeve'!$D19","v":0},{"$f":"'Vlerësimi i kërcënimeve'!$E19","v":0},{"$f":"'Vlerësimi i kërcënimeve'!$F19","v":0},{"$f":"'Vlerësimi i kërcënimeve'!$G19","v":0},{"$f":"'Vlerësimi i kërcënimeve'!$H19","v":0},{"$f":"'Vlerësimi i kërcënimeve'!$I19","v":0},{"$f":"'Vlerësimi i kërcënimeve'!$C20","v":0},{"$f":"'Vlerësimi i kërcënimeve'!$D20","v":0},{"$f":"'Vlerësimi i kërcënimeve'!$E20","v":0},{"$f":"'Vlerësimi i kërcënimeve'!$F20","v":0},{"$f":"'Vlerësimi i kërcënimeve'!$G20","v":0},{"$f":"'Vlerësimi i kërcënimeve'!$H20","v":0},{"$f":"'Vlerësimi i kërcënimeve'!$I20","v":0},{"$f":"'Vlerësimi i kërcënimeve'!$C21","v":0},{"$f":"'Vlerësimi i kërcënimeve'!$D21","v":0},{"$f":"'Vlerësimi i kërcënimeve'!$E21","v":0},{"$f":"'Vlerësimi i kërcënimeve'!$F21","v":0},{"$f":"'Vlerësimi i kërcënimeve'!$G21","v":0},{"$f":"'Vlerësimi i kërcënimeve'!$H21","v":0},{"$f":"'Vlerësimi i kërcënimeve'!$I21","v":0},{"$f":"'Vlerësimi i kërcënimeve'!$C22","v":0},{"$f":"'Vlerësimi i kërcënimeve'!$D22","v":0},{"$f":"'Vlerësimi i kërcënimeve'!$E22","v":0},{"$f":"'Vlerësimi i kërcënimeve'!$F22","v":0},{"$f":"'Vlerësimi i kërcënimeve'!$G22","v":0},{"$f":"'Vlerësimi i kërcënimeve'!$H22","v":0},{"$f":"'Vlerësimi i kërcënimeve'!$I22","v":0},{"$f":"'Vlerësimi i kërcënimeve'!$C23","v":0},{"$f":"'Vlerësimi i kërcënimeve'!$D23","v":0},{"$f":"'Vlerësimi i kërcënimeve'!$E23","v":0},{"$f":"'Vlerësimi i kërcënimeve'!$F23","v":0},{"$f":"'Vlerësimi i kërcënimeve'!$G23","v":0},{"$f":"'Vlerësimi i kërcënimeve'!$H23","v":0},{"$f":"'Vlerësimi i kërcënimeve'!$I23","v":0},{"$f":"'Vlerësimi i kërcënimeve'!$C24","v":0},{"$f":"'Vlerësimi i kërcënimeve'!$D24","v":0},{"$f":"'Vlerësimi i kërcënimeve'!$E24","v":0},{"$f":"'Vlerësimi i kërcënimeve'!$F24","v":0},{"$f":"'Vlerësimi i kërcënimeve'!$G24","v":0},{"$f":"'Vlerësimi i kërcënimeve'!$H24","v":0},{"$f":"'Vlerësimi i kërcënimeve'!$I24","v":0},{"$f":"'Vlerësimi i kërcënimeve'!$C25","v":0},{"$f":"'Vlerësimi i kërcënimeve'!$D25","v":0},{"$f":"'Vlerësimi i kërcënimeve'!$E25","v":0},{"$f":"'Vlerësimi i kërcënimeve'!$F25","v":0},{"$f":"'Vlerësimi i kërcënimeve'!$G25","v":0},{"$f":"'Vlerësimi i kërcënimeve'!$H25","v":0},{"$f":"'Vlerësimi i kërcënimeve'!$I25","v":0},{"$f":"'Vlerësimi i kërcënimeve'!$C26","v":0},{"$f":"'Vlerësimi i kërcënimeve'!$D26","v":0},{"$f":"'Vlerësimi i kërcënimeve'!$E26","v":0},{"$f":"'Vlerësimi i kërcënimeve'!$F26","v":0},{"$f":"'Vlerësimi i kërcënimeve'!$G26","v":0},{"$f":"'Vlerësimi i kërcënimeve'!$H26","v":0},{"$f":"'Vlerësimi i kërcënimeve'!$I26","v":0},{"$f":"'Vlerësimi i kërcënimeve'!$C27","v":0},{"$f":"'Vlerësimi i kërcënimeve'!$D27","v":0},{"$f":"'Vlerësimi i kërcënimeve'!$E27","v":0},{"$f":"'Vlerësimi i kërcënimeve'!$F27","v":0},{"$f":"'Vlerësimi i kërcënimeve'!$G27","v":0},{"$f":"'Vlerësimi i kërcënimeve'!$H27","v":0},{"$f":"'Vlerësimi i kërcënimeve'!$I27","v":0},{"$f":"'Vlerësimi i kërcënimeve'!$C28","v":0},{"$f":"'Vlerësimi i kërcënimeve'!$D28","v":0},{"$f":"'Vlerësimi i kërcënimeve'!$E28","v":0},{"$f":"'Vlerësimi i kërcënimeve'!$F28","v":0},{"$f":"'Vlerësimi i kërcënimeve'!$G28","v":0},{"$f":"'Vlerësimi i kërcënimeve'!$H28","v":0},{"$f":"'Vlerësimi i kërcënimeve'!$I28","v":0},{"$f":"'Vlerësimi i kërcënimeve'!$C29","v":0},{"$f":"'Vlerësimi i kërcënimeve'!$D29","v":0},{"$f":"'Vlerësimi i kërcënimeve'!$E29","v":0},{"$f":"'Vlerësimi i kërcënimeve'!$F29","v":0},{"$f":"'Vlerësimi i kërcënimeve'!$G29","v":0},{"$f":"'Vlerësimi i kërcënimeve'!$H29","v":0},{"$f":"'Vlerësimi i kërcënimeve'!$I29","v":0},{"$f":"'Vlerësimi i kërcënimeve'!$C30","v":0},{"$f":"'Vlerësimi i kërcënimeve'!$D30","v":0},{"$f":"'Vlerësimi i kërcënimeve'!$E30","v":0},{"$f":"'Vlerësimi i kërcënimeve'!$F30","v":0},{"$f":"'Vlerësimi i kërcënimeve'!$G30","v":0},{"$f":"'Vlerësimi i kërcënimeve'!$H30","v":0},{"$f":"'Vlerësimi i kërcënimeve'!$I30","v":0},{"$f":"'Vlerësimi i kërcënimeve'!$C31","v":0},{"$f":"'Vlerësimi i kërcënimeve'!$D31","v":0},{"$f":"'Vlerësimi i kërcënimeve'!$E31","v":0},{"$f":"'Vlerësimi i kërcënimeve'!$F31","v":0},{"$f":"'Vlerësimi i kërcënimeve'!$G31","v":0},{"$f":"'Vlerësimi i kërcënimeve'!$H31","v":0},{"$f":"'Vlerësimi i kërcënimeve'!$I31","v":0},{"$f":"'Vlerësimi i kërcënimeve'!$C32","v":0},{"$f":"'Vlerësimi i kërcënimeve'!$D32","v":0},{"$f":"'Vlerësimi i kërcënimeve'!$E32","v":0},{"$f":"'Vlerësimi i kërcënimeve'!$F32","v":0},{"$f":"'Vlerësimi i kërcënimeve'!$G32","v":0},{"$f":"'Vlerësimi i kërcënimeve'!$H32","v":0},{"$f":"'Vlerësimi i kërcënimeve'!$I32","v":0},{"$f":"'Vlerësimi i kërcënimeve'!$C33","v":0},{"$f":"'Vlerësimi i kërcënimeve'!$D33","v":0},{"$f":"'Vlerësimi i kërcënimeve'!$E33","v":0},{"$f":"'Vlerësimi i kërcënimeve'!$F33","v":0},{"$f":"'Vlerësimi i kërcënimeve'!$G33","v":0},{"$f":"'Vlerësimi i kërcënimeve'!$H33","v":0},{"$f":"'Vlerësimi i kërcënimeve'!$I33","v":0},{"$f":"'Vlerësimi i kërcënimeve'!$C34","v":0},{"$f":"'Vlerësimi i kërcënimeve'!$D34","v":0},{"$f":"'Vlerësimi i kërcënimeve'!$E34","v":0},{"$f":"'Vlerësimi i kërcënimeve'!$F34","v":0},{"$f":"'Vlerësimi i kërcënimeve'!$G34","v":0},{"$f":"'Vlerësimi i kërcënimeve'!$H34","v":0},{"$f":"'Vlerësimi i kërcënimeve'!$I34","v":0},{"$f":"'Vlerësimi i kërcënimeve'!$C35","v":0},{"$f":"'Vlerësimi i kërcënimeve'!$D35","v":0},{"$f":"'Vlerësimi i kërcënimeve'!$E35","v":0},{"$f":"'Vlerësimi i kërcënimeve'!$F35","v":0},{"$f":"'Vlerësimi i kërcënimeve'!$G35","v":0},{"$f":"'Vlerësimi i kërcënimeve'!$H35","v":0},{"$f":"'Vlerësimi i kërcënimeve'!$I35","v":0},{"$f":"'Vlerësimi i kërcënimeve'!$C36","v":0},{"$f":"'Vlerësimi i kërcënimeve'!$D36","v":0},{"$f":"'Vlerësimi i kërcënimeve'!$E36","v":0},{"$f":"'Vlerësimi i kërcënimeve'!$F36","v":0},{"$f":"'Vlerësimi i kërcënimeve'!$G36","v":0},{"$f":"'Vlerësimi i kërcënimeve'!$H36","v":0},{"$f":"'Vlerësimi i kërcënimeve'!$I36","v":0},{"$f":"'Vlerësimi i kërcënimeve'!$C37","v":0},{"$f":"'Vlerësimi i kërcënimeve'!$D37","v":0},{"$f":"'Vlerësimi i kërcënimeve'!$E37","v":0},{"$f":"'Vlerësimi i kërcënimeve'!$F37","v":0},{"$f":"'Vlerësimi i kërcënimeve'!$G37","v":0},{"$f":"'Vlerësimi i kërcënimeve'!$H37","v":0},{"$f":"'Vlerësimi i kërcënimeve'!$I37","v":0},{"$f":"'Vlerësimi i kërcënimeve'!$C38","v":0},{"$f":"'Vlerësimi i kërcënimeve'!$D38","v":0},{"$f":"'Vlerësimi i kërcënimeve'!$E38","v":0},{"$f":"'Vlerësimi i kërcënimeve'!$F38","v":0},{"$f":"'Vlerësimi i kërcënimeve'!$G38","v":0},{"$f":"'Vlerësimi i kërcënimeve'!$H38","v":0},{"$f":"'Vlerësimi i kërcënimeve'!$I38","v":0},{"$f":"'Vlerësimi i kërcënimeve'!$C39","v":0},{"$f":"'Vlerësimi i kërcënimeve'!$D39","v":0},{"$f":"'Vlerësimi i kërcënimeve'!$E39","v":0},{"$f":"'Vlerësimi i kërcënimeve'!$F39","v":0},{"$f":"'Vlerësimi i kërcënimeve'!$G39","v":0},{"$f":"'Vlerësimi i kërcënimeve'!$H39","v":0},{"$f":"'Vlerësimi i kërcënimeve'!$I39","v":0},{"$f":"'Vlerësimi i kërcënimeve'!$C40","v":0},{"$f":"'Vlerësimi i kërcënimeve'!$D40","v":0},{"$f":"'Vlerësimi i kërcënimeve'!$E40","v":0},{"$f":"'Vlerësimi i kërcënimeve'!$F40","v":0},{"$f":"'Vlerësimi i kërcënimeve'!$G40","v":0},{"$f":"'Vlerësimi i kërcënimeve'!$H40","v":0},{"$f":"'Vlerësimi i kërcënimeve'!$I40","v":0},{"$f":"'Vlerësimi i kërcënimeve'!$C41","v":0},{"$f":"'Vlerësimi i kërcënimeve'!$D41","v":0},{"$f":"'Vlerësimi i kërcënimeve'!$E41","v":0},{"$f":"'Vlerësimi i kërcënimeve'!$F41","v":0},{"$f":"'Vlerësimi i kërcënimeve'!$G41","v":0},{"$f":"'Vlerësimi i kërcënimeve'!$H41","v":0},{"$f":"'Vlerësimi i kërcënimeve'!$I41","v":0},{"$f":"'Vlerësimi i kërcënimeve'!$C42","v":0},{"$f":"'Vlerësimi i kërcënimeve'!$D42","v":0},{"$f":"'Vlerësimi i kërcënimeve'!$E42","v":0},{"$f":"'Vlerësimi i kërcënimeve'!$F42","v":0},{"$f":"'Vlerësimi i kërcënimeve'!$G42","v":0},{"$f":"'Vlerësimi i kërcënimeve'!$H42","v":0},{"$f":"'Vlerësimi i kërcënimeve'!$I42","v":0},{"$f":"'Vlerësimi i kërcënimeve'!$C43","v":0},{"$f":"'Vlerësimi i kërcënimeve'!$D43","v":0},{"$f":"'Vlerësimi i kërcënimeve'!$E43","v":0},{"$f":"'Vlerësimi i kërcënimeve'!$F43","v":0},{"$f":"'Vlerësimi i kërcënimeve'!$G43","v":0},{"$f":"'Vlerësimi i kërcënimeve'!$H43","v":0},{"$f":"'Vlerësimi i kërcënimeve'!$I43","v":0},{"$f":"'Vlerësimi i kërcënimeve'!$C44","v":0},{"$f":"'Vlerësimi i kërcënimeve'!$D44","v":0},{"$f":"'Vlerësimi i kërcënimeve'!$E44","v":0},{"$f":"'Vlerësimi i kërcënimeve'!$F44","v":0},{"$f":"'Vlerësimi i kërcënimeve'!$G44","v":0},{"$f":"'Vlerësimi i kërcënimeve'!$H44","v":0},{"$f":"'Vlerësimi i kërcënimeve'!$I44","v":0},{"$f":"'Vlerësimi i kërcënimeve'!$C45","v":0},{"$f":"'Vlerësimi i kërcënimeve'!$D45","v":0},{"$f":"'Vlerësimi i kërcënimeve'!$E45","v":0},{"$f":"'Vlerësimi i kërcënimeve'!$F45","v":0},{"$f":"'Vlerësimi i kërcënimeve'!$G45","v":0},{"$f":"'Vlerësimi i kërcënimeve'!$H45","v":0},{"$f":"'Vlerësimi i kërcënimeve'!$I45","v":0},{"$f":"'Vlerësimi i kërcënimeve'!$C46","v":0},{"$f":"'Vlerësimi i kërcënimeve'!$D46","v":0},{"$f":"'Vlerësimi i kërcënimeve'!$E46","v":0},{"$f":"'Vlerësimi i kërcënimeve'!$F46","v":0},{"$f":"'Vlerësimi i kërcënimeve'!$G46","v":0},{"$f":"'Vlerësimi i kërcënimeve'!$H46","v":0},{"$f":"'Vlerësimi i kërcënimeve'!$I46","v":0},{"$f":"'Vlerësimi i kërcënimeve'!$C47","v":0},{"$f":"'Vlerësimi i kërcënimeve'!$D47","v":0},{"$f":"'Vlerësimi i kërcënimeve'!$E47","v":0},{"$f":"'Vlerësimi i kërcënimeve'!$F47","v":0},{"$f":"'Vlerësimi i kërcënimeve'!$G47","v":0},{"$f":"'Vlerësimi i kërcënimeve'!$H47","v":0},{"$f":"'Vlerësimi i kërcënimeve'!$I47","v":0},{"$f":"'Vlerësimi i kërcënimeve'!$C48","v":0},{"$f":"'Vlerësimi i kërcënimeve'!$D48","v":0},{"$f":"'Vlerësimi i kërcënimeve'!$E48","v":0},{"$f":"'Vlerësimi i kërcënimeve'!$F48","v":0},{"$f":"'Vlerësimi i kërcënimeve'!$G48","v":0},{"$f":"'Vlerësimi i kërcënimeve'!$H48","v":0},{"$f":"'Vlerësimi i kërcënimeve'!$I48","v":0},{"$f":"'Vlerësimi i kërcënimeve'!$C49","v":0},{"$f":"'Vlerësimi i kërcënimeve'!$D49","v":0},{"$f":"'Vlerësimi i kërcënimeve'!$E49","v":0},{"$f":"'Vlerësimi i kërcënimeve'!$F49","v":0},{"$f":"'Vlerësimi i kërcënimeve'!$G49","v":0},{"$f":"'Vlerësimi i kërcënimeve'!$H49","v":0},{"$f":"'Vlerësimi i kërcënimeve'!$I49","v":0},{"$f":"'Vlerësimi i kërcënimeve'!$C50","v":0},{"$f":"'Vlerësimi i kërcënimeve'!$D50","v":0},{"$f":"'Vlerësimi i kërcënimeve'!$E50","v":0},{"$f":"'Vlerësimi i kërcënimeve'!$F50","v":0},{"$f":"'Vlerësimi i kërcënimeve'!$G50","v":0},{"$f":"'Vlerësimi i kërcënimeve'!$H50","v":0},{"$f":"'Vlerësimi i kërcënimeve'!$I50","v":0},{"$f":"'Vlerësimi i kërcënimeve'!$C51","v":0},{"$f":"'Vlerësimi i kërcënimeve'!$D51","v":0},{"$f":"'Vlerësimi i kërcënimeve'!$E51","v":0},{"$f":"'Vlerësimi i kërcënimeve'!$F51","v":0},{"$f":"'Vlerësimi i kërcënimeve'!$G51","v":0},{"$f":"'Vlerësimi i kërcënimeve'!$H51","v":0},{"$f":"'Vlerësimi i kërcënimeve'!$I51","v":0},{"$f":"'Vlerësimi i kërcënimeve'!$C52","v":0},{"$f":"'Vlerësimi i kërcënimeve'!$D52","v":0},{"$f":"'Vlerësimi i kërcënimeve'!$E52","v":0},{"$f":"'Vlerësimi i kërcënimeve'!$F52","v":0},{"$f":"'Vlerësimi i kërcënimeve'!$G52","v":0},{"$f":"'Vlerësimi i kërcënimeve'!$H52","v":0},{"$f":"'Vlerësimi i kërcënimeve'!$I52","v":0},{"$f":"'Vlerësimi i kërcënimeve'!$C53","v":0},{"$f":"'Vlerësimi i kërcënimeve'!$D53","v":0},{"$f":"'Vlerësimi i kërcënimeve'!$E53","v":0},{"$f":"'Vlerësimi i kërcënimeve'!$F53","v":0},{"$f":"'Vlerësimi i kërcënimeve'!$G53","v":0},{"$f":"'Vlerësimi i kërcënimeve'!$H53","v":0},{"$f":"'Vlerësimi i kërcënimeve'!$I53","v":0},{"$f":"'Vlerësimi i kërcënimeve'!$C54","v":0},{"$f":"'Vlerësimi i kërcënimeve'!$D54","v":0},{"$f":"'Vlerësimi i kërcënimeve'!$E54","v":0},{"$f":"'Vlerësimi i kërcënimeve'!$F54","v":0},{"$f":"'Vlerësimi i kërcënimeve'!$G54","v":0},{"$f":"'Vlerësimi i kërcënimeve'!$H54","v":0},{"$f":"'Vlerësimi i kërcënimeve'!$I54","v":0},{"$f":"'Vlerësimi i kërcënimeve'!$C55","v":0},{"$f":"'Vlerësimi i kërcënimeve'!$D55","v":0},{"$f":"'Vlerësimi i kërcënimeve'!$E55","v":0},{"$f":"'Vlerësimi i kërcënimeve'!$F55","v":0},{"$f":"'Vlerësimi i kërcënimeve'!$G55","v":0},{"$f":"'Vlerësimi i kërcënimeve'!$H55","v":0},{"$f":"'Vlerësimi i kërcënimeve'!$I55","v":0},{"$f":"'Vlerësimi i kërcënimeve'!$C56","v":0},{"$f":"'Vlerësimi i kërcënimeve'!$D56","v":0},{"$f":"'Vlerësimi i kërcënimeve'!$E56","v":0},{"$f":"'Vlerësimi i kërcënimeve'!$F56","v":0},{"$f":"'Vlerësimi i kërcënimeve'!$G56","v":0},{"$f":"'Vlerësimi i kërcënimeve'!$H56","v":0},{"$f":"'Vlerësimi i kërcënimeve'!$I56","v":0},{"$f":"'Vlerësimi i kërcënimeve'!$C57","v":0},{"$f":"'Vlerësimi i kërcënimeve'!$D57","v":0},{"$f":"'Vlerësimi i kërcënimeve'!$E57","v":0},{"$f":"'Vlerësimi i kërcënimeve'!$F57","v":0},{"$f":"'Vlerësimi i kërcënimeve'!$G57","v":0},{"$f":"'Vlerësimi i kërcënimeve'!$H57","v":0},{"$f":"'Vlerësimi i kërcënimeve'!$I57","v":0},{"$f":"'Vlerësimi i kërcënimeve'!$C58","v":0},{"$f":"'Vlerësimi i kërcënimeve'!$D58","v":0},{"$f":"'Vlerësimi i kërcënimeve'!$E58","v":0},{"$f":"'Vlerësimi i kërcënimeve'!$F58","v":0},{"$f":"'Vlerësimi i kërcënimeve'!$G58","v":0},{"$f":"'Vlerësimi i kërcënimeve'!$H58","v":0},{"$f":"'Vlerësimi i kërcënimeve'!$I58","v":0},{"$f":"'Vlerësimi i kërcënimeve'!$C59","v":0},{"$f":"'Vlerësimi i kërcënimeve'!$D59","v":0},{"$f":"'Vlerësimi i kërcënimeve'!$E59","v":0},{"$f":"'Vlerësimi i kërcënimeve'!$F59","v":0},{"$f":"'Vlerësimi i kërcënimeve'!$G59","v":0},{"$f":"'Vlerësimi i kërcënimeve'!$H59","v":0},{"$f":"'Vlerësimi i kërcënimeve'!$I59","v":0},{"$f":"'Vlerësimi i kërcënimeve'!$C60","v":0},{"$f":"'Vlerësimi i kërcënimeve'!$D60","v":0},{"$f":"'Vlerësimi i kërcënimeve'!$E60","v":0},{"$f":"'Vlerësimi i kërcënimeve'!$F60","v":0},{"$f":"'Vlerësimi i kërcënimeve'!$G60","v":0},{"$f":"'Vlerësimi i kërcënimeve'!$H60","v":0},{"$f":"'Vlerësimi i kërcënimeve'!$I60","v":0},{"$f":"'Vlerësimi i kërcënimeve'!$C61","v":0},{"$f":"'Vlerësimi i kërcënimeve'!$D61","v":0},{"$f":"'Vlerësimi i kërcënimeve'!$E61","v":0},{"$f":"'Vlerësimi i kërcënimeve'!$F61","v":0},{"$f":"'Vlerësimi i kërcënimeve'!$G61","v":0},{"$f":"'Vlerësimi i kërcënimeve'!$H61","v":0},{"$f":"'Vlerësimi i kërcënimeve'!$I61","v":0},{"$f":"'Vlerësimi i kërcënimeve'!$C62","v":0},{"$f":"'Vlerësimi i kërcënimeve'!$D62","v":0},{"$f":"'Vlerësimi i kërcënimeve'!$E62","v":0},{"$f":"'Vlerësimi i kërcënimeve'!$F62","v":0},{"$f":"'Vlerësimi i kërcënimeve'!$G62","v":0},{"$f":"'Vlerësimi i kërcënimeve'!$H62","v":0},{"$f":"'Vlerësimi i kërcënimeve'!$I62","v":0},{"$f":"'Vlerësimi i kërcënimeve'!$C63","v":0},{"$f":"'Vlerësimi i kërcënimeve'!$D63","v":0},{"$f":"'Vlerësimi i kërcënimeve'!$E63","v":0},{"$f":"'Vlerësimi i kërcënimeve'!$F63","v":0},{"$f":"'Vlerësimi i kërcënimeve'!$G63","v":0},{"$f":"'Vlerësimi i kërcënimeve'!$H63","v":0},{"$f":"'Vlerësimi i kërcënimeve'!$I63","v":0},{"$f":"'Vlerësimi i kërcënimeve'!$C64","v":0},{"$f":"'Vlerësimi i kërcënimeve'!$D64","v":0},{"$f":"'Vlerësimi i kërcënimeve'!$E64","v":0},{"$f":"'Vlerësimi i kërcënimeve'!$F64","v":0},{"$f":"'Vlerësimi i kërcënimeve'!$G64","v":0},{"$f":"'Vlerësimi i kërcënimeve'!$H64","v":0},{"$f":"'Vlerësimi i kërcënimeve'!$I64","v":0}]

{"sheet":"Reports Data","index":10,"n_rows":31,"n_cols":6,"rows_kept":31,"cut":false,"hidden":true,"merged":[]}
[]
[]
[null,"Threat category","Threat category","Threat category","Severity Score","Severity %"]
[null,{"$f":"'Vlerësimi i kërcënimeve'!A3","v":"1: Zhvillim rezidencial dhe komercial brenda një zone të mbrojtur\n"},{"$f":"COUNTIF('Vlerësimi i kërcënimeve'!E3:E5,'Drop down lists'!A59)*4+COUNTIF('Vlerësimi i kërcënimeve'!E3:E5,'Drop down lists'!A60)*3+COUNTIF('Vlerësimi i kërcënimeve'!E3:E5,'Drop down lists'!A61)*2+COUNTIF('Vlerësimi i kërcënimeve'!E3:E5,'Drop down lists'!A62)*1","v":0},{"$f":"C4/SUM(C4:C17)","v":{"$error":"#DIV/0!"}},{"$f":"COUNTIF('Vlerësimi i kërcënimeve'!F5:F9,'Drop down lists'!A58)*4+COUNTIF('Vlerësimi i kërcënimeve'!F5:F9,'Drop down lists'!A59)*3+COUNTIF('Vlerësimi i kërcënimeve'!F5:F9,'Drop down lists'!A60)*2+COUNTIF('Vlerësimi i kërcënimeve'!F5:F9,'Drop down lists'!A61)*1","v":0},{"$f":"E4/SUM(E4:E17)","v":{"$error":"#DIV/0!"}}]
[null,{"$f":"'Vlerësimi i kërcënimeve'!A6","v":"2: Bujqësia dhe akuakultura brenda një zone të mbrojtur (përfshirë silvikulturën dhe marikulturën)\n"},{"$f":"COUNTIF('Vlerësimi i kërcënimeve'!E6:E10,'Drop down lists'!A59)*4+COUNTIF('Vlerësimi i kërcënimeve'!E6:E10,'Drop down lists'!A60)*3+COUNTIF('Vlerësimi i kërcënimeve'!E6:E10,'Drop down lists'!A61)*2+COUNTIF('Vlerësimi i kërcënimeve'!E6:E10,'Drop down lists'!A62)*1","v":0},{"$f":"C5/SUM(C4:C17)","v":{"$error":"#DIV/0!"}},{"$f":"COUNTIF('Vlerësimi i kërcënimeve'!F6:F10,'Drop down lists'!A59)*4+COUNTIF('Vlerësimi i kërcënimeve'!F6:F10,'Drop down lists'!A60)*3+COUNTIF('Vlerësimi i kërcënimeve'!F6:F10,'Drop down lists'!A61)*2+COUNTIF('Vlerësimi i kërcënimeve'!F6:F10,'Drop down lists'!A62)*1","v":0},{"$f":"E5/SUM(E4:E17)","v":{"$error":"#DIV/0!"}}]
[null,{"$f":"'Vlerësimi i kërcënimeve'!A11","v":"3. Prodhimi dhe minierat e energjisë\n"},{"$f":"COUNTIF('Vlerësimi i kërcënimeve'!E11:E13,'Drop down lists'!A59)*4+COUNTIF('Vlerësimi i kërcënimeve'!E11:E13,'Drop down lists'!A60)*3+COUNTIF('Vlerësimi i kërcënimeve'!E11:E13,'Drop down lists'!A61)*2+COUNTIF('Vlerësimi i kërcënimeve'!E11:E13,'Drop down lists'!A62)*1","v":0},{"$f":"C6/SUM(C4:C17)","v":{"$error":"#DIV/0!"}},{"$f":"COUNTIF('Vlerësimi i kërcënimeve'!F11:F13,'Drop down lists'!A59)*4+COUNTIF('Vlerësimi i kërcënimeve'!F11:F13,'Drop down lists'!A60)*3+COUNTIF('Vlerësimi i kërcënimeve'!F11:F13,'Drop down lists'!A61)*2+COUNTIF('Vlerësimi i kërcënimeve'!F11:F13,'Drop down lists'!A62)*1","v":0},{"$f":"E6/SUM(E4:E17)","v":{"$error":"#DIV/0!"}}]
[null,{"$f":"'Vlerësimi i kërcënimeve'!A14","v":"4. Korridoret e transportit dhe të shërbimit\n"},{"$f":"COUNTIF('Vlerësimi i kërcënimeve'!E14:E17,'Drop down lists'!A59)*4+COUNTIF('Vlerësimi i kërcënimeve'!E14:E17,'Drop down lists'!A60)*3+COUNTIF('Vlerësimi i kërcënimeve'!E14:E17,'Drop down lists'!A61)*2+COUNTIF('Vlerësimi i kërcënimeve'!E14:E17,'Drop down lists'!A62)*1","v":0},{"$f":"C7/SUM(C4:C17)","v":{"$error":"#DIV/0!"}},{"$f":"COUNTIF('Vlerësimi i kërcënimeve'!F14:F17,'Drop down lists'!A59)*4+COUNTIF('Vlerësimi i kërcënimeve'!F14:F17,'Drop down lists'!A60)*3+COUNTIF('Vlerësimi i kërcënimeve'!F14:F17,'Drop down lists'!A61)*2+COUNTIF('Vlerësimi i kërcënimeve'!F14:F17,'Drop down lists'!A62)*1","v":0},{"$f":"E7/SUM(E4:E17)","v":{"$error":"#DIV/0!"}}]
[null,{"$f":"'Vlerësimi i kërcënimeve'!A18","v":"5. Përdorimi dhe dëmtimi i burimeve biologjike\n"},{"$f":"COUNTIF('Vlerësimi i kërcënimeve'!E18:E21,'Drop down lists'!A59)*4+COUNTIF('Vlerësimi i kërcënimeve'!E18:E21,'Drop down lists'!A60)*3+COUNTIF('Vlerësimi i kërcënimeve'!E18:E21,'Drop down lists'!A61)*2+COUNTIF('Vlerësimi i kërcënimeve'!E18:E21,'Drop down lists'!A62)*1","v":0},{"$f":"C8/SUM(C4:C17)","v":{"$error":"#DIV/0!"}},{"$f":"COUNTIF('Vlerësimi i kërcënimeve'!F18:F21,'Drop down lists'!A59)*4+COUNTIF('Vlerësimi i kërcënimeve'!F18:F21,'Drop down lists'!A60)*3+COUNTIF('Vlerësimi i kërcënimeve'!F18:F21,'Drop down lists'!A61)*2+COUNTIF('Vlerësimi i kërcënimeve'!F18:F21,'Drop down lists'!A62)*1","v":0},{"$f":"E8/SUM(E4:E17)","v":{"$error":"#DIV/0!"}}]
[null,{"$f":"'Vlerësimi i kërcënimeve'!A22","v":"6. Ndërhyrjet dhe shqetësimet njerëzore\n"},{"$f":"COUNTIF('Vlerësimi i kërcënimeve'!E22:E27,'Drop down lists'!A59)*4+COUNTIF('Vlerësimi i kërcënimeve'!E22:E27,'Drop down lists'!A60)*3+COUNTIF('Vlerësimi i kërcënimeve'!E22:E27,'Drop down lists'!A61)*2+COUNTIF('Vlerësimi i kërcënimeve'!E22:E27,'Drop down lists'!A62)*1","v":0},{"$f":"C9/SUM(C4:C17)","v":{"$error":"#DIV/0!"}},{"$f":"COUNTIF('Vlerësimi i kërcënimeve'!F22:F27,'Drop down lists'!A59)*4+COUNTIF('Vlerësimi i kërcënimeve'!F22:F27,'Drop down lists'!A60)*3+COUNTIF('Vlerësimi i kërcënimeve'!F22:F27,'Drop down lists'!A61)*2+COUNTIF('Vlerësimi i kërcënimeve'!F22:F27,'Drop down lists'!A62)*1","v":0},{"$f":"E9/SUM(E4:E17)","v":{"$error":"#DIV/0!"}}]
[null,{"$f":"'Vlerësimi i kërcënimeve'!A28","v":"7. Modifikime të sistemit natyror\n"},{"$f":"COUNTIF('Vlerësimi i kërcënimeve'!E28:E34,'Drop down lists'!A59)*4+COUNTIF('Vlerësimi i kërcënimeve'!E28:E34,'Drop down lists'!A60)*3+COUNTIF('Vlerësimi i kërcënimeve'!E28:E34,'Drop down lists'!A61)*2+COUNTIF('Vlerësimi i kërcënimeve'!E28:E34,'Drop down lists'!A62)*1","v":0},{"$f":"C10/SUM(C4:C17)","v":{"$error":"#DIV/0!"}},{"$f":"COUNTIF('Vlerësimi i kërcënimeve'!F28:F34,'Drop down lists'!A59)*4+COUNTIF('Vlerësimi i kërcënimeve'!F28:F34,'Drop down lists'!A60)*3+COUNTIF('Vlerësimi i kërcënimeve'!F28:F34,'Drop down lists'!A61)*2+COUNTIF('Vlerësimi i kërcënimeve'!F28:F34,'Drop down lists'!A62)*1","v":0},{"$f":"E10/SUM(E4:E17)","v":{"$error":"#DIV/0!"}}]
[null,{"$f":"'Vlerësimi i kërcënimeve'!A35","v":"8. Speciet dhe gjenet invazive dhe të tjera problematike"},{"$f":"COUNTIF('Vlerësimi i kërcënimeve'!E35:E38,'Drop down lists'!A59)*4+COUNTIF('Vlerësimi i kërcënimeve'!E35:E38,'Drop down lists'!A60)*3+COUNTIF('Vlerësimi i kërcënimeve'!E35:E38,'Drop down lists'!A61)*2+COUNTIF('Vlerësimi i kërcënimeve'!E35:E38,'Drop down lists'!A62)*1","v":0},{"$f":"C11/SUM(C4:C17)","v":{"$error":"#DIV/0!"}},{"$f":"COUNTIF('Vlerësimi i kërcënimeve'!F35:F38,'Drop down lists'!A59)*4+COUNTIF('Vlerësimi i kërcënimeve'!F35:F38,'Drop down lists'!A60)*3+COUNTIF('Vlerësimi i kërcënimeve'!F35:F38,'Drop down lists'!A61)*2+COUNTIF('Vlerësimi i kërcënimeve'!F35:F38,'Drop down lists'!A62)*1","v":0},{"$f":"E11/SUM(E4:E17)","v":{"$error":"#DIV/0!"}}]
[null,{"$f":"'Vlerësimi i kërcënimeve'!A39","v":"9. Ndotja që hyn ose krijohet\n"},{"$f":"COUNTIF('Vlerësimi i kërcënimeve'!E39:E46,'Drop down lists'!A59)*4+COUNTIF('Vlerësimi i kërcënimeve'!E39:E46,'Drop down lists'!A60)*3+COUNTIF('Vlerësimi i kërcënimeve'!E39:E46,'Drop down lists'!A61)*2+COUNTIF('Vlerësimi i kërcënimeve'!E39:E46,'Drop down lists'!A62)*1","v":0},{"$f":"C12/SUM(C4:C17)","v":{"$error":"#DIV/0!"}},{"$f":"COUNTIF('Vlerësimi i kërcënimeve'!F39:F46,'Drop down lists'!A59)*4+COUNTIF('Vlerësimi i kërcënimeve'!F39:F46,'Drop down lists'!A60)*3+COUNTIF('Vlerësimi i kërcënimeve'!F39:F46,'Drop down lists'!A61)*2+COUNTIF('Vlerësimi i kërcënimeve'!F39:F46,'Drop down lists'!A62)*1","v":0},{"$f":"E12/SUM(E4:E17)","v":{"$error":"#DIV/0!"}}]
[null,{"$f":"'Vlerësimi i kërcënimeve'!A47","v":"10. Ngjarjet gjeologjike\n"},{"$f":"COUNTIF('Vlerësimi i kërcënimeve'!E47:E50,'Drop down lists'!A59)*4+COUNTIF('Vlerësimi i kërcënimeve'!E47:E50,'Drop down lists'!A60)*3+COUNTIF('Vlerësimi i kërcënimeve'!E47:E50,'Drop down lists'!A61)*2+COUNTIF('Vlerësimi i kërcënimeve'!E47:E50,'Drop down lists'!A62)*1","v":0},{"$f":"C13/SUM(C4:C17)","v":{"$error":"#DIV/0!"}},{"$f":"COUNTIF('Vlerësimi i kërcënimeve'!F47:F50,'Drop down lists'!A59)*4+COUNTIF('Vlerësimi i kërcënimeve'!F47:F50,'Drop down lists'!A60)*3+COUNTIF('Vlerësimi i kërcënimeve'!F47:F50,'Drop down lists'!A61)*2+COUNTIF('Vlerësimi i kërcënimeve'!F47:F50,'Drop down lists'!A62)*1","v":0},{"$f":"E13/SUM(E4:E17)","v":{"$error":"#DIV/0!"}}]
[null,{"$f":"'Vlerësimi i kërcënimeve'!A51","v":"11. Ndryshimet klimatike dhe moti i rëndë\n"},{"$f":"COUNTIF('Vlerësimi i kërcënimeve'!E51:E56,'Drop down lists'!A59)*4+COUNTIF('Vlerësimi i kërcënimeve'!E51:E56,'Drop down lists'!A60)*3+COUNTIF('Vlerësimi i kërcënimeve'!E51:E56,'Drop down lists'!A61)*2+COUNTIF('Vlerësimi i kërcënimeve'!E51:E56,'Drop down lists'!A62)*1","v":0},{"$f":"C14/SUM(C4:C17)","v":{"$error":"#DIV/0!"}},{"$f":"COUNTIF('Vlerësimi i kërcënimeve'!F51:F56,'Drop down lists'!A59)*4+COUNTIF('Vlerësimi i kërcënimeve'!F51:F56,'Drop down lists'!A60)*3+COUNTIF('Vlerësimi i kërcënimeve'!F51:F56,'Drop down lists'!A61)*2+COUNTIF('Vlerësimi i kërcënimeve'!F51:F56,'Drop down lists'!A62)*1","v":0},{"$f":"E14/SUM(E4:E17)","v":{"$error":"#DIV/0!"}}]
[null,{"$f":"'Vlerësimi i kërcënimeve'!A57","v":"12. Kërcënimet kulturore dhe sociale"},{"$f":"COUNTIF('Vlerësimi i kërcënimeve'!E57:E60,'Drop down lists'!A59)*4+COUNTIF('Vlerësimi i kërcënimeve'!E57:E60,'Drop down lists'!A60)*3+COUNTIF('Vlerësimi i kërcënimeve'!E57:E60,'Drop down lists'!A61)*2+COUNTIF('Vlerësimi i kërcënimeve'!E57:E60,'Drop down lists'!A62)*1","v":0},{"$f":"C15/SUM(C4:C17)","v":{"$error":"#DIV/0!"}},{"$f":"COUNTIF('Vlerësimi i kërcënimeve'!F57:F60,'Drop down lists'!A59)*4+COUNTIF('Vlerësimi i kërcënimeve'!F57:F60,'Drop down lists'!A60)*3+COUNTIF('Vlerësimi i kërcënimeve'!F57:F60,'Drop down lists'!A61)*2+COUNTIF('Vlerësimi i kërcënimeve'!F57:F60,'Drop down lists'!A62)*1","v":0},{"$f":"E15/SUM(E4:E17)","v":{"$error":"#DIV/0!"}}]
[null,{"$f":"'Vlerësimi i kërcënimeve'!A61","v":"13. Problemet e qeverisjes"},{"$f":"COUNTIF('Vlerësimi i kërcënimeve'!E61:E62,'Drop down lists'!A59)*4+COUNTIF('Vlerësimi i kërcënimeve'!E61:E62,'Drop down lists'!A60)*3+COUNTIF('Vlerësimi i kërcënimeve'!E61:E62,'Drop down lists'!A61)*2+COUNTIF('Vlerësimi i kërcënimeve'!E61:E62,'Drop down lists'!A62)*1","v":0},{"$f":"C16/SUM(C4:C17)","v":{"$error":"#DIV/0!"}},{"$f":"COUNTIF('Vlerësimi i kërcënimeve'!F61:F62,'Drop down lists'!A59)*4+COUNTIF('Vlerësimi i kërcënimeve'!F61:F62,'Drop down lists'!A60)*3+COUNTIF('Vlerësimi i kërcënimeve'!F61:F62,'Drop down lists'!A61)*2+COUNTIF('Vlerësimi i kërcënimeve'!F61:F62,'Drop down lists'!A62)*1","v":0},{"$f":"E16/SUM(E4:E17)","v":{"$error":"#DIV/0!"}}]
[null,{"$f":"'Vlerësimi i kërcënimeve'!A63","v":"14. Të tjera"},{"$f":"COUNTIF('Vlerësimi i kërcënimeve'!E63:E64,'Drop down lists'!A59)*4+COUNTIF('Vlerësimi i kërcënimeve'!E63:E64,'Drop down lists'!A60)*3+COUNTIF('Vlerësimi i kërcënimeve'!E63:E64,'Drop down lists'!A61)*2+COUNTIF('Vlerësimi i kërcënimeve'!E63:E64,'Drop down lists'!A62)*1","v":0},{"$f":"C17/SUM(C4:C17)","v":{"$error":"#DIV/0!"}},{"$f":"COUNTIF('Vlerësimi i kërcënimeve'!F63:F64,'Drop down lists'!A59)*4+COUNTIF('Vlerësimi i kërcënimeve'!F63:F64,'Drop down lists'!A60)*3+COUNTIF('Vlerësimi i kërcënimeve'!F63:F64,'Drop down lists'!A61)*2+COUNTIF('Vlerësimi i kërcënimeve'!F63:F64,'Drop down lists'!A62)*1","v":0},{"$f":"E17/SUM(E4:E17)","v":{"$error":"#DIV/0!"}}]
[]
[]
[null,"Threat Extent","Count"]
[null,{"$f":"'Drop down lists'!A59","v":"Shumë i lartë"},{"$f":"COUNTIF('Vlerësimi i kërcënimeve'!E3:E64,'Drop down lists'!A59)","v":0}]
[null,{"$f":"'Drop down lists'!A60","v":"I lartë"},{"$f":"COUNTIF('Vlerësimi i kërcënimeve'!E3:E64,'Drop down lists'!A60)","v":0}]
[null,{"$f":"'Drop down lists'!A61","v":"Mesatar"},{"$f":"COUNTIF('Vlerësimi i kërcënimeve'!E3:E64,'Drop down lists'!A61)","v":0}]
[null,{"$f":"'Drop down lists'!A62","v":"I ulët"},{"$f":"COUNTIF('Vlerësimi i kërcënimeve'!E3:E64,'Drop down lists'!A62)","v":0}]
[]
[]
[null,"Threat severity"]
[null,{"$f":"'Drop down lists'!A59","v":"Shumë i lartë"},{"$f":"COUNTIF('Vlerësimi i kërcënimeve'!F3:F64,'Drop down lists'!A59)","v":0}]
[null,{"$f":"'Drop down lists'!A60","v":"I lartë"},{"$f":"COUNTIF('Vlerësimi i kërcënimeve'!F3:F64,'Drop down lists'!A60)","v":0}]
[null,{"$f":"'Drop down lists'!A61","v":"Mesatar"},{"$f":"COUNTIF('Vlerësimi i kërcënimeve'!F3:F64,'Drop down lists'!A61)","v":0}]
[null,{"$f":"'Drop down lists'!A62","v":"I ulët"},{"$f":"COUNTIF('Vlerësimi i kërcënimeve'!F3:F64,'Drop down lists'!A62)","v":0}]

{"sheet":"METT 4 Pyetjet dhe Rezultatet","index":11,"n_rows":51,"n_cols":8,"rows_kept":51,"cut":false,"hidden":false,"merged":[[1,1,3,2],[1,3,3,3],[0,1,0,6]]}
[null,{"$f":"#REF!","v":{"$error":"#REF!"}}]
[null,"Rezultatet METT për pyetje",null,"Viti i vlerësimit: ",null,null,null,{"$f":"'Common text'!A18","v":"Rishiko Veprimet për përmirësimin e menaxhimit"}]
[null,null,null,null,{"$f":"'Atributet e zonës së mbrojtur'!B58","v":0},null,{"$f":"'Common text'!A17","v":"Trego udhëzuesin"}]
[null,null,null,null,null,null,null,{"$f":"'Common text'!A16","v":"Eksporto të dhënat mbi Kërcënimet"}]
[null,"Nr.","Pyetjet","Rezultati maksimal METT","Rezultati juaj METT (kjo kolonë do të plotësohet automatikisht pasi të përfundojë METT)","Rezultati juaj METT nga vlerësimi i fundit (nëse disponohet)","Elementet e menaxhimit"]
[false,1,{"$f":"'1.'!B5","v":"A ka ZM status ligjor apo është krijuar nëpërmjet \"mjeteve të tjera efektive\"?"},{"$f":"IF(A6=TRUE, 0, 3)","v":3},{"$f":"'1.'!C6","v":0},null,"Planifikimi"]
[false,2,{"$f":"'2.'!$B$5","v":"A ndërmerret menaxhimi për të arritur objektivat e zonës së mbrojtur?"},3,{"$f":"'2.'!C6","v":0},null,"Planifikimi"]
[false,3,{"$f":"'3.'!$B$5","v":"A janë përcaktuar dhe zbatuar rregullat/kontrollet e duhura për të menaxhuar përdorimin dhe aktivitetet në përputhje me objektivat e menaxhimit të zonës së mbrojtur?"},3,{"$f":"'3.'!C6","v":0},null,"Proces"]
[false,4,{"$f":"'4.'!$B$5","v":"A e njeh zonën e mbrojtur planifikimi i përdorimit të tokës dhe detit jashtë zonës së mbrojtur dhe a kontribuon në arritjen e objektivave të menaxhimit?"},3,{"$f":"'4.'!C6","v":0},null,"Planifikimi"]
[false,5,{"$f":"'5.'!$B$5","v":"A ka zona e mbrojtur madhësinë dhe formën e duhur për të mbrojtur llojet, habitatet, proceset ekologjike dhe basenet ujëmbledhëse me rëndësi kryesore për ruajtjen e natyrës?"},3,{"$f":"'5.'!C6","v":0},null,"Planifikimi"]
[false,6,{"$f":"'6.'!B5","v":"A është i njohur dhe i përcaktuar kufiri?"},3,{"$f":"'6.'!C6","v":0},null,"Proces"]
[false,7,{"$f":"'7.'!B5","v":"A ekziston një plan menaxhimi apo një dokument i ngjashëm dhe a po zbatohet?"},3,{"$f":"'7.'!C6","v":0},null,"Planifikimi"]
[false,"7a-c",{"$f":"'7A.'!B1","v":"Pikat shtesë për pyetjen  7. Plani i menaxhimit"},3,{"$f":"'7A.'!C6","v":0},null,"Planifikimi"]
[false,8,{"$f":"'8.'!B5","v":"A ekziston një plan pune i vazhdueshëm (me afate të paracaktuara, p.sh., vjetor) dhe a po zbatohet?"},3,{"$f":"'8.'!C6","v":0},null,"Planifikimi"]
[false,9,{"$f":"'9.'!B5","v":"A keni informacion të mjaftueshëm për të menaxhuar zonën?"},3,{"$f":"'9.'!C6","v":0},null,"Inputet"]
[false,10,{"$f":"'10.'!B5","v":"A ka njerëz mjaftueshëm për të menaxhuar zonën e mbrojtur?"},3,{"$f":"'10.'!C6","v":0},null,"Inputet"]
[false,11,{"$f":"'11.'!B5","v":"A kanë njerëzit e përfshirë në menaxhimin e zonës së mbrojtur njohuritë dhe aftësitë e nevojshme?"},3,{"$f":"'11.'!C6","v":0},null,"Inputet"]
[false,12,{"$f":"'12.'!B5","v":"A është buxheti aktual i mjaftueshëm?"},3,{"$f":"'12.'!C6","v":0},null,"Inputet"]
[false,13,{"$f":"'13.'!B5","v":"A është buxheti i sigurt?"},3,{"$f":"'13.'!C6","v":0},null,"Inputet"]
[false,14,{"$f":"'14.'!B5","v":"A menaxhohet buxheti për të siguruar administrim efektiv të zonës së mbrojtur?"},3,{"$f":"'14.'!C6","v":0},null,"Proces"]
[false,15,{"$f":"'15.'!B5","v":"A janë pajisjet dhe shërbimet ndihmëse të mjaftueshme për nevojat e menaxhimit?"},3,{"$f":"'15.'!C6","v":0},null,"Inputet"]
[false,16,{"$f":"'16.'!B5","v":"A mundet personeli (d.m.th. ata që janë përgjegjës për menaxhimin e zonës) të zbatojnë legjislacionin dhe rregulloret e zonës së mbrojtur?"},3,{"$f":"'16.'!C6","v":0},null,"Proces"]
[false,17,{"$f":"'17.'!B5","v":"A ka sisteme (p.sh. patrulla, leje, vrojtim-sinjalizim, etj.) për të kontrolluar aksesin/përdorimin e burimeve në zonën e mbrojtur?"},3,{"$f":"'17.'!C6","v":0},null,"Proces"]
[false,18,{"$f":"'18.'!B5","v":"A ka personeli i zonës së mbrojtur kushte të sigurta pune dhe a është siguria në punë prioritet i menaxhimit?"},3,{"$f":"'18.'!C6","v":0},null,"Proces"]
[false,19,{"$f":"'19.'!B5","v":"A ekziston një program për kërkimin shkencor I orientuar nga nevojat e menaxhimit?"},3,{"$f":"'19.'!C6","v":0},null,"Proces"]
[false,20,{"$f":"'20.'!B5","v":"A monitorohen, vlerësohen dhe përshtaten rregullisht aktivitetet e menaxhimit?"},3,{"$f":"'20.'!C6","v":0},null,"Proces"]
[false,21,{"$f":"'21.'!B5","v":"A  kryhet menaxhim aktiv i burimeve natyrore e kulturore?"},3,{"$f":"'21.'!C6","v":0},null,"Proces"]
[false,22,{"$f":"'22.'!B5","v":"A menaxhohet me vetëdije zona e mbrojtur për t'iu përshtatur ndryshimeve klimatike?"},3,{"$f":"'22.'!C6","v":0},null,"Proces"]
[false,23,{"$f":"'22.'!B5","v":"A menaxhohet me vetëdije zona e mbrojtur për t'iu përshtatur ndryshimeve klimatike?"},3,{"$f":"'23.'!C6","v":0},null,"Proces"]
[false,24,{"$f":"'23.'!B5","v":"A po menaxhohet me vetëdije zona e mbrojtur për të parandaluar çlirimin e karbonit dhe për të inkurajuar sekustrimin e mëtejshëm të karbonit?"},3,{"$f":"'24.'!C6","v":0},null,"Proces"]
[false,25,{"$f":"'24.'!B5","v":"A e konsideron menaxhimi ofrimin e shërbimeve të ekosistemit?"},3,{"$f":"'25.'!C6","v":0},null,"Proces"]
[false,26,{"$f":"'25.'!B5","v":"A ekziston një program edukimi i planifikuar dhe i lidhur me nevojat e menaxhimit?"},3,{"$f":"'26.'!C6","v":0},null,"Proces"]
[false,27,{"$f":"'26.'!B5","v":"A ka bashkëpunim me përdoruesit fqinjë shtetërorë dhe komercialë të tokës/detit?"},3,{"$f":"'27.'!C6","v":0},null,"Proces"]
[false,28,{"$f":"'28.'!B5","v":"Nëse aplikohen tarifa (d.m.th. tarifat e hyrjes ose gjobat), a ndihmojnë ato menaxhimin e zonës së mbrojtur?"},3,{"$f":"'28.'!C6","v":0},null,"Proces"]
[false,29,{"$f":"'29.'!B5","v":"A janë objektet dhe shërbimet për vizitorë t të përshtatshme?"},3,{"$f":"'29.'!C6","v":0},null,"Produktet"]
[false,30,{"$f":"'30.'!B5","v":"A përfshihen banorët indigjenë në vendimet e menaxhimit?"},3,{"$f":"'30.'!C6","v":0},null,"Proces"]
[false,31,{"$f":"'31.'!B5","v":"A kanë komunitetet lokale që jetojnë brenda ose afër zonës së mbrojtur kontribut në vendimet e menaxhimit?"},3,{"$f":"'31.'!C6","v":0},null,"Proces"]
[false,"31a-c",{"$f":"'31A.'!B1","v":"31a-c Pika shtesë - Ndikimi në komunitet/popullsi indigjene"},3,{"$f":"'31A.'!C6","v":0},null,"Produktet"]
[false,32,{"$f":"'32.'!B5","v":"A ofron zona e mbrojtur përfitime të qëndrueshme për jetesën e komuniteteve lokale dhe/ose njerëzit indigjenë, p.sh. të ardhurat, punësimi, pagesa për shërbimet e ekosistemit?"},3,{"$f":"'32.'!C6","v":0},null,"Produktet"]
[false,33,{"$f":"'33.'!B5","v":"A trajtohen në mënyrë efektive kërcënimet ndaj vlerave kryesore të zonës së mbrojtur?"},3,{"$f":"'33.'!C6","v":0},null,"Produktet"]
[false,34,{"$f":"'34.'!B5","v":"A janë vlerësuar dhe zbatuar nevojat për lidhje funksionale me ekosisteme të tjera natyrore?"},3,{"$f":"'34.'!C6","v":0},null,"Produktet"]
[null,null,{"$f":"'Vlerësimi i detajuar i vlerave'!A1","v":"Vlerësimi i detajuar i vlerave"},null,null,null,"Rezultatet"]
[false,35,{"$f":"'35.'!B5","v":"Cila është gjendja e vlerave të rëndësishme natyrore të zonës së mbrojtur në krahasim me kohën kur është vlerësuar gjendja e tyre për herë të parë?"},3,{"$f":"'35.'!C6","v":0},null,"Rezultatet"]
[false,"35 a-c",{"$f":"'35A.'!B1","v":"35 a-c Pika shtesë - Gjendja e vlerave natyrore"},3,{"$f":"'35A.'!C6","v":0},null,"Proces"]
[false,36,{"$f":"'36.'!B5","v":"Cila është gjendja e vlerave të rëndësishme kulturore të zonës së mbrojtur në krahasim me kohën kur është vlerësuar gjendja e tyre për herë të parë?"},3,{"$f":"'36.'!C6","v":0},null,"Rezultatet"]
[false,"36 a-c",{"$f":"'36A.'!B1","v":"36 a-c Pika shtesë - Gjendja e vlerave kulturore"},3,{"$f":"'36A.'!C6","v":0},null,"Proces"]
[null,null,{"$f":"'Vlerësimi i detajuar i llojeve '!A1","v":"Vlerësimi i detajuar i llojeve"},null,null,null,"Rezultatet"]
[false,37,{"$f":"'37.'!B5","v":"A ka ndryshuar statusi i llojeve kryesore treguese gjatë 5 viteve të fundit?"},{"$f":"IF(A48=TRUE, 0, 3)","v":3},{"$f":"'37.'!C6","v":0},null,"Rezultatet"]
[null,null,{"$f":"'Vlerësimi i detajuar habitatet'!A1","v":"Vlerësimi i detajuar i habitatit"},null,null,null,"Rezultatet"]
[false,38,{"$f":"'38.'!B5","v":"A ka ndryshuar statusi i habitateve gjatë 5 viteve të fundit?"},{"$f":"IF(A50=TRUE, 0, 3)","v":3},{"$f":"'38.'!C6","v":0},null,"Rezultatet"]
[null,null,"Rezultati i përgjithshëm",{"$f":"SUM(D6:D50)","v":126},{"$f":"SUM(E6:E50)","v":0},{"$f":"SUM(F6:F50)","v":0}]

{"sheet":"Question_data_dump","index":12,"n_rows":2,"n_cols":716,"rows_kept":2,"cut":false,"hidden":true,"merged":[]}
["PA","Date","Q1NA","Q1NAR","Q1S","Q1J","Q1A","Q1R&M","Q1R&MT","Q1P","Q1PT","Q1SE","Q1SET","Q1EE","Q1EET","Q1C","Q1CT","Q1O","Q1OT","Q2NA","Q2NAR","Q2S","Q2J","Q2A","Q2R&M","Q2R&MT","Q2P","Q2PT","Q2SE","Q2SET","Q2EE","Q2EET","Q2C","Q2CT","Q2O","Q2OT","Q3NA","Q3NAR","Q3S","Q3J","Q3A","Q3R&M","Q3R&MT","Q3P","Q3PT","Q3SE","Q3SET","Q3EE","Q3EET","Q3C","Q3CT","Q3O","Q3OT","Q4NA","Q4NAR","Q4S","Q4J","Q4A","Q4R&M","Q4R&MT","Q4P","Q4PT","Q4SE","Q4SET","Q4EE","Q4EET","Q4C","Q4CT","Q4O","Q4OT","Q5NA","Q5NAR","Q5S","Q5J","Q5A","Q5R&M","Q5R&MT","Q5P","Q5PT","Q5SE","Q5SET","Q5EE","Q5EET","Q5C","Q5CT","Q5O","Q5OT","Q6NA","Q6NAR","Q6S","Q6J","Q6A","Q6R&M","Q6R&MT","Q6P","Q6PT","Q6SE","Q6SET","Q6EE","Q6EET","Q6C","Q6CT","Q6O","Q6OT","Q7NA","Q7NAR","Q7S","Q7J","Q7A","Q7R&M","Q7R&MT","Q7P","Q7PT","Q7SE","Q7SET","Q7EE","Q7EET","Q7C","Q7CT","Q7O","Q7OT","Q7ANA","Q7ANAR","Q7AS","Q7AJ","Q7AA","Q7AR&M","Q7AR&MT","Q7AP","Q7APT","Q7ASE","Q7ASET","Q7AEE","Q7AEET","Q7AC","Q7ACT","Q7AO","Q7AOT","Q8NA","Q8NAR","Q8S","Q8J","Q8A","Q8R&M","Q8R&MT","Q8P","Q8PT","Q8SE","Q8SET","Q8EE","Q8EET","Q8C","Q8CT","Q8O","Q8OT","Q9NA","Q9NAR","Q9S","Q9J","Q9A","Q9R&M","Q9R&MT","Q9P","Q9PT","Q9SE","Q9SET","Q9EE","Q9EET","Q9C","Q9CT","Q9O","Q9OT","Q10NA","Q10NAR","Q10S","Q10J","Q10A","Q10R&M","Q10R&MT","Q10P","Q10PT","Q10SE","Q10SET","Q10EE","Q10EET","Q10C","Q10CT","Q10O","Q10OT","Q11NA","Q11NAR","Q11S","Q11J","Q11A","Q11R&M","Q11R&MT","Q11P","Q11PT","Q11SE","Q11SET","Q11EE","Q11EET","Q11C","Q11CT","Q11O","Q11OT","Q12NA","Q12NAR","Q12S","Q12J","Q12A","Q12R&M","Q12R&MT","Q12P","Q12PT","Q12SE","Q12SET","Q12EE","Q12EET","Q12C","Q12CT","Q12O","Q12OT","Q13NA","Q13NAR","Q13S","Q13J","Q13A","Q13R&M","Q13R&MT","Q13P","Q13PT","Q13SE","Q13SET","Q13EE","Q13EET","Q13C","Q13CT","Q13O","Q13OT","Q14NA","Q14NAR","Q14S","Q14J","Q14A","Q14R&M","Q14R&MT","Q14P","Q14PT","Q14SE","Q14SET","Q14EE","Q14EET","Q14C","Q14CT","Q14O","Q14OT","Q15NA","Q15NAR","Q15S","Q15J","Q15A","Q15R&M","Q15R&MT","Q15P","Q15PT","Q15SE","Q15SET","Q15EE","Q15EET","Q15C","Q15CT","Q15O","Q15OT","Q16NA","Q16NAR","Q16S","Q16J","Q16A","Q16R&M","Q16R&MT","Q16P","Q16PT","Q16SE","Q16SET","Q16EE","Q16EET","Q16C","Q16CT","Q16O","Q16OT","Q17NA","Q17NAR","Q17S","Q17J","Q17A","Q17R&M","Q17R&MT","Q17P","Q17PT","Q17SE","Q17SET","Q17EE","Q17EET","Q17C","Q17CT","Q17O","Q17OT","Q18NA","Q18NAR","Q18S","Q18J","Q18A","Q18R&M","Q18R&MT","Q18P","Q18PT","Q18SE","Q18SET","Q18EE","Q18EET","Q18C","Q18CT","Q18O","Q18OT","Q19NA","Q19NAR","Q19S","Q19J","Q19A","Q19R&M","Q19R&MT","Q19P","Q19PT","Q19SE","Q19SET","Q19EE","Q19EET","Q19C","Q19CT","Q19O","Q19OT","Q20NA","Q20NAR","Q20S","Q20J","Q20A","Q20R&M","Q20R&MT","Q20P","Q20PT","Q20SE","Q20SET","Q20EE","Q20EET","Q20C","Q20CT","Q20O","Q20OT","Q21NA","Q21NAR","Q21S","Q21J","Q21A","Q21R&M","Q21R&MT","Q21P","Q21PT","Q21SE","Q21SET","Q21EE","Q21EET","Q21C","Q21CT","Q21O","Q21OT","Q22NA","Q22NAR","Q22S","Q22J","Q22A","Q22R&M","Q22R&MT","Q22P","Q22PT","Q22SE","Q22SET","Q22EE","Q22EET","Q22C","Q22CT","Q22O","Q22OT","Q23NA","Q23NAR","Q23S","Q23J","Q23A","Q23R&M","Q23R&MT","Q23P","Q23PT","Q23SE","Q23SET","Q23EE","Q23EET","Q23C","Q23CT","Q23O","Q23OT","Q24NA","Q24NAR","Q24S","Q24J","Q24A","Q24R&M","Q24R&MT","Q24P","Q24PT","Q24SE","Q24SET","Q24EE","Q24EET","Q24C","Q24CT","Q24O","Q24OT","Q25NA","Q25NAR","Q25S","Q25J","Q25A","Q25R&M","Q25R&MT","Q25P","Q25PT","Q25SE","Q25SET","Q25EE","Q25EET","Q25C","Q25CT","Q25O","Q25OT","Q26NA","Q26NAR","Q26S","Q26J","Q26A","Q26R&M","Q26R&MT","Q26P","Q26PT","Q26SE","Q26SET","Q26EE","Q26EET","Q26C","Q26CT","Q26O","Q26OT","Q27NA","Q27NAR","Q27S","Q27J","Q27A","Q27R&M","Q27R&MT","Q27P","Q27PT","Q27SE","Q27SET","Q27EE","Q27EET","Q27C","Q27CT","Q27O","Q27OT","Q28NA","Q28NAR","Q28S","Q28J","Q28A","Q28R&M","Q28R&MT","Q28P","Q28PT","Q28SE","Q28SET","Q28EE","Q28EET","Q28C","Q28CT","Q28O","Q28OT","Q29NA","Q29NAR","Q29S","Q29J","Q29A","Q29R&M","Q29R&MT","Q29P","Q29PT","Q29SE","Q29SET","Q29EE","Q29EET","Q29C","Q29CT","Q29O","Q29OT","Q30NA","Q30NAR","Q30S","Q30J","Q30A","Q30R&M","Q30R&MT","Q30P","Q30PT","Q30SE","Q30SET","Q30EE","Q30EET","Q30C","Q30CT","Q30O","Q30OT","Q31NA","Q31NAR","Q31S","Q31J","Q31A","Q31R&M","Q31R&MT","Q31P","Q31PT","Q31SE","Q31SET","Q31EE","Q31EET","Q31C","Q31CT","Q31O","Q31OT","Q31ANA","Q31ANAR","Q31AS","Q31AJ","Q31AA","Q31AR&M","Q31AR&MT","Q31AP","Q31APT","Q31ASE","Q31ASET","Q31AEE","Q31AEET","Q31AC","Q31ACT","Q31AO","Q31AOT","Q32NA","Q32NAR","Q32S","Q32J","Q32A","Q32R&M","Q32R&MT","Q32P","Q32PT","Q32SE","Q32SET","Q32EE","Q32EET","Q32C","Q32CT","Q32O","Q32OT","Q33NA","Q33NAR","Q33S","Q33J","Q33A","Q33R&M","Q33R&MT","Q33P","Q33PT","Q33SE","Q33SET","Q33EE","Q33EET","Q33C","Q33CT","Q33O","Q33OT","Q34NA","Q34NAR","Q34S","Q34J","Q34A","Q34R&M","Q34R&MT","Q34P","Q34PT","Q34SE","Q34SET","Q34EE","Q34EET","Q34C","Q34CT","Q34O","Q34OT","Q35NA","Q35NAR","Q35S","Q35J","Q35A","Q35R&M","Q35R&MT","Q35P","Q35PT","Q35SE","Q35SET","Q35EE","Q35EET","Q35C","Q35CT","Q35O","Q35OT","Q35ANA","Q35ANAR","Q35AS","Q35AJ","Q35AA","Q35AR&M","Q35AR&MT","Q35AP","Q35APT","Q35ASE","Q35ASET","Q35AEE","Q35AEET","Q35AC","Q35ACT","Q35AO","Q35AOT","Q36NA","Q36NAR","Q36S","Q36J","Q36A","Q36R&M","Q36R&MT","Q36P","Q36PT","Q36SE","Q36SET","Q36EE","Q36EET","Q36C","Q36CT","Q36O","Q36OT","Q36ANA","Q36ANAR","Q36AS","Q36AJ","Q36AA","Q36AR&M","Q36AR&MT","Q36AP","Q36APT","Q36ASE","Q36ASET","Q36AEE","Q36AEET","Q36AC","Q36ACT","Q36AO","Q36AOT","Q37NA","Q37NAR","Q37S","Q37J","Q37A","Q37R&M","Q37R&MT","Q37P","Q37PT","Q37SE","Q37SET","Q37EE","Q37EET","Q37C","Q37CT","Q37O","Q37OT","Q38NA","Q38NAR","Q38S","Q38J","Q38A","Q38R&M","Q38R&MT","Q38P","Q38PT","Q38SE","Q38SET","Q38EE","Q38EET","Q38C","Q38CT","Q38O","Q38OT"]
[{"$f":"'Atributet e zonës së mbrojtur'!$B$5","v":0},{"$f":"'Atributet e zonës së mbrojtur'!B59","v":"00:00:00"},{"$f":"'METT 4 Pyetjet dhe Rezultatet'!$A$6","v":false},{"$f":"'1.'!$B$3","v":0},{"$f":"'METT 4 Pyetjet dhe Rezultatet'!$E$6","v":0},{"$f":"'1.'!$B$15","v":0},{"$f":"'1.'!$B$19","v":0},false,{"$f":"'1.'!$B$23","v":0},false,{"$f":"'1.'!$B$24","v":0},false,{"$f":"'1.'!$B$25","v":0},false,{"$f":"'1.'!$B$26","v":0},false,{"$f":"'1.'!$B$27","v":0},false,{"$f":"'1.'!$B$28","v":0},{"$f":"'METT 4 Pyetjet dhe Rezultatet'!$A$7","v":false},{"$f":"'2.'!$B$3","v":0},{"$f":"'METT 4 Pyetjet dhe Rezultatet'!$E$7","v":0},{"$f":"'2.'!$B$15","v":0},{"$f":"'2.'!$B$19","v":0},false,{"$f":"'2.'!$B$23","v":0},false,{"$f":"'2.'!$B$24","v":0},true,{"$f":"'2.'!$B$25","v":0},false,{"$f":"'2.'!$B$26","v":0},false,{"$f":"'2.'!$B$27","v":0},false,{"$f":"'2.'!$B$28","v":0},{"$f":"'METT 4 Pyetjet dhe Rezultatet'!$A$8","v":false},{"$f":"'3.'!$B$3","v":0},{"$f":"'METT 4 Pyetjet dhe Rezultatet'!$E$8","v":0},{"$f":"'3.'!$B$15","v":0},{"$f":"'3.'!$B$19","v":0},false,{"$f":"'3.'!$B$23","v":0},false,{"$f":"'3.'!$B$24","v":0},false,{"$f":"'3.'!$B$25","v":0},false,{"$f":"'3.'!$B$26","v":0},false,{"$f":"'3.'!$B$27","v":0},false,{"$f":"'3.'!$B$28","v":0},{"$f":"'METT 4 Pyetjet dhe Rezultatet'!$A$9","v":false},{"$f":"'4.'!$B$3","v":0},{"$f":"'METT 4 Pyetjet dhe Rezultatet'!$E$9","v":0},{"$f":"'4.'!$B$15","v":0},{"$f":"'4.'!$B$19","v":0},false,{"$f":"'4.'!$B$23","v":0},false,{"$f":"'4.'!$B$24","v":0},false,{"$f":"'4.'!$B$25","v":0},false,{"$f":"'4.'!$B$26","v":0},false,{"$f":"'4.'!$B$27","v":0},false,{"$f":"'4.'!$B$28","v":0},{"$f":"'METT 4 Pyetjet dhe Rezultatet'!$A$10","v":false},{"$f":"'5.'!$B$3","v":0},{"$f":"'METT 4 Pyetjet dhe Rezultatet'!$E$10","v":0},{"$f":"'5.'!$B$15","v":0},{"$f":"'5.'!$B$19","v":0},false,{"$f":"'5.'!$B$23","v":0},false,{"$f":"'5.'!$B$24","v":0},false,{"$f":"'5.'!$B$25","v":0},false,{"$f":"'5.'!$B$26","v":0},false,{"$f":"'5.'!$B$27","v":0},false,{"$f":"'5.'!$B$28","v":0},{"$f":"'METT 4 Pyetjet dhe Rezultatet'!$A$11","v":false},{"$f":"'6.'!$B$3","v":0},{"$f":"'METT 4 Pyetjet dhe Rezultatet'!$E$11","v":0},{"$f":"'6.'!$B$15","v":0},{"$f":"'6.'!$B$19","v":0},false,{"$f":"'6.'!$B$23","v":0},true,{"$f":"'6.'!$B$24","v":0},false,{"$f":"'6.'!$B$25","v":0},false,{"$f":"'6.'!$B$26","v":0},false,{"$f":"'6.'!$B$27","v":0},false,{"$f":"'6.'!$B$28","v":0},{"$f":"'METT 4 Pyetjet dhe Rezultatet'!$A$12","v":false},{"$f":"'7.'!$B$3","v":0},{"$f":"'METT 4 Pyetjet dhe Rezultatet'!$E$12","v":0},{"$f":"'7.'!$B$15","v":0},{"$f":"'7.'!$B$19","v":0},false,{"$f":"'7.'!$B$23","v":0},true,{"$f":"'7.'!$B$24","v":0},false,{"$f":"'7.'!$B$25","v":0},false,{"$f":"'7.'!$B$26","v":0},false,{"$f":"'7.'!$B$27","v":0},false,{"$f":"'7.'!$B$28","v":0},{"$f":"'METT 4 Pyetjet dhe Rezultatet'!$A$13","v":false},{"$f":"'7A.'!$B$3","v":0},{"$f":"'METT 4 Pyetjet dhe Rezultatet'!$E$13","v":0},{"$f":"'7A.'!$B$13","v":0},{"$f":"'7A.'!$B$17","v":0},false,{"$f":"'7A.'!$B$21","v":0},false,{"$f":"'7A.'!$B$22","v":0},false,{"$f":"'7A.'!$B$23","v":0},false,{"$f":"'7A.'!$B$24","v":0},false,{"$f":"'7A.'!$B$25","v":0},false,{"$f":"'7A.'!$B$26","v":0},{"$f":"'METT 4 Pyetjet dhe Rezultatet'!$A$14","v":false},{"$f":"'8.'!$B$3","v":0},{"$f":"'METT 4 Pyetjet dhe Rezultatet'!$E$14","v":0},{"$f":"'8.'!$B$15","v":0},{"$f":"'8.'!$B$19","v":0},false,{"$f":"'8.'!$B$23","v":0},false,{"$f":"'8.'!$B$24","v":0},false,{"$f":"'8.'!$B$25","v":0},false,{"$f":"'8.'!$B$26","v":0},false,{"$f":"'8.'!$B$27","v":0},false,{"$f":"'8.'!$B$28","v":0},{"$f":"'METT 4 Pyetjet dhe Rezultatet'!$A$15","v":false},{"$f":"'9.'!$B$3","v":0},{"$f":"'METT 4 Pyetjet dhe Rezultatet'!$E$15","v":0},{"$f":"'9.'!$B$15","v":0},{"$f":"'9.'!$B$19","v":0},false,{"$f":"'9.'!$B$23","v":0},false,{"$f":"'9.'!$B$24","v":0},false,{"$f":"'9.'!$B$25","v":0},false,{"$f":"'9.'!$B$26","v":0},false,{"$f":"'9.'!$B$27","v":0},false,{"$f":"'9.'!$B$28","v":0},{"$f":"'METT 4 Pyetjet dhe Rezultatet'!$A$16","v":false},{"$f":"'10.'!B3","v":0},{"$f":"'METT 4 Pyetjet dhe Rezultatet'!$E$16","v":0},{"$f":"'10.'!B15","v":0},{"$f":"'10.'!B19","v":0},false,{"$f":"'10.'!B23","v":0},false,{"$f":"'10.'!B24","v":0},false,{"$f":"'10.'!B25","v":0},false,{"$f":"'10.'!B26","v":0},false,{"$f":"'10.'!B27","v":0},false,{"$f":"'10.'!B28","v":0},{"$f":"'METT 4 Pyetjet dhe Rezultatet'!$A$17","v":false},{"$f":"'11.'!B3","v":0},{"$f":"'METT 4 Pyetjet dhe Rezultatet'!$E$17","v":0},{"$f":"'11.'!B15","v":0},{"$f":"'11.'!B19","v":0},false,{"$f":"'11.'!B23","v":0},false,{"$f":"'11.'!B24","v":0},false,{"$f":"'11.'!B25","v":0},false,{"$f":"'11.'!B26","v":0},false,{"$f":"'11.'!B27","v":0},false,{"$f":"'11.'!B28","v":0},{"$f":"'METT 4 Pyetjet dhe Rezultatet'!$A$18","v":false},{"$f":"'12.'!B3","v":0},{"$f":"'METT 4 Pyetjet dhe Rezultatet'!$E$18","v":0},{"$f":"'12.'!B15","v":0},{"$f":"'12.'!B19","v":0},false,{"$f":"'12.'!B23","v":0},false,{"$f":"'12.'!B24","v":0},false,{"$f":"'12.'!B25","v":0},false,{"$f":"'12.'!B26","v":0},false,{"$f":"'12.'!B27","v":0},false,{"$f":"'12.'!B28","v":0},{"$f":"'METT 4 Pyetjet dhe Rezultatet'!$A$19","v":false},{"$f":"'13.'!B3","v":0},{"$f":"'METT 4 Pyetjet dhe Rezultatet'!$E$19","v":0},{"$f":"'13.'!B15","v":0},{"$f":"'13.'!B19","v":0},false,{"$f":"'13.'!B23","v":0},false,{"$f":"'13.'!B24","v":0},false,{"$f":"'13.'!B25","v":0},false,{"$f":"'13.'!B26","v":0},false,{"$f":"'13.'!B27","v":0},false,{"$f":"'13.'!B28","v":0},{"$f":"'METT 4 Pyetjet dhe Rezultatet'!$A$20","v":false},{"$f":"'14.'!B3","v":0},{"$f":"'METT 4 Pyetjet dhe Rezultatet'!$E$20","v":0},{"$f":"'14.'!B15","v":0},{"$f":"'14.'!B19","v":0},false,{"$f":"'14.'!B23","v":0},false,{"$f":"'14.'!B24","v":0},false,{"$f":"'14.'!B25","v":0},false,{"$f":"'14.'!B26","v":0},false,{"$f":"'14.'!B27","v":0},false,{"$f":"'14.'!B28","v":0},{"$f":"'METT 4 Pyetjet dhe Rezultatet'!$A$21","v":false},{"$f":"'15.'!$B$3","v":0},{"$f":"'METT 4 Pyetjet dhe Rezultatet'!$E$21","v":0},{"$f":"'15.'!$B$15","v":0},{"$f":"'15.'!$B$19","v":0},false,{"$f":"'15.'!$B$23","v":0},false,{"$f":"'15.'!$B$24","v":0},false,{"$f":"'15.'!$B$25","v":0},false,{"$f":"'15.'!$B$26","v":0},false,{"$f":"'15.'!$B$27","v":0},false,{"$f":"'15.'!$B$28","v":0},{"$f":"'METT 4 Pyetjet dhe Rezultatet'!$A$22","v":false},{"$f":"'16.'!$B$3","v":0},{"$f":"'METT 4 Pyetjet dhe Rezultatet'!$E$22","v":0},{"$f":"'16.'!$B$15","v":0},{"$f":"'16.'!$B$19","v":0},false,{"$f":"'16.'!$B$23","v":0},false,{"$f":"'16.'!$B$24","v":0},false,{"$f":"'16.'!$B$25","v":0},false,{"$f":"'16.'!$B$26","v":0},false,{"$f":"'16.'!$B$27","v":0},false,{"$f":"'16.'!$B$28","v":0},{"$f":"'METT 4 Pyetjet dhe Rezultatet'!$A$23","v":false},{"$f":"'17.'!$B$3","v":0},{"$f":"'METT 4 Pyetjet dhe Rezultatet'!$E$23","v":0},{"$f":"'17.'!$B$15","v":0},{"$f":"'17.'!$B$19","v":0},false,{"$f":"'17.'!$B$23","v":0},false,{"$f":"'17.'!$B$24","v":0},false,{"$f":"'17.'!$B$25","v":0},false,{"$f":"'17.'!$B$26","v":0},false,{"$f":"'17.'!$B$27","v":0},false,{"$f":"'17.'!$B$28","v":0},{"$f":"'METT 4 Pyetjet dhe Rezultatet'!$A$24","v":false},{"$f":"'18.'!$B$3","v":0},{"$f":"'METT 4 Pyetjet dhe Rezultatet'!$E$24","v":0},{"$f":"'18.'!$B$15","v":0},{"$f":"'18.'!$B$19","v":0},false,{"$f":"'18.'!$B$23","v":0},false,{"$f":"'18.'!$B$24","v":0},false,{"$f":"'18.'!$B$25","v":0},false,{"$f":"'18.'!$B$26","v":0},false,{"$f":"'18.'!$B$27","v":0},false,{"$f":"'18.'!$B$28","v":0},{"$f":"'METT 4 Pyetjet dhe Rezultatet'!$A$25","v":false},{"$f":"'19.'!$B$3","v":0},{"$f":"'METT 4 Pyetjet dhe Rezultatet'!$E$25","v":0},{"$f":"'19.'!$B$15","v":0},{"$f":"'19.'!$B$19","v":0},false,{"$f":"'19.'!$B$23","v":0},false,{"$f":"'19.'!$B$24","v":0},false,{"$f":"'19.'!$B$25","v":0},false,{"$f":"'19.'!$B$26","v":0},false,{"$f":"'19.'!$B$27","v":0},false,{"$f":"'19.'!$B$28","v":0},{"$f":"'METT 4 Pyetjet dhe Rezultatet'!$A$26","v":false},{"$f":"'20.'!$B$3","v":0},{"$f":"'METT 4 Pyetjet dhe Rezultatet'!$E$26","v":0},{"$f":"'20.'!$B$15","v":0},{"$f":"'20.'!$B$19","v":0},false,{"$f":"'20.'!$B$23","v":0},false,{"$f":"'20.'!$B$24","v":0},false,{"$f":"'20.'!$B$25","v":0},false,{"$f":"'20.'!$B$26","v":0},false,{"$f":"'20.'!$B$27","v":0},false,{"$f":"'20.'!$B$28","v":0},{"$f":"'METT 4 Pyetjet dhe Rezultatet'!$A$27","v":false},{"$f":"'21.'!$B$3","v":0},{"$f":"'METT 4 Pyetjet dhe Rezultatet'!$E$27","v":0},{"$f":"'21.'!$B$15","v":0},{"$f":"'21.'!$B$19","v":0},false,{"$f":"'21.'!$B$23","v":0},false,{"$f":"'21.'!$B$24","v":0},false,{"$f":"'21.'!$B$25","v":0},false,{"$f":"'21.'!$B$26","v":0},false,{"$f":"'21.'!$B$27","v":0},false,{"$f":"'21.'!$B$28","v":0},{"$f":"'METT 4 Pyetjet dhe Rezultatet'!$A$28","v":false},{"$f":"'22.'!$B$3","v":0},{"$f":"'METT 4 Pyetjet dhe Rezultatet'!$E$28","v":0},{"$f":"'22.'!$B$15","v":0},{"$f":"'22.'!$B$19","v":0},true,{"$f":"'22.'!$B$23","v":0},false,{"$f":"'22.'!$B$24","v":0},false,{"$f":"'22.'!$B$25","v":0},false,{"$f":"'22.'!$B$26","v":0},false,{"$f":"'22.'!$B$27","v":0},false,{"$f":"'22.'!$B$28","v":0},{"$f":"'METT 4 Pyetjet dhe Rezultatet'!$A$29","v":false},{"$f":"'23.'!$B$3","v":0},{"$f":"'METT 4 Pyetjet dhe Rezultatet'!$E$29","v":0},{"$f":"'23.'!$B$15","v":0},{"$f":"'23.'!$B$19","v":0},false,{"$f":"'23.'!$B$23","v":0},false,{"$f":"'23.'!$B$24","v":0},false,{"$f":"'23.'!$B$25","v":0},false,{"$f":"'23.'!$B$26","v":0},false,{"$f":"'23.'!$B$27","v":0},false,{"$f":"'23.'!$B$28","v":0},{"$f":"'METT 4 Pyetjet dhe Rezultatet'!$A$30","v":false},{"$f":"'24.'!$B$3","v":0},{"$f":"'METT 4 Pyetjet dhe Rezultatet'!$E$30","v":0},{"$f":"'24.'!$B$15","v":0},{"$f":"'24.'!$B$19","v":0},false,{"$f":"'24.'!$B$23","v":0},false,{"$f":"'24.'!$B$24","v":0},false,{"$f":"'24.'!$B$25","v":0},false,{"$f":"'24.'!$B$26","v":0},false,{"$f":"'24.'!$B$27","v":0},false,{"$f":"'24.'!$B$28","v":0},{"$f":"'METT 4 Pyetjet dhe Rezultatet'!$A$31","v":false},{"$f":"'25.'!$B$3","v":0},{"$f":"'METT 4 Pyetjet dhe Rezultatet'!$E$31","v":0},{"$f":"'25.'!$B$15","v":0},{"$f":"'25.'!$B$19","v":0},false,{"$f":"'25.'!$B$23","v":0},false,{"$f":"'25.'!$B$24","v":0},false,{"$f":"'25.'!$B$25","v":0},false,{"$f":"'25.'!$B$26","v":0},false,{"$f":"'25.'!$B$27","v":0},false,{"$f":"'25.'!$B$28","v":0},{"$f":"'METT 4 Pyetjet dhe Rezultatet'!$A$32","v":false},{"$f":"'26.'!$B$3","v":0},{"$f":"'METT 4 Pyetjet dhe Rezultatet'!$E$32","v":0},{"$f":"'26.'!$B$15","v":0},{"$f":"'26.'!$B$19","v":0},false,{"$f":"'26.'!$B$23","v":0},false,{"$f":"'26.'!$B$24","v":0},false,{"$f":"'26.'!$B$25","v":0},false,{"$f":"'26.'!$B$26","v":0},false,{"$f":"'26.'!$B$27","v":0},false,{"$f":"'26.'!$B$28","v":0},{"$f":"'METT 4 Pyetjet dhe Rezultatet'!$A$33","v":false},{"$f":"'27.'!$B$3","v":0},{"$f":"'METT 4 Pyetjet dhe Rezultatet'!$E$33","v":0},{"$f":"'27.'!$B$15","v":0},{"$f":"'27.'!$B$19","v":0},false,{"$f":"'27.'!$B$23","v":0},false,{"$f":"'27.'!$B$24","v":0},false,{"$f":"'27.'!$B$25","v":0},false,{"$f":"'27.'!$B$26","v":0},false,{"$f":"'27.'!$B$27","v":0},false,{"$f":"'27.'!$B$28","v":0},{"$f":"'METT 4 Pyetjet dhe Rezultatet'!$A$34","v":false},{"$f":"'28.'!$B$3","v":0},{"$f":"'METT 4 Pyetjet dhe Rezultatet'!$E$34","v":0},{"$f":"'28.'!$B$15","v":0},{"$f":"'28.'!$B$19","v":0},false,{"$f":"'28.'!$B$23","v":0},false,{"$f":"'28.'!$B$24","v":0},false,{"$f":"'28.'!$B$25","v":0},false,{"$f":"'28.'!$B$26","v":0},false,{"$f":"'28.'!$B$27","v":0},false,{"$f":"'28.'!$B$28","v":0},{"$f":"'METT 4 Pyetjet dhe Rezultatet'!$A$35","v":false},{"$f":"'29.'!$B$3","v":0},{"$f":"'METT 4 Pyetjet dhe Rezultatet'!$E$35","v":0},{"$f":"'29.'!$B$15","v":0},{"$f":"'29.'!$B$19","v":0},false,{"$f":"'29.'!$B$23","v":0},false,{"$f":"'29.'!$B$4","v":0},false,{"$f":"'29.'!$B$25","v":0},false,{"$f":"'29.'!$B$26","v":0},false,{"$f":"'29.'!$B$27","v":0},false,{"$f":"'29.'!$B$28","v":0},{"$f":"'METT 4 Pyetjet dhe Rezultatet'!$A$36","v":false},{"$f":"'30.'!$B$3","v":0},{"$f":"'METT 4 Pyetjet dhe Rezultatet'!$E$36","v":0},{"$f":"'30.'!$B$15","v":0},{"$f":"'30.'!$B$19","v":0},false,{"$f":"'30.'!$B$23","v":0},false,{"$f":"'30.'!$B$24","v":0},false,{"$f":"'30.'!$B$25","v":0},false,{"$f":"'30.'!$B$26","v":0},false,{"$f":"'30.'!$B$27","v":0},false,{"$f":"'30.'!$B$28","v":0},{"$f":"'METT 4 Pyetjet dhe Rezultatet'!$A$37","v":false},{"$f":"'31.'!$B$3","v":0},{"$f":"'METT 4 Pyetjet dhe Rezultatet'!$E$37","v":0},{"$f":"'31.'!$B$15","v":0},{"$f":"'31.'!$B$19","v":0},false,{"$f":"'31.'!$B$23","v":0},false,{"$f":"'31.'!$B$24","v":0},false,{"$f":"'31.'!$B$25","v":0},false,{"$f":"'31.'!$B$26","v":0},false,{"$f":"'31.'!$B$27","v":0},false,{"$f":"'31.'!$B$28","v":0},{"$f":"'METT 4 Pyetjet dhe Rezultatet'!$A$38","v":false},{"$f":"'31A.'!$B$3","v":0},{"$f":"'METT 4 Pyetjet dhe Rezultatet'!$E$38","v":0},{"$f":"'31A.'!$B$16","v":0},{"$f":"'31A.'!$B$20","v":0},false,{"$f":"'31A.'!$B$24","v":0},false,{"$f":"'31A.'!$B$25","v":0},false,{"$f":"'31A.'!$B$26","v":0},false,{"$f":"'31A.'!$B$27","v":0},false,{"$f":"'31A.'!$B$28","v":0},false,{"$f":"'31A.'!$B$29","v":0},{"$f":"'METT 4 Pyetjet dhe Rezultatet'!$A$39","v":false},{"$f":"'32.'!$B$3","v":0},{"$f":"'METT 4 Pyetjet dhe Rezultatet'!$E$39","v":0},{"$f":"'32.'!$B$15","v":0},{"$f":"'32.'!$B$19","v":0},false,{"$f":"'32.'!$B$23","v":0},false,{"$f":"'32.'!$B$24","v":0},false,{"$f":"'32.'!$B$25","v":0},false,{"$f":"'32.'!$B$26","v":0},false,{"$f":"'32.'!$B$27","v":0},false,{"$f":"'32.'!$B$28","v":0},{"$f":"'METT 4 Pyetjet dhe Rezultatet'!$A$40","v":false},{"$f":"'33.'!$B$3","v":0},{"$f":"'METT 4 Pyetjet dhe Rezultatet'!$E$40","v":0},{"$f":"'33.'!$B$15","v":0},{"$f":"'33.'!$B$19","v":0},false,{"$f":"'33.'!$B$23","v":0},false,{"$f":"'33.'!$B$24","v":0},false,{"$f":"'33.'!$B$25","v":0},false,{"$f":"'33.'!$B$26","v":0},true,{"$f":"'33.'!$B$27","v":0},false,{"$f":"'33.'!$B$28","v":0},{"$f":"'METT 4 Pyetjet dhe Rezultatet'!$A$41","v":false},{"$f":"'34.'!$B$3","v":0},{"$f":"'METT 4 Pyetjet dhe Rezultatet'!$E$41","v":0},{"$f":"'34.'!$B$15","v":0},{"$f":"'34.'!$B$19","v":0},false,{"$f":"'34.'!$B$23","v":0},false,{"$f":"'34.'!$B$24","v":0},false,{"$f":"'34.'!$B$25","v":0},false,{"$f":"'34.'!$B$26","v":0},false,{"$f":"'34.'!$B$27","v":0},false,{"$f":"'34.'!$B$28","v":0},{"$f":"'METT 4 Pyetjet dhe Rezultatet'!$A$43","v":false},{"$f":"'35.'!$B$3","v":0},{"$f":"'METT 4 Pyetjet dhe Rezultatet'!$E$43","v":0},{"$f":"'35.'!$B$15","v":0},{"$f":"'35.'!$B$19","v":0},false,{"$f":"'35.'!$B$23","v":0},false,{"$f":"'35.'!$B$24","v":0},false,{"$f":"'35.'!$B$25","v":0},false,{"$f":"'35.'!$B$26","v":0},false,{"$f":"'35.'!$B$27","v":0},false,{"$f":"'35.'!$B$28","v":0},{"$f":"'METT 4 Pyetjet dhe Rezultatet'!$D$44","v":3},{"$f":"'35A.'!$B$3","v":0},{"$f":"'METT 4 Pyetjet dhe Rezultatet'!$E$44","v":0},{"$f":"'35A.'!$B$16","v":0},{"$f":"'35A.'!$B$20","v":0},false,{"$f":"'35A.'!$B$24","v":0},false,{"$f":"'35A.'!$B$25","v":0},false,{"$f":"'35A.'!$B$26","v":0},false,{"$f":"'35A.'!$B$27","v":0},false,{"$f":"'35A.'!$B$28","v":0},false,{"$f":"'35A.'!$B$29","v":0},{"$f":"'METT 4 Pyetjet dhe Rezultatet'!$A$45","v":false},{"$f":"'36.'!$B$3","v":0},{"$f":"'METT 4 Pyetjet dhe Rezultatet'!$E$45","v":0},{"$f":"'36.'!$B$15","v":0},{"$f":"'36.'!$B$19","v":0},false,{"$f":"'36.'!$B$23","v":0},false,{"$f":"'36.'!$B$24","v":0},false,{"$f":"'36.'!$B$25","v":0},false,{"$f":"'36.'!$B$26","v":0},false,{"$f":"'36.'!$B$27","v":0},false,{"$f":"'36.'!$B$28","v":0},{"$f":"'METT 4 Pyetjet dhe Rezultatet'!$A$46","v":false},{"$f":"'36A.'!$B$3","v":0},{"$f":"'METT 4 Pyetjet dhe Rezultatet'!$E$46","v":0},{"$f":"'36A.'!$B$16","v":0},{"$f":"'36A.'!$B$20","v":0},false,{"$f":"'36A.'!$B$24","v":0},false,{"$f":"'36A.'!$B$25","v":0},false,{"$f":"'36A.'!$B$26","v":0},false,{"$f":"'36A.'!$B$27","v":0},false,{"$f":"'36A.'!$B$28","v":0},false,{"$f":"'36A.'!$B$29","v":0},{"$f":"'METT 4 Pyetjet dhe Rezultatet'!$A$48","v":false},{"$f":"'37.'!$B$3","v":0},{"$f":"'METT 4 Pyetjet dhe Rezultatet'!$E$48","v":0},{"$f":"'4.'!$B$15","v":0},{"$f":"'37.'!$B$19","v":0},false,{"$f":"'37.'!$B$23","v":0},false,{"$f":"'37.'!$B$24","v":0},false,{"$f":"'37.'!$B$25","v":0},false,{"$f":"'37.'!$B$26","v":0},false,{"$f":"'37.'!$B$27","v":0},false,{"$f":"'37.'!$B$28","v":0},{"$f":"'METT 4 Pyetjet dhe Rezultatet'!$A$50","v":false},{"$f":"'38.'!$B$3","v":0},{"$f":"'METT 4 Pyetjet dhe Rezultatet'!$E$50","v":0},{"$f":"'38.'!$B$15","v":0},{"$f":"'38.'!$B$19","v":0},false,{"$f":"'38.'!$B$23","v":0},false,{"$f":"'38.'!$B$24","v":0},false,{"$f":"'38.'!$B$25","v":0},false,{"$f":"'38.'!$B$26","v":0},false,{"$f":"'38.'!$B$27","v":0},false,{"$f":"'38.'!$B$28","v":0}]

{"sheet":"1.","index":13,"n_rows":28,"n_cols":4,"rows_kept":28,"cut":false,"hidden":false,"merged":[]}
[null,{"$f":"'Q&A_Alb'!A2","v":"1. Statusi Ligjor"},null,{"$f":"'Common text'!A23","v":"Kthehu tek METT4 Pyetjet dhe Rezultatet"}]
[null,{"$f":"'Common text'!A34","v":"Kjo pyetje nuk është e rëndësishme për këtë ZM.            Nëse zgjidhni këtë, ju lutemi shpjegoni më poshtë pse kjo nuk është e rëndësishme"}]
[{"$f":"'Common text'!A37","v":"Shpjegimi"},null,null,{"$f":"'Common text'!A24","v":"Shko tek Treguesi pasardhës"}]
[]
[null,{"$f":"'Q&A_Alb'!A3","v":"A ka ZM status ligjor apo është krijuar nëpërmjet \"mjeteve të tjera efektive\"?"}]
[{"$f":"'Common text'!A38","v":"Ndihmë për t'iu përgjigjur kësaj pyetjeje:"},{"$f":"'Q&A_Alb'!A4","v":"Kjo zakonisht i referohet vetëm zonave të mbrojtura të menaxhuara nga shteti. Në rastin e shumë zonave të mbrojtura privatisht dhe zonave të ruajtura nga komunitete lokale apo popullsi indigjene (ICCA) statusi ligjor nuk është një opsion dhe kjo pyetje nuk është e zbatueshme. Aty ku zona të tilla të mbrojtura kanë një status formal (p.sh. një marrëveshje ose njohje ligjore e Zonave të Mbrojtura Indigjene), vlerësimi i mëposhtëm duhet të plotësohet."},0]
[null,{"$f":"'Common text'!A39","v":"Përgjigjet e mundshme"}]
["A     ",{"$f":"'Q&A_Alb'!A5","v":"Zona e mbrojtur nuk është shpallur në fletoren zyrtare ose nuk është shpallur me \"mjete të tjera efektive\""}]
["B",{"$f":"'Q&A_Alb'!A6","v":"Ka marrëveshje që zona e mbrojtur duhet të shpallet por procesi ende nuk ka filluar"}]
["C",{"$f":"'Q&A_Alb'!A7","v":"Zona e mbrojtur është në proces të shpalljes, por procesi është ende i paplotë (përfshin zonat e përcaktuara sipas konventave ndërkombëtare, si RAMSAR, ose ligjet lokale/tradicionale per zonat e ruajtura nga komuniteti, të cilat nuk kanë ende status ligjor kombëtar)"}]
["D",{"$f":"'Q&A_Alb'!A8","v":"Zona e mbrojtur është shpallur zyrtarisht ose është krijuar me \"mjete të tjera efektive\""}]
[]
[null,{"$f":"'Common text'!A40","v":"Dëshmitë dhe arsyetimi: Cilat janë arsyet e zgjedhjes së kësaj përgjigje?"}]
[]
[]
[]
[null,{"$f":"'Common text'!A41","v":"Veprimet për të përmirësuar menaxhimin: A ka ndonjë gjë që mund të bëni për të përmirësuar menaxhimin?"}]
[]
[]
[]
[null,{"$f":"'Common text'!A42","v":"Burimet e informacionit: Çfarë informacioni (provash) keni përdorur për t'iu përgjigjur kësaj pyetjeje? (Ju lutemi, shënoni kutitë përkatëse dhe shtoni detaje në kolonën më poshtë)"}]
[]
[{"$f":"'Common text'!A50","v":"Vrojtimi dhe Monitorimi"}]
[{"$f":"'Common text'!A51","v":"Plani i menaxhimit apo dokumente të tjera zyrtare"}]
[{"$f":"'Common text'!A52","v":"Përvoja e stafit"}]
[{"$f":"'Common text'!A53","v":"Mendime të ekspertit të jashtëm"}]
[{"$f":"'Common text'!A54","v":"Opinioni i komunitetit /njohuri tradicionale"}]
[{"$f":"'Common text'!A55","v":"Të tjera (specifiko)"}]

{"sheet":"2.","index":14,"n_rows":28,"n_cols":4,"rows_kept":28,"cut":false,"hidden":false,"merged":[]}
[null,{"$f":"'Q&A_Alb'!B2","v":"2. Objektivat e zonës së mbrojtur"},null,{"$f":"'Common text'!A23","v":"Kthehu tek METT4 Pyetjet dhe Rezultatet"}]
[null,{"$f":"'Common text'!A34","v":"Kjo pyetje nuk është e rëndësishme për këtë ZM.            Nëse zgjidhni këtë, ju lutemi shpjegoni më poshtë pse kjo nuk është e rëndësishme"}]
[{"$f":"'Common text'!A37","v":"Shpjegimi"},null,null,{"$f":"'Common text'!A24","v":"Shko tek Treguesi pasardhës"}]
[]
[null,{"$f":"'Q&A_Alb'!B3","v":"A ndërmerret menaxhimi për të arritur objektivat e zonës së mbrojtur?"}]
[{"$f":"'Common text'!A38","v":"Ndihmë për t'iu përgjigjur kësaj pyetjeje:"},{"$f":"'Q&A_Alb'!B4","v":"Kjo i referohet objektivave parësore të menaxhimit të identifikuara në fletën e atributeve të zonës së mbrojtur. Mungesa e objektivave të qarta ndoshta do të thotë se menaxhimi është në vetvete i padrejtuar dhe ka të ngjarë të jetë joefikas: një proces për konfirmimin e objektivave, për shembull një seminar i palëve të interesuara, duhet të shënohet nëse është e nevojshme në Veprimet për përmirësimin e menaxhimit. Referencat kryesore përfshijnë legjislacionin aktual që krijon zonën e mbrojtur, në rastin e zonave të mbrojtura nga shteti, dhe planet e menaxhimit, informacionin dhe njohuritë e aktiviteteve të përditshme."},0]
[null,{"$f":"'Common text'!A39","v":"Përgjigjet e mundshme"}]
["A     ",{"$f":"'Q&A_Alb'!B5","v":"Nuk është rënë dakord për objektiva të paracaktuara për zonën e mbrojtur"}]
["B",{"$f":"'Q&A_Alb'!B6","v":"Zona e mbrojtur ka objektiva të paracaktuar, por nuk është menaxhuar t'i arrijë këto objektiva"}]
["C",{"$f":"'Q&A_Alb'!B7","v":"Zona e mbrojtur ka objektiva të paracaktuar, por është menaxhuar vetëm pjesërisht për të arritur këto objektiva"}]
["D",{"$f":"'Q&A_Alb'!B8","v":"Zona e mbrojtur ka objektiva të paracaktuar dhe menaxhohet për të arritur këto objektiva"}]
[]
[null,{"$f":"'Common text'!A40","v":"Dëshmitë dhe arsyetimi: Cilat janë arsyet e zgjedhjes së kësaj përgjigje?"}]
[]
[]
[]
[null,{"$f":"'Common text'!A41","v":"Veprimet për të përmirësuar menaxhimin: A ka ndonjë gjë që mund të bëni për të përmirësuar menaxhimin?"}]
[]
[]
[]
[null,{"$f":"'Common text'!A42","v":"Burimet e informacionit: Çfarë informacioni (provash) keni përdorur për t'iu përgjigjur kësaj pyetjeje? (Ju lutemi, shënoni kutitë përkatëse dhe shtoni detaje në kolonën më poshtë)"}]
[]
[{"$f":"'Common text'!A50","v":"Vrojtimi dhe Monitorimi"}]
[{"$f":"'Common text'!A51","v":"Plani i menaxhimit apo dokumente të tjera zyrtare"}]
[{"$f":"'Common text'!A52","v":"Përvoja e stafit"}]
[{"$f":"'Common text'!A53","v":"Mendime të ekspertit të jashtëm"}]
[{"$f":"'Common text'!A54","v":"Opinioni i komunitetit /njohuri tradicionale"}]
[{"$f":"'Common text'!A55","v":"Të tjera (specifiko)"}]

{"sheet":"3.","index":15,"n_rows":28,"n_cols":4,"rows_kept":28,"cut":false,"hidden":false,"merged":[]}
[null,{"$f":"'Q&A_Alb'!C2","v":"3. Rregullat/kontrolli i zonave të mbrojtura"},null,{"$f":"'Common text'!A23","v":"Kthehu tek METT4 Pyetjet dhe Rezultatet"}]
[null,{"$f":"'Common text'!A34","v":"Kjo pyetje nuk është e rëndësishme për këtë ZM.            Nëse zgjidhni këtë, ju lutemi shpjegoni më poshtë pse kjo nuk është e rëndësishme"}]
[{"$f":"'Common text'!A37","v":"Shpjegimi"},null,null,{"$f":"'Common text'!A24","v":"Shko tek Treguesi pasardhës"}]
[]
[null,{"$f":"'Q&A_Alb'!C3","v":"A janë përcaktuar dhe zbatuar rregullat/kontrollet e duhura për të menaxhuar përdorimin dhe aktivitetet në përputhje me objektivat e menaxhimit të zonës së mbrojtur?"}]
[{"$f":"'Common text'!A38","v":"Ndihmë për t'iu përgjigjur kësaj pyetjeje:"},{"$f":"'Q&A_Alb'!C4","v":"Kjo i referohet ekzistencës së rregullave ligjore dhe kontrolleve për zbatimin e ligjit; për shembull, zonat e mbrojtura të menaxhuara nga individë privatë, besime fetare apo komunitete lokale duhet të kenë rregulla të qarta në lidhje me përdorimin e tokës dhe ujit."},0]
[null,{"$f":"'Common text'!A39","v":"Përgjigjet e mundshme"}]
["A     ",{"$f":"'Q&A_Alb'!C5","v":"Nuk ka rregulla/kontrolle për menaxhimin e përdorimit të tokës/detit dhe aktiviteteve në zonën e mbrojtur"}]
["B",{"$f":"'Q&A_Alb'!C6","v":"Ekzistojnë disa rregulla/kontrolle për menaxhimin e përdorimit të tokës/detit dhe aktiviteteve në zonën e mbrojtur, por këto janë shumë të dobëta"}]
["C",{"$f":"'Q&A_Alb'!C7","v":"Ekzistojnë rregulla/kontroll për menaxhimin e përdorimit të tokës/detit dhe aktiviteteve në zonën e mbrojtur, por ka disa dobësi ose boshllëqe"}]
["D",{"$f":"'Q&A_Alb'!C8","v":"Ekzistojnë rregulla/kontrolle për menaxhimin e përdorimit dhe aktiviteteve të papërshtatshme të tokës/detit në zonën e mbrojtur, të cilat ofrojnë një bazë të shkëlqyer për menaxhim"}]
[]
[null,{"$f":"'Common text'!A40","v":"Dëshmitë dhe arsyetimi: Cilat janë arsyet e zgjedhjes së kësaj përgjigje?"}]
[]
[]
[]
[null,{"$f":"'Common text'!A41","v":"Veprimet për të përmirësuar menaxhimin: A ka ndonjë gjë që mund të bëni për të përmirësuar menaxhimin?"}]
[]
[]
[]
[null,{"$f":"'Common text'!A42","v":"Burimet e informacionit: Çfarë informacioni (provash) keni përdorur për t'iu përgjigjur kësaj pyetjeje? (Ju lutemi, shënoni kutitë përkatëse dhe shtoni detaje në kolonën më poshtë)"}]
[]
[{"$f":"'Common text'!A50","v":"Vrojtimi dhe Monitorimi"}]
[{"$f":"'Common text'!A51","v":"Plani i menaxhimit apo dokumente të tjera zyrtare"}]
[{"$f":"'Common text'!A52","v":"Përvoja e stafit"}]
[{"$f":"'Common text'!A53","v":"Mendime të ekspertit të jashtëm"}]
[{"$f":"'Common text'!A54","v":"Opinioni i komunitetit /njohuri tradicionale"}]
[{"$f":"'Common text'!A55","v":"Të tjera (specifiko)"}]

{"sheet":"4.","index":16,"n_rows":28,"n_cols":4,"rows_kept":28,"cut":false,"hidden":false,"merged":[]}
[null,{"$f":"'Q&A_Alb'!D2","v":"4. Planifikimi për tokat /ujërat përreth zonës së mbrojtur"},null,{"$f":"'Common text'!A23","v":"Kthehu tek METT4 Pyetjet dhe Rezultatet"}]
[null,{"$f":"'Common text'!A34","v":"Kjo pyetje nuk është e rëndësishme për këtë ZM.            Nëse zgjidhni këtë, ju lutemi shpjegoni më poshtë pse kjo nuk është e rëndësishme"}]
[{"$f":"'Common text'!A37","v":"Shpjegimi"},null,null,{"$f":"'Common text'!A24","v":"Shko tek Treguesi pasardhës"}]
[]
[null,{"$f":"'Q&A_Alb'!D3","v":"A e njeh zonën e mbrojtur planifikimi i përdorimit të tokës dhe detit jashtë zonës së mbrojtur dhe a kontribuon në arritjen e objektivave të menaxhimit?"}]
[{"$f":"'Common text'!A38","v":"Ndihmë për t'iu përgjigjur kësaj pyetjeje:"},{"$f":"'Q&A_Alb'!D4","v":"Edhe pse planifikimi për përdorimin e tokës dhe ujit jashtë zonës së mbrojtur në përgjithësi është jashtë kontrollit të menaxherit të zonës së mbrojtur, vendimet e marra mund të ndikojnë ndjeshëm në zonën e mbrojtur, kështu që është e rëndësishme që të vlerësohen ndikimet e mundshme të planeve të tjera . Shembujt mund të përfshijnë diga në rrjedhën e sipërme që ndërpresin rrjedhat e ujit, zhvillime të mëdha të kultivimit të peshkut që rrisin ndotjen dhe krijojnë shqetësime të konsiderueshme, ose rrallime në shkallë të gjerë të pyjeve në zonat përreth që izolojnë zonën e mbrojtur nga zonat e tjera dhe habitatet natyrore."},0]
[null,{"$f":"'Common text'!A39","v":"Përgjigjet e mundshme"}]
["A     ",{"$f":"'Q&A_Alb'!D5","v":"Planifikimi i përdorimit të tokës/detit në zonën përreth nuk merr parasysh ekzistencën e zonës së mbrojtur dhe aktivitetet/politikat kanë një ndikim negativ në objektivat e zonës së mbrojtur."}]
["B",{"$f":"'Q&A_Alb'!D6","v":"Planifikimi i përdorimit të tokës/detit në zonën përreth nuk merr parasysh ekzistencën e zonës së mbrojtur, por aktivitetet nuk janë të dëmshme për objektivat e zonës së mbrojtur"}]
["C",{"$f":"'Q&A_Alb'!D7","v":"Planifikimi i përdorimit të tokës/detit nëzonën përreth ka njëfarë rëndësie për ekzistencën e zonës së mbrojtur dhe mbështet pjesërisht objektivat e zonës së mbrojtur"}]
["D",{"$f":"'Q&A_Alb'!D8","v":"Planifikimi i përdorimit të tokës/detit në zonën përreth njeh plotësisht ekzistencën e zonës së mbrojtur dhe kërkon të mbështesë objektivat e zonës së mbrojtur"}]
[]
[null,{"$f":"'Common text'!A40","v":"Dëshmitë dhe arsyetimi: Cilat janë arsyet e zgjedhjes së kësaj përgjigje?"}]
[]
[]
[]
[null,{"$f":"'Common text'!A41","v":"Veprimet për të përmirësuar menaxhimin: A ka ndonjë gjë që mund të bëni për të përmirësuar menaxhimin?"}]
[]
[]
[]
[null,{"$f":"'Common text'!A42","v":"Burimet e informacionit: Çfarë informacioni (provash) keni përdorur për t'iu përgjigjur kësaj pyetjeje? (Ju lutemi, shënoni kutitë përkatëse dhe shtoni detaje në kolonën më poshtë)"}]
[]
[{"$f":"'Common text'!A50","v":"Vrojtimi dhe Monitorimi"}]
[{"$f":"'Common text'!A51","v":"Plani i menaxhimit apo dokumente të tjera zyrtare"}]
[{"$f":"'Common text'!A52","v":"Përvoja e stafit"}]
[{"$f":"'Common text'!A53","v":"Mendime të ekspertit të jashtëm"}]
[{"$f":"'Common text'!A54","v":"Opinioni i komunitetit /njohuri tradicionale"}]
[{"$f":"'Common text'!A55","v":"Të tjera (specifiko)"}]

{"sheet":"5.","index":17,"n_rows":28,"n_cols":4,"rows_kept":28,"cut":false,"hidden":false,"merged":[]}
[null,{"$f":"'Q&A_Alb'!E2","v":"5. Forma dhe madhësia e zonës së mbrojtur"},null,{"$f":"'Common text'!A23","v":"Kthehu tek METT4 Pyetjet dhe Rezultatet"}]
[null,{"$f":"'Common text'!A34","v":"Kjo pyetje nuk është e rëndësishme për këtë ZM.            Nëse zgjidhni këtë, ju lutemi shpjegoni më poshtë pse kjo nuk është e rëndësishme"}]
[{"$f":"'Common text'!A37","v":"Shpjegimi"},null,null,{"$f":"'Common text'!A24","v":"Shko tek Treguesi pasardhës"}]
[]
[null,{"$f":"'Q&A_Alb'!E3","v":"A ka zona e mbrojtur madhësinë dhe formën e duhur për të mbrojtur llojet, habitatet, proceset ekologjike dhe basenet ujëmbledhëse me rëndësi kryesore për ruajtjen e natyrës?"}]
[{"$f":"'Common text'!A38","v":"Ndihmë për t'iu përgjigjur kësaj pyetjeje:"},{"$f":"'Q&A_Alb'!E4","v":"Çështjet që duhen marrë parasysh këtu përfshijnë: nëse llojet kryesore janë të mbrojtura në mënyrë adekuate (për shembull do të ishte  problem nëse një zonë e mbrojtur detare nuk do të përfshinte një zonë të afërt ku shumohen shumë nga llojet kryesore të saj), nëse zona është mjaftueshëm e madhe për të mbështetur qëndrueshmërinë e popullatave  dhe nëse ngjarjet jashtë zonës së mbrojtur mund të minojnë vlerën e saj (për shembull nëse një projekt hidroenergjetik bllokon një lumë dhe ndërpret rrjedhën). Është gjithashtu e rëndësishme të merret parasysh, aty ku është e mundur, ndikimi i parashikuar i ndryshimit të klimës në të ardhmen : për shembull, nëse niveli i detit rritet, a ka hapësirë në zonën e mbrojtur që një pyll rizoforë të tërhiqet në brendësi të tokës?"},0]
[null,{"$f":"'Common text'!A39","v":"Përgjigjet e mundshme"}]
["A     ",{"$f":"'Q&A_Alb'!E5","v":"Papërshtatshmëria në projektimin e zonës së mbrojtur do të thotë se arritja e objektivave madhore të zonës së mbrojtur është shumë e vështirë"}]
["B",{"$f":"'Q&A_Alb'!E6","v":"Papërshtatshmëria në hartimin e zonës së mbrojtur do të thotë që arritja e objektivave kryesore është e vështirë, por disa veprime lehtësuese po merren (p.sh. marrëveshje me menaxherët e territoreve tokësore/detare ngjitur me zonën e mbrojtur për korridoret e jetës së egër ose prezantimin e menaxhimit të duhur të basenit ujëmbledhës)"}]
["C",{"$f":"'Q&A_Alb'!E7","v":"Projektimi i zonës së mbrojtur nuk është duke kufizuar ndjeshëm arritjen e objektivave, por mund të përmirësohet (p.sh. në lidhje me proceset ekologjike në shkallë më të madhe)"}]
["D",{"$f":"'Q&A_Alb'!E8","v":"Projektimi i zonës së mbrojtur ndihmon në arritjen e objektivave; është i përshtatshëm për ruajtjen e llojeve dhe habitateve; dhe ruan proceset ekologjike të tilla si rrjedhat e ujërave sipërfaqësore dhe nëntokësore në  shkallë baseni ujëmbledhës, shqetësimet natyrore etj."}]
[]
[null,{"$f":"'Common text'!A40","v":"Dëshmitë dhe arsyetimi: Cilat janë arsyet e zgjedhjes së kësaj përgjigje?"}]
[]
[]
[]
[null,{"$f":"'Common text'!A41","v":"Veprimet për të përmirësuar menaxhimin: A ka ndonjë gjë që mund të bëni për të përmirësuar menaxhimin?"}]
[]
[]
[]
[null,{"$f":"'Common text'!A42","v":"Burimet e informacionit: Çfarë informacioni (provash) keni përdorur për t'iu përgjigjur kësaj pyetjeje? (Ju lutemi, shënoni kutitë përkatëse dhe shtoni detaje në kolonën më poshtë)"}]
[]
[{"$f":"'Common text'!A50","v":"Vrojtimi dhe Monitorimi"}]
[{"$f":"'Common text'!A51","v":"Plani i menaxhimit apo dokumente të tjera zyrtare"}]
[{"$f":"'Common text'!A52","v":"Përvoja e stafit"}]
[{"$f":"'Common text'!A53","v":"Mendime të ekspertit të jashtëm"}]
[{"$f":"'Common text'!A54","v":"Opinioni i komunitetit /njohuri tradicionale"}]
[{"$f":"'Common text'!A55","v":"Të tjera (specifiko)"}]

{"sheet":"6.","index":18,"n_rows":28,"n_cols":4,"rows_kept":28,"cut":false,"hidden":false,"merged":[]}
[null,{"$f":"'Q&A_Alb'!F2","v":"6. Shënimi i kufirit të zonës së mbrojtur"},null,{"$f":"'Common text'!A23","v":"Kthehu tek METT4 Pyetjet dhe Rezultatet"}]
[null,{"$f":"'Common text'!A34","v":"Kjo pyetje nuk është e rëndësishme për këtë ZM.            Nëse zgjidhni këtë, ju lutemi shpjegoni më poshtë pse kjo nuk është e rëndësishme"}]
[{"$f":"'Common text'!A37","v":"Shpjegimi"},null,null,{"$f":"'Common text'!A24","v":"Shko tek Treguesi pasardhës"}]
[]
[null,{"$f":"'Q&A_Alb'!F3","v":"A është i njohur dhe i përcaktuar kufiri?"}]
[{"$f":"'Common text'!A38","v":"Ndihmë për t'iu përgjigjur kësaj pyetjeje:"},{"$f":"'Q&A_Alb'!F4","v":"Është e rëndësishme që stafi, palët e interesuara dhe kushdo që ka të drejta për përdorimin  e burimeve natyrore brenda zonës së mbrojtur të njohi kufirin e zonës dhe  njerëzit të dinë nëse po hyjnë në zonën e mbrojtur. Hartat dhe/ose sistemet GPS përdoren përgjithësisht për të shënuar kufirin e zonës së mbrojtur të regjistruar zyrtarisht në vendimet zyrtare të shpalljes së zonës, megjithatë kufiri në terren mund të jetë ndryshe, dhe shpesh i lidhur me veçori specifike, shpesh ekziston nevoja që kufijtë të interpretohen sipas kontekstit lokal."},0]
[null,{"$f":"'Common text'!A39","v":"Përgjigjet e mundshme"}]
["A     ",{"$f":"'Q&A_Alb'!E5","v":"Papërshtatshmëria në projektimin e zonës së mbrojtur do të thotë se arritja e objektivave madhore të zonës së mbrojtur është shumë e vështirë"}]
["B",{"$f":"'Q&A_Alb'!E6","v":"Papërshtatshmëria në hartimin e zonës së mbrojtur do të thotë që arritja e objektivave kryesore është e vështirë, por disa veprime lehtësuese po merren (p.sh. marrëveshje me menaxherët e territoreve tokësore/detare ngjitur me zonën e mbrojtur për korridoret e jetës së egër ose prezantimin e menaxhimit të duhur të basenit ujëmbledhës)"}]
["C",{"$f":"'Q&A_Alb'!E7","v":"Projektimi i zonës së mbrojtur nuk është duke kufizuar ndjeshëm arritjen e objektivave, por mund të përmirësohet (p.sh. në lidhje me proceset ekologjike në shkallë më të madhe)"}]
["D",{"$f":"'Q&A_Alb'!E8","v":"Projektimi i zonës së mbrojtur ndihmon në arritjen e objektivave; është i përshtatshëm për ruajtjen e llojeve dhe habitateve; dhe ruan proceset ekologjike të tilla si rrjedhat e ujërave sipërfaqësore dhe nëntokësore në  shkallë baseni ujëmbledhës, shqetësimet natyrore etj."}]
[]
[null,{"$f":"'Common text'!A40","v":"Dëshmitë dhe arsyetimi: Cilat janë arsyet e zgjedhjes së kësaj përgjigje?"}]
[]
[]
[]
[null,{"$f":"'Common text'!A41","v":"Veprimet për të përmirësuar menaxhimin: A ka ndonjë gjë që mund të bëni për të përmirësuar menaxhimin?"}]
[]
[]
[]
[null,{"$f":"'Common text'!A42","v":"Burimet e informacionit: Çfarë informacioni (provash) keni përdorur për t'iu përgjigjur kësaj pyetjeje? (Ju lutemi, shënoni kutitë përkatëse dhe shtoni detaje në kolonën më poshtë)"}]
[]
[{"$f":"'Common text'!A50","v":"Vrojtimi dhe Monitorimi"}]
[{"$f":"'Common text'!A51","v":"Plani i menaxhimit apo dokumente të tjera zyrtare"}]
[{"$f":"'Common text'!A52","v":"Përvoja e stafit"}]
[{"$f":"'Common text'!A53","v":"Mendime të ekspertit të jashtëm"}]
[{"$f":"'Common text'!A54","v":"Opinioni i komunitetit /njohuri tradicionale"}]
[{"$f":"'Common text'!A55","v":"Të tjera (specifiko)"}]

{"sheet":"7.","index":19,"n_rows":28,"n_cols":4,"rows_kept":28,"cut":false,"hidden":false,"merged":[]}
[null,{"$f":"'Q&A_Alb'!G2","v":"7. Plani i menaxhimit"},null,{"$f":"'Common text'!A23","v":"Kthehu tek METT4 Pyetjet dhe Rezultatet"}]
[null,{"$f":"'Common text'!A34","v":"Kjo pyetje nuk është e rëndësishme për këtë ZM.            Nëse zgjidhni këtë, ju lutemi shpjegoni më poshtë pse kjo nuk është e rëndësishme"}]
[{"$f":"'Common text'!A37","v":"Shpjegimi"},null,null,{"$f":"'Common text'!A24","v":"Shko tek Treguesi pasardhës"}]
[]
[null,{"$f":"'Q&A_Alb'!G3","v":"A ekziston një plan menaxhimi apo një dokument i ngjashëm dhe a po zbatohet?"}]
[{"$f":"'Common text'!A38","v":"Ndihmë për t'iu përgjigjur kësaj pyetjeje:"},{"$f":"'Q&A_Alb'!G4","v":"Në shumicën e rasteve bëhet fjalë për një plan formal menaxhimi, i shkruar dhe në rastin e zonave të mbrojtura të menaxhuara nga qeveria, shpeshherë edhe i miratuar nga departamenti ose ministria përkatëse. Në raste të tjera, planet e menaxhimit mund të jenë më pak formale, të miratuara përmes diskutimit me anëtarët e komunitetit dhe të ekzistojnë vetëm si marrëveshje gojore, procesverbale takimesh ose marrëveshje të tjera zakonore. Qëllimi i kësaj pyetjeje është të shihet nëse menaxhimi po ndjek apo jo një kurs të caktuar dhe logjik."},0]
[null,{"$f":"'Common text'!A39","v":"Përgjigjet e mundshme"}]
["A     ",{"$f":"'Q&A_Alb'!G5","v":"Nuk ekziston asnjë dokument planifikimi"}]
["B",{"$f":"'Q&A_Alb'!G6","v":"Një plan menaxhimi (ose dokument i ngjashëm) është duke u përgatitur ose është përgatitur por nuk po zbatohet"}]
["C",{"$f":"'Q&A_Alb'!G7","v":"Ekziston një plan menaxhimi (ose dokument I ngjashëm), por ai po zbatohet vetëm pjesërisht për shkak të kufizimeve të financimit ose problemeve të tjera"}]
["D",{"$f":"'Q&A_Alb'!G8","v":"Ekziston dhe po zbatohet një plan menaxhimi (ose dokument I ngjashëm)"}]
[]
[null,{"$f":"'Common text'!A40","v":"Dëshmitë dhe arsyetimi: Cilat janë arsyet e zgjedhjes së kësaj përgjigje?"}]
[]
[]
[]
[null,{"$f":"'Common text'!A41","v":"Veprimet për të përmirësuar menaxhimin: A ka ndonjë gjë që mund të bëni për të përmirësuar menaxhimin?"}]
[]
[]
[]
[null,{"$f":"'Common text'!A42","v":"Burimet e informacionit: Çfarë informacioni (provash) keni përdorur për t'iu përgjigjur kësaj pyetjeje? (Ju lutemi, shënoni kutitë përkatëse dhe shtoni detaje në kolonën më poshtë)"}]
[]
[{"$f":"'Common text'!A50","v":"Vrojtimi dhe Monitorimi"}]
[{"$f":"'Common text'!A51","v":"Plani i menaxhimit apo dokumente të tjera zyrtare"}]
[{"$f":"'Common text'!A52","v":"Përvoja e stafit"}]
[{"$f":"'Common text'!A53","v":"Mendime të ekspertit të jashtëm"}]
[{"$f":"'Common text'!A54","v":"Opinioni i komunitetit /njohuri tradicionale"}]
[{"$f":"'Common text'!A55","v":"Të tjera (specifiko)"}]

{"sheet":"7A.","index":20,"n_rows":26,"n_cols":4,"rows_kept":26,"cut":false,"hidden":false,"merged":[]}
[null,{"$f":"'Q&A_Alb'!H2","v":"Pikat shtesë për pyetjen  7. Plani i menaxhimit"},null,{"$f":"'Common text'!A23","v":"Kthehu tek METT4 Pyetjet dhe Rezultatet"}]
[null,{"$f":"'Common text'!A34","v":"Kjo pyetje nuk është e rëndësishme për këtë ZM.            Nëse zgjidhni këtë, ju lutemi shpjegoni më poshtë pse kjo nuk është e rëndësishme"}]
[{"$f":"'Common text'!A37","v":"Shpjegimi"},null,null,{"$f":"'Common text'!A24","v":"Shko tek Treguesi pasardhës"}]
[]
[{"$f":"'Common text'!A38","v":"Ndihmë për t'iu përgjigjur kësaj pyetjeje:"},{"$f":"'Q&A_Alb'!H4","v":"Këto pyetje shtesë shkojnë përtej vlerësimit bazë dhe identifikojnë nëse praktikat e mira ekzistojnë në lidhje me procesin e hartiimi të planit të menaxhimit. Të gjitha këto pyetje shtesë duhet të merren parasysh gjatë vlerësimit. Nëse deklarata e dhënë si alternativë përputhet me situatën në zonën tuaj, shënoni një shenj kutinë përkatëse. Programi do të gjenerojë automatikisht rezultatet shtesë."}]
[null,"Planifikimi i menaxhimit",0]
[null,{"$f":"'Q&A_Alb'!H5","v":"7a) Procesi i hartimit të planit të menaxhimit lejon mundësi adekuate dhe të barabarta për palët e interesuara për të ndikuar në menaxhim"}]
[null,{"$f":"'Q&A_Alb'!H6","v":"7b) Ekziston një plan dhe proces i përcaktuar për rishikimin dhe përditësimin periodik të planit të menaxhimit"}]
[null,{"$f":"'Q&A_Alb'!H7","v":"7c) Rezultatet e monitorimit, kërkimit dhe vlerësimit përfshihen në mënyrë të vazhdueshme në hartimin  e planit të menaxhimit"}]
[]
[null,{"$f":"'Common text'!A40","v":"Dëshmitë dhe arsyetimi: Cilat janë arsyet e zgjedhjes së kësaj përgjigje?"}]
[]
[]
[]
[null,{"$f":"'Common text'!A41","v":"Veprimet për të përmirësuar menaxhimin: A ka ndonjë gjë që mund të bëni për të përmirësuar menaxhimin?"}]
[]
[]
[]
[null,{"$f":"'Common text'!A42","v":"Burimet e informacionit: Çfarë informacioni (provash) keni përdorur për t'iu përgjigjur kësaj pyetjeje? (Ju lutemi, shënoni kutitë përkatëse dhe shtoni detaje në kolonën më poshtë)"}]
[]
[{"$f":"'Common text'!A50","v":"Vrojtimi dhe Monitorimi"}]
[{"$f":"'Common text'!A51","v":"Plani i menaxhimit apo dokumente të tjera zyrtare"}]
[{"$f":"'Common text'!A52","v":"Përvoja e stafit"}]
[{"$f":"'Common text'!A53","v":"Mendime të ekspertit të jashtëm"}]
[{"$f":"'Common text'!A54","v":"Opinioni i komunitetit /njohuri tradicionale"}]
[{"$f":"'Common text'!A55","v":"Të tjera (specifiko)"}]

{"sheet":"8.","index":21,"n_rows":28,"n_cols":4,"rows_kept":28,"cut":false,"hidden":false,"merged":[]}
[null,{"$f":"'Q&A_Alb'!I2","v":"8. Planet e punës"},null,{"$f":"'Common text'!A23","v":"Kthehu tek METT4 Pyetjet dhe Rezultatet"}]
[null,{"$f":"'Common text'!A34","v":"Kjo pyetje nuk është e rëndësishme për këtë ZM.            Nëse zgjidhni këtë, ju lutemi shpjegoni më poshtë pse kjo nuk është e rëndësishme"}]
[{"$f":"'Common text'!A37","v":"Shpjegimi"},null,null,{"$f":"'Common text'!A24","v":"Shko tek Treguesi pasardhës"}]
[]
[null,{"$f":"'Q&A_Alb'!I3","v":"A ekziston një plan pune i vazhdueshëm (me afate të paracaktuara, p.sh., vjetor) dhe a po zbatohet?"}]
[{"$f":"'Common text'!A38","v":"Ndihmë për t'iu përgjigjur kësaj pyetjeje:"},{"$f":"'Q&A_Alb'!I4","v":"Kjo zakonisht i referohet planit vjetor operacional, që synon zbatimin e detajuar të planit të menaxhimit. Ju mund t'i përgjigjeni kësaj pyetjeje edhe nëse nuk keni një plan menaxhimi. Edhe në këtë rast, plani i punës mund të jetë formal (i shkruar dhe miratuar) ose joformal, por duhet të njihet dhe të miratohet nga të gjitha palët përkatëse."},0]
[null,{"$f":"'Common text'!A39","v":"Përgjigjet e mundshme"}]
["A     ",{"$f":"'Q&A_Alb'!I5","v":"Nuk ekziston një plan pune i vazhdueshëm "}]
["B",{"$f":"'Q&A_Alb'!I6","v":"Ekziston një plan pune i vazhdueshëm, por pak nga aktivitetet janë zbatuar"}]
["C",{"$f":"'Q&A_Alb'!I7","v":"Ekziston një plan pune i vazhdueshëm dhe janë realizuar shumë aktivitete"}]
["D",{"$f":"'Q&A_Alb'!I8","v":"Ekziston një plan pune  i vazhdueshëm dhe të gjitha aktivitetet janë realizuar"}]
[]
[null,{"$f":"'Common text'!A40","v":"Dëshmitë dhe arsyetimi: Cilat janë arsyet e zgjedhjes së kësaj përgjigje?"}]
[]
[]
[]
[null,{"$f":"'Common text'!A41","v":"Veprimet për të përmirësuar menaxhimin: A ka ndonjë gjë që mund të bëni për të përmirësuar menaxhimin?"}]
[]
[]
[]
[null,{"$f":"'Common text'!A42","v":"Burimet e informacionit: Çfarë informacioni (provash) keni përdorur për t'iu përgjigjur kësaj pyetjeje? (Ju lutemi, shënoni kutitë përkatëse dhe shtoni detaje në kolonën më poshtë)"}]
[]
[{"$f":"'Common text'!A50","v":"Vrojtimi dhe Monitorimi"}]
[{"$f":"'Common text'!A51","v":"Plani i menaxhimit apo dokumente të tjera zyrtare"}]
[{"$f":"'Common text'!A52","v":"Përvoja e stafit"}]
[{"$f":"'Common text'!A53","v":"Mendime të ekspertit të jashtëm"}]
[{"$f":"'Common text'!A54","v":"Opinioni i komunitetit /njohuri tradicionale"}]
[{"$f":"'Common text'!A55","v":"Të tjera (specifiko)"}]

{"sheet":"9.","index":22,"n_rows":28,"n_cols":4,"rows_kept":28,"cut":false,"hidden":false,"merged":[]}
[null,{"$f":"'Q&A_Alb'!J2","v":"9. Inventari i burimeve"},null,{"$f":"'Common text'!A23","v":"Kthehu tek METT4 Pyetjet dhe Rezultatet"}]
[null,{"$f":"'Common text'!A34","v":"Kjo pyetje nuk është e rëndësishme për këtë ZM.            Nëse zgjidhni këtë, ju lutemi shpjegoni më poshtë pse kjo nuk është e rëndësishme"}]
[{"$f":"'Common text'!A37","v":"Shpjegimi"},null,null,{"$f":"'Common text'!A24","v":"Shko tek Treguesi pasardhës"}]
[]
[null,{"$f":"'Q&A_Alb'!J3","v":"A keni informacion të mjaftueshëm për të menaxhuar zonën?"}]
[{"$f":"'Common text'!A38","v":"Ndihmë për t'iu përgjigjur kësaj pyetjeje:"},{"$f":"'Q&A_Alb'!J4","v":"Në këtë rast \"burimet\" i referohen kryesisht vlerave biologjike dhe kulturore të zonës. A ka pasur studime të fundit mbi llojet bimore dhe shtazore? A e dinë menaxherët se ku ndodhen vende të rëndësishme kulturore ose vende të shenjta natyrore në mënyrë që këto të mbrohen? Në Veprimet për përmirësimin e menaxhimit është e rëndësishme të identifikohen boshllëqet e njohurive dhe sugjerimet për studimet e ardhshme."},0]
[null,{"$f":"'Common text'!A39","v":"Përgjigjet e mundshme"}]
["A     ",{"$f":"'Q&A_Alb'!J5","v":"Ka pak ose aspak informacion në dispozicion për habitatet kritike, llojet, proceset ekologjike dhe vlerat kulturore të zonës së mbrojtur."}]
["B",{"$f":"'Q&A_Alb'!J6","v":"Informacioni mbi habitatet kritike, llojet, proceset ekologjike dhe vlerat kulturore të zonës së mbrojtur nuk është i mjaftueshëm për të mbështetur planifikimin dhe vendimmarrjen."}]
["C",{"$f":"'Q&A_Alb'!J7","v":"Informacioni mbi habitatet kritike, llojet, proceset ekologjike dhe vlerat kulturore të zonës së mbrojtur është i mjaftueshëm për shumicën e fushave kyçe të planifikimit dhe vendimmarrjes."}]
["D",{"$f":"'Q&A_Alb'!J8","v":"Informacioni mbi habitatet kritike, llojet, proceset ekologjike dhe vlerat kulturore të zonës së mbrojtur është i mjaftueshëm për të mbështetur të gjitha fushat e planifikimit dhe vendimmarrjes."}]
[]
[null,{"$f":"'Common text'!A40","v":"Dëshmitë dhe arsyetimi: Cilat janë arsyet e zgjedhjes së kësaj përgjigje?"}]
[]
[]
[]
[null,{"$f":"'Common text'!A41","v":"Veprimet për të përmirësuar menaxhimin: A ka ndonjë gjë që mund të bëni për të përmirësuar menaxhimin?"}]
[]
[]
[]
[null,{"$f":"'Common text'!A42","v":"Burimet e informacionit: Çfarë informacioni (provash) keni përdorur për t'iu përgjigjur kësaj pyetjeje? (Ju lutemi, shënoni kutitë përkatëse dhe shtoni detaje në kolonën më poshtë)"}]
[]
[{"$f":"'Common text'!A50","v":"Vrojtimi dhe Monitorimi"}]
[{"$f":"'Common text'!A51","v":"Plani i menaxhimit apo dokumente të tjera zyrtare"}]
[{"$f":"'Common text'!A52","v":"Përvoja e stafit"}]
[{"$f":"'Common text'!A53","v":"Mendime të ekspertit të jashtëm"}]
[{"$f":"'Common text'!A54","v":"Opinioni i komunitetit /njohuri tradicionale"}]
[{"$f":"'Common text'!A55","v":"Të tjera (specifiko)"}]

{"sheet":"10.","index":23,"n_rows":28,"n_cols":4,"rows_kept":28,"cut":false,"hidden":false,"merged":[]}
[null,{"$f":"'Q&A_Alb'!K2","v":"10. Numri i stafit"},null,{"$f":"'Common text'!A23","v":"Kthehu tek METT4 Pyetjet dhe Rezultatet"}]
[null,{"$f":"'Common text'!A34","v":"Kjo pyetje nuk është e rëndësishme për këtë ZM.            Nëse zgjidhni këtë, ju lutemi shpjegoni më poshtë pse kjo nuk është e rëndësishme"}]
[{"$f":"'Common text'!A37","v":"Shpjegimi"},null,null,{"$f":"'Common text'!A24","v":"Shko tek Treguesi pasardhës"}]
[]
[null,{"$f":"'Q&A_Alb'!K3","v":"A ka njerëz mjaftueshëm për të menaxhuar zonën e mbrojtur?"}]
[{"$f":"'Common text'!A38","v":"Ndihmë për t'iu përgjigjur kësaj pyetjeje:"},{"$f":"'Q&A_Alb'!K4","v":"Ky vlerësim duhet të trajtojë nëse zona e mbrojtur ka staf të mjaftueshëm për të menaxhuar në mënyrë efektive zonën; ai duhet të marrë në konsideratë të gjithë stafin që punon edhe nëse mbështetet nga qeveria (p.sh. Ushtria), OJQ-të ose burime të tjera financimi. Përgjigja e kësaj pyetjeje mund të jetë pak më e vështirë për zonat e mbrojtura privatisht ose zonat e menaxhuara nga komuniteti; këtu merrni parasysh nëse ka njerëz të mjaftueshëm me kapacitet për të menaxhuar dhe jo për \"punësim\" në  kuptimin tradicional të fjalës.  "},0]
[null,{"$f":"'Common text'!A39","v":"Përgjigjet e mundshme"}]
["A     ",{"$f":"'Q&A_Alb'!K5","v":"Nuk ka njerëz që menaxhojnë zonën e mbrojtur, por  po kërkohen të tillë"}]
["B",{"$f":"'Q&A_Alb'!K6","v":"Numri i njerëzve që menaxhojnë zonën e mbrojtur është i pamjaftueshëm për të përmbushur nevojat e menaxhimit"}]
["C",{"$f":"'Q&A_Alb'!K7","v":"Numri i njerëzve që menaxhojnë zonën e mbrojtur është nën atë që kërkohet për të përmbushur plotësisht nevojat e menaxhimit"}]
["D",{"$f":"'Q&A_Alb'!K8","v":"Numri i njerëzve që menaxhojnë zonën e mbrojtur është i mjaftueshëm për të përmbushur plotësisht nevojat e menaxhimit"}]
[]
[null,{"$f":"'Common text'!A40","v":"Dëshmitë dhe arsyetimi: Cilat janë arsyet e zgjedhjes së kësaj përgjigje?"}]
[]
[]
[]
[null,{"$f":"'Common text'!A41","v":"Veprimet për të përmirësuar menaxhimin: A ka ndonjë gjë që mund të bëni për të përmirësuar menaxhimin?"}]
[]
[]
[]
[null,{"$f":"'Common text'!A42","v":"Burimet e informacionit: Çfarë informacioni (provash) keni përdorur për t'iu përgjigjur kësaj pyetjeje? (Ju lutemi, shënoni kutitë përkatëse dhe shtoni detaje në kolonën më poshtë)"}]
[]
[{"$f":"'Common text'!A50","v":"Vrojtimi dhe Monitorimi"}]
[{"$f":"'Common text'!A51","v":"Plani i menaxhimit apo dokumente të tjera zyrtare"}]
[{"$f":"'Common text'!A52","v":"Përvoja e stafit"}]
[{"$f":"'Common text'!A53","v":"Mendime të ekspertit të jashtëm"}]
[{"$f":"'Common text'!A54","v":"Opinioni i komunitetit /njohuri tradicionale"}]
[{"$f":"'Common text'!A55","v":"Të tjera (specifiko)"}]

{"sheet":"11.","index":24,"n_rows":28,"n_cols":4,"rows_kept":28,"cut":false,"hidden":false,"merged":[]}
[null,{"$f":"'Q&A_Alb'!L2","v":"11. Njohuritë dhe aftësitë e stafit"},null,{"$f":"'Common text'!A23","v":"Kthehu tek METT4 Pyetjet dhe Rezultatet"}]
[null,{"$f":"'Common text'!A34","v":"Kjo pyetje nuk është e rëndësishme për këtë ZM.            Nëse zgjidhni këtë, ju lutemi shpjegoni më poshtë pse kjo nuk është e rëndësishme"}]
[{"$f":"'Common text'!A37","v":"Shpjegimi"},null,null,{"$f":"'Common text'!A24","v":"Shko tek Treguesi pasardhës"}]
[]
[null,{"$f":"'Q&A_Alb'!L3","v":"A kanë njerëzit e përfshirë në menaxhimin e zonës së mbrojtur njohuritë dhe aftësitë e nevojshme?"}]
[{"$f":"'Common text'!A38","v":"Ndihmë për t'iu përgjigjur kësaj pyetjeje:"},{"$f":"'Q&A_Alb'!L4","v":"Kjo pyetje trajton nëse ekzistojnë aftësitë e nevojshme për të menaxhuar në mënyrë efektive zonën. Përgjigjet mund të identifikojnë se ku nevojiten programe trajnimi, të cilat mund të shënohen në Veprimet për të përmirësuar fushën e menaxhimit."},0]
[null,{"$f":"'Common text'!A39","v":"Përgjigjet e mundshme"}]
["A     ",{"$f":"'Q&A_Alb'!L5","v":"Njohuritë dhe aftësitë e nevojshme për të menaxhuar zonën e mbrojtur janë krejtësisht të pamjaftueshme"}]
["B",{"$f":"'Q&A_Alb'!L6","v":"Njohuritë dhe aftësitë janë të ulëta në krahasim me nevojat e zonës së mbrojtur"}]
["C",{"$f":"'Q&A_Alb'!L7","v":"Njohuritë dhe aftësitë janë adekuate, por mund të përmirësohen më tej për të përmbushur plotësisht nevojat e menaxhimit"}]
["D",{"$f":"'Q&A_Alb'!L8","v":"Njohuritë dhe aftësitë janë në përputhje me nevojat e menaxhimit të zonës së mbrojtur"}]
[]
[null,{"$f":"'Common text'!A40","v":"Dëshmitë dhe arsyetimi: Cilat janë arsyet e zgjedhjes së kësaj përgjigje?"}]
[]
[]
[]
[null,{"$f":"'Common text'!A41","v":"Veprimet për të përmirësuar menaxhimin: A ka ndonjë gjë që mund të bëni për të përmirësuar menaxhimin?"}]
[]
[]
[]
[null,{"$f":"'Common text'!A42","v":"Burimet e informacionit: Çfarë informacioni (provash) keni përdorur për t'iu përgjigjur kësaj pyetjeje? (Ju lutemi, shënoni kutitë përkatëse dhe shtoni detaje në kolonën më poshtë)"}]
[]
[{"$f":"'Common text'!A50","v":"Vrojtimi dhe Monitorimi"}]
[{"$f":"'Common text'!A51","v":"Plani i menaxhimit apo dokumente të tjera zyrtare"}]
[{"$f":"'Common text'!A52","v":"Përvoja e stafit"}]
[{"$f":"'Common text'!A53","v":"Mendime të ekspertit të jashtëm"}]
[{"$f":"'Common text'!A54","v":"Opinioni i komunitetit /njohuri tradicionale"}]
[{"$f":"'Common text'!A55","v":"Të tjera (specifiko)"}]

{"sheet":"12.","index":25,"n_rows":28,"n_cols":4,"rows_kept":28,"cut":false,"hidden":false,"merged":[]}
[null,{"$f":"'Q&A_Alb'!M2","v":"12. Buxheti aktual"},null,{"$f":"'Common text'!A23","v":"Kthehu tek METT4 Pyetjet dhe Rezultatet"}]
[null,{"$f":"'Common text'!A34","v":"Kjo pyetje nuk është e rëndësishme për këtë ZM.            Nëse zgjidhni këtë, ju lutemi shpjegoni më poshtë pse kjo nuk është e rëndësishme"}]
[{"$f":"'Common text'!A37","v":"Shpjegimi"},null,null,{"$f":"'Common text'!A24","v":"Shko tek Treguesi pasardhës"}]
[]
[null,{"$f":"'Q&A_Alb'!M3","v":"A është buxheti aktual i mjaftueshëm?"}]
[{"$f":"'Common text'!A38","v":"Ndihmë për t'iu përgjigjur kësaj pyetjeje:"},{"$f":"'Q&A_Alb'!M4","v":"Kjo pyetje lidhet me shumën totale të buxhetit dhe jo me sigurinë buxhetore, të trajtuar në pyetjen vijuese (13). Është e rëndësishme t'i përgjigjemi kësaj pyetjeje për sa i përket buxhetit të nevojshëm për të përmbushur planin e menaxhimit dhe objektivat e zonës, jo vetëm për përmbushjen e planit vjetor të punës. Vlerësimi duhet të marrë parasysh të gjithë buxhetin e disponueshëm për vitin në fjalë kohë, duke përfshirë fondet e projekteve dhe mbështetjen e donatorëve."},0]
[null,{"$f":"'Common text'!A39","v":"Përgjigjet e mundshme"}]
["A     ",{"$f":"'Q&A_Alb'!M5","v":"Nuk ka buxhet të disponueshëm për menaxhim"}]
["B",{"$f":"'Q&A_Alb'!M6","v":"Buxheti në dispozicion është i pamjaftueshëm për menaxhimin bazë"}]
["C",{"$f":"'Q&A_Alb'!M7","v":"Buxheti në dispozicion është i pranueshëm, por mund të rritet për të përmbushur plotësisht nevojat e menaxhimit"}]
["D",{"$f":"'Q&A_Alb'!M8","v":"Buxheti në dispozicion është i mjaftueshëm dhe plotëson nevojat e plota të menaxhimit të zonës së mbrojtur"}]
[]
[null,{"$f":"'Common text'!A40","v":"Dëshmitë dhe arsyetimi: Cilat janë arsyet e zgjedhjes së kësaj përgjigje?"}]
[]
[]
[]
[null,{"$f":"'Common text'!A41","v":"Veprimet për të përmirësuar menaxhimin: A ka ndonjë gjë që mund të bëni për të përmirësuar menaxhimin?"}]
[]
[]
[]
[null,{"$f":"'Common text'!A42","v":"Burimet e informacionit: Çfarë informacioni (provash) keni përdorur për t'iu përgjigjur kësaj pyetjeje? (Ju lutemi, shënoni kutitë përkatëse dhe shtoni detaje në kolonën më poshtë)"}]
[]
[{"$f":"'Common text'!A50","v":"Vrojtimi dhe Monitorimi"}]
[{"$f":"'Common text'!A51","v":"Plani i menaxhimit apo dokumente të tjera zyrtare"}]
[{"$f":"'Common text'!A52","v":"Përvoja e stafit"}]
[{"$f":"'Common text'!A53","v":"Mendime të ekspertit të jashtëm"}]
[{"$f":"'Common text'!A54","v":"Opinioni i komunitetit /njohuri tradicionale"}]
[{"$f":"'Common text'!A55","v":"Të tjera (specifiko)"}]

{"sheet":"13.","index":26,"n_rows":28,"n_cols":4,"rows_kept":28,"cut":false,"hidden":false,"merged":[]}
[null,{"$f":"'Q&A_Alb'!N2","v":"13. Siguria buxhetore"},null,{"$f":"'Common text'!A23","v":"Kthehu tek METT4 Pyetjet dhe Rezultatet"}]
[null,{"$f":"'Common text'!A34","v":"Kjo pyetje nuk është e rëndësishme për këtë ZM.            Nëse zgjidhni këtë, ju lutemi shpjegoni më poshtë pse kjo nuk është e rëndësishme"}]
[{"$f":"'Common text'!A37","v":"Shpjegimi"},null,null,{"$f":"'Common text'!A24","v":"Shko tek Treguesi pasardhës"}]
[]
[null,{"$f":"'Q&A_Alb'!N3","v":"A është buxheti i sigurt?"}]
[{"$f":"'Common text'!A38","v":"Ndihmë për t'iu përgjigjur kësaj pyetjeje:"},{"$f":"'Q&A_Alb'!N4","v":"Pyetja kryesore këtu është nëse buxheti mbështetet në financimet e herëpashershme të projekteve ose nëse ka një shans të arsyeshëm që ai të qëndorjë i pandryshuar me kalimin e kohës - për shembull, sepse është një pjesë thelbësore e  buxhetit qeveritar, ose mbahet përmes një organizatë private, komunitet ose ka kosto të ulët dhe mbështetje të fortë vullnetare."},0]
[null,{"$f":"'Common text'!A39","v":"Përgjigjet e mundshme"}]
["A     ",{"$f":"'Q&A_Alb'!N5","v":"Buxheti për zonën e mbrojtur nuk është i sigurt dhe menaxhimi është tërësisht i varur nga financimi i jashtëm ose burime të tjera"}]
["B",{"$f":"'Q&A_Alb'!N6","v":"Një pjesë e vogël e buxhetit është e sigurt dhe zona e mbrojtur nuk mund të plotësojë nevojat e saj të menaxhimit pa financim nga jashtë"}]
["C",{"$f":"'Q&A_Alb'!N7","v":"Buxheti bazë është mjaft i sigurt për nevojat e menaxhimit të zonës së mbrojtur, por shumë risi dhe iniciativa varen nga financimi i jashtëm"}]
["D",{"$f":"'Q&A_Alb'!N8","v":"Buxhet për zonën e mbrojtur dhe nevojat e menaxhimit të saj është i sigurt"}]
[]
[null,{"$f":"'Common text'!A40","v":"Dëshmitë dhe arsyetimi: Cilat janë arsyet e zgjedhjes së kësaj përgjigje?"}]
[]
[]
[]
[null,{"$f":"'Common text'!A41","v":"Veprimet për të përmirësuar menaxhimin: A ka ndonjë gjë që mund të bëni për të përmirësuar menaxhimin?"}]
[]
[]
[]
[null,{"$f":"'Common text'!A42","v":"Burimet e informacionit: Çfarë informacioni (provash) keni përdorur për t'iu përgjigjur kësaj pyetjeje? (Ju lutemi, shënoni kutitë përkatëse dhe shtoni detaje në kolonën më poshtë)"}]
[]
[{"$f":"'Common text'!A50","v":"Vrojtimi dhe Monitorimi"}]
[{"$f":"'Common text'!A51","v":"Plani i menaxhimit apo dokumente të tjera zyrtare"}]
[{"$f":"'Common text'!A52","v":"Përvoja e stafit"}]
[{"$f":"'Common text'!A53","v":"Mendime të ekspertit të jashtëm"}]
[{"$f":"'Common text'!A54","v":"Opinioni i komunitetit /njohuri tradicionale"}]
[{"$f":"'Common text'!A55","v":"Të tjera (specifiko)"}]

{"sheet":"14.","index":27,"n_rows":28,"n_cols":4,"rows_kept":28,"cut":false,"hidden":false,"merged":[]}
[null,{"$f":"'Q&A_Alb'!O2","v":"14. Menaxhimi i buxhetit"},null,{"$f":"'Common text'!A23","v":"Kthehu tek METT4 Pyetjet dhe Rezultatet"}]
[null,{"$f":"'Common text'!A34","v":"Kjo pyetje nuk është e rëndësishme për këtë ZM.            Nëse zgjidhni këtë, ju lutemi shpjegoni më poshtë pse kjo nuk është e rëndësishme"}]
[{"$f":"'Common text'!A37","v":"Shpjegimi"},null,null,{"$f":"'Common text'!A24","v":"Shko tek Treguesi pasardhës"}]
[]
[null,{"$f":"'Q&A_Alb'!O3","v":"A menaxhohet buxheti për të siguruar administrim efektiv të zonës së mbrojtur?"}]
[{"$f":"'Common text'!A38","v":"Ndihmë për t'iu përgjigjur kësaj pyetjeje:"},{"$f":"'Q&A_Alb'!O4","v":"Kjo pyetje vlerëson nëse shpenzimet buxhetore planifikohen dhe monitorohen siç duhet gjatë vitit apo ka mbi ose nën-shpenzime? Mendoni nëse llogaritë auditohen dhe publikohen çdo vit?"},0]
[null,{"$f":"'Common text'!A39","v":"Përgjigjet e mundshme"}]
["A     ",{"$f":"'Q&A_Alb'!O5","v":"Menaxhimi i buxhetit është shumë i dobët dhe dëmton ndjeshëm menaxhimin"}]
["B",{"$f":"'Q&A_Alb'!O6","v":"Menaxhimi i buxhetit është i dobët dhe e pengon menaxhimin"}]
["C",{"$f":"'Q&A_Alb'!O7","v":"Menaxhimi i buxhetit është adekuat, por mund të përmirësohet"}]
["D",{"$f":"'Q&A_Alb'!O8","v":"Menaxhimi i buxhetit është i shkëlqyer"}]
[]
[null,{"$f":"'Common text'!A40","v":"Dëshmitë dhe arsyetimi: Cilat janë arsyet e zgjedhjes së kësaj përgjigje?"}]
[]
[]
[]
[null,{"$f":"'Common text'!A41","v":"Veprimet për të përmirësuar menaxhimin: A ka ndonjë gjë që mund të bëni për të përmirësuar menaxhimin?"}]
[]
[]
[]
[null,{"$f":"'Common text'!A42","v":"Burimet e informacionit: Çfarë informacioni (provash) keni përdorur për t'iu përgjigjur kësaj pyetjeje? (Ju lutemi, shënoni kutitë përkatëse dhe shtoni detaje në kolonën më poshtë)"}]
[]
[{"$f":"'Common text'!A50","v":"Vrojtimi dhe Monitorimi"}]
[{"$f":"'Common text'!A51","v":"Plani i menaxhimit apo dokumente të tjera zyrtare"}]
[{"$f":"'Common text'!A52","v":"Përvoja e stafit"}]
[{"$f":"'Common text'!A53","v":"Mendime të ekspertit të jashtëm"}]
[{"$f":"'Common text'!A54","v":"Opinioni i komunitetit /njohuri tradicionale"}]
[{"$f":"'Common text'!A55","v":"Të tjera (specifiko)"}]

{"sheet":"15.","index":28,"n_rows":28,"n_cols":4,"rows_kept":28,"cut":false,"hidden":false,"merged":[]}
[null,{"$f":"'Q&A_Alb'!P2","v":"15. Pajisjet dhe shërbimet ndihmëse"},null,{"$f":"'Common text'!A23","v":"Kthehu tek METT4 Pyetjet dhe Rezultatet"}]
[null,{"$f":"'Common text'!A34","v":"Kjo pyetje nuk është e rëndësishme për këtë ZM.            Nëse zgjidhni këtë, ju lutemi shpjegoni më poshtë pse kjo nuk është e rëndësishme"}]
[{"$f":"'Common text'!A37","v":"Shpjegimi"},null,null,{"$f":"'Common text'!A24","v":"Shko tek Treguesi pasardhës"}]
[]
[null,{"$f":"'Q&A_Alb'!P3","v":"A janë pajisjet dhe shërbimet ndihmëse të mjaftueshme për nevojat e menaxhimit?"}]
[{"$f":"'Common text'!A38","v":"Ndihmë për t'iu përgjigjur kësaj pyetjeje:"},{"$f":"'Q&A_Alb'!P4","v":"Kjo mund të përfshijë pajisje të tilla si automjetet, sistemet e komunikimit, veglat e punës, uniformat dhe materialet ndihmuese si karburanti. Shërbimet mund të jenë ndërtesa dhe infrastruktura të tjera të rëndësishme që nevojiten për të menaxhuar zonën e mbrojtur, si poste roje, zyra etj. Vini re se objektet e vizitorëve trajtohen në mënyrë specifike në pyetjen 29."}]
[null,{"$f":"'Common text'!A39","v":"Përgjigjet e mundshme"}]
["A     ",{"$f":"'Q&A_Alb'!P5","v":"Ka pak ose aspak pajisje dhe shërbime për nevojat e menaxhimit"}]
["B",{"$f":"'Q&A_Alb'!P6","v":"Ka disa pajisje dhe shërbime, por këto janë të pamjaftueshme për shumicën e nevojave të menaxhimit"}]
["C",{"$f":"'Q&A_Alb'!P7","v":"Ka pajisje dhe shërbime, por ende ka disa boshllëqe që e kufizojnë menaxhimin"}]
["D",{"$f":"'Q&A_Alb'!P8","v":"Ka pajisje dhe shërbime të përshtatshme"}]
[]
[null,{"$f":"'Common text'!A40","v":"Dëshmitë dhe arsyetimi: Cilat janë arsyet e zgjedhjes së kësaj përgjigje?"}]
[]
[]
[]
[null,{"$f":"'Common text'!A41","v":"Veprimet për të përmirësuar menaxhimin: A ka ndonjë gjë që mund të bëni për të përmirësuar menaxhimin?"}]
[]
[]
[]
[null,{"$f":"'Common text'!A42","v":"Burimet e informacionit: Çfarë informacioni (provash) keni përdorur për t'iu përgjigjur kësaj pyetjeje? (Ju lutemi, shënoni kutitë përkatëse dhe shtoni detaje në kolonën më poshtë)"}]
[]
[{"$f":"'Common text'!A50","v":"Vrojtimi dhe Monitorimi"}]
[{"$f":"'Common text'!A51","v":"Plani i menaxhimit apo dokumente të tjera zyrtare"}]
[{"$f":"'Common text'!A52","v":"Përvoja e stafit"}]
[{"$f":"'Common text'!A53","v":"Mendime të ekspertit të jashtëm"}]
[{"$f":"'Common text'!A54","v":"Opinioni i komunitetit /njohuri tradicionale"}]
[{"$f":"'Common text'!A55","v":"Të tjera (specifiko)"}]

{"sheet":"16.","index":29,"n_rows":28,"n_cols":4,"rows_kept":28,"cut":false,"hidden":false,"merged":[]}
[null,{"$f":"'Q&A_Alb'!Q2","v":"16. Zbatimi i ligjit"},null,{"$f":"'Common text'!A23","v":"Kthehu tek METT4 Pyetjet dhe Rezultatet"}]
[null,{"$f":"'Common text'!A34","v":"Kjo pyetje nuk është e rëndësishme për këtë ZM.            Nëse zgjidhni këtë, ju lutemi shpjegoni më poshtë pse kjo nuk është e rëndësishme"}]
[{"$f":"'Common text'!A37","v":"Shpjegimi"},null,null,{"$f":"'Common text'!A24","v":"Shko tek Treguesi pasardhës"}]
[]
[null,{"$f":"'Q&A_Alb'!Q3","v":"A mundet personeli (d.m.th. ata që janë përgjegjës për menaxhimin e zonës) të zbatojnë legjislacionin dhe rregulloret e zonës së mbrojtur?"}]
[{"$f":"'Common text'!A38","v":"Ndihmë për t'iu përgjigjur kësaj pyetjeje:"},{"$f":"'Q&A_Alb'!Q4","v":"Çështjet që duhen marrë parasysh përfshijnë kapacitetet individuale (trajnimin, aftësitë) dhe mjaftueshmërinë e pajisjeve dhe infrastrukturës (automjetet, rrugët për të hyrë në zona të largëta, etj.), si dhe një vlerësim nëse stafi është i njohur me ligjet, rregulloret dhe kërkesat e për ndjekjen e shkeljeve. “Stafi” lidhet si me ata të punësuar zyrtarisht ashtu edhe me ata që janë përgjegjës për menaxhimin në lloje të tjera të qeverisjes."}]
[null,{"$f":"'Common text'!A39","v":"Përgjigjet e mundshme"}]
["A     ",{"$f":"'Q&A_Alb'!Q5","v":"Stafi nuk ka kapacitetet/burimet/autoritetin efektiv për të zbatuar legjislacionin dhe rregulloret për zonat e mbrojtura"}]
["B",{"$f":"'Q&A_Alb'!Q6","v":"Ka mangësi të mëdha në kapacitetet/burimet/autoritetin e stafit për të zbatuar legjislacionin dhe rregulloret për zonat e mbrojtura"}]
["C",{"$f":"'Q&A_Alb'!Q7","v":"Stafi ka kapacitetet/burimet/ autoritetin e duhur për të zbatuar legjislacionin dhe rregulloret për zonat e mbrojtura, por disa mangësi mbeten"}]
["D",{"$f":"'Q&A_Alb'!Q8","v":"Stafi ka kapacitetet/burimet/autoritetin e plotë për të zbatuar legjislacionin dhe rregulloret për zonat e mbrojtura"}]
[]
[null,{"$f":"'Common text'!A40","v":"Dëshmitë dhe arsyetimi: Cilat janë arsyet e zgjedhjes së kësaj përgjigje?"}]
[]
[]
[]
[null,{"$f":"'Common text'!A41","v":"Veprimet për të përmirësuar menaxhimin: A ka ndonjë gjë që mund të bëni për të përmirësuar menaxhimin?"}]
[]
[]
[]
[null,{"$f":"'Common text'!A42","v":"Burimet e informacionit: Çfarë informacioni (provash) keni përdorur për t'iu përgjigjur kësaj pyetjeje? (Ju lutemi, shënoni kutitë përkatëse dhe shtoni detaje në kolonën më poshtë)"}]
[]
[{"$f":"'Common text'!A50","v":"Vrojtimi dhe Monitorimi"}]
[{"$f":"'Common text'!A51","v":"Plani i menaxhimit apo dokumente të tjera zyrtare"}]
[{"$f":"'Common text'!A52","v":"Përvoja e stafit"}]
[{"$f":"'Common text'!A53","v":"Mendime të ekspertit të jashtëm"}]
[{"$f":"'Common text'!A54","v":"Opinioni i komunitetit /njohuri tradicionale"}]
[{"$f":"'Common text'!A55","v":"Të tjera (specifiko)"}]

{"sheet":"17.","index":30,"n_rows":28,"n_cols":4,"rows_kept":28,"cut":false,"hidden":false,"merged":[]}
[null,{"$f":"'Q&A_Alb'!R2","v":"17. Sistemet e ruajtjes"},null,{"$f":"'Common text'!A23","v":"Kthehu tek METT4 Pyetjet dhe Rezultatet"}]
[null,{"$f":"'Common text'!A34","v":"Kjo pyetje nuk është e rëndësishme për këtë ZM.            Nëse zgjidhni këtë, ju lutemi shpjegoni më poshtë pse kjo nuk është e rëndësishme"}]
[{"$f":"'Common text'!A37","v":"Shpjegimi"},null,null,{"$f":"'Common text'!A24","v":"Shko tek Treguesi pasardhës"}]
[]
[null,{"$f":"'Q&A_Alb'!R3","v":"A ka sisteme (p.sh. patrulla, leje, vrojtim-sinjalizim, etj.) për të kontrolluar aksesin/përdorimin e burimeve në zonën e mbrojtur?"}]
[{"$f":"'Common text'!A38","v":"Ndihmë për t'iu përgjigjur kësaj pyetjeje:"},{"$f":"'Q&A_Alb'!R4","v":"Pyetja fokusohet veçanërisht në zbatimin e ligjit dhe është e rëndësishme në zonat ku ka presion nga gjuetia pa leje, zaptimi i territorit, minierat ilegale etj. Në zonat e mbrojtura pa presione të tilla, përcaktimi dhe menaxhimi mund të gjykohet \"në masën e duhur ose tërësisht efektiv\". Kjo pyetjenuk ka të bëjë me kapacitetin dhe burimet për zbatimin e ligjit (të adresuar tashmë në pyetjen 16) dhe më shumë synon të zbulojë nëse këto kapacitete po përdoren në mënyrë efektive."}]
[null,{"$f":"'Common text'!A39","v":"Përgjigjet e mundshme"}]
["A     ",{"$f":"'Q&A_Alb'!R5","v":"Sistemet e ruajtjes nuk ekzistojnë ose nuk janë efektive në kontrollin e aksesit/përdorimit të burimeve, por zona e mbrojtur po kërkon të vendosë sisteme të tilla"}]
["B",{"$f":"'Q&A_Alb'!R6","v":"Sistemet e ruajtjes janë vetëm pjesërisht efektive në kontrollin e aksesit/përdorimit të burimeve"}]
["C",{"$f":"'Q&A_Alb'!R7","v":"Sistemet e ruajtjes janë mesatarisht efektive në kontrollin e aksesit/përdorimit të burimeve"}]
["D",{"$f":"'Q&A_Alb'!R8","v":"Sistemet e ruajstjes janë kryesisht ose tërësisht efektive në kontrollin e aksesit/përdorimit të burimeve"}]
[]
[null,{"$f":"'Common text'!A40","v":"Dëshmitë dhe arsyetimi: Cilat janë arsyet e zgjedhjes së kësaj përgjigje?"}]
[]
[]
[]
[null,{"$f":"'Common text'!A41","v":"Veprimet për të përmirësuar menaxhimin: A ka ndonjë gjë që mund të bëni për të përmirësuar menaxhimin?"}]
[]
[]
[]
[null,{"$f":"'Common text'!A42","v":"Burimet e informacionit: Çfarë informacioni (provash) keni përdorur për t'iu përgjigjur kësaj pyetjeje? (Ju lutemi, shënoni kutitë përkatëse dhe shtoni detaje në kolonën më poshtë)"}]
[]
[{"$f":"'Common text'!A50","v":"Vrojtimi dhe Monitorimi"}]
[{"$f":"'Common text'!A51","v":"Plani i menaxhimit apo dokumente të tjera zyrtare"}]
[{"$f":"'Common text'!A52","v":"Përvoja e stafit"}]
[{"$f":"'Common text'!A53","v":"Mendime të ekspertit të jashtëm"}]
[{"$f":"'Common text'!A54","v":"Opinioni i komunitetit /njohuri tradicionale"}]
[{"$f":"'Common text'!A55","v":"Të tjera (specifiko)"}]

{"sheet":"18.","index":31,"n_rows":28,"n_cols":4,"rows_kept":28,"cut":false,"hidden":false,"merged":[]}
[null,{"$f":"'Q&A_Alb'!S2","v":"18. Siguria e personelit"},null,{"$f":"'Common text'!A23","v":"Kthehu tek METT4 Pyetjet dhe Rezultatet"}]
[null,{"$f":"'Common text'!A34","v":"Kjo pyetje nuk është e rëndësishme për këtë ZM.            Nëse zgjidhni këtë, ju lutemi shpjegoni më poshtë pse kjo nuk është e rëndësishme"}]
[{"$f":"'Common text'!A37","v":"Shpjegimi"},null,null,{"$f":"'Common text'!A24","v":"Shko tek Treguesi pasardhës"}]
[]
[null,{"$f":"'Q&A_Alb'!S3","v":"A ka personeli i zonës së mbrojtur kushte të sigurta pune dhe a është siguria në punë prioritet i menaxhimit?"}]
[{"$f":"'Common text'!A38","v":"Ndihmë për t'iu përgjigjur kësaj pyetjeje:"},{"$f":"'Q&A_Alb'!S4","v":"Kjo pyetje vlerëson nëse siguria e personelit merret parasysh në menaxhim, duke përfshirë zbutjen e kërcënimeve aty ku është e mundur (p.sh. pajisje adekuate, trajnime, etj.) dhe ofrimin e mbështetjes për të minimizuar ndikimet kur rrezikohet siguria e personelit (p.sh. dhe sigurimin e jetës etj)."}]
[null,{"$f":"'Common text'!A39","v":"Përgjigjet e mundshme"}]
["A     ",{"$f":"'Q&A_Alb'!S5","v":"Siguria e stafit komprometohet seriozisht për shkak të mungesës së masave efektive për të zbutur kërcënimet dhe për të siguruar një mjedis të sigurt pune"}]
["B",{"$f":"'Q&A_Alb'!S6","v":"Siguria e stafit është e dobët për shkak të mungesës së masave efektive për të zbutur kërcënimet dhe/ose mungesës së mbështetjes për të siguruar një mjedis të sigurt pune"}]
["C",{"$f":"'Q&A_Alb'!S7","v":"Siguria e stafit është një konsideratë e rëndësishme për menaxherët e zonave të mbrojtura dhe ndërmerren hapa për të zbutur kërcënimet dhe për të siguruar një mjedis të sigurt pune, por mund të bëhen përmirësime"}]
["D",{"$f":"'Q&A_Alb'!S8","v":"Siguria e stafit është një konsideratë e rëndësishme për menaxherët e zonave të mbrojtura dhe të gjithë hapat e arsyeshëm janë marrë për të zbutur kërcënimet dhe për të ofruar mbështetje për të minimizuar ndikimet"}]
[]
[null,{"$f":"'Common text'!A40","v":"Dëshmitë dhe arsyetimi: Cilat janë arsyet e zgjedhjes së kësaj përgjigje?"}]
[]
[]
[]
[null,{"$f":"'Common text'!A41","v":"Veprimet për të përmirësuar menaxhimin: A ka ndonjë gjë që mund të bëni për të përmirësuar menaxhimin?"}]
[]
[]
[]
[null,{"$f":"'Common text'!A42","v":"Burimet e informacionit: Çfarë informacioni (provash) keni përdorur për t'iu përgjigjur kësaj pyetjeje? (Ju lutemi, shënoni kutitë përkatëse dhe shtoni detaje në kolonën më poshtë)"}]
[]
[{"$f":"'Common text'!A50","v":"Vrojtimi dhe Monitorimi"}]
[{"$f":"'Common text'!A51","v":"Plani i menaxhimit apo dokumente të tjera zyrtare"}]
[{"$f":"'Common text'!A52","v":"Përvoja e stafit"}]
[{"$f":"'Common text'!A53","v":"Mendime të ekspertit të jashtëm"}]
[{"$f":"'Common text'!A54","v":"Opinioni i komunitetit /njohuri tradicionale"}]
[{"$f":"'Common text'!A55","v":"Të tjera (specifiko)"}]

{"sheet":"19.","index":32,"n_rows":28,"n_cols":4,"rows_kept":28,"cut":false,"hidden":false,"merged":[]}
[null,{"$f":"'Q&A_Alb'!T2","v":"19. Kërkimi shkencor"},null,{"$f":"'Common text'!A23","v":"Kthehu tek METT4 Pyetjet dhe Rezultatet"}]
[null,{"$f":"'Common text'!A34","v":"Kjo pyetje nuk është e rëndësishme për këtë ZM.            Nëse zgjidhni këtë, ju lutemi shpjegoni më poshtë pse kjo nuk është e rëndësishme"}]
[{"$f":"'Common text'!A37","v":"Shpjegimi"},null,null,{"$f":"'Common text'!A24","v":"Shko tek Treguesi pasardhës"}]
[]
[null,{"$f":"'Q&A_Alb'!T3","v":"A ekziston një program për kërkimin shkencor I orientuar nga nevojat e menaxhimit?"}]
[{"$f":"'Common text'!A38","v":"Ndihmë për t'iu përgjigjur kësaj pyetjeje:"},{"$f":"'Q&A_Alb'!T4","v":"Kjo përfshin si punën kërkimore të kryer nga vetë zona e mbrojtur, por më shpesh nga bashkëpunëtorët, vullnetarët, studentët, komuniteti (shkenca qytetare) dhe akademikët. Monitorimi dhe vlerësimi trajtohen në një pyetje tjetër (20); këtu theksi vihet në projekte të veçanta kërkimore që mund të ndihmojnë për të kuptuar dhe menaxhuar më mirë zonën. Prania e studiuesve në zonë nuk është e mjaftueshme për të shënuar rezultatin më të lartë, por vetëm nëse kërkimi është i integruar siç duhet me nevojat e menaxhimit të zonës së mbrojtur."}]
[null,{"$f":"'Common text'!A39","v":"Përgjigjet e mundshme"}]
["A     ",{"$f":"'Q&A_Alb'!T5","v":"Në zonën e mbrojtur nuk kryhet punë  studimore apo kërkimore shkencore"}]
["B",{"$f":"'Q&A_Alb'!T6","v":"Në zonën e mbrojtur kryhet një nivel i  vogël i punës studimore dhe kërkimore, por ajo nuk është e drejtuar drejt nevojave të menaxhimit të zonës së mbrojtur"}]
["C",{"$f":"'Q&A_Alb'!T7","v":"Në zonën e mbrojtur kryhet një punë e konsiderueshme studimore dhe kërkimore, por ajo është e drejtuar vetëm pjesërisht drejt nevojave të menaxhimit të zonës së mbrojtur"}]
["D",{"$f":"'Q&A_Alb'!T8","v":"Në zonën e mbrojtur ekziston një program gjithëpërfshirës, i integruar i punës studimore dhe kërkimore, i cili është i rëndësishëm për nevojat e menaxhimit"}]
[]
[null,{"$f":"'Common text'!A40","v":"Dëshmitë dhe arsyetimi: Cilat janë arsyet e zgjedhjes së kësaj përgjigje?"}]
[]
[]
[]
[null,{"$f":"'Common text'!A41","v":"Veprimet për të përmirësuar menaxhimin: A ka ndonjë gjë që mund të bëni për të përmirësuar menaxhimin?"}]
[]
[]
[]
[null,{"$f":"'Common text'!A42","v":"Burimet e informacionit: Çfarë informacioni (provash) keni përdorur për t'iu përgjigjur kësaj pyetjeje? (Ju lutemi, shënoni kutitë përkatëse dhe shtoni detaje në kolonën më poshtë)"}]
[]
[{"$f":"'Common text'!A50","v":"Vrojtimi dhe Monitorimi"}]
[{"$f":"'Common text'!A51","v":"Plani i menaxhimit apo dokumente të tjera zyrtare"}]
[{"$f":"'Common text'!A52","v":"Përvoja e stafit"}]
[{"$f":"'Common text'!A53","v":"Mendime të ekspertit të jashtëm"}]
[{"$f":"'Common text'!A54","v":"Opinioni i komunitetit /njohuri tradicionale"}]
[{"$f":"'Common text'!A55","v":"Të tjera (specifiko)"}]

{"sheet":"20.","index":33,"n_rows":28,"n_cols":4,"rows_kept":28,"cut":false,"hidden":false,"merged":[]}
[null,{"$f":"'Q&A_Alb'!U2","v":"20. Monitorimi dhe vlerësimi"},null,{"$f":"'Common text'!A23","v":"Kthehu tek METT4 Pyetjet dhe Rezultatet"}]
[null,{"$f":"'Common text'!A34","v":"Kjo pyetje nuk është e rëndësishme për këtë ZM.            Nëse zgjidhni këtë, ju lutemi shpjegoni më poshtë pse kjo nuk është e rëndësishme"}]
[{"$f":"'Common text'!A37","v":"Shpjegimi"},null,null,{"$f":"'Common text'!A24","v":"Shko tek Treguesi pasardhës"}]
[]
[null,{"$f":"'Q&A_Alb'!U3","v":"A monitorohen, vlerësohen dhe përshtaten rregullisht aktivitetet e menaxhimit?"}]
[{"$f":"'Common text'!A38","v":"Ndihmë për t'iu përgjigjur kësaj pyetjeje:"},{"$f":"'Q&A_Alb'!U4","v":"Kjo pyetje trajton monitorimin dhe vlerësimin e aktiviteteve të menaxhimit të zonës së mbrojtur, të cilat vlerësojnë gjendjen e vlerave kryesore dhe kërcënimeve të zonës së mbrojtur. Në seksionin e dëshmive dhe justifikimit do të ishte e dobishme të rendisni se çfarë monitorohet dhe sa shpesh. Ashtu si me kërkimin shkencor, theksi është në integrimin e duhur të rezultateve në menaxhimin e zonave të mbrojtura."}]
[null,{"$f":"'Common text'!A39","v":"Përgjigjet e mundshme"}]
["A     ",{"$f":"'Q&A_Alb'!U5","v":"Në zonën e mbrojtur nuk kryhet monitorim dhe vlerësim I aktiviteteve tnë zonën e mbrojtur menaxhimit"}]
["B",{"$f":"'Q&A_Alb'!U6","v":"Në zonën e mbrojtur kryhet një monitorim dhe vlerësim ad hoc i performancës së aktiviteteve të menaxhimit, por nuk ka sistem dhe/ose mbledhje të rregullt të rezultateve"}]
["C",{"$f":"'Q&A_Alb'!U7","v":"Në zonën e mbrojtur ekziston një sistem I miratuar dhe zbatuar monitorimi dhe vlerësimi të aktiviteteve të menaxhimit, por rezultatet nuk merren parasysh në menaxhim."}]
["D",{"$f":"'Q&A_Alb'!U8","v":"Në zonën e mbrojtur ekziston dhe zbatohet rregullisht një sistem i mirë monitorimi dhe vlerësimi i aktiviteteve të menaxhimit, dhe rezultatet përdoren rregullisht për të përshtatur dhe përmirësuar aktivitetet e menaxhimit."}]
[]
[null,{"$f":"'Common text'!A40","v":"Dëshmitë dhe arsyetimi: Cilat janë arsyet e zgjedhjes së kësaj përgjigje?"}]
[]
[]
[]
[null,{"$f":"'Common text'!A41","v":"Veprimet për të përmirësuar menaxhimin: A ka ndonjë gjë që mund të bëni për të përmirësuar menaxhimin?"}]
[]
[]
[]
[null,{"$f":"'Common text'!A42","v":"Burimet e informacionit: Çfarë informacioni (provash) keni përdorur për t'iu përgjigjur kësaj pyetjeje? (Ju lutemi, shënoni kutitë përkatëse dhe shtoni detaje në kolonën më poshtë)"}]
[]
[{"$f":"'Common text'!A50","v":"Vrojtimi dhe Monitorimi"}]
[{"$f":"'Common text'!A51","v":"Plani i menaxhimit apo dokumente të tjera zyrtare"}]
[{"$f":"'Common text'!A52","v":"Përvoja e stafit"}]
[{"$f":"'Common text'!A53","v":"Mendime të ekspertit të jashtëm"}]
[{"$f":"'Common text'!A54","v":"Opinioni i komunitetit /njohuri tradicionale"}]
[{"$f":"'Common text'!A55","v":"Të tjera (specifiko)"}]

{"sheet":"21.","index":34,"n_rows":28,"n_cols":4,"rows_kept":28,"cut":false,"hidden":false,"merged":[]}
[null,{"$f":"'Q&A_Alb'!V2","v":"21. Menaxhimi i burimeve"},null,{"$f":"'Common text'!A23","v":"Kthehu tek METT4 Pyetjet dhe Rezultatet"}]
[null,{"$f":"'Common text'!A34","v":"Kjo pyetje nuk është e rëndësishme për këtë ZM.            Nëse zgjidhni këtë, ju lutemi shpjegoni më poshtë pse kjo nuk është e rëndësishme"}]
[{"$f":"'Common text'!A37","v":"Shpjegimi"},null,null,{"$f":"'Common text'!A24","v":"Shko tek Treguesi pasardhës"}]
[]
[null,{"$f":"'Q&A_Alb'!V3","v":"A  kryhet menaxhim aktiv i burimeve natyrore e kulturore?"}]
[{"$f":"'Common text'!A38","v":"Ndihmë për t'iu përgjigjur kësaj pyetjeje:"},{"$f":"'Q&A_Alb'!V4","v":"Menaxhimi këtu i referohet aktiviteteve përveç zbatimit të nevojshëm për të siguruar ruajtjen efektive të habitateve kritike, llojeve, proceseve ekologjike dhe vlerave kulturore. Ai mund të përfshijë restaurimin dhe krijimin e habitateve, kontrollin e zjarreve, monitorimin e numrit të popullatave, rrethimin aty ku është e nevojshme dhe kontrollin e llojeve invazive. Aty ku lejohet nxjerrja e qëndrueshme e burimeve, menaxhimi do të përfshijë monitorimin e këtyre burimeve, ndoshta futjen e zonimit të përkohshëm etj. Menaxhimi përfshin gjithashtu hapa aktivë për mbrojtjen e vendeve të rëndësishme kulturore dhe shpirtërore."}]
[null,{"$f":"'Common text'!A39","v":"Përgjigjet e mundshme"}]
["A     ",{"$f":"'Q&A_Alb'!V5","v":"Nuk kryhet menaxhim aktiv i habitateve kritike, llojeve, proceseve ekologjike dhe vlerave kulturore, edhe pse kërkohet një gjë e tillë"}]
["B","Shumë pak nga kërkesat për menaxhimin aktiv të habitateve kritike, specieve, proceseve ekologjike dhe vlerave kulturore po zbatohen."]
["C","Shumë nga kërkesat për menaxhimin aktiv të habitateve kritike, specieve, proceseve ekologjike dhe vlerave kulturore janë duke u zbatuar, por disa çështje kyçe nuk po adresohen."]
["D","Kërkesat për menaxhimin aktiv të habitateve kritike, specieve, proceseve ekologjike dhe vlerave kulturore po zbatohen në mënyrë thelbësore ose të plotë."]
[]
[null,{"$f":"'Common text'!A40","v":"Dëshmitë dhe arsyetimi: Cilat janë arsyet e zgjedhjes së kësaj përgjigje?"}]
[]
[]
[]
[null,{"$f":"'Common text'!A41","v":"Veprimet për të përmirësuar menaxhimin: A ka ndonjë gjë që mund të bëni për të përmirësuar menaxhimin?"}]
[]
[]
[]
[null,{"$f":"'Common text'!A42","v":"Burimet e informacionit: Çfarë informacioni (provash) keni përdorur për t'iu përgjigjur kësaj pyetjeje? (Ju lutemi, shënoni kutitë përkatëse dhe shtoni detaje në kolonën më poshtë)"}]
[]
[{"$f":"'Common text'!A50","v":"Vrojtimi dhe Monitorimi"}]
[{"$f":"'Common text'!A51","v":"Plani i menaxhimit apo dokumente të tjera zyrtare"}]
[{"$f":"'Common text'!A52","v":"Përvoja e stafit"}]
[{"$f":"'Common text'!A53","v":"Mendime të ekspertit të jashtëm"}]
[{"$f":"'Common text'!A54","v":"Opinioni i komunitetit /njohuri tradicionale"}]
[{"$f":"'Common text'!A55","v":"Të tjera (specifiko)"}]

{"sheet":"22.","index":35,"n_rows":28,"n_cols":4,"rows_kept":28,"cut":false,"hidden":false,"merged":[]}
[null,{"$f":"'Q&A_Alb'!W2","v":"22. Ndryshimet Klimatike"},null,{"$f":"'Common text'!A23","v":"Kthehu tek METT4 Pyetjet dhe Rezultatet"}]
[null,{"$f":"'Common text'!A34","v":"Kjo pyetje nuk është e rëndësishme për këtë ZM.            Nëse zgjidhni këtë, ju lutemi shpjegoni më poshtë pse kjo nuk është e rëndësishme"}]
[{"$f":"'Common text'!A37","v":"Shpjegimi"},null,null,{"$f":"'Common text'!A24","v":"Shko tek Treguesi pasardhës"}]
[]
[null,{"$f":"'Q&A_Alb'!W3","v":"A menaxhohet me vetëdije zona e mbrojtur për t'iu përshtatur ndryshimeve klimatike?"}]
[{"$f":"'Common text'!A38","v":"Ndihmë për t'iu përgjigjur kësaj pyetjeje:"},{"$f":"'Q&A_Alb'!W4","v":"Kjo pyetje përqendrohet në përshtatjet e menaxhimit ndaj ndryshimeve të parashikuara klimatike dhe se si ato po zbatohen. Përshtatja ndaj ndryshimeve klimatike nënkupton reduktimin e cenueshmërisë së sistemeve natyrore dhe njerëzore ndaj efekteve aktuale ose të pritshme të ndryshimeve klimatike."}]
[null,{"$f":"'Common text'!A39","v":"Përgjigjet e mundshme"}]
["A     ",{"$f":"'Q&A_Alb'!W5","v":"Nuk ka pasur përpjekje për të konsideruar përshtatjen ndaj ndryshimeve klimatike në menaxhim"}]
["B",{"$f":"'Q&A_Alb'!W6","v":"Disa konsiderata fillestare janë bërë për ndikimet e mundshme të ndryshimeve klimatike, por kjo ende nuk është përkthyer në aktivitete të menaxhimit"}]
["C",{"$f":"'Q&A_Alb'!W7","v":"Janë hartuar plane të kufizuara se si të përshtatet menaxhimi ndaj ndryshimeve të parashikuara klimatike, të cilat mund ose nuk mund të zbatohen"}]
["D",{"$f":"'Q&A_Alb'!W8","v":"Janë hartuar plane të detajuara se si të përshtatet menaxhimi me ndryshimet e parashikuara klimatike, dhe këto tashmë janë duke u zbatuar"}]
[]
[null,{"$f":"'Common text'!A40","v":"Dëshmitë dhe arsyetimi: Cilat janë arsyet e zgjedhjes së kësaj përgjigje?"}]
[]
[]
[]
[null,{"$f":"'Common text'!A41","v":"Veprimet për të përmirësuar menaxhimin: A ka ndonjë gjë që mund të bëni për të përmirësuar menaxhimin?"}]
[]
[]
[]
[null,{"$f":"'Common text'!A42","v":"Burimet e informacionit: Çfarë informacioni (provash) keni përdorur për t'iu përgjigjur kësaj pyetjeje? (Ju lutemi, shënoni kutitë përkatëse dhe shtoni detaje në kolonën më poshtë)"}]
[]
[{"$f":"'Common text'!A50","v":"Vrojtimi dhe Monitorimi"}]
[{"$f":"'Common text'!A51","v":"Plani i menaxhimit apo dokumente të tjera zyrtare"}]
[{"$f":"'Common text'!A52","v":"Përvoja e stafit"}]
[{"$f":"'Common text'!A53","v":"Mendime të ekspertit të jashtëm"}]
[{"$f":"'Common text'!A54","v":"Opinioni i komunitetit /njohuri tradicionale"}]
[{"$f":"'Common text'!A55","v":"Të tjera (specifiko)"}]

{"sheet":"23.","index":36,"n_rows":28,"n_cols":4,"rows_kept":28,"cut":false,"hidden":false,"merged":[]}
[null,{"$f":"'Q&A_Alb'!X2","v":"23. Sekuestrimi i karbonit"},null,{"$f":"'Common text'!A23","v":"Kthehu tek METT4 Pyetjet dhe Rezultatet"}]
[null,{"$f":"'Common text'!A34","v":"Kjo pyetje nuk është e rëndësishme për këtë ZM.            Nëse zgjidhni këtë, ju lutemi shpjegoni më poshtë pse kjo nuk është e rëndësishme"}]
[{"$f":"'Common text'!A37","v":"Shpjegimi"},null,null,{"$f":"'Common text'!A24","v":"Shko tek Treguesi pasardhës"}]
[]
[null,{"$f":"'Q&A_Alb'!X3","v":"A po menaxhohet me vetëdije zona e mbrojtur për të parandaluar çlirimin e karbonit dhe për të inkurajuar sekustrimin e mëtejshëm të karbonit?"}]
[{"$f":"'Common text'!A38","v":"Ndihmë për t'iu përgjigjur kësaj pyetjeje:"},{"$f":"'Q&A_Alb'!X4","v":"Sekuestrimi dhe ruajtja e karbonit përshkruajnë procesin e thithjes dhe ruajtjes së dioksidit të karbonit përpara se të lëshohet në atmosferë. Metodat për \"parandalimin e humbjes së karbonit\" në zonat e mbrojtura do të varen nga ekosistemet që menaxhohen dhe mund të variojnë nga zvogëlimi i shpyllëzimeve dhe humbjeve të tjera natyrore të bimësisë, parandalimi i zjarreve, ruajtja e regjimeve natyrore të ujit, etj. Sekuestrimi i karbonit gjithashtu mund të përmirësohet, aty ku është e përshtatshme , nëpërmjet restaurimit të ekosistemet ose menaxhimit të habitateve që rrit ruajtjen e karbonit në bimësinë në këmbë ose në tokë."}]
[null,{"$f":"'Common text'!A39","v":"Përgjigjet e mundshme"}]
["A     ",{"$f":"'Q&A_Alb'!X5","v":"Ruajtja e karbonit dhe thithja e dioksidit të karbonit nuk janë marrë parasysh në menaxhimin e zonës së mbrojtur"}]
["B",{"$f":"'Q&A_Alb'!X6","v":"Ruajtja e karbonit dhe thithja e dioksidit të karbonit janë konsideruar në terma të përgjithshëm, por ende nuk është reflektuar ndjeshëm në menaxhim"}]
["C",{"$f":"'Q&A_Alb'!X7","v":"Ka masa aktive për të reduktuar humbjen e karbonit nga zona e mbrojtur, por jo masa të ndërgjegjshme për të rritur thithjen e dioksidit të karbonit"}]
["D",{"$f":"'Q&A_Alb'!X8","v":"Ka masa aktive si për të reduktuar humbjen e karbonit nga zona e mbrojtur dhe për të rritur thithjen e dioksidit të karbonit"}]
[]
[null,{"$f":"'Common text'!A40","v":"Dëshmitë dhe arsyetimi: Cilat janë arsyet e zgjedhjes së kësaj përgjigje?"}]
[]
[]
[]
[null,{"$f":"'Common text'!A41","v":"Veprimet për të përmirësuar menaxhimin: A ka ndonjë gjë që mund të bëni për të përmirësuar menaxhimin?"}]
[]
[]
[]
[null,{"$f":"'Common text'!A42","v":"Burimet e informacionit: Çfarë informacioni (provash) keni përdorur për t'iu përgjigjur kësaj pyetjeje? (Ju lutemi, shënoni kutitë përkatëse dhe shtoni detaje në kolonën më poshtë)"}]
[]
[{"$f":"'Common text'!A50","v":"Vrojtimi dhe Monitorimi"}]
[{"$f":"'Common text'!A51","v":"Plani i menaxhimit apo dokumente të tjera zyrtare"}]
[{"$f":"'Common text'!A52","v":"Përvoja e stafit"}]
[{"$f":"'Common text'!A53","v":"Mendime të ekspertit të jashtëm"}]
[{"$f":"'Common text'!A54","v":"Opinioni i komunitetit /njohuri tradicionale"}]
[{"$f":"'Common text'!A55","v":"Të tjera (specifiko)"}]

{"sheet":"24.","index":37,"n_rows":28,"n_cols":4,"rows_kept":28,"cut":false,"hidden":false,"merged":[]}
[null,{"$f":"'Q&A_Alb'!Y2","v":"24. Shërbimet e ekosistemeve"},null,{"$f":"'Common text'!A23","v":"Kthehu tek METT4 Pyetjet dhe Rezultatet"}]
[null,{"$f":"'Common text'!A34","v":"Kjo pyetje nuk është e rëndësishme për këtë ZM.            Nëse zgjidhni këtë, ju lutemi shpjegoni më poshtë pse kjo nuk është e rëndësishme"}]
[{"$f":"'Common text'!A37","v":"Shpjegimi"},null,null,{"$f":"'Common text'!A24","v":"Shko tek Treguesi pasardhës"}]
[]
[null,{"$f":"'Q&A_Alb'!Y3","v":"A e konsideron menaxhimi ofrimin e shërbimeve të ekosistemit?"}]
[{"$f":"'Common text'!A38","v":"Ndihmë për t'iu përgjigjur kësaj pyetjeje:"},{"$f":"'Q&A_Alb'!Y4","v":"Kjo heton nëse njihen shërbimet ekzistuese ose potenciale të ekosistemeve dhe, nëse po, nëse disa ose të gjitha janë duke u menaxhuar. Për shkak se kjo është një pyetje potencialisht e pafund, sugjerohet që përgjigjet të fokusohen në shërbimet kryesore të ekosistemit të identifikuara tashmë në seksionin e atributeve të zonës së mbrojtur. Duke qenë se kjo është ende një çështje mjaft e re për shumë menaxherë të zonave të mbrojtura, seksioni i veprimeve për përmirësimin e menaxhimit duhet të jetë mjaft specifik në lidhje me veprimet dhe hapat e ardhshëm."}]
[null,{"$f":"'Common text'!A39","v":"Përgjigjet e mundshme"}]
["A     ",{"$f":"'Q&A_Alb'!Y5","v":"Shërbimet e ekosistemit të ofruara nga zona e mbrojtur nuk kuptohen/njihen"}]
["B",{"$f":"'Q&A_Alb'!Y6","v":"Shërbimet e ekosistemit të ofruara nga zona e mbrojtur kuptohen, por nuk janë ndërmarrë veprime menaxhimi të nevojshme për të siguruar ofrimin e tyre të vazhdueshëm"}]
["C",{"$f":"'Q&A_Alb'!Y7","v":"Shërbimet e ekosistemit të ofruara nga zona e mbrojtur kuptohen dhe janë ndërmarrë disa veprime menaxhimi të nevojshme për të siguruar ofrimin e tyre të vazhdueshëm"}]
["D",{"$f":"'Q&A_Alb'!Y8","v":"Shërbimet e ekosistemit të ofruara nga zona e mbrojtur kuptohen dhe janë marrë të gjitha veprimet e menaxhimit të nevojshme për të siguruar ofrimin e tyre të vazhdueshëm"}]
[]
[null,{"$f":"'Common text'!A40","v":"Dëshmitë dhe arsyetimi: Cilat janë arsyet e zgjedhjes së kësaj përgjigje?"}]
[]
[]
[]
[null,{"$f":"'Common text'!A41","v":"Veprimet për të përmirësuar menaxhimin: A ka ndonjë gjë që mund të bëni për të përmirësuar menaxhimin?"}]
[]
[]
[]
[null,{"$f":"'Common text'!A42","v":"Burimet e informacionit: Çfarë informacioni (provash) keni përdorur për t'iu përgjigjur kësaj pyetjeje? (Ju lutemi, shënoni kutitë përkatëse dhe shtoni detaje në kolonën më poshtë)"}]
[]
[{"$f":"'Common text'!A50","v":"Vrojtimi dhe Monitorimi"}]
[{"$f":"'Common text'!A51","v":"Plani i menaxhimit apo dokumente të tjera zyrtare"}]
[{"$f":"'Common text'!A52","v":"Përvoja e stafit"}]
[{"$f":"'Common text'!A53","v":"Mendime të ekspertit të jashtëm"}]
[{"$f":"'Common text'!A54","v":"Opinioni i komunitetit /njohuri tradicionale"}]
[{"$f":"'Common text'!A55","v":"Të tjera (specifiko)"}]

{"sheet":"25.","index":38,"n_rows":28,"n_cols":4,"rows_kept":28,"cut":false,"hidden":false,"merged":[]}
[null,{"$f":"'Q&A_Alb'!Z2","v":"25. Edukimi dhe ndërgjegjësimi"},null,{"$f":"'Common text'!A23","v":"Kthehu tek METT4 Pyetjet dhe Rezultatet"}]
[null,{"$f":"'Common text'!A34","v":"Kjo pyetje nuk është e rëndësishme për këtë ZM.            Nëse zgjidhni këtë, ju lutemi shpjegoni më poshtë pse kjo nuk është e rëndësishme"}]
[{"$f":"'Common text'!A37","v":"Shpjegimi"},null,null,{"$f":"'Common text'!A24","v":"Shko tek Treguesi pasardhës"}]
[]
[null,{"$f":"'Q&A_Alb'!Z3","v":"A ekziston një program edukimi i planifikuar dhe i lidhur me nevojat e menaxhimit?"}]
[{"$f":"'Common text'!A38","v":"Ndihmë për t'iu përgjigjur kësaj pyetjeje:"},{"$f":"'Q&A_Alb'!Z4","v":"Kjo pyetje mbulon edukimin si për institucionet mësimore, siç janë programet e shkollave, ashtu edhe ofrimin e mundësive më të përgjithshme edukative për komunitetet lokale ose vizitorët. Duhet të merret parasysh se çfarë është e përshtatshme në varësi të vendndodhjes dhe kontekstit të zonës së mbrojtur."}]
[null,{"$f":"'Common text'!A39","v":"Përgjigjet e mundshme"}]
["A     ",{"$f":"'Q&A_Alb'!Z5","v":"Nuk ka asnjë program edukimi dhe ndërgjegjësimi"}]
["B",{"$f":"'Q&A_Alb'!Z6","v":"Ekziston një program i kufizuar dhe ad hoc edukimi dhe ndërgjegjësimi"}]
["C",{"$f":"'Q&A_Alb'!Z7","v":"Ekziston një program edukimi dhe ndërgjegjësimi, por ai plotëson vetëm pjesërisht nevojat e menaxhimit dhe mund të përmirësohet"}]
["D",{"$f":"'Q&A_Alb'!Z8","v":"Ekziston një program edukimi dhe ndërgjegjësimi i duhur dhe efektiv"}]
[]
[null,{"$f":"'Common text'!A40","v":"Dëshmitë dhe arsyetimi: Cilat janë arsyet e zgjedhjes së kësaj përgjigje?"}]
[]
[]
[]
[null,{"$f":"'Common text'!A41","v":"Veprimet për të përmirësuar menaxhimin: A ka ndonjë gjë që mund të bëni për të përmirësuar menaxhimin?"}]
[]
[]
[]
[null,{"$f":"'Common text'!A42","v":"Burimet e informacionit: Çfarë informacioni (provash) keni përdorur për t'iu përgjigjur kësaj pyetjeje? (Ju lutemi, shënoni kutitë përkatëse dhe shtoni detaje në kolonën më poshtë)"}]
[]
[{"$f":"'Common text'!A50","v":"Vrojtimi dhe Monitorimi"}]
[{"$f":"'Common text'!A51","v":"Plani i menaxhimit apo dokumente të tjera zyrtare"}]
[{"$f":"'Common text'!A52","v":"Përvoja e stafit"}]
[{"$f":"'Common text'!A53","v":"Mendime të ekspertit të jashtëm"}]
[{"$f":"'Common text'!A54","v":"Opinioni i komunitetit /njohuri tradicionale"}]
[{"$f":"'Common text'!A55","v":"Të tjera (specifiko)"}]

{"sheet":"26.","index":39,"n_rows":28,"n_cols":4,"rows_kept":28,"cut":false,"hidden":false,"merged":[]}
[null,{"$f":"'Q&A_Alb'!AA2","v":"26. Fqinjët shtetërorë dhe komercialë"},null,{"$f":"'Common text'!A23","v":"Kthehu tek METT4 Pyetjet dhe Rezultatet"}]
[null,{"$f":"'Common text'!A34","v":"Kjo pyetje nuk është e rëndësishme për këtë ZM.            Nëse zgjidhni këtë, ju lutemi shpjegoni më poshtë pse kjo nuk është e rëndësishme"}]
[{"$f":"'Common text'!A37","v":"Shpjegimi"},null,null,{"$f":"'Common text'!A24","v":"Shko tek Treguesi pasardhës"}]
[]
[null,{"$f":"'Q&A_Alb'!AA3","v":"A ka bashkëpunim me përdoruesit fqinjë shtetërorë dhe komercialë të tokës/detit?"}]
[{"$f":"'Common text'!A38","v":"Ndihmë për t'iu përgjigjur kësaj pyetjeje:"},{"$f":"'Q&A_Alb'!AA4","v":"Kjo u drejtohet veçanërisht përdoruesve të tokës dhe ujit që ose përfitojnë ose ndikojnë drejtpërdrejt në ekosistemet brenda zonës së mbrojtur: për shembull përdoruesit e ujit (furnizuesit e ujit mineral, ujësjellësat e bashkive, projektet hidroelektrike); por edhe fermerët, kompanitë pyjore dhe ato të përfshira në industritë nxjerrëse. Vini re se operatorët turistikë janë subjekt i pyetjes së tyre (shih pyetjen vijuese). Kjo pyetje synon të vlerësojë shkallën në të cilën një zonë e mbrojtur bashkëpunon ose mbetet e izoluar nga ekonomia e gjerë që ndikon në të. Pyetja nuk lidhet me përdoruesit e tokës nga komuniteti lokal, por fokusohet në institucionet qeveritare dhe përdoruesit e mëdhenj komercialë ose industrialë të tokës. Pyetja mund të lidhet me bashkëpunimin ndërkufitar aty ku është e nevojshme."}]
[null,{"$f":"'Common text'!A39","v":"Përgjigjet e mundshme"}]
["A     ",{"$f":"'Q&A_Alb'!AA5","v":"Ka kontakte ndërmjet menaxherëve dhe përdoruesve fqinjë shtetërorë dhe komerciale të tokës/detit, por pak ose aspak bashkëpunim"}]
["B",{"$f":"'Q&A_Alb'!AA6","v":"Ka kontakte ndërmjet menaxherëve dhe përdoruesve fqinjë shtetërorët dhe komercialë të tokës/detit, por vetëm njëfarë bashkëpunimi"}]
["C",{"$f":"'Q&A_Alb'!AA7","v":"Ka kontakte të rregullta ndërmjet menaxherëve dhe përdoruesve fqinjë shtetërorë dhe komercialë të tokës/detit, por vetëm njëfarë bashkëpunimi për menaxhimin"}]
["D",{"$f":"'Q&A_Alb'!AA8","v":"Ka kontakte të rregullta ndërmjet menaxherëve dhe përdoruesve fqinjë shtetërorë dhe komercialë të tokës/detit, dhe bashkëpunim thelbësor për menaxhimin"}]
[]
[null,{"$f":"'Common text'!A40","v":"Dëshmitë dhe arsyetimi: Cilat janë arsyet e zgjedhjes së kësaj përgjigje?"}]
[]
[]
[]
[null,{"$f":"'Common text'!A41","v":"Veprimet për të përmirësuar menaxhimin: A ka ndonjë gjë që mund të bëni për të përmirësuar menaxhimin?"}]
[]
[]
[]
[null,{"$f":"'Common text'!A42","v":"Burimet e informacionit: Çfarë informacioni (provash) keni përdorur për t'iu përgjigjur kësaj pyetjeje? (Ju lutemi, shënoni kutitë përkatëse dhe shtoni detaje në kolonën më poshtë)"}]
[]
[{"$f":"'Common text'!A50","v":"Vrojtimi dhe Monitorimi"}]
[{"$f":"'Common text'!A51","v":"Plani i menaxhimit apo dokumente të tjera zyrtare"}]
[{"$f":"'Common text'!A52","v":"Përvoja e stafit"}]
[{"$f":"'Common text'!A53","v":"Mendime të ekspertit të jashtëm"}]
[{"$f":"'Common text'!A54","v":"Opinioni i komunitetit /njohuri tradicionale"}]
[{"$f":"'Common text'!A55","v":"Të tjera (specifiko)"}]

{"sheet":"27.","index":40,"n_rows":28,"n_cols":4,"rows_kept":28,"cut":false,"hidden":false,"merged":[]}
[null,{"$f":"'Q&A_Alb'!AB2","v":"27. Operatorët turistikë"},null,{"$f":"'Common text'!A23","v":"Kthehu tek METT4 Pyetjet dhe Rezultatet"}]
[null,{"$f":"'Common text'!A34","v":"Kjo pyetje nuk është e rëndësishme për këtë ZM.            Nëse zgjidhni këtë, ju lutemi shpjegoni më poshtë pse kjo nuk është e rëndësishme"}]
[{"$f":"'Common text'!A37","v":"Shpjegimi"},null,null,{"$f":"'Common text'!A24","v":"Shko tek Treguesi pasardhës"}]
[]
[null,{"$f":"'Q&A_Alb'!AB3","v":"A kontribuojnë operatorët turistikë (bizneset) në menaxhimin e zonës së mbrojtur?"}]
[{"$f":"'Common text'!A38","v":"Ndihmë për t'iu përgjigjur kësaj pyetjeje:"},{"$f":"'Q&A_Alb'!AB4","v":"Prania e një zone të mbrojtur është një tërheqje për turistët dhe në këtë mënyrë një nxitje për bizneset turistike. Operatorët turistikë duhet të jenë partnerë natyrorë me zonat e mbrojtura, por kjo nuk ndodh gjithmonë. Nëse kjo pyetje gjeneron një rezultat të ulët, veprimet për përmirësimin e menaxhimit mund të identifikojnë disa nga njerëzit kyç me të cilët do të ishte e rëndësishme të bisedohej dhe të zhvillohej bashkëpunimi."}]
[null,{"$f":"'Common text'!A39","v":"Përgjigjet e mundshme"}]
["A     ",{"$f":"'Q&A_Alb'!AB5","v":"Ka pak ose aspak kontakt ndërmjet menaxherëve dhe operatorëve turistikë që përdorin zonën e mbrojtur"}]
["B",{"$f":"'Q&A_Alb'!AB6","v":"Ka kontakte ndërmjet menaxherëve dhe operatorëve turistikë, por kjo kufizohet kryesisht në çështje administrative ose rregullatore"}]
["C",{"$f":"'Q&A_Alb'!AB7","v":"Ekziston një bashkëpunim i kufizuar midis menaxherëve dhe operatorëve turistikë për të rritur përvojat e vizitorëve dhe për të ruajtur vlerat e zonës së mbrojtur"}]
["D",{"$f":"'Q&A_Alb'!AB8","v":"Ekziston një bashkëpunim i mirë midis menaxherëve dhe operatorëve turistikë për të rritur përvojat e vizitorëve dhe për të ruajtur vlerat e zonës së mbrojtur"}]
[]
[null,{"$f":"'Common text'!A40","v":"Dëshmitë dhe arsyetimi: Cilat janë arsyet e zgjedhjes së kësaj përgjigje?"}]
[]
[]
[]
[null,{"$f":"'Common text'!A41","v":"Veprimet për të përmirësuar menaxhimin: A ka ndonjë gjë që mund të bëni për të përmirësuar menaxhimin?"}]
[]
[]
[]
[null,{"$f":"'Common text'!A42","v":"Burimet e informacionit: Çfarë informacioni (provash) keni përdorur për t'iu përgjigjur kësaj pyetjeje? (Ju lutemi, shënoni kutitë përkatëse dhe shtoni detaje në kolonën më poshtë)"}]
[]
[{"$f":"'Common text'!A50","v":"Vrojtimi dhe Monitorimi"}]
[{"$f":"'Common text'!A51","v":"Plani i menaxhimit apo dokumente të tjera zyrtare"}]
[{"$f":"'Common text'!A52","v":"Përvoja e stafit"}]
[{"$f":"'Common text'!A53","v":"Mendime të ekspertit të jashtëm"}]
[{"$f":"'Common text'!A54","v":"Opinioni i komunitetit /njohuri tradicionale"}]
[{"$f":"'Common text'!A55","v":"Të tjera (specifiko)"}]

{"sheet":"28.","index":41,"n_rows":28,"n_cols":4,"rows_kept":28,"cut":false,"hidden":false,"merged":[]}
[null,{"$f":"'Q&A_Alb'!AC2","v":"28. Tarifat"},null,{"$f":"'Common text'!A23","v":"Kthehu tek METT4 Pyetjet dhe Rezultatet"}]
[null,{"$f":"'Common text'!A34","v":"Kjo pyetje nuk është e rëndësishme për këtë ZM.            Nëse zgjidhni këtë, ju lutemi shpjegoni më poshtë pse kjo nuk është e rëndësishme"}]
[{"$f":"'Common text'!A37","v":"Shpjegimi"},null,null,{"$f":"'Common text'!A24","v":"Shko tek Treguesi pasardhës"}]
[]
[null,{"$f":"'Q&A_Alb'!AC3","v":"Nëse aplikohen tarifa (d.m.th. tarifat e hyrjes ose gjobat), a ndihmojnë ato menaxhimin e zonës së mbrojtur?"}]
[{"$f":"'Common text'!A38","v":"Ndihmë për t'iu përgjigjur kësaj pyetjeje:"},{"$f":"'Q&A_Alb'!AC4","v":"Jo të gjitha zonat e mbrojtura mbledhin apo duhet të mbledhin tarifa; kjo pyetje nuk është e zbatueshme në këto raste. Aty ku tarifat janë pjesë e pritshme e menaxhimit të zonës së mbrojtur, kjo pyetje vlerëson nëse ato përdoren për të ndihmuar menaxhimin apo thjesht zhduken në llogaritë qeveritare dhe nuk ofrojnë mbështetje për zonën e mbrojtur."}]
[null,{"$f":"'Common text'!A39","v":"Përgjigjet e mundshme"}]
["A     ",{"$f":"'Q&A_Alb'!AC5","v":"Megjithëse tarifat aplikohen teorikisht, ato nuk mblidhen"}]
["B",{"$f":"'Q&A_Alb'!AC6","v":"Tarifat mblidhen, por nuk japin asnjë kontribut për zonën e mbrojtur apo mjediset e saj"}]
["C",{"$f":"'Q&A_Alb'!AC7","v":"Taksat mblidhen dhe japin njëfarë kontributi për zonën e mbrojtur dhe mjediset e e saj"}]
["D",{"$f":"'Q&A_Alb'!AC8","v":"Taksat mblidhen dhe japin një kontribut të konsiderueshëm për zonën e mbrojtur dhe mjediset e saj"}]
[]
[null,{"$f":"'Common text'!A40","v":"Dëshmitë dhe arsyetimi: Cilat janë arsyet e zgjedhjes së kësaj përgjigje?"}]
[]
[]
[]
[null,{"$f":"'Common text'!A41","v":"Veprimet për të përmirësuar menaxhimin: A ka ndonjë gjë që mund të bëni për të përmirësuar menaxhimin?"}]
[]
[]
[]
[null,{"$f":"'Common text'!A42","v":"Burimet e informacionit: Çfarë informacioni (provash) keni përdorur për t'iu përgjigjur kësaj pyetjeje? (Ju lutemi, shënoni kutitë përkatëse dhe shtoni detaje në kolonën më poshtë)"}]
[]
[{"$f":"'Common text'!A50","v":"Vrojtimi dhe Monitorimi"}]
[{"$f":"'Common text'!A51","v":"Plani i menaxhimit apo dokumente të tjera zyrtare"}]
[{"$f":"'Common text'!A52","v":"Përvoja e stafit"}]
[{"$f":"'Common text'!A53","v":"Mendime të ekspertit të jashtëm"}]
[{"$f":"'Common text'!A54","v":"Opinioni i komunitetit /njohuri tradicionale"}]
[{"$f":"'Common text'!A55","v":"Të tjera (specifiko)"}]

{"sheet":"29.","index":42,"n_rows":28,"n_cols":4,"rows_kept":28,"cut":false,"hidden":false,"merged":[]}
[null,{"$f":"'Q&A_Alb'!AD2","v":"29. Objektet dhe shërbimet për vizitorët"},null,{"$f":"'Common text'!A23","v":"Kthehu tek METT4 Pyetjet dhe Rezultatet"}]
[null,{"$f":"'Common text'!A34","v":"Kjo pyetje nuk është e rëndësishme për këtë ZM.            Nëse zgjidhni këtë, ju lutemi shpjegoni më poshtë pse kjo nuk është e rëndësishme"}]
[{"$f":"'Common text'!A37","v":"Shpjegimi"},null,null,{"$f":"'Common text'!A24","v":"Shko tek Treguesi pasardhës"}]
[]
[null,{"$f":"'Q&A_Alb'!AD3","v":"A janë objektet dhe shërbimet për vizitorë t të përshtatshme?"}]
[{"$f":"'Common text'!A38","v":"Ndihmë për t'iu përgjigjur kësaj pyetjeje:"},{"$f":"'Q&A_Alb'!AD4","v":"Jo të gjitha zonat e mbrojtura kanë nevojë për objekte për vizitorët; kjo pyetje vlerëson situatën kundrejt nevojave të perceptuara. Çështja e përshtatshmërisë është kritike, zonat e mbrojtura me pak vizitorë nuk kërkojnë shërbime të shumta për vizitorët. Kjo pyetje duhet të fokusohet kryesisht në objektet brenda zonës së mbrojtur, por gjithashtu mund të marrë në konsideratë objektet menjëherë ngjitur me zonat e mbrojtura kur këto ndikojnë drejtpërdrejt në përvojën e vizitorëve."}]
[null,{"$f":"'Common text'!A39","v":"Përgjigjet e mundshme"}]
["A     ",{"$f":"'Q&A_Alb'!AD5","v":"Nuk ka objekte dhe shërbime për vizitorët pavarësisht nevojës së identifikuar"}]
["B",{"$f":"'Q&A_Alb'!AD6","v":"Objektet dhe shërbimet për vizitorët janë të papërshtatshme për nivelet aktuale të vizitave"}]
["C",{"$f":"'Q&A_Alb'!AD7","v":"Objektet dhe shërbimet për vizitorët janë të përshtatshme për nivelet aktuale të vizitave, por mund të përmirësohen"}]
["D",{"$f":"'Q&A_Alb'!AD8","v":"Objektet dhe shërbimet për vizitorët  janë të shkëlqyera për nivelet aktuale të vizitave"}]
[]
[null,{"$f":"'Common text'!A40","v":"Dëshmitë dhe arsyetimi: Cilat janë arsyet e zgjedhjes së kësaj përgjigje?"}]
[]
[]
[]
[null,{"$f":"'Common text'!A41","v":"Veprimet për të përmirësuar menaxhimin: A ka ndonjë gjë që mund të bëni për të përmirësuar menaxhimin?"}]
[]
[]
[]
[null,{"$f":"'Common text'!A42","v":"Burimet e informacionit: Çfarë informacioni (provash) keni përdorur për t'iu përgjigjur kësaj pyetjeje? (Ju lutemi, shënoni kutitë përkatëse dhe shtoni detaje në kolonën më poshtë)"}]
[]
[{"$f":"'Common text'!A50","v":"Vrojtimi dhe Monitorimi"}]
[{"$f":"'Common text'!A51","v":"Plani i menaxhimit apo dokumente të tjera zyrtare"}]
[{"$f":"'Common text'!A52","v":"Përvoja e stafit"}]
[{"$f":"'Common text'!A53","v":"Mendime të ekspertit të jashtëm"}]
[{"$f":"'Common text'!A54","v":"Opinioni i komunitetit /njohuri tradicionale"}]
[{"$f":"'Common text'!A55","v":"Të tjera (specifiko)"}]

{"sheet":"30.","index":43,"n_rows":28,"n_cols":4,"rows_kept":28,"cut":false,"hidden":false,"merged":[]}
[null,{"$f":"'Q&A_Alb'!AE2","v":"30. Popullsia indigjene"},null,{"$f":"'Common text'!A23","v":"Kthehu tek METT4 Pyetjet dhe Rezultatet"}]
[null,{"$f":"'Common text'!A34","v":"Kjo pyetje nuk është e rëndësishme për këtë ZM.            Nëse zgjidhni këtë, ju lutemi shpjegoni më poshtë pse kjo nuk është e rëndësishme"}]
[{"$f":"'Common text'!A37","v":"Shpjegimi"},null,null,{"$f":"'Common text'!A24","v":"Shko tek Treguesi pasardhës"}]
[]
[null,{"$f":"'Q&A_Alb'!AE3","v":"A përfshihen banorët indigjenë në vendimet e menaxhimit?"}]
[{"$f":"'Common text'!A38","v":"Ndihmë për t'iu përgjigjur kësaj pyetjeje:"},{"$f":"'Q&A_Alb'!AE4","v":"Kjo pyetje nuk është e zbatueshme në rastet kur nuk ka popullsi indigjene në zonë. Vini re se vende të ndryshme përdorin një sërë termash për të përshkruar kultura të tilla: pakicat etnike, grupe tradicionalë etj. Merrni parasysh konsultimin formal ose kontaktin më pak formal kur gjykoni përgjigjen dhe merrni parasysh çështjen e qeverisjes dhe barazisë. Nëse është e mundur, do të ishte e dobishme të diskutoni gjithashtu me njerëzit indigjenë dhe të kuptoni se sa të përfshirë ndihen ata."}]
[null,{"$f":"'Common text'!A39","v":"Përgjigjet e mundshme"}]
["A     ",{"$f":"'Q&A_Alb'!AE5","v":"Njerëzit indigjenë nuk janë të përfshirë në vendimet e menaxhimit?"}]
["B",{"$f":"'Q&A_Alb'!AE6","v":"Njerëzit indigjenë marrin pjesë disi në diskutimet që kanë të bëjnë me menaxhimin, por jo një rol të drejtpërdrejtë në menaxhim"}]
["C",{"$f":"'Q&A_Alb'!AE7","v":"Njerëzit indigjenë kontribuojnë drejtpërdrejt në disa vendime të rëndësishme në lidhje me menaxhimin, por përfshirja e tyre mund të përmirësohet"}]
["D",{"$f":"'Q&A_Alb'!AE8","v":"Indigjenët marrin pjesë drejtpërdrejt në të gjitha vendimet përkatëse që kanë të bëjnë me menaxhimin, p.sh. bashkëmenaxhimi"}]
[]
[null,{"$f":"'Common text'!A40","v":"Dëshmitë dhe arsyetimi: Cilat janë arsyet e zgjedhjes së kësaj përgjigje?"}]
[]
[]
[]
[null,{"$f":"'Common text'!A41","v":"Veprimet për të përmirësuar menaxhimin: A ka ndonjë gjë që mund të bëni për të përmirësuar menaxhimin?"}]
[]
[]
[]
[null,{"$f":"'Common text'!A42","v":"Burimet e informacionit: Çfarë informacioni (provash) keni përdorur për t'iu përgjigjur kësaj pyetjeje? (Ju lutemi, shënoni kutitë përkatëse dhe shtoni detaje në kolonën më poshtë)"}]
[]
[{"$f":"'Common text'!A50","v":"Vrojtimi dhe Monitorimi"}]
[{"$f":"'Common text'!A51","v":"Plani i menaxhimit apo dokumente të tjera zyrtare"}]
[{"$f":"'Common text'!A52","v":"Përvoja e stafit"}]
[{"$f":"'Common text'!A53","v":"Mendime të ekspertit të jashtëm"}]
[{"$f":"'Common text'!A54","v":"Opinioni i komunitetit /njohuri tradicionale"}]
[{"$f":"'Common text'!A55","v":"Të tjera (specifiko)"}]

{"sheet":"31.","index":44,"n_rows":28,"n_cols":4,"rows_kept":28,"cut":false,"hidden":false,"merged":[]}
[null,{"$f":"'Q&A_Alb'!AF2","v":"31. Komunitetet lokale"},null,{"$f":"'Common text'!A23","v":"Kthehu tek METT4 Pyetjet dhe Rezultatet"}]
[null,{"$f":"'Common text'!A34","v":"Kjo pyetje nuk është e rëndësishme për këtë ZM.            Nëse zgjidhni këtë, ju lutemi shpjegoni më poshtë pse kjo nuk është e rëndësishme"}]
[{"$f":"'Common text'!A37","v":"Shpjegimi"},null,null,{"$f":"'Common text'!A24","v":"Shko tek Treguesi pasardhës"}]
[]
[null,{"$f":"'Q&A_Alb'!AF3","v":"A kanë komunitetet lokale që jetojnë brenda ose afër zonës së mbrojtur kontribut në vendimet e menaxhimit?"}]
[{"$f":"'Common text'!A38","v":"Ndihmë për t'iu përgjigjur kësaj pyetjeje:"},{"$f":"'Q&A_Alb'!AF4","v":"Kjo vlerëson nivelin e ndikimit që kanë komunitetet në vendimet e menaxhimit: vetëm konsultimi rrallë është i mjaftueshëm. \"Vendimet\" i referohen të gjitha vendimeve në lidhje me aspektet e menaxhimit që prekin komunitetet lokale dhe marrëdhëniet dhe ndërveprimin e tyre me zonën e mbrojtur."}]
[null,{"$f":"'Common text'!A39","v":"Përgjigjet e mundshme"}]
["A     ",{"$f":"'Q&A_Alb'!AF5","v":"Komunitetet lokale nuk kanë kontribut në vendimet që kanë të bëjnë me menaxhimin e zonës së mbrojtur"}]
["B",{"$f":"'Q&A_Alb'!AF6","v":"Komunitetet lokale kanë disa kontribute në diskutimet në lidhje me menaxhimin, por jo një rol të drejtpërdrejtë në menaxhim"}]
["C",{"$f":"'Q&A_Alb'!AF7","v":"Komunitetet lokale kontribuojnë drejtpërdrejt në disa vendime të rëndësishme në lidhje me menaxhimin, por përfshirja e tyre mund të përmirësohet"}]
["D",{"$f":"'Q&A_Alb'!AF8","v":"Komunitetet lokale marrin pjesë drejtpërdrejt në të gjitha vendimet që kanë të bëjnë me menaxhimin, p.sh. bashkëmenaxhimi"}]
[]
[null,{"$f":"'Common text'!A40","v":"Dëshmitë dhe arsyetimi: Cilat janë arsyet e zgjedhjes së kësaj përgjigje?"}]
[]
[]
[]
[null,{"$f":"'Common text'!A41","v":"Veprimet për të përmirësuar menaxhimin: A ka ndonjë gjë që mund të bëni për të përmirësuar menaxhimin?"}]
[]
[]
[]
[null,{"$f":"'Common text'!A42","v":"Burimet e informacionit: Çfarë informacioni (provash) keni përdorur për t'iu përgjigjur kësaj pyetjeje? (Ju lutemi, shënoni kutitë përkatëse dhe shtoni detaje në kolonën më poshtë)"}]
[]
[{"$f":"'Common text'!A50","v":"Vrojtimi dhe Monitorimi"}]
[{"$f":"'Common text'!A51","v":"Plani i menaxhimit apo dokumente të tjera zyrtare"}]
[{"$f":"'Common text'!A52","v":"Përvoja e stafit"}]
[{"$f":"'Common text'!A53","v":"Mendime të ekspertit të jashtëm"}]
[{"$f":"'Common text'!A54","v":"Opinioni i komunitetit /njohuri tradicionale"}]
[{"$f":"'Common text'!A55","v":"Të tjera (specifiko)"}]

{"sheet":"31A.","index":45,"n_rows":26,"n_cols":4,"rows_kept":26,"cut":false,"hidden":false,"merged":[]}
[null,{"$f":"'Q&A_Alb'!AG2","v":"31a-c Pika shtesë - Ndikimi në komunitet/popullsi indigjene"},null,{"$f":"'Common text'!A23","v":"Kthehu tek METT4 Pyetjet dhe Rezultatet"}]
[null,{"$f":"'Common text'!A34","v":"Kjo pyetje nuk është e rëndësishme për këtë ZM.            Nëse zgjidhni këtë, ju lutemi shpjegoni më poshtë pse kjo nuk është e rëndësishme"}]
[{"$f":"'Common text'!A37","v":"Shpjegimi"},null,null,{"$f":"'Common text'!A24","v":"Shko tek Treguesi pasardhës"}]
[]
[{"$f":"'Common text'!A38","v":"Ndihmë për t'iu përgjigjur kësaj pyetjeje:"},{"$f":"'Q&A_Alb'!AG4","v":"Këto pyetje shtesë identifikojnë elementë të tjerë të rëndësishëm në lidhje me menaxhimin e zonave të mbrojtura, komunitetet lokale dhe njerëzit indigjenë. Të gjitha këto pyetje shtesë duhet të merren parasysh gjatë vlerësimit. Nëse situata në zonën e mbrojtur përputhet me deklaratën e dhënë, shënoni një shenjë në kutinë pranë saj. Programi do të gjenerojë automatikisht rezultatet shtesë në fletën e rezultateve."}]
[null,{"$f":"'Common text'!A39","v":"Përgjigjet e mundshme"},0]
[null,{"$f":"'Q&A_Alb'!AG5","v":"31a) Ekziston komunikim dhe besim i hapur midis komuniteteve lokale/popullsisë indigjene, palëve të interesuara dhe menaxherëve të zonës së mbrojtur"}]
[null,{"$f":"'Q&A_Alb'!AG6","v":"31b) Janë duke u zbatuar programe për të rritur mirëqenien e komuniteteve lokale dhe/ose të njerëzve indigjenë, në përputhje me ruajtjen e vlerave të zonës së mbrojtur"}]
[null,{"$f":"'Q&A_Alb'!AG7","v":"31c) Komunitetet lokale dhe/ose njerëzit indigjenë mbështesin në mënyrë aktive zonën e mbrojtur"}]
[]
[null,{"$f":"'Common text'!A40","v":"Dëshmitë dhe arsyetimi: Cilat janë arsyet e zgjedhjes së kësaj përgjigje?"}]
[]
[]
[]
[null,{"$f":"'Common text'!A41","v":"Veprimet për të përmirësuar menaxhimin: A ka ndonjë gjë që mund të bëni për të përmirësuar menaxhimin?"}]
[]
[]
[]
[null,{"$f":"'Common text'!A42","v":"Burimet e informacionit: Çfarë informacioni (provash) keni përdorur për t'iu përgjigjur kësaj pyetjeje? (Ju lutemi, shënoni kutitë përkatëse dhe shtoni detaje në kolonën më poshtë)"}]
[]
[{"$f":"'Common text'!A50","v":"Vrojtimi dhe Monitorimi"}]
[{"$f":"'Common text'!A51","v":"Plani i menaxhimit apo dokumente të tjera zyrtare"}]
[{"$f":"'Common text'!A52","v":"Përvoja e stafit"}]
[{"$f":"'Common text'!A53","v":"Mendime të ekspertit të jashtëm"}]
[{"$f":"'Common text'!A54","v":"Opinioni i komunitetit /njohuri tradicionale"}]
[{"$f":"'Common text'!A55","v":"Të tjera (specifiko)"}]

{"sheet":"32.","index":46,"n_rows":28,"n_cols":4,"rows_kept":28,"cut":false,"hidden":false,"merged":[]}
[null,{"$f":"'Q&A_Alb'!AH2","v":"32. Përfitime për jetesën e komuniteteve"},null,{"$f":"'Common text'!A23","v":"Kthehu tek METT4 Pyetjet dhe Rezultatet"}]
[null,{"$f":"'Common text'!A34","v":"Kjo pyetje nuk është e rëndësishme për këtë ZM.            Nëse zgjidhni këtë, ju lutemi shpjegoni më poshtë pse kjo nuk është e rëndësishme"}]
[{"$f":"'Common text'!A37","v":"Shpjegimi"},null,null,{"$f":"'Common text'!A24","v":"Shko tek Treguesi pasardhës"}]
[]
[null,{"$f":"'Q&A_Alb'!AH3","v":"A ofron zona e mbrojtur përfitime të qëndrueshme për jetesën e komuniteteve lokale dhe/ose njerëzit indigjenë, p.sh. të ardhurat, punësimi, pagesa për shërbimet e ekosistemit?"}]
[{"$f":"'Common text'!A38","v":"Ndihmë për t'iu përgjigjur kësaj pyetjeje:"},{"$f":"'Q&A_Alb'!AH3","v":"A ofron zona e mbrojtur përfitime të qëndrueshme për jetesën e komuniteteve lokale dhe/ose njerëzit indigjenë, p.sh. të ardhurat, punësimi, pagesa për shërbimet e ekosistemit?"}]
[null,{"$f":"'Common text'!A39","v":"Përgjigjet e mundshme"}]
["A     ",{"$f":"'Q&A_Alb'!AH5","v":"Zona e mbrojtur nuk ofron asnjë përfitim për jetesën e komuniteteve lokale/popullsisë indigjene"}]
["B",{"$f":"'Q&A_Alb'!AH6","v":"Përfitimet për komunitetet lokale/popullsinë indigjene nga zona e mbrojtur ekzistojnë, por nuk janë kontribues të rëndësishëm në jetesën e tyre"}]
["C",{"$f":"'Q&A_Alb'!AH7","v":"Përfitimet për komunitetet lokale/popullsinë indigjene nga zona e mbrojtur japin një kontribut të moderuar në jetesën e tyre"}]
["D",{"$f":"'Q&A_Alb'!AH8","v":"Ekziston një rrjedhë e madhe e përfitimeve të qëndrueshme nga zona e mbrojtur për jetesën e komuniteteve lokale/popullsinë indigjene"}]
[]
[null,{"$f":"'Common text'!A40","v":"Dëshmitë dhe arsyetimi: Cilat janë arsyet e zgjedhjes së kësaj përgjigje?"}]
[]
[]
[]
[null,{"$f":"'Common text'!A41","v":"Veprimet për të përmirësuar menaxhimin: A ka ndonjë gjë që mund të bëni për të përmirësuar menaxhimin?"}]
[]
[]
[]
[null,{"$f":"'Common text'!A42","v":"Burimet e informacionit: Çfarë informacioni (provash) keni përdorur për t'iu përgjigjur kësaj pyetjeje? (Ju lutemi, shënoni kutitë përkatëse dhe shtoni detaje në kolonën më poshtë)"}]
[]
[{"$f":"'Common text'!A50","v":"Vrojtimi dhe Monitorimi"}]
[{"$f":"'Common text'!A51","v":"Plani i menaxhimit apo dokumente të tjera zyrtare"}]
[{"$f":"'Common text'!A52","v":"Përvoja e stafit"}]
[{"$f":"'Common text'!A53","v":"Mendime të ekspertit të jashtëm"}]
[{"$f":"'Common text'!A54","v":"Opinioni i komunitetit /njohuri tradicionale"}]
[{"$f":"'Common text'!A55","v":"Të tjera (specifiko)"}]

{"sheet":"33.","index":47,"n_rows":28,"n_cols":4,"rows_kept":28,"cut":false,"hidden":false,"merged":[]}
[null,{"$f":"'Q&A_Alb'!AI2","v":"33. Kërcënimet"},null,{"$f":"'Common text'!A23","v":"Kthehu tek METT4 Pyetjet dhe Rezultatet"}]
[null,{"$f":"'Common text'!A34","v":"Kjo pyetje nuk është e rëndësishme për këtë ZM.            Nëse zgjidhni këtë, ju lutemi shpjegoni më poshtë pse kjo nuk është e rëndësishme"}]
[{"$f":"'Common text'!A37","v":"Shpjegimi"},null,null,{"$f":"'Common text'!A24","v":"Shko tek Treguesi pasardhës"}]
[]
[null,{"$f":"'Q&A_Alb'!AI3","v":"A trajtohen në mënyrë efektive kërcënimet ndaj vlerave kryesore të zonës së mbrojtur?"}]
[{"$f":"'Common text'!A38","v":"Ndihmë për t'iu përgjigjur kësaj pyetjeje:"},{"$f":"'Q&A_Alb'!AI4","v":"Kjo duhet të marrë parasysh kërcënimet e identifikuara në vlerësimin e kërcënimeve me shtrirjen dhe ashpërsinë më të madhe. Fokusi është më pas në mënyrën se si po menaxhohen kërcënimet e identifikuara. Ne sugjerojmë të shënoni pikën B nëse janë adresuar vetëm disa kërcënime ose kërcënimet janë adresuar vetëm pjesërisht, një C nëse shumica e kërcënimeve janë adresuar dhe një D nëse janë adresuar të gjitha kërcënimet."}]
[null,{"$f":"'Common text'!A39","v":"Përgjigjet e mundshme"}]
["A     ",{"$f":"'Q&A_Alb'!AI5","v":"Kërcënimet ndaj vlerave kryesore nuk po trajtohen nga menaxhimi"}]
["B",{"$f":"'Q&A_Alb'!AI6","v":"Menaxhimi i kërcënimeve ndaj vlerave kryesore po kryhet vetëm në një nivel minimal"}]
["C",{"$f":"'Q&A_Alb'!AI7","v":"Shumica e kërcënimeve të rëndësishme ndaj vlerave kryesore po trajtohen në mënyrë thelbësore nga menaxhimi"}]
["D",{"$f":"'Q&A_Alb'!AI8","v":"Kërcënimet ndaj vlerave kryesore po trajtohen në mënyrë gjithëpërfshirëse nga menaxhimi"}]
[]
[null,{"$f":"'Common text'!A40","v":"Dëshmitë dhe arsyetimi: Cilat janë arsyet e zgjedhjes së kësaj përgjigje?"}]
[]
[]
[]
[null,{"$f":"'Common text'!A41","v":"Veprimet për të përmirësuar menaxhimin: A ka ndonjë gjë që mund të bëni për të përmirësuar menaxhimin?"}]
[]
[]
[]
[null,{"$f":"'Common text'!A42","v":"Burimet e informacionit: Çfarë informacioni (provash) keni përdorur për t'iu përgjigjur kësaj pyetjeje? (Ju lutemi, shënoni kutitë përkatëse dhe shtoni detaje në kolonën më poshtë)"}]
[]
[{"$f":"'Common text'!A50","v":"Vrojtimi dhe Monitorimi"}]
[{"$f":"'Common text'!A51","v":"Plani i menaxhimit apo dokumente të tjera zyrtare"}]
[{"$f":"'Common text'!A52","v":"Përvoja e stafit"}]
[{"$f":"'Common text'!A53","v":"Mendime të ekspertit të jashtëm"}]
[{"$f":"'Common text'!A54","v":"Opinioni i komunitetit /njohuri tradicionale"}]
[{"$f":"'Common text'!A55","v":"Të tjera (specifiko)"}]

{"sheet":"34.","index":48,"n_rows":28,"n_cols":4,"rows_kept":28,"cut":false,"hidden":false,"merged":[]}
[null,{"$f":"'Q&A_Alb'!AJ2","v":"34. Lidhja me ekosisteme të tjera natyrore"},null,"Ktheu tek METT 4 pyetjet+piket e mbledhura"]
[null,{"$f":"'Common text'!A34","v":"Kjo pyetje nuk është e rëndësishme për këtë ZM.            Nëse zgjidhni këtë, ju lutemi shpjegoni më poshtë pse kjo nuk është e rëndësishme"}]
["Shpjegimi",null,null,"Shko tek indikatori tjeter"]
[]
[null,{"$f":"'Q&A_Alb'!AJ3","v":"A janë vlerësuar dhe zbatuar nevojat për lidhje funksionale me ekosisteme të tjera natyrore?"}]
["Ndihmë për t'iu përgjigjur kësaj pyetjeje:",{"$f":"'Q&A_Alb'!AJ4","v":"Zonat e mbrojtura mbeten të pambrojtura nëse llojet që ato përmbajnë janë të izoluara gjenetikisht dhe zona e mbrojtur qëndron si një ishull. Kjo pyetje fokusohet në lidhjen funksionale të zonës së mbrojtur, duke adresuar lidhjet e saj të drejtpërdrejta me ekosistemet e tjera natyrore, përdorimin e korridoreve biologjike, etj. Kjo pyetje gjithashtu mund të mos jetë e zbatueshme për disa zona (p.sh. ishujt e largët në det të hapur të mbrojtur për shkak të florës dhe faunës unike, ose mikro-rezervat e krijuara për të mbrojtur të afërmit e egër të kulturave të veçanta)."}]
[null,"Përgjigjet e mundshme"]
["A     ",{"$f":"'Q&A_Alb'!AJ5","v":"Kërkesat për lidhje funksionale të zonës nuk janë vlerësuar apo konsideruar"}]
["B",{"$f":"'Q&A_Alb'!AJ6","v":"Kërkesat për lidhje funksionale të zonës janë vlerësuar por nuk janë ndërmarrë veprimet e nevojshme"}]
["C",{"$f":"'Q&A_Alb'!AJ7","v":"Kërkesat për lidhje funksionale janë vlerësuar dhe janë ndërmarrë disa veprime, por jo të mjaftueshme për të arritur lidhje funksionale"}]
["D",{"$f":"'Q&A_Alb'!AJ8","v":"Kërkesat për lidhje funksionale janë vlerësuar dhe janë ndërmarrë veprimet e nevojshme për të arritur lidhjen funksionale"}]
[]
[null,"Dëshmia dhe arsyetimi: Cilat janë arsyet e zgjedhjes së kësaj përgjigje?"]
[]
[]
[]
[null,"Veprimet për të përmirësuar menaxhimin: A ka ndonjë gjë që mund të bëni për të përmirësuar menaxhimin?"]
[]
[]
[]
[null,"Burimet e informacionit: Çfarë informacioni (provash) keni përdorur për t'iu përgjigjur kësaj pyetjeje? (Ju lutemi, shënoni kutitë përkatëse dhe shtoni detaje në kolonën më poshtë)"]
[]
[{"$f":"'Common text'!A50","v":"Vrojtimi dhe Monitorimi"}]
[{"$f":"'Common text'!A51","v":"Plani i menaxhimit apo dokumente të tjera zyrtare"}]
[{"$f":"'Common text'!A52","v":"Përvoja e stafit"}]
[{"$f":"'Common text'!A53","v":"Mendime të ekspertit të jashtëm"}]
[{"$f":"'Common text'!A54","v":"Opinioni i komunitetit /njohuri tradicionale"}]
[{"$f":"'Common text'!A55","v":"Të tjera (specifiko)"}]

{"sheet":"Common text","index":49,"n_rows":55,"n_cols":1,"rows_kept":55,"cut":false,"hidden":true,"merged":[]}
[]
["MJETI I VLERËSIMIT TE EFEKTIVITETIT TË MENAXHIMIT\nVersioni 4"]
["METT 4 Përmbledhje"]
["Paneli Kryesor"]
["Atributet e zonës së mbrojtur"]
["Ruaj"]
["Vendos PASSWORD për të gjitha fletët e punës"]
["Hiq PASSWORD për të gjitha fletët e punës"]
[]
[]
["METT 4 Pyetjet dhe rezultatet"]
["Fleta e Vlerësimit të kërcënimeve"]
["Eksporto Atributet e ZM"]
[]
[]
["Eksporto të dhënat mbi Kërcënimet"]
["Trego udhëzuesin"]
["Rishiko Veprimet për përmirësimin e menaxhimit"]
[]
[]
[]
[]
["Kthehu tek METT4 Pyetjet dhe Rezultatet"]
["Shko tek Treguesi pasardhës"]
["Shko tek Plani i Veprimeve për menaxhim"]
[]
[]
[]
[]
[]
[]
["Kthehu te Atributet Kryesore të ZM"]
[]
["Kjo pyetje nuk është e rëndësishme për këtë ZM.            Nëse zgjidhni këtë, ju lutemi shpjegoni më poshtë pse kjo nuk është e rëndësishme"]
[]
[]
["Shpjegimi"]
["Ndihmë për t'iu përgjigjur kësaj pyetjeje:"]
["Përgjigjet e mundshme"]
["Dëshmitë dhe arsyetimi: Cilat janë arsyet e zgjedhjes së kësaj përgjigje?"]
["Veprimet për të përmirësuar menaxhimin: A ka ndonjë gjë që mund të bëni për të përmirësuar menaxhimin?"]
["Burimet e informacionit: Çfarë informacioni (provash) keni përdorur për t'iu përgjigjur kësaj pyetjeje? (Ju lutemi, shënoni kutitë përkatëse dhe shtoni detaje në kolonën më poshtë)"]
["Planifikimi"]
["Procesi"]
["Inpute"]
["Rezultate"]
["Arritje"]
[]
[]
["Vrojtimi dhe Monitorimi"]
["Plani i menaxhimit apo dokumente të tjera zyrtare"]
["Përvoja e stafit"]
["Mendime të ekspertit të jashtëm"]
["Opinioni i komunitetit /njohuri tradicionale"]
["Të tjera (specifiko)"]

{"sheet":"Vlerësimi i detajuar i vlerave","index":50,"n_rows":23,"n_cols":7,"rows_kept":23,"cut":false,"hidden":false,"merged":[[2,0,2,4],[4,0,4,4],[5,0,5,4],[6,0,6,4],[1,0,1,4],[3,0,3,4],[3,15,3,18],[16,0,16,4],[10,0,10,4],[7,0,7,4],[8,0,8,4],[11,0,11,4],[12,0,12,4],[13,0,13,4],[14,0,14,4],[9,0,9,4],[15,0,15,4]]}
["Vlerësimi i detajuar i vlerave",null,null,null,null,null,{"$f":"'Common text'!A23","v":"Kthehu tek METT4 Pyetjet dhe Rezultatet"}]
["Ky vlerësim duhet të kryhet aty ku ka të dhëna të mjaftueshme në dispozicion për gjendjen dhe tendencën e vlerave për të qenë në gjendje të bëhet një vlerësim. Ai nuk kontribuon në 'rezultatin' e përgjithshëm të efektivitetit të menaxhimit në METT, por mund të informojë vlerësimin mbi gjendjen e vlerave që është bërë në pyetjen 35. Në plotësimin e tabelës më poshtë, do të jetë e rëndësishme të rishikohen rezultatet e disponueshme të monitorimit dhe të vizatohen mbi njohuritë e studiuesve, menaxherëve dhe anëtarëve të komunitetit në arritjen e një kuptimi konsensus të gjendjes dhe prirjes së vlerave. Nëse nuk ka njohuri të mjaftueshme për të bërë këtë vlerësim, kjo duhet të tregohet në kutinë më poshtë. Nëse ju mungojnë njohuritë specifike për të plotësuar tabelën e mëposhtme, ju lutemi jepni një vlerësim në pyetjen 35 bazuar në njohuritë e disponueshme."]
["Nuk ka informacion të mjaftueshëm për të vlerësuar gjendjen dhe tendencën në vlerat e nominuara",null,null,null,null,null,{"$f":"'Common text'!A24","v":"Shko tek Treguesi pasardhës"}]
["Gjendja: Për secilën nga pesë vlerat kryesore që janë renditur për këtë zonë të mbrojtur (dhe që janë kopjuar nga fleta e atributeve të PA në tabelën më poshtë), përshkruani gjendjen e secilës vlerë duke përdorur një shkallë (shumë të mirë, të mirë, të drejtë ose dobët), bazuar në ekspertizën kolektive të vlerësuesve dhe duke përdorur udhëzuesin e pikëve më poshtë. Vlerësimi më i përshtatshëm i gjendjes  mund të zgjidhet nga lista."]
["    Shumë mirë: gjendja e vlerës është në thelb e pandryshuar"]
["     Mirë: Gjendja e vlerës është e dëmtuar në një masë të vogël, por vlera ka të ngjarë të mbahet në këtë gjendje pa ndërhyrje."]
["     Mesatare: Vlera është e dëmtuar mesatarisht dhe ka të ngjarë të kërkojë ndërhyrje ose kohë të konsiderueshme për t'u rikuperuar"]
["     E dobët: Vlera është dëmtuar ndjeshëm dhe do të kërkojë ndërhyrje për t'u rikuperuar."]
["     Nuk e di: Nuk ka informacion në dispozicion për vlerën, kështu që gjendja dhe tendenca nuk mund të përcaktohen.\t"]
[]
["Trendi: Më pas, mendoni se si ka ndryshuar vlera që nga koha kur zona e mbrojtur u caktua për herë të parë dhe për të përshkruar trendin e saj duke përdorur vlerësimin më poshtë, i cili mund të zgjidhet nga lista."]
["Duke u Përmirësuar: Gjendja e vlerës shkon drejt përmirësimit apo rikuperimit"]
["E qëndrueshme: Gjendja e vlerës është pothuajse e njëjtë"]
["Duke u Përkeqësuar: Gjendja e vlerës po përkeqësohet"]
["Nuk e di: Nuk ka informacion në dispozicion për vlerën, kështu që gjendja dhe tendenca nuk mund të përcaktohen."]
[]
["Për çdo vlerë të vlerësuar, jepni një arsyetim të vlerësimit. Për shembull, një popullatë e kafshëve të egra mund të jetë në gjendje shumë të mirë sepse është në kapacitet mbajtës ose është ekuivalent me një nivel referimi për një ekosistem të shëndetshëm. Sugjerimet e menaxhmentit për përmirësimin e gjendjes dhe/ose tendencës duhet të shtohen gjithashtu aty ku është e nevojshme."]
["Vlera","Gjendja","Tendenca","Arsyetimi për vlerësimin","Mënyrat për të përmirësuar vlerën"]
[{"$f":"'Atributet e zonës së mbrojtur'!B31","v":0},"Shumë mirë"]
[{"$f":"'Atributet e zonës së mbrojtur'!B32","v":0}]
[{"$f":"'Atributet e zonës së mbrojtur'!B33","v":0}]
[{"$f":"'Atributet e zonës së mbrojtur'!B34","v":0}]
[{"$f":"'Atributet e zonës së mbrojtur'!B35","v":0}]

{"sheet":"35.","index":51,"n_rows":28,"n_cols":4,"rows_kept":28,"cut":false,"hidden":false,"merged":[]}
[null,{"$f":"'Q&A_Alb'!AK2","v":"35. Gjendja e vlerave natyrore"},null,{"$f":"'Common text'!A23","v":"Kthehu tek METT4 Pyetjet dhe Rezultatet"}]
[null,{"$f":"'Common text'!A34","v":"Kjo pyetje nuk është e rëndësishme për këtë ZM.            Nëse zgjidhni këtë, ju lutemi shpjegoni më poshtë pse kjo nuk është e rëndësishme"}]
[{"$f":"'Common text'!A37","v":"Shpjegimi"},null,null,{"$f":"'Common text'!A24","v":"Shko tek Treguesi pasardhës"}]
[]
[null,{"$f":"'Q&A_Alb'!AK3","v":"Cila është gjendja e vlerave të rëndësishme natyrore të zonës së mbrojtur në krahasim me kohën kur është vlerësuar gjendja e tyre për herë të parë?"}]
[{"$f":"'Common text'!A38","v":"Ndihmë për t'iu përgjigjur kësaj pyetjeje:"},{"$f":"'Q&A_Alb'!AK4","v":"Merrni parasysh vlerat e specifikuara në fletën Atributet e Zonës së Mbrojtur dhe çdo informacion mbi statusin dhe trendin në fletën e Vlerësimit të Detajuar të Vlerave. Vlerësimi këtu duhet të jetë një përmbledhje e përgjithshme e vlerave kryesore të zonës së mbrojtur."}]
[null,{"$f":"'Common text'!A39","v":"Përgjigjet e mundshme"}]
["A     ",{"$f":"'Q&A_Alb'!AK5","v":"Shumë vlera të rëndësishme natyrore po degradohen rëndë"}]
["B",{"$f":"'Q&A_Alb'!AK6","v":"Disa vlera natyrore po degradohen rëndë"}]
["C",{"$f":"'Q&A_Alb'!AK7","v":"Disa vlera natyrore janë duke u degraduar pjesërisht, por vlerat më të rëndësishme nuk janë ndikuar ndjeshëm"}]
["D",{"$f":"'Q&A_Alb'!AK8","v":"Vlerat natyrore janë kryesisht të paprekura"}]
[]
[null,{"$f":"'Common text'!A40","v":"Dëshmitë dhe arsyetimi: Cilat janë arsyet e zgjedhjes së kësaj përgjigje?"}]
[]
[]
[]
[null,{"$f":"'Common text'!A41","v":"Veprimet për të përmirësuar menaxhimin: A ka ndonjë gjë që mund të bëni për të përmirësuar menaxhimin?"}]
[]
[]
[]
[null,{"$f":"'Common text'!A42","v":"Burimet e informacionit: Çfarë informacioni (provash) keni përdorur për t'iu përgjigjur kësaj pyetjeje? (Ju lutemi, shënoni kutitë përkatëse dhe shtoni detaje në kolonën më poshtë)"}]
[]
[{"$f":"'Common text'!A50","v":"Vrojtimi dhe Monitorimi"}]
[{"$f":"'Common text'!A51","v":"Plani i menaxhimit apo dokumente të tjera zyrtare"}]
[{"$f":"'Common text'!A52","v":"Përvoja e stafit"}]
[{"$f":"'Common text'!A53","v":"Mendime të ekspertit të jashtëm"}]
[{"$f":"'Common text'!A54","v":"Opinioni i komunitetit /njohuri tradicionale"}]
[{"$f":"'Common text'!A55","v":"Të tjera (specifiko)"}]

{"sheet":"35A.","index":52,"n_rows":26,"n_cols":4,"rows_kept":26,"cut":false,"hidden":false,"merged":[]}
[null,{"$f":"'Q&A_Alb'!AL2","v":"35 a-c Pika shtesë - Gjendja e vlerave natyrore"},null,{"$f":"'Common text'!A23","v":"Kthehu tek METT4 Pyetjet dhe Rezultatet"}]
[null,{"$f":"'Common text'!A34","v":"Kjo pyetje nuk është e rëndësishme për këtë ZM.            Nëse zgjidhni këtë, ju lutemi shpjegoni më poshtë pse kjo nuk është e rëndësishme"}]
[{"$f":"'Common text'!A37","v":"Shpjegimi"},null,null,{"$f":"'Common text'!A24","v":"Shko tek Treguesi pasardhës"}]
[]
[{"$f":"'Common text'!A38","v":"Ndihmë për t'iu përgjigjur kësaj pyetjeje:"},{"$f":"'Q&A_Alb'!AL4","v":"Këto pyetje shtesë identifikojnë elementë të tjerë të rëndësishëm në lidhje me menaxhimin e zonave të mbrojtura dhe vlerat natyrore Të gjitha këto pyetje shtesë duhet të merren parasysh gjatë vlerësimit. Nëse gjendja e zonës së mbrojtur përputhet me deklaratën e dhënë, shënoni një shenjë në kutinë pranë saj. Vini re se monitorimi mund të kryhet nga rangersat (për shembull si pjesë e monitorimit SMART), nga shkencëtarë studiues që vijnë dhe bëjnë numërime periodike, nga qytetarët (shkenca qytetare) vullnetarë ose nga komunitetet lokale. Programet e menaxhimit nënkuptojnë diçka më shumë sesa menaxhimin e përditshëm, si programet e restaurimit, çrrënjosjen e llojeve invazive, krijimin e habitateve ose përpjekje të veçanta për reduktimin e kërcënimeve të gjuetisë pa leje. Disa kërcënime dhe presione afatgjata duhet të trajtohen si pjesë rutinë e menaxhimit, të tilla si kontrollet kundër gjuetisë së paligjshme, heqja e rregullt e llojeve invazive ose furnizimi sezonal me ujë shtesë. Pyetja nënkupton që veprimi i menaxhimit është një hap i qëllimshëm për të adresuar një kërcënim aktual ose potencial."}]
[null,"Pyetje shtesë për gjendjen e vlerave",0]
[null,{"$f":"'Q&A_Alb'!AL5","v":"35a) Vlerësimi i gjendjes së vlerave natyrore bazohet në kërkime dhe/ose monitorime"}]
[null,{"$f":"'Q&A_Alb'!AL6","v":"35b) Programe specifike menaxhimi po zbatohen për të adresuar kërcënimet ndaj vlerave natyrore"}]
[null,{"$f":"'Q&A_Alb'!AL7","v":"35c) Aktivitetet për ruajtjen e vlerave natyrore janë pjesë rutinë e menaxhimit të zonave të mbrojtura"}]
[]
[null,{"$f":"'Common text'!A40","v":"Dëshmitë dhe arsyetimi: Cilat janë arsyet e zgjedhjes së kësaj përgjigje?"}]
[]
[]
[]
[null,{"$f":"'Common text'!A41","v":"Veprimet për të përmirësuar menaxhimin: A ka ndonjë gjë që mund të bëni për të përmirësuar menaxhimin?"}]
[]
[]
[]
[null,{"$f":"'Common text'!A42","v":"Burimet e informacionit: Çfarë informacioni (provash) keni përdorur për t'iu përgjigjur kësaj pyetjeje? (Ju lutemi, shënoni kutitë përkatëse dhe shtoni detaje në kolonën më poshtë)"}]
[]
[{"$f":"'Common text'!A50","v":"Vrojtimi dhe Monitorimi"}]
[{"$f":"'Common text'!A51","v":"Plani i menaxhimit apo dokumente të tjera zyrtare"}]
[{"$f":"'Common text'!A52","v":"Përvoja e stafit"}]
[{"$f":"'Common text'!A53","v":"Mendime të ekspertit të jashtëm"}]
[{"$f":"'Common text'!A54","v":"Opinioni i komunitetit /njohuri tradicionale"}]
[{"$f":"'Common text'!A55","v":"Të tjera (specifiko)"}]

{"sheet":"36.","index":53,"n_rows":28,"n_cols":4,"rows_kept":28,"cut":false,"hidden":false,"merged":[]}
[null,{"$f":"'Q&A_Alb'!AM2","v":"36. Gjendja e vlerave kulturore"},null,{"$f":"'Common text'!A23","v":"Kthehu tek METT4 Pyetjet dhe Rezultatet"}]
[null,{"$f":"'Common text'!A34","v":"Kjo pyetje nuk është e rëndësishme për këtë ZM.            Nëse zgjidhni këtë, ju lutemi shpjegoni më poshtë pse kjo nuk është e rëndësishme"}]
[{"$f":"'Common text'!A37","v":"Shpjegimi"},null,null,{"$f":"'Common text'!A24","v":"Shko tek Treguesi pasardhës"}]
[]
[null,{"$f":"'Q&A_Alb'!AM3","v":"Cila është gjendja e vlerave të rëndësishme kulturore të zonës së mbrojtur në krahasim me kohën kur është vlerësuar gjendja e tyre për herë të parë?"}]
[{"$f":"'Common text'!A38","v":"Ndihmë për t'iu përgjigjur kësaj pyetjeje:"},{"$f":"'Q&A_Alb'!AM4","v":"Shumë zona të mbrojtura përmbajnë vlera të rëndësishme kulturore: vende të shenjta natyrore, rrugë pelegrinazhi, ndërtesa historike, mbetje arkeologjike, etj. Menaxherët e zonave të mbrojtura janë përgjithësisht të paktën pjesërisht përgjegjës për mirëmbajtjen e tyre; në rastin e disa zonave të mbrojtura privatisht ose nga popullsi indigjene (ICCA) këto mund të jenë vlerat kryesore që nxisin mbrojtjen."}]
[null,{"$f":"'Common text'!A39","v":"Përgjigjet e mundshme"}]
["A     ",{"$f":"'Q&A_Alb'!AM5","v":"Shumë vlera të rëndësishme kulturore po degradohen rëndë"}]
["B",{"$f":"'Q&A_Alb'!AM6","v":"Disa vlera kulturore po degradohen rëndë"}]
["C",{"$f":"'Q&A_Alb'!AM7","v":"Disa vlera kulturore po degradohen pjesërisht, por vlerat më të rëndësishme nuk janë ndikuar ndjeshëm"}]
["D",{"$f":"'Q&A_Alb'!AM8","v":"Vlerat kulturore janë kryesisht të paprekura"}]
[]
[null,{"$f":"'Common text'!A40","v":"Dëshmitë dhe arsyetimi: Cilat janë arsyet e zgjedhjes së kësaj përgjigje?"}]
[]
[]
[]
[null,{"$f":"'Common text'!A41","v":"Veprimet për të përmirësuar menaxhimin: A ka ndonjë gjë që mund të bëni për të përmirësuar menaxhimin?"}]
[]
[]
[]
[null,{"$f":"'Common text'!A42","v":"Burimet e informacionit: Çfarë informacioni (provash) keni përdorur për t'iu përgjigjur kësaj pyetjeje? (Ju lutemi, shënoni kutitë përkatëse dhe shtoni detaje në kolonën më poshtë)"}]
[]
[{"$f":"'Common text'!A50","v":"Vrojtimi dhe Monitorimi"}]
[{"$f":"'Common text'!A51","v":"Plani i menaxhimit apo dokumente të tjera zyrtare"}]
[{"$f":"'Common text'!A52","v":"Përvoja e stafit"}]
[{"$f":"'Common text'!A53","v":"Mendime të ekspertit të jashtëm"}]
[{"$f":"'Common text'!A54","v":"Opinioni i komunitetit /njohuri tradicionale"}]
[{"$f":"'Common text'!A55","v":"Të tjera (specifiko)"}]

{"sheet":"36A.","index":54,"n_rows":26,"n_cols":4,"rows_kept":26,"cut":false,"hidden":false,"merged":[]}
[null,{"$f":"'Q&A_Alb'!AN2","v":"36 a-c Pika shtesë - Gjendja e vlerave kulturore"},null,{"$f":"'Common text'!A23","v":"Kthehu tek METT4 Pyetjet dhe Rezultatet"}]
[null,{"$f":"'Common text'!A34","v":"Kjo pyetje nuk është e rëndësishme për këtë ZM.            Nëse zgjidhni këtë, ju lutemi shpjegoni më poshtë pse kjo nuk është e rëndësishme"}]
[{"$f":"'Common text'!A37","v":"Shpjegimi"},null,null,{"$f":"'Common text'!A24","v":"Shko tek Treguesi pasardhës"}]
[]
[{"$f":"'Common text'!A38","v":"Ndihmë për t'iu përgjigjur kësaj pyetjeje:"},{"$f":"'Q&A_Alb'!AN4","v":"Këto pyetje shtesë identifikojnë elementë të tjerë të rëndësishëm në lidhje me menaxhimin e zonave të mbrojtura dhe vlerat kulturore Të gjitha këto pyetje shtesë duhet të merren parasysh gjatë vlerësimit. Nëse gjendja e zonës përputhet me deklaratën që bëhet, shënoni një shenjë në kutinë pranë saj. Monitorimi ka të ngjarë të jetë më pak formal se sa për monitorimin e vlerave natyrore, por nënkupton që disa monitorime të rregullta po bëhen; për shembull që rangersat kontrollojnë rregullisht nëse vendet historike ose kulturore janë të padëmtuara dhe – aty ku është e përshtatshme – se ka kontakte të rregullta me institucionet ose komunitetet që janë të interesuara për këto vende. Programet e veçanta të menaxhimit përfshijnë çështje të tilla si rrethimi i mbetjeve arkeologjike, riparimi i shtigjeve antike ose restaurimi i menaxhimit tradicional të pyjeve. Menaxhimi rutinë mund të përfshijë punën me komunitetet lokale për të siguruar që vendet e shenjta natyrore të mbeten të paprekura, zona zonimi për të shmangur dëmtimet nga vizitorët në vendet historike ose parahistorike ose mirëmbajtjen e rregullt të sistemeve tradicionale të menaxhimit."}]
[null,"Pyetje shtesë për gjendjen e vlerave",0]
[null,{"$f":"'Q&A_Alb'!AN5","v":"36a) Vlerësimi i gjendjes së vlerave kulturore bazohet në kërkime dhe/ose monitorime"}]
[null,{"$f":"'Q&A_Alb'!AN6","v":"36b) Programe specifike të menaxhimit janë duke u zbatuar për të adresuar kërcënimet ndaj vlerave kulturore"}]
[null,{"$f":"'Q&A_Alb'!AN7","v":"36c) Aktivitetet për ruajtjen e vlerave kulturore janë pjesë rutinë e menaxhimit të zonave të mbrojtura"}]
[]
[null,{"$f":"'Common text'!A40","v":"Dëshmitë dhe arsyetimi: Cilat janë arsyet e zgjedhjes së kësaj përgjigje?"}]
[]
[]
[]
[null,{"$f":"'Common text'!A41","v":"Veprimet për të përmirësuar menaxhimin: A ka ndonjë gjë që mund të bëni për të përmirësuar menaxhimin?"}]
[]
[]
[]
[null,{"$f":"'Common text'!A42","v":"Burimet e informacionit: Çfarë informacioni (provash) keni përdorur për t'iu përgjigjur kësaj pyetjeje? (Ju lutemi, shënoni kutitë përkatëse dhe shtoni detaje në kolonën më poshtë)"}]
[]
[{"$f":"'Common text'!A50","v":"Vrojtimi dhe Monitorimi"}]
[{"$f":"'Common text'!A51","v":"Plani i menaxhimit apo dokumente të tjera zyrtare"}]
[{"$f":"'Common text'!A52","v":"Përvoja e stafit"}]
[{"$f":"'Common text'!A53","v":"Mendime të ekspertit të jashtëm"}]
[{"$f":"'Common text'!A54","v":"Opinioni i komunitetit /njohuri tradicionale"}]
[{"$f":"'Common text'!A55","v":"Të tjera (specifiko)"}]

{"sheet":"Vlerësimi i detajuar i llojeve ","index":55,"n_rows":18,"n_cols":11,"rows_kept":18,"cut":false,"hidden":false,"merged":[[0,4,0,7],[2,0,2,8],[3,14,3,17],[17,0,17,8],[1,0,1,8],[4,0,4,8],[3,0,3,8],[5,0,5,8],[6,0,6,8],[7,0,7,8],[8,0,8,8],[9,0,9,8],[16,0,16,7]]}
["Vlerësimi i detajuar i llojeve",null,null,null,null,null,null,null,null,null,"Ktheu tek METT 4 pyetjet+piket e mbledhura"]
["Ky vlerësim duhet të kryhet aty ku ka të dhëna të mjaftueshme të disponueshme për statusin e llojeve treguese kyç të pranishme në zonën e mbrojtur për të qenë në gjendje për të bërë një vlerësim. Ai nuk kontribuon në 'rezultatin' e përgjithshëm të efektivitetit të menaxhimit në METT, por mund të informojë vlerësimin mbi statusin e ruajtjes së llojeve tregues kyç që bëhet në pyetjen 37. Në plotësimin e tabelës më poshtë, do të jetë e rëndësishme të rishikohen rezultatet e disponueshme të monitorimit dhe për të mbështetur njohuritë e studiuesve, menaxherëve dhe anëtarëve të komunitetit në arritjen e një konsensusi për statusin e specieve treguese kyçe. Nëse nuk ka njohuri të mjaftueshme për të bërë këtë vlerësim, kjo duhet të tregohet në kutinë më poshtë."]
["Nuk ka informacion të mjaftueshëm për të vlerësuar gjendjen dhe tendencën në llojet e nominuara",null,null,null,null,null,null,null,null,null,"Shko tek indikatori tjeter"]
["Ndihmë për diskutimin e statusit të ruajtjes së llojeve tregues kyç"]
["“Përkufizimi i llojeve treguese\nNjë lloj i ndjeshem ndaj ndryshimeve mjedisore, i cili mund të sigurojë një masë të shëndetit për ekosistemin. Llojet tregues mund të sinjalizojnë një ndryshim në gjendjen biologjike të një ekosistemi të caktuar, dhe në këtë mënyrë mund të përdoren si një tregues për të diagnostikuar shëndetin e një ekosistemi. Për shembull, bimët ose likenet e ndjeshme ndaj metaleve të rënda ose acideve në reshje mund të jenë tregues të ndotjes së ajrit. Llojet tregues gjithashtu mund të pasqyrojnë një grup unik cilësish ose karakteristikash mjedisore që gjenden në një vend të caktuar, siç është një mikroklimë unike. Megjithatë, duhet treguar kujdes në përdorimin e llojeve treguese. Gjykimi i një ekosistemi bazuar në përgjigjen e një lloji të vetëm tregues mund të jetë si të marrësh një puls tek një pacient dhe të përshkruaje menjëherë një trajtim pa a) ekzaminim të mëtejshëm, b) tregues të tjerë si presioni i gjakut ose c) njohuri për të kaluarën mjekësore të pacientit.\nBurimet: https://www.iucn.org/sites/dev/files/iucn-glossary-of-definitions_march2018_en.pdf dhe https://www.eopugetsound.org/articles/indicator-species\""]
["1. Përcaktoni se cilat janë llojet treguese kryesore dhe vendosni emrat e pesë llojeve më të rëndësishme në tabelën e mëposhtme."]
["2. Konsideroni se si ka ndryshuar statusi i secilit prej llojeve treguese kyçe në krahasim me pesë vjet më parë për gjashtë atributet në tabelë (Shtrirja, Madhësia e popullatës, Vdekshmëria, riprodhimi dhe struktura e moshës, siperfaqja e habitatit, cilësia e habitatit dhe Kërcënimet kryesore). Vlerësoni çdo atribut duke përdorur kriteret e mëposhtëme: në rritje, e qëndrueshme ose në rënie ose përmirësim, e qëndrueshme ose në rënie."]
["3. Jepni një arsye për vlerësimin e statusit në këtë mënyrë dhe më pas tregoni se si mund të përmirësohet."]
["4. Së fundi, merrni parasysh rezultatet kur i përgjigjeni pyetjes në fletën tjetër të punës (Pyetja 37)."]
[]
["Lloji tregues kyc","Shtrirja","Madhësia e popullates","Riprodhimi, vdekshmëria, struktura e moshës ","Sip. e habitatit","Cilësia e habitatit","Shtrirja e kërcënimeve ","Arsyeja e vlerësimit ","Mënyrat për të përmirësuar statusin e ruajtjes së specieve"]
[]
[]
[]
[]
[]
[]
["I adoptuar nga:\nKomisioni Evropian (2006): Vlerësimi, monitorimi dhe raportimi sipas nenit 17 të Direktivës së Habitateve, shih https://www.bfn.de/fileadmin/MDB/documents/themen/natura2000/ec_guidance_2006_art17.pdf "]

{"sheet":"Q&A_Alb","index":56,"n_rows":8,"n_cols":42,"rows_kept":8,"cut":false,"hidden":true,"merged":[]}
[1,2,3,4,5,6,7,"7a.",8,9,10,11,12,13,14,15,16,17,18,19,20,21,22,23,24,25,26,27,28,29,30,31,"31a.",32,33,34,35,41,36,"36a.",37,38]
["1. Statusi Ligjor","2. Objektivat e zonës së mbrojtur","3. Rregullat/kontrolli i zonave të mbrojtura","4. Planifikimi për tokat /ujërat përreth zonës së mbrojtur","5. Forma dhe madhësia e zonës së mbrojtur","6. Shënimi i kufirit të zonës së mbrojtur","7. Plani i menaxhimit","Pikat shtesë për pyetjen  7. Plani i menaxhimit","8. Planet e punës","9. Inventari i burimeve","10. Numri i stafit","11. Njohuritë dhe aftësitë e stafit","12. Buxheti aktual","13. Siguria buxhetore","14. Menaxhimi i buxhetit","15. Pajisjet dhe shërbimet ndihmëse","16. Zbatimi i ligjit","17. Sistemet e ruajtjes","18. Siguria e personelit","19. Kërkimi shkencor","20. Monitorimi dhe vlerësimi","21. Menaxhimi i burimeve","22. Ndryshimet Klimatike","23. Sekuestrimi i karbonit","24. Shërbimet e ekosistemeve","25. Edukimi dhe ndërgjegjësimi","26. Fqinjët shtetërorë dhe komercialë","27. Operatorët turistikë","28. Tarifat","29. Objektet dhe shërbimet për vizitorët","30. Popullsia indigjene","31. Komunitetet lokale","31a-c Pika shtesë - Ndikimi në komunitet/popullsi indigjene","32. Përfitime për jetesën e komuniteteve","33. Kërcënimet","34. Lidhja me ekosisteme të tjera natyrore","35. Gjendja e vlerave natyrore","35 a-c Pika shtesë - Gjendja e vlerave natyrore","36. Gjendja e vlerave kulturore","36 a-c Pika shtesë - Gjendja e vlerave kulturore","37. Statusi i ruajtjes së llojeve kryesore tregues","38. Statusi i ruajtjes së habitateve"]
["A ka ZM status ligjor apo është krijuar nëpërmjet \"mjeteve të tjera efektive\"?","A ndërmerret menaxhimi për të arritur objektivat e zonës së mbrojtur?","A janë përcaktuar dhe zbatuar rregullat/kontrollet e duhura për të menaxhuar përdorimin dhe aktivitetet në përputhje me objektivat e menaxhimit të zonës së mbrojtur?","A e njeh zonën e mbrojtur planifikimi i përdorimit të tokës dhe detit jashtë zonës së mbrojtur dhe a kontribuon në arritjen e objektivave të menaxhimit?","A ka zona e mbrojtur madhësinë dhe formën e duhur për të mbrojtur llojet, habitatet, proceset ekologjike dhe basenet ujëmbledhëse me rëndësi kryesore për ruajtjen e natyrës?","A është i njohur dhe i përcaktuar kufiri?","A ekziston një plan menaxhimi apo një dokument i ngjashëm dhe a po zbatohet?",null,"A ekziston një plan pune i vazhdueshëm (me afate të paracaktuara, p.sh., vjetor) dhe a po zbatohet?","A keni informacion të mjaftueshëm për të menaxhuar zonën?","A ka njerëz mjaftueshëm për të menaxhuar zonën e mbrojtur?","A kanë njerëzit e përfshirë në menaxhimin e zonës së mbrojtur njohuritë dhe aftësitë e nevojshme?","A është buxheti aktual i mjaftueshëm?","A është buxheti i sigurt?","A menaxhohet buxheti për të siguruar administrim efektiv të zonës së mbrojtur?","A janë pajisjet dhe shërbimet ndihmëse të mjaftueshme për nevojat e menaxhimit?","A mundet personeli (d.m.th. ata që janë përgjegjës për menaxhimin e zonës) të zbatojnë legjislacionin dhe rregulloret e zonës së mbrojtur?","A ka sisteme (p.sh. patrulla, leje, vrojtim-sinjalizim, etj.) për të kontrolluar aksesin/përdorimin e burimeve në zonën e mbrojtur?","A ka personeli i zonës së mbrojtur kushte të sigurta pune dhe a është siguria në punë prioritet i menaxhimit?","A ekziston një program për kërkimin shkencor I orientuar nga nevojat e menaxhimit?","A monitorohen, vlerësohen dhe përshtaten rregullisht aktivitetet e menaxhimit?","A  kryhet menaxhim aktiv i burimeve natyrore e kulturore?","A menaxhohet me vetëdije zona e mbrojtur për t'iu përshtatur ndryshimeve klimatike?","A po menaxhohet me vetëdije zona e mbrojtur për të parandaluar çlirimin e karbonit dhe për të inkurajuar sekustrimin e mëtejshëm të karbonit?","A e konsideron menaxhimi ofrimin e shërbimeve të ekosistemit?","A ekziston një program edukimi i planifikuar dhe i lidhur me nevojat e menaxhimit?","A ka bashkëpunim me përdoruesit fqinjë shtetërorë dhe komercialë të tokës/detit?","A kontribuojnë operatorët turistikë (bizneset) në menaxhimin e zonës së mbrojtur?","Nëse aplikohen tarifa (d.m.th. tarifat e hyrjes ose gjobat), a ndihmojnë ato menaxhimin e zonës së mbrojtur?","A janë objektet dhe shërbimet për vizitorë t të përshtatshme?","A përfshihen banorët indigjenë në vendimet e menaxhimit?","A kanë komunitetet lokale që jetojnë brenda ose afër zonës së mbrojtur kontribut në vendimet e menaxhimit?",null,"A ofron zona e mbrojtur përfitime të qëndrueshme për jetesën e komuniteteve lokale dhe/ose njerëzit indigjenë, p.sh. të ardhurat, punësimi, pagesa për shërbimet e ekosistemit?","A trajtohen në mënyrë efektive kërcënimet ndaj vlerave kryesore të zonës së mbrojtur?","A janë vlerësuar dhe zbatuar nevojat për lidhje funksionale me ekosisteme të tjera natyrore?","Cila është gjendja e vlerave të rëndësishme natyrore të zonës së mbrojtur në krahasim me kohën kur është vlerësuar gjendja e tyre për herë të parë?",null,"Cila është gjendja e vlerave të rëndësishme kulturore të zonës së mbrojtur në krahasim me kohën kur është vlerësuar gjendja e tyre për herë të parë?",null,"A ka ndryshuar statusi i llojeve kryesore treguese gjatë 5 viteve të fundit?","A ka ndryshuar statusi i habitateve gjatë 5 viteve të fundit?"]
["Kjo zakonisht i referohet vetëm zonave të mbrojtura të menaxhuara nga shteti. Në rastin e shumë zonave të mbrojtura privatisht dhe zonave të ruajtura nga komunitete lokale apo popullsi indigjene (ICCA) statusi ligjor nuk është një opsion dhe kjo pyetje nuk është e zbatueshme. Aty ku zona të tilla të mbrojtura kanë një status formal (p.sh. një marrëveshje ose njohje ligjore e Zonave të Mbrojtura Indigjene), vlerësimi i mëposhtëm duhet të plotësohet.","Kjo i referohet objektivave parësore të menaxhimit të identifikuara në fletën e atributeve të zonës së mbrojtur. Mungesa e objektivave të qarta ndoshta do të thotë se menaxhimi është në vetvete i padrejtuar dhe ka të ngjarë të jetë joefikas: një proces për konfirmimin e objektivave, për shembull një seminar i palëve të interesuara, duhet të shënohet nëse është e nevojshme në Veprimet për përmirësimin e menaxhimit. Referencat kryesore përfshijnë legjislacionin aktual që krijon zonën e mbrojtur, në rastin e zonave të mbrojtura nga shteti, dhe planet e menaxhimit, informacionin dhe njohuritë e aktiviteteve të përditshme.","Kjo i referohet ekzistencës së rregullave ligjore dhe kontrolleve për zbatimin e ligjit; për shembull, zonat e mbrojtura të menaxhuara nga individë privatë, besime fetare apo komunitete lokale duhet të kenë rregulla të qarta në lidhje me përdorimin e tokës dhe ujit.","Edhe pse planifikimi për përdorimin e tokës dhe ujit jashtë zonës së mbrojtur në përgjithësi është jashtë kontrollit të menaxherit të zonës së mbrojtur, vendimet e marra mund të ndikojnë ndjeshëm në zonën e mbrojtur, kështu që është e rëndësishme që të vlerësohen ndikimet e mundshme të planeve të tjera . Shembujt mund të përfshijnë diga në rrjedhën e sipërme që ndërpresin rrjedhat e ujit, zhvillime të mëdha të kultivimit të peshkut që rrisin ndotjen dhe krijojnë shqetësime të konsiderueshme, ose rrallime në shkallë të gjerë të pyjeve në zonat përreth që izolojnë zonën e mbrojtur nga zonat e tjera dhe habitatet natyrore.","Çështjet që duhen marrë parasysh këtu përfshijnë: nëse llojet kryesore janë të mbrojtura në mënyrë adekuate (për shembull do të ishte  problem nëse një zonë e mbrojtur detare nuk do të përfshinte një zonë të afërt ku shumohen shumë nga llojet kryesore të saj), nëse zona është mjaftueshëm e madhe për të mbështetur qëndrueshmërinë e popullatave  dhe nëse ngjarjet jashtë zonës së mbrojtur mund të minojnë vlerën e saj (për shembull nëse një projekt hidroenergjetik bllokon një lumë dhe ndërpret rrjedhën). Është gjithashtu e rëndësishme të merret parasysh, aty ku është e mundur, ndikimi i parashikuar i ndryshimit të klimës në të ardhmen : për shembull, nëse niveli i detit rritet, a ka hapësirë në zonën e mbrojtur që një pyll rizoforë të tërhiqet në brendësi të tokës?","Është e rëndësishme që stafi, palët e interesuara dhe kushdo që ka të drejta për përdorimin  e burimeve natyrore brenda zonës së mbrojtur të njohi kufirin e zonës dhe  njerëzit të dinë nëse po hyjnë në zonën e mbrojtur. Hartat dhe/ose sistemet GPS përdoren përgjithësisht për të shënuar kufirin e zonës së mbrojtur të regjistruar zyrtarisht në vendimet zyrtare të shpalljes së zonës, megjithatë kufiri në terren mund të jetë ndryshe, dhe shpesh i lidhur me veçori specifike, shpesh ekziston nevoja që kufijtë të interpretohen sipas kontekstit lokal.","Në shumicën e rasteve bëhet fjalë për një plan formal menaxhimi, i shkruar dhe në rastin e zonave të mbrojtura të menaxhuara nga qeveria, shpeshherë edhe i miratuar nga departamenti ose ministria përkatëse. Në raste të tjera, planet e menaxhimit mund të jenë më pak formale, të miratuara përmes diskutimit me anëtarët e komunitetit dhe të ekzistojnë vetëm si marrëveshje gojore, procesverbale takimesh ose marrëveshje të tjera zakonore. Qëllimi i kësaj pyetjeje është të shihet nëse menaxhimi po ndjek apo jo një kurs të caktuar dhe logjik.","Këto pyetje shtesë shkojnë përtej vlerësimit bazë dhe identifikojnë nëse praktikat e mira ekzistojnë në lidhje me procesin e hartiimi të planit të menaxhimit. Të gjitha këto pyetje shtesë duhet të merren parasysh gjatë vlerësimit. Nëse deklarata e dhënë si alternativë përputhet me situatën në zonën tuaj, shënoni një shenj kutinë përkatëse. Programi do të gjenerojë automatikisht rezultatet shtesë.","Kjo zakonisht i referohet planit vjetor operacional, që synon zbatimin e detajuar të planit të menaxhimit. Ju mund t'i përgjigjeni kësaj pyetjeje edhe nëse nuk keni një plan menaxhimi. Edhe në këtë rast, plani i punës mund të jetë formal (i shkruar dhe miratuar) ose joformal, por duhet të njihet dhe të miratohet nga të gjitha palët përkatëse.","Në këtë rast \"burimet\" i referohen kryesisht vlerave biologjike dhe kulturore të zonës. A ka pasur studime të fundit mbi llojet bimore dhe shtazore? A e dinë menaxherët se ku ndodhen vende të rëndësishme kulturore ose vende të shenjta natyrore në mënyrë që këto të mbrohen? Në Veprimet për përmirësimin e menaxhimit është e rëndësishme të identifikohen boshllëqet e njohurive dhe sugjerimet për studimet e ardhshme.","Ky vlerësim duhet të trajtojë nëse zona e mbrojtur ka staf të mjaftueshëm për të menaxhuar në mënyrë efektive zonën; ai duhet të marrë në konsideratë të gjithë stafin që punon edhe nëse mbështetet nga qeveria (p.sh. Ushtria), OJQ-të ose burime të tjera financimi. Përgjigja e kësaj pyetjeje mund të jetë pak më e vështirë për zonat e mbrojtura privatisht ose zonat e menaxhuara nga komuniteti; këtu merrni parasysh nëse ka njerëz të mjaftueshëm me kapacitet për të menaxhuar dhe jo për \"punësim\" në  kuptimin tradicional të fjalës.  ","Kjo pyetje trajton nëse ekzistojnë aftësitë e nevojshme për të menaxhuar në mënyrë efektive zonën. Përgjigjet mund të identifikojnë se ku nevojiten programe trajnimi, të cilat mund të shënohen në Veprimet për të përmirësuar fushën e menaxhimit.","Kjo pyetje lidhet me shumën totale të buxhetit dhe jo me sigurinë buxhetore, të trajtuar në pyetjen vijuese (13). Është e rëndësishme t'i përgjigjemi kësaj pyetjeje për sa i përket buxhetit të nevojshëm për të përmbushur planin e menaxhimit dhe objektivat e zonës, jo vetëm për përmbushjen e planit vjetor të punës. Vlerësimi duhet të marrë parasysh të gjithë buxhetin e disponueshëm për vitin në fjalë kohë, duke përfshirë fondet e projekteve dhe mbështetjen e donatorëve.","Pyetja kryesore këtu është nëse buxheti mbështetet në financimet e herëpashershme të projekteve ose nëse ka një shans të arsyeshëm që ai të qëndorjë i pandryshuar me kalimin e kohës - për shembull, sepse është një pjesë thelbësore e  buxhetit qeveritar, ose mbahet përmes një organizatë private, komunitet ose ka kosto të ulët dhe mbështetje të fortë vullnetare.","Kjo pyetje vlerëson nëse shpenzimet buxhetore planifikohen dhe monitorohen siç duhet gjatë vitit apo ka mbi ose nën-shpenzime? Mendoni nëse llogaritë auditohen dhe publikohen çdo vit?","Kjo mund të përfshijë pajisje të tilla si automjetet, sistemet e komunikimit, veglat e punës, uniformat dhe materialet ndihmuese si karburanti. Shërbimet mund të jenë ndërtesa dhe infrastruktura të tjera të rëndësishme që nevojiten për të menaxhuar zonën e mbrojtur, si poste roje, zyra etj. Vini re se objektet e vizitorëve trajtohen në mënyrë specifike në pyetjen 29.","Çështjet që duhen marrë parasysh përfshijnë kapacitetet individuale (trajnimin, aftësitë) dhe mjaftueshmërinë e pajisjeve dhe infrastrukturës (automjetet, rrugët për të hyrë në zona të largëta, etj.), si dhe një vlerësim nëse stafi është i njohur me ligjet, rregulloret dhe kërkesat e për ndjekjen e shkeljeve. “Stafi” lidhet si me ata të punësuar zyrtarisht ashtu edhe me ata që janë përgjegjës për menaxhimin në lloje të tjera të qeverisjes.","Pyetja fokusohet veçanërisht në zbatimin e ligjit dhe është e rëndësishme në zonat ku ka presion nga gjuetia pa leje, zaptimi i territorit, minierat ilegale etj. Në zonat e mbrojtura pa presione të tilla, përcaktimi dhe menaxhimi mund të gjykohet \"në masën e duhur ose tërësisht efektiv\". Kjo pyetjenuk ka të bëjë me kapacitetin dhe burimet për zbatimin e ligjit (të adresuar tashmë në pyetjen 16) dhe më shumë synon të zbulojë nëse këto kapacitete po përdoren në mënyrë efektive.","Kjo pyetje vlerëson nëse siguria e personelit merret parasysh në menaxhim, duke përfshirë zbutjen e kërcënimeve aty ku është e mundur (p.sh. pajisje adekuate, trajnime, etj.) dhe ofrimin e mbështetjes për të minimizuar ndikimet kur rrezikohet siguria e personelit (p.sh. dhe sigurimin e jetës etj).","Kjo përfshin si punën kërkimore të kryer nga vetë zona e mbrojtur, por më shpesh nga bashkëpunëtorët, vullnetarët, studentët, komuniteti (shkenca qytetare) dhe akademikët. Monitorimi dhe vlerësimi trajtohen në një pyetje tjetër (20); këtu theksi vihet në projekte të veçanta kërkimore që mund të ndihmojnë për të kuptuar dhe menaxhuar më mirë zonën. Prania e studiuesve në zonë nuk është e mjaftueshme për të shënuar rezultatin më të lartë, por vetëm nëse kërkimi është i integruar siç duhet me nevojat e menaxhimit të zonës së mbrojtur.","Kjo pyetje trajton monitorimin dhe vlerësimin e aktiviteteve të menaxhimit të zonës së mbrojtur, të cilat vlerësojnë gjendjen e vlerave kryesore dhe kërcënimeve të zonës së mbrojtur. Në seksionin e dëshmive dhe justifikimit do të ishte e dobishme të rendisni se çfarë monitorohet dhe sa shpesh. Ashtu si me kërkimin shkencor, theksi është në integrimin e duhur të rezultateve në menaxhimin e zonave të mbrojtura.","Menaxhimi këtu i referohet aktiviteteve përveç zbatimit të nevojshëm për të siguruar ruajtjen efektive të habitateve kritike, llojeve, proceseve ekologjike dhe vlerave kulturore. Ai mund të përfshijë restaurimin dhe krijimin e habitateve, kontrollin e zjarreve, monitorimin e numrit të popullatave, rrethimin aty ku është e nevojshme dhe kontrollin e llojeve invazive. Aty ku lejohet nxjerrja e qëndrueshme e burimeve, menaxhimi do të përfshijë monitorimin e këtyre burimeve, ndoshta futjen e zonimit të përkohshëm etj. Menaxhimi përfshin gjithashtu hapa aktivë për mbrojtjen e vendeve të rëndësishme kulturore dhe shpirtërore.","Kjo pyetje përqendrohet në përshtatjet e menaxhimit ndaj ndryshimeve të parashikuara klimatike dhe se si ato po zbatohen. Përshtatja ndaj ndryshimeve klimatike nënkupton reduktimin e cenueshmërisë së sistemeve natyrore dhe njerëzore ndaj efekteve aktuale ose të pritshme të ndryshimeve klimatike.","Sekuestrimi dhe ruajtja e karbonit përshkruajnë procesin e thithjes dhe ruajtjes së dioksidit të karbonit përpara se të lëshohet në atmosferë. Metodat për \"parandalimin e humbjes së karbonit\" në zonat e mbrojtura do të varen nga ekosistemet që menaxhohen dhe mund të variojnë nga zvogëlimi i shpyllëzimeve dhe humbjeve të tjera natyrore të bimësisë, parandalimi i zjarreve, ruajtja e regjimeve natyrore të ujit, etj. Sekuestrimi i karbonit gjithashtu mund të përmirësohet, aty ku është e përshtatshme , nëpërmjet restaurimit të ekosistemet ose menaxhimit të habitateve që rrit ruajtjen e karbonit në bimësinë në këmbë ose në tokë.","Kjo heton nëse njihen shërbimet ekzistuese ose potenciale të ekosistemeve dhe, nëse po, nëse disa ose të gjitha janë duke u menaxhuar. Për shkak se kjo është një pyetje potencialisht e pafund, sugjerohet që përgjigjet të fokusohen në shërbimet kryesore të ekosistemit të identifikuara tashmë në seksionin e atributeve të zonës së mbrojtur. Duke qenë se kjo është ende një çështje mjaft e re për shumë menaxherë të zonave të mbrojtura, seksioni i veprimeve për përmirësimin e menaxhimit duhet të jetë mjaft specifik në lidhje me veprimet dhe hapat e ardhshëm.","Kjo pyetje mbulon edukimin si për institucionet mësimore, siç janë programet e shkollave, ashtu edhe ofrimin e mundësive më të përgjithshme edukative për komunitetet lokale ose vizitorët. Duhet të merret parasysh se çfarë është e përshtatshme në varësi të vendndodhjes dhe kontekstit të zonës së mbrojtur.","Kjo u drejtohet veçanërisht përdoruesve të tokës dhe ujit që ose përfitojnë ose ndikojnë drejtpërdrejt në ekosistemet brenda zonës së mbrojtur: për shembull përdoruesit e ujit (furnizuesit e ujit mineral, ujësjellësat e bashkive, projektet hidroelektrike); por edhe fermerët, kompanitë pyjore dhe ato të përfshira në industritë nxjerrëse. Vini re se operatorët turistikë janë subjekt i pyetjes së tyre (shih pyetjen vijuese). Kjo pyetje synon të vlerësojë shkallën në të cilën një zonë e mbrojtur bashkëpunon ose mbetet e izoluar nga ekonomia e gjerë që ndikon në të. Pyetja nuk lidhet me përdoruesit e tokës nga komuniteti lokal, por fokusohet në institucionet qeveritare dhe përdoruesit e mëdhenj komercialë ose industrialë të tokës. Pyetja mund të lidhet me bashkëpunimin ndërkufitar aty ku është e nevojshme.","Prania e një zone të mbrojtur është një tërheqje për turistët dhe në këtë mënyrë një nxitje për bizneset turistike. Operatorët turistikë duhet të jenë partnerë natyrorë me zonat e mbrojtura, por kjo nuk ndodh gjithmonë. Nëse kjo pyetje gjeneron një rezultat të ulët, veprimet për përmirësimin e menaxhimit mund të identifikojnë disa nga njerëzit kyç me të cilët do të ishte e rëndësishme të bisedohej dhe të zhvillohej bashkëpunimi.","Jo të gjitha zonat e mbrojtura mbledhin apo duhet të mbledhin tarifa; kjo pyetje nuk është e zbatueshme në këto raste. Aty ku tarifat janë pjesë e pritshme e menaxhimit të zonës së mbrojtur, kjo pyetje vlerëson nëse ato përdoren për të ndihmuar menaxhimin apo thjesht zhduken në llogaritë qeveritare dhe nuk ofrojnë mbështetje për zonën e mbrojtur.","Jo të gjitha zonat e mbrojtura kanë nevojë për objekte për vizitorët; kjo pyetje vlerëson situatën kundrejt nevojave të perceptuara. Çështja e përshtatshmërisë është kritike, zonat e mbrojtura me pak vizitorë nuk kërkojnë shërbime të shumta për vizitorët. Kjo pyetje duhet të fokusohet kryesisht në objektet brenda zonës së mbrojtur, por gjithashtu mund të marrë në konsideratë objektet menjëherë ngjitur me zonat e mbrojtura kur këto ndikojnë drejtpërdrejt në përvojën e vizitorëve.","Kjo pyetje nuk është e zbatueshme në rastet kur nuk ka popullsi indigjene në zonë. Vini re se vende të ndryshme përdorin një sërë termash për të përshkruar kultura të tilla: pakicat etnike, grupe tradicionalë etj. Merrni parasysh konsultimin formal ose kontaktin më pak formal kur gjykoni përgjigjen dhe merrni parasysh çështjen e qeverisjes dhe barazisë. Nëse është e mundur, do të ishte e dobishme të diskutoni gjithashtu me njerëzit indigjenë dhe të kuptoni se sa të përfshirë ndihen ata.","Kjo vlerëson nivelin e ndikimit që kanë komunitetet në vendimet e menaxhimit: vetëm konsultimi rrallë është i mjaftueshëm. \"Vendimet\" i referohen të gjitha vendimeve në lidhje me aspektet e menaxhimit që prekin komunitetet lokale dhe marrëdhëniet dhe ndërveprimin e tyre me zonën e mbrojtur.","Këto pyetje shtesë identifikojnë elementë të tjerë të rëndësishëm në lidhje me menaxhimin e zonave të mbrojtura, komunitetet lokale dhe njerëzit indigjenë. Të gjitha këto pyetje shtesë duhet të merren parasysh gjatë vlerësimit. Nëse situata në zonën e mbrojtur përputhet me deklaratën e dhënë, shënoni një shenjë në kutinë pranë saj. Programi do të gjenerojë automatikisht rezultatet shtesë në fletën e rezultateve.","Kjo pyetje u drejtohet në mënyrë eksplicite komuniteteve lokale. Përfitimet mund të përfshijnë punësim direkt, pagesa për skemat e shërbimit të ekosistemeve, përfitime indirekte nga rritja e turizmit ose shitjeve për vizitorët dhe opsione të tjera si guidat turistike. Për të shënuar pikën 3 në këtë tregues, aktiviteti ekonomik i lidhur me zonën e mbrojtur duhet të jetë një kontribues thelbësor në ekonominë vendase. Ky tregues i referohet vetëm përfitimeve ekonomike që rrjedhin nga aktivitetet e ligjshme ose të sanksionuara që nuk ndikojnë në objektivat e ruajtjes së zonës së mbrojtur dhe jo ato që rrjedhin nga aktivitetet e paligjshme.","Kjo duhet të marrë parasysh kërcënimet e identifikuara në vlerësimin e kërcënimeve me shtrirjen dhe ashpërsinë më të madhe. Fokusi është më pas në mënyrën se si po menaxhohen kërcënimet e identifikuara. Ne sugjerojmë të shënoni pikën B nëse janë adresuar vetëm disa kërcënime ose kërcënimet janë adresuar vetëm pjesërisht, një C nëse shumica e kërcënimeve janë adresuar dhe një D nëse janë adresuar të gjitha kërcënimet.","Zonat e mbrojtura mbeten të pambrojtura nëse llojet që ato përmbajnë janë të izoluara gjenetikisht dhe zona e mbrojtur qëndron si një ishull. Kjo pyetje fokusohet në lidhjen funksionale të zonës së mbrojtur, duke adresuar lidhjet e saj të drejtpërdrejta me ekosistemet e tjera natyrore, përdorimin e korridoreve biologjike, etj. Kjo pyetje gjithashtu mund të mos jetë e zbatueshme për disa zona (p.sh. ishujt e largët në det të hapur të mbrojtur për shkak të florës dhe faunës unike, ose mikro-rezervat e krijuara për të mbrojtur të afërmit e egër të kulturave të veçanta).","Merrni parasysh vlerat e specifikuara në fletën Atributet e Zonës së Mbrojtur dhe çdo informacion mbi statusin dhe trendin në fletën e Vlerësimit të Detajuar të Vlerave. Vlerësimi këtu duhet të jetë një përmbledhje e përgjithshme e vlerave kryesore të zonës së mbrojtur.","Këto pyetje shtesë identifikojnë elementë të tjerë të rëndësishëm në lidhje me menaxhimin e zonave të mbrojtura dhe vlerat natyrore Të gjitha këto pyetje shtesë duhet të merren parasysh gjatë vlerësimit. Nëse gjendja e zonës së mbrojtur përputhet me deklaratën e dhënë, shënoni një shenjë në kutinë pranë saj. Vini re se monitorimi mund të kryhet nga rangersat (për shembull si pjesë e monitorimit SMART), nga shkencëtarë studiues që vijnë dhe bëjnë numërime periodike, nga qytetarët (shkenca qytetare) vullnetarë ose nga komunitetet lokale. Programet e menaxhimit nënkuptojnë diçka më shumë sesa menaxhimin e përditshëm, si programet e restaurimit, çrrënjosjen e llojeve invazive, krijimin e habitateve ose përpjekje të veçanta për reduktimin e kërcënimeve të gjuetisë pa leje. Disa kërcënime dhe presione afatgjata duhet të trajtohen si pjesë rutinë e menaxhimit, të tilla si kontrollet kundër gjuetisë së paligjshme, heqja e rregullt e llojeve invazive ose furnizimi sezonal me ujë shtesë. Pyetja nënkupton që veprimi i menaxhimit është një hap i qëllimshëm për të adresuar një kërcënim aktual ose potencial.","Shumë zona të mbrojtura përmbajnë vlera të rëndësishme kulturore: vende të shenjta natyrore, rrugë pelegrinazhi, ndërtesa historike, mbetje arkeologjike, etj. Menaxherët e zonave të mbrojtura janë përgjithësisht të paktën pjesërisht përgjegjës për mirëmbajtjen e tyre; në rastin e disa zonave të mbrojtura privatisht ose nga popullsi indigjene (ICCA) këto mund të jenë vlerat kryesore që nxisin mbrojtjen.","Këto pyetje shtesë identifikojnë elementë të tjerë të rëndësishëm në lidhje me menaxhimin e zonave të mbrojtura dhe vlerat kulturore Të gjitha këto pyetje shtesë duhet të merren parasysh gjatë vlerësimit. Nëse gjendja e zonës përputhet me deklaratën që bëhet, shënoni një shenjë në kutinë pranë saj. Monitorimi ka të ngjarë të jetë më pak formal se sa për monitorimin e vlerave natyrore, por nënkupton që disa monitorime të rregullta po bëhen; për shembull që rangersat kontrollojnë rregullisht nëse vendet historike ose kulturore janë të padëmtuara dhe – aty ku është e përshtatshme – se ka kontakte të rregullta me institucionet ose komunitetet që janë të interesuara për këto vende. Programet e veçanta të menaxhimit përfshijnë çështje të tilla si rrethimi i mbetjeve arkeologjike, riparimi i shtigjeve antike ose restaurimi i menaxhimit tradicional të pyjeve. Menaxhimi rutinë mund të përfshijë punën me komunitetet lokale për të siguruar që vendet e shenjta natyrore të mbeten të paprekura, zona zonimi për të shmangur dëmtimet nga vizitorët në vendet historike ose parahistorike ose mirëmbajtjen e rregullt të sistemeve tradicionale të menaxhimit.","Kjo është një nga pyetjet kryesore për të zbuluar se sa mirë po ecën zona e mbrojtur. Nëse zona juaj e mbrojtur zbaton një protokoll monitorimi për të matur rregullisht gjendjen e llojeve kryesore tregues duke përdorur tregues specifikë dhe nivele të përcaktuara, përfundimet nga aktivitetet tuaja të monitorimit do t'ju ndihmojnë t'i përgjigjeni kësaj pyetjeje. Ju duhet të merrni parasysh rezultatet e Vlerësimit të Detajuar të llojeve nga fleta e mëparshme e punës kur kjo është përfunduar. Në mungesë të këtij vlerësimi të detajuar për shkak të mungesës së të dhënave për llojet individuale, kjo pyetje duhet të përgjigjet bazuar në njohuritë e disponueshme.","Kjo pyetje fokusohet në statusin e habitateve brenda zonës së mbrojtur gjatë pesë viteve të fundit nga data e vlerësimit. Nëse zona juaj e mbrojtur zbaton një protokoll monitorimi për të vlerësuar rregullisht gjendjen e habitateve duke përdorur tregues specifikë dhe nivele të përcaktuara, përfundimet nga aktivitetet tuaja monitoruese do t'ju ndihmojnë t'i përgjigjeni kësaj pyetjeje. Ne ju sugjerojmë pikën C në rastet kur disa, por jo të gjitha habitatet janë përmirësuar ndjeshëm."]
["Zona e mbrojtur nuk është shpallur në fletoren zyrtare ose nuk është shpallur me \"mjete të tjera efektive\"","Nuk është rënë dakord për objektiva të paracaktuara për zonën e mbrojtur","Nuk ka rregulla/kontrolle për menaxhimin e përdorimit të tokës/detit dhe aktiviteteve në zonën e mbrojtur","Planifikimi i përdorimit të tokës/detit në zonën përreth nuk merr parasysh ekzistencën e zonës së mbrojtur dhe aktivitetet/politikat kanë një ndikim negativ në objektivat e zonës së mbrojtur.","Papërshtatshmëria në projektimin e zonës së mbrojtur do të thotë se arritja e objektivave madhore të zonës së mbrojtur është shumë e vështirë","Kufiri i zonës së mbrojtur nuk dihet nga autoriteti menaxhues ose banorët vendas/përdoruesit fqinjë të tokës/detit","Nuk ekziston asnjë dokument planifikimi","7a) Procesi i hartimit të planit të menaxhimit lejon mundësi adekuate dhe të barabarta për palët e interesuara për të ndikuar në menaxhim","Nuk ekziston një plan pune i vazhdueshëm ","Ka pak ose aspak informacion në dispozicion për habitatet kritike, llojet, proceset ekologjike dhe vlerat kulturore të zonës së mbrojtur.","Nuk ka njerëz që menaxhojnë zonën e mbrojtur, por  po kërkohen të tillë","Njohuritë dhe aftësitë e nevojshme për të menaxhuar zonën e mbrojtur janë krejtësisht të pamjaftueshme","Nuk ka buxhet të disponueshëm për menaxhim","Buxheti për zonën e mbrojtur nuk është i sigurt dhe menaxhimi është tërësisht i varur nga financimi i jashtëm ose burime të tjera","Menaxhimi i buxhetit është shumë i dobët dhe dëmton ndjeshëm menaxhimin","Ka pak ose aspak pajisje dhe shërbime për nevojat e menaxhimit","Stafi nuk ka kapacitetet/burimet/autoritetin efektiv për të zbatuar legjislacionin dhe rregulloret për zonat e mbrojtura","Sistemet e ruajtjes nuk ekzistojnë ose nuk janë efektive në kontrollin e aksesit/përdorimit të burimeve, por zona e mbrojtur po kërkon të vendosë sisteme të tilla","Siguria e stafit komprometohet seriozisht për shkak të mungesës së masave efektive për të zbutur kërcënimet dhe për të siguruar një mjedis të sigurt pune","Në zonën e mbrojtur nuk kryhet punë  studimore apo kërkimore shkencore","Në zonën e mbrojtur nuk kryhet monitorim dhe vlerësim I aktiviteteve tnë zonën e mbrojtur menaxhimit","Nuk kryhet menaxhim aktiv i habitateve kritike, llojeve, proceseve ekologjike dhe vlerave kulturore, edhe pse kërkohet një gjë e tillë","Nuk ka pasur përpjekje për të konsideruar përshtatjen ndaj ndryshimeve klimatike në menaxhim","Ruajtja e karbonit dhe thithja e dioksidit të karbonit nuk janë marrë parasysh në menaxhimin e zonës së mbrojtur","Shërbimet e ekosistemit të ofruara nga zona e mbrojtur nuk kuptohen/njihen","Nuk ka asnjë program edukimi dhe ndërgjegjësimi","Ka kontakte ndërmjet menaxherëve dhe përdoruesve fqinjë shtetërorë dhe komerciale të tokës/detit, por pak ose aspak bashkëpunim","Ka pak ose aspak kontakt ndërmjet menaxherëve dhe operatorëve turistikë që përdorin zonën e mbrojtur","Megjithëse tarifat aplikohen teorikisht, ato nuk mblidhen","Nuk ka objekte dhe shërbime për vizitorët pavarësisht nevojës së identifikuar","Njerëzit indigjenë nuk janë të përfshirë në vendimet e menaxhimit?","Komunitetet lokale nuk kanë kontribut në vendimet që kanë të bëjnë me menaxhimin e zonës së mbrojtur","31a) Ekziston komunikim dhe besim i hapur midis komuniteteve lokale/popullsisë indigjene, palëve të interesuara dhe menaxherëve të zonës së mbrojtur","Zona e mbrojtur nuk ofron asnjë përfitim për jetesën e komuniteteve lokale/popullsisë indigjene","Kërcënimet ndaj vlerave kryesore nuk po trajtohen nga menaxhimi","Kërkesat për lidhje funksionale të zonës nuk janë vlerësuar apo konsideruar","Shumë vlera të rëndësishme natyrore po degradohen rëndë","35a) Vlerësimi i gjendjes së vlerave natyrore bazohet në kërkime dhe/ose monitorime","Shumë vlera të rëndësishme kulturore po degradohen rëndë","36a) Vlerësimi i gjendjes së vlerave kulturore bazohet në kërkime dhe/ose monitorime","Statusi i ruajtjes së llojeve kryesore treguese nuk është në nivelin e dëshiruar dhe është përkeqësuar gjatë pesë viteve të fundit","Statusi i ruajtjes së habitateve nuk është në nivelin e dëshiruar dhe është përkeqësuar gjatë pesë viteve të fundit"]
["Ka marrëveshje që zona e mbrojtur duhet të shpallet por procesi ende nuk ka filluar","Zona e mbrojtur ka objektiva të paracaktuar, por nuk është menaxhuar t'i arrijë këto objektiva","Ekzistojnë disa rregulla/kontrolle për menaxhimin e përdorimit të tokës/detit dhe aktiviteteve në zonën e mbrojtur, por këto janë shumë të dobëta","Planifikimi i përdorimit të tokës/detit në zonën përreth nuk merr parasysh ekzistencën e zonës së mbrojtur, por aktivitetet nuk janë të dëmshme për objektivat e zonës së mbrojtur","Papërshtatshmëria në hartimin e zonës së mbrojtur do të thotë që arritja e objektivave kryesore është e vështirë, por disa veprime lehtësuese po merren (p.sh. marrëveshje me menaxherët e territoreve tokësore/detare ngjitur me zonën e mbrojtur për korridoret e jetës së egër ose prezantimin e menaxhimit të duhur të basenit ujëmbledhës)","Kufiri i zonës së mbrojtur njihet nga autoriteti menaxhues, por nuk njihet nga banorët vendas/përdoruesit fqinjë të tokës/detit","Një plan menaxhimi (ose dokument i ngjashëm) është duke u përgatitur ose është përgatitur por nuk po zbatohet","7b) Ekziston një plan dhe proces i përcaktuar për rishikimin dhe përditësimin periodik të planit të menaxhimit","Ekziston një plan pune i vazhdueshëm, por pak nga aktivitetet janë zbatuar","Informacioni mbi habitatet kritike, llojet, proceset ekologjike dhe vlerat kulturore të zonës së mbrojtur nuk është i mjaftueshëm për të mbështetur planifikimin dhe vendimmarrjen.","Numri i njerëzve që menaxhojnë zonën e mbrojtur është i pamjaftueshëm për të përmbushur nevojat e menaxhimit","Njohuritë dhe aftësitë janë të ulëta në krahasim me nevojat e zonës së mbrojtur","Buxheti në dispozicion është i pamjaftueshëm për menaxhimin bazë","Një pjesë e vogël e buxhetit është e sigurt dhe zona e mbrojtur nuk mund të plotësojë nevojat e saj të menaxhimit pa financim nga jashtë","Menaxhimi i buxhetit është i dobët dhe e pengon menaxhimin","Ka disa pajisje dhe shërbime, por këto janë të pamjaftueshme për shumicën e nevojave të menaxhimit","Ka mangësi të mëdha në kapacitetet/burimet/autoritetin e stafit për të zbatuar legjislacionin dhe rregulloret për zonat e mbrojtura","Sistemet e ruajtjes janë vetëm pjesërisht efektive në kontrollin e aksesit/përdorimit të burimeve","Siguria e stafit është e dobët për shkak të mungesës së masave efektive për të zbutur kërcënimet dhe/ose mungesës së mbështetjes për të siguruar një mjedis të sigurt pune","Në zonën e mbrojtur kryhet një nivel i  vogël i punës studimore dhe kërkimore, por ajo nuk është e drejtuar drejt nevojave të menaxhimit të zonës së mbrojtur","Në zonën e mbrojtur kryhet një monitorim dhe vlerësim ad hoc i performancës së aktiviteteve të menaxhimit, por nuk ka sistem dhe/ose mbledhje të rregullt të rezultateve","Shumë pak nga kërkesat për menaxhimin aktiv të habitateve kritike, llojeve, proceseve ekologjike dhe vlerave kulturore po zbatohen.","Disa konsiderata fillestare janë bërë për ndikimet e mundshme të ndryshimeve klimatike, por kjo ende nuk është përkthyer në aktivitete të menaxhimit","Ruajtja e karbonit dhe thithja e dioksidit të karbonit janë konsideruar në terma të përgjithshëm, por ende nuk është reflektuar ndjeshëm në menaxhim","Shërbimet e ekosistemit të ofruara nga zona e mbrojtur kuptohen, por nuk janë ndërmarrë veprime menaxhimi të nevojshme për të siguruar ofrimin e tyre të vazhdueshëm","Ekziston një program i kufizuar dhe ad hoc edukimi dhe ndërgjegjësimi","Ka kontakte ndërmjet menaxherëve dhe përdoruesve fqinjë shtetërorët dhe komercialë të tokës/detit, por vetëm njëfarë bashkëpunimi","Ka kontakte ndërmjet menaxherëve dhe operatorëve turistikë, por kjo kufizohet kryesisht në çështje administrative ose rregullatore","Tarifat mblidhen, por nuk japin asnjë kontribut për zonën e mbrojtur apo mjediset e saj","Objektet dhe shërbimet për vizitorët janë të papërshtatshme për nivelet aktuale të vizitave","Njerëzit indigjenë marrin pjesë disi në diskutimet që kanë të bëjnë me menaxhimin, por jo një rol të drejtpërdrejtë në menaxhim","Komunitetet lokale kanë disa kontribute në diskutimet në lidhje me menaxhimin, por jo një rol të drejtpërdrejtë në menaxhim","31b) Janë duke u zbatuar programe për të rritur mirëqenien e komuniteteve lokale dhe/ose të njerëzve indigjenë, në përputhje me ruajtjen e vlerave të zonës së mbrojtur","Përfitimet për komunitetet lokale/popullsinë indigjene nga zona e mbrojtur ekzistojnë, por nuk janë kontribues të rëndësishëm në jetesën e tyre","Menaxhimi i kërcënimeve ndaj vlerave kryesore po kryhet vetëm në një nivel minimal","Kërkesat për lidhje funksionale të zonës janë vlerësuar por nuk janë ndërmarrë veprimet e nevojshme","Disa vlera natyrore po degradohen rëndë","35b) Programe specifike menaxhimi po zbatohen për të adresuar kërcënimet ndaj vlerave natyrore","Disa vlera kulturore po degradohen rëndë","36b) Programe specifike të menaxhimit janë duke u zbatuar për të adresuar kërcënimet ndaj vlerave kulturore","Statusi i ruajtjes së llojeve kryesore treguese nuk është në nivelin e dëshiruar dhe ka mbetur i pandryshuar gjatë pesë viteve të fundit","Statusi i ruajtjes së habitateve nuk është në nivelin e dëshiruar dhe ka mbetur i pandryshuar gjatë pesë viteve të fundit"]
["Zona e mbrojtur është në proces të shpalljes, por procesi është ende i paplotë (përfshin zonat e përcaktuara sipas konventave ndërkombëtare, si RAMSAR, ose ligjet lokale/tradicionale per zonat e ruajtura nga komuniteti, të cilat nuk kanë ende status ligjor kombëtar)","Zona e mbrojtur ka objektiva të paracaktuar, por është menaxhuar vetëm pjesërisht për të arritur këto objektiva","Ekzistojnë rregulla/kontroll për menaxhimin e përdorimit të tokës/detit dhe aktiviteteve në zonën e mbrojtur, por ka disa dobësi ose boshllëqe","Planifikimi i përdorimit të tokës/detit nëzonën përreth ka njëfarë rëndësie për ekzistencën e zonës së mbrojtur dhe mbështet pjesërisht objektivat e zonës së mbrojtur","Projektimi i zonës së mbrojtur nuk është duke kufizuar ndjeshëm arritjen e objektivave, por mund të përmirësohet (p.sh. në lidhje me proceset ekologjike në shkallë më të madhe)","Kufiri i zonës së mbrojtur njihet si nga autoriteti menaxhues ashtu edhe nga banorët vendas/përdoruesit fqinjë të tokës/detit, por nuk është i shënuar siç duhet.","Ekziston një plan menaxhimi (ose dokument I ngjashëm), por ai po zbatohet vetëm pjesërisht për shkak të kufizimeve të financimit ose problemeve të tjera","7c) Rezultatet e monitorimit, kërkimit dhe vlerësimit përfshihen në mënyrë të vazhdueshme në hartimin  e planit të menaxhimit","Ekziston një plan pune i vazhdueshëm dhe janë realizuar shumë aktivitete","Informacioni mbi habitatet kritike, llojet, proceset ekologjike dhe vlerat kulturore të zonës së mbrojtur është i mjaftueshëm për shumicën e fushave kyçe të planifikimit dhe vendimmarrjes.","Numri i njerëzve që menaxhojnë zonën e mbrojtur është nën atë që kërkohet për të përmbushur plotësisht nevojat e menaxhimit","Njohuritë dhe aftësitë janë adekuate, por mund të përmirësohen më tej për të përmbushur plotësisht nevojat e menaxhimit","Buxheti në dispozicion është i pranueshëm, por mund të rritet për të përmbushur plotësisht nevojat e menaxhimit","Buxheti bazë është mjaft i sigurt për nevojat e menaxhimit të zonës së mbrojtur, por shumë risi dhe iniciativa varen nga financimi i jashtëm","Menaxhimi i buxhetit është adekuat, por mund të përmirësohet","Ka pajisje dhe shërbime, por ende ka disa boshllëqe që e kufizojnë menaxhimin","Stafi ka kapacitetet/burimet/ autoritetin e duhur për të zbatuar legjislacionin dhe rregulloret për zonat e mbrojtura, por disa mangësi mbeten","Sistemet e ruajtjes janë mesatarisht efektive në kontrollin e aksesit/përdorimit të burimeve","Siguria e stafit është një konsideratë e rëndësishme për menaxherët e zonave të mbrojtura dhe ndërmerren hapa për të zbutur kërcënimet dhe për të siguruar një mjedis të sigurt pune, por mund të bëhen përmirësime","Në zonën e mbrojtur kryhet një punë e konsiderueshme studimore dhe kërkimore, por ajo është e drejtuar vetëm pjesërisht drejt nevojave të menaxhimit të zonës së mbrojtur","Në zonën e mbrojtur ekziston një sistem I miratuar dhe zbatuar monitorimi dhe vlerësimi të aktiviteteve të menaxhimit, por rezultatet nuk merren parasysh në menaxhim.","Shumë nga kërkesat për menaxhimin aktiv të habitateve kritike, llojeve, proceseve ekologjike dhe vlerave kulturore janë duke u zbatuar, por disa çështje kyçe nuk po adresohen.","Janë hartuar plane të kufizuara se si të përshtatet menaxhimi ndaj ndryshimeve të parashikuara klimatike, të cilat mund ose nuk mund të zbatohen","Ka masa aktive për të reduktuar humbjen e karbonit nga zona e mbrojtur, por jo masa të ndërgjegjshme për të rritur thithjen e dioksidit të karbonit","Shërbimet e ekosistemit të ofruara nga zona e mbrojtur kuptohen dhe janë ndërmarrë disa veprime menaxhimi të nevojshme për të siguruar ofrimin e tyre të vazhdueshëm","Ekziston një program edukimi dhe ndërgjegjësimi, por ai plotëson vetëm pjesërisht nevojat e menaxhimit dhe mund të përmirësohet","Ka kontakte të rregullta ndërmjet menaxherëve dhe përdoruesve fqinjë shtetërorë dhe komercialë të tokës/detit, por vetëm njëfarë bashkëpunimi për menaxhimin","Ekziston një bashkëpunim i kufizuar midis menaxherëve dhe operatorëve turistikë për të rritur përvojat e vizitorëve dhe për të ruajtur vlerat e zonës së mbrojtur","Taksat mblidhen dhe japin njëfarë kontributi për zonën e mbrojtur dhe mjediset e e saj","Objektet dhe shërbimet për vizitorët janë të përshtatshme për nivelet aktuale të vizitave, por mund të përmirësohen","Njerëzit indigjenë kontribuojnë drejtpërdrejt në disa vendime të rëndësishme në lidhje me menaxhimin, por përfshirja e tyre mund të përmirësohet","Komunitetet lokale kontribuojnë drejtpërdrejt në disa vendime të rëndësishme në lidhje me menaxhimin, por përfshirja e tyre mund të përmirësohet","31c) Komunitetet lokale dhe/ose njerëzit indigjenë mbështesin në mënyrë aktive zonën e mbrojtur","Përfitimet për komunitetet lokale/popullsinë indigjene nga zona e mbrojtur japin një kontribut të moderuar në jetesën e tyre","Shumica e kërcënimeve të rëndësishme ndaj vlerave kryesore po trajtohen në mënyrë thelbësore nga menaxhimi","Kërkesat për lidhje funksionale janë vlerësuar dhe janë ndërmarrë disa veprime, por jo të mjaftueshme për të arritur lidhje funksionale","Disa vlera natyrore janë duke u degraduar pjesërisht, por vlerat më të rëndësishme nuk janë ndikuar ndjeshëm","35c) Aktivitetet për ruajtjen e vlerave natyrore janë pjesë rutinë e menaxhimit të zonave të mbrojtura","Disa vlera kulturore po degradohen pjesërisht, por vlerat më të rëndësishme nuk janë ndikuar ndjeshëm","36c) Aktivitetet për ruajtjen e vlerave kulturore janë pjesë rutinë e menaxhimit të zonave të mbrojtura","Statusi i ruajtjes së llojeve kryesore treguese nuk është në nivelin e dëshiruar, por është përmirësuar gjatë pesë viteve të fundit","Statusi i ruajtjes së habitateve nuk është në nivelin e dëshiruar, por është përmirësuar gjatë pesë viteve të fundit"]
["Zona e mbrojtur është shpallur zyrtarisht ose është krijuar me \"mjete të tjera efektive\"","Zona e mbrojtur ka objektiva të paracaktuar dhe menaxhohet për të arritur këto objektiva","Ekzistojnë rregulla/kontrolle për menaxhimin e përdorimit dhe aktiviteteve të papërshtatshme të tokës/detit në zonën e mbrojtur, të cilat ofrojnë një bazë të shkëlqyer për menaxhim","Planifikimi i përdorimit të tokës/detit në zonën përreth njeh plotësisht ekzistencën e zonës së mbrojtur dhe kërkon të mbështesë objektivat e zonës së mbrojtur","Projektimi i zonës së mbrojtur ndihmon në arritjen e objektivave; është i përshtatshëm për ruajtjen e llojeve dhe habitateve; dhe ruan proceset ekologjike të tilla si rrjedhat e ujërave sipërfaqësore dhe nëntokësore në  shkallë baseni ujëmbledhës, shqetësimet natyrore etj.","Kufiri i zonës së mbrojtur njihet nga autoriteti menaxhues dhe banorët vendas/përdoruesit fqinjë të tokës/detit dhe është i shënuar në mënyrë të përshtatshme","Ekziston dhe po zbatohet një plan menaxhimi (ose dokument I ngjashëm)",null,"Ekziston një plan pune  i vazhdueshëm dhe të gjitha aktivitetet janë realizuar","Informacioni mbi habitatet kritike, llojet, proceset ekologjike dhe vlerat kulturore të zonës së mbrojtur është i mjaftueshëm për të mbështetur të gjitha fushat e planifikimit dhe vendimmarrjes.","Numri i njerëzve që menaxhojnë zonën e mbrojtur është i mjaftueshëm për të përmbushur plotësisht nevojat e menaxhimit","Njohuritë dhe aftësitë janë në përputhje me nevojat e menaxhimit të zonës së mbrojtur","Buxheti në dispozicion është i mjaftueshëm dhe plotëson nevojat e plota të menaxhimit të zonës së mbrojtur","Buxhet për zonën e mbrojtur dhe nevojat e menaxhimit të saj është i sigurt","Menaxhimi i buxhetit është i shkëlqyer","Ka pajisje dhe shërbime të përshtatshme","Stafi ka kapacitetet/burimet/autoritetin e plotë për të zbatuar legjislacionin dhe rregulloret për zonat e mbrojtura","Sistemet e ruajstjes janë kryesisht ose tërësisht efektive në kontrollin e aksesit/përdorimit të burimeve","Siguria e stafit është një konsideratë e rëndësishme për menaxherët e zonave të mbrojtura dhe të gjithë hapat e arsyeshëm janë marrë për të zbutur kërcënimet dhe për të ofruar mbështetje për të minimizuar ndikimet","Në zonën e mbrojtur ekziston një program gjithëpërfshirës, i integruar i punës studimore dhe kërkimore, i cili është i rëndësishëm për nevojat e menaxhimit","Në zonën e mbrojtur ekziston dhe zbatohet rregullisht një sistem i mirë monitorimi dhe vlerësimi i aktiviteteve të menaxhimit, dhe rezultatet përdoren rregullisht për të përshtatur dhe përmirësuar aktivitetet e menaxhimit.","Kërkesat për menaxhimin aktiv të habitateve kritike, llojeve, proceseve ekologjike dhe vlerave kulturore po zbatohen në mënyrë thelbësore e të plotë.","Janë hartuar plane të detajuara se si të përshtatet menaxhimi me ndryshimet e parashikuara klimatike, dhe këto tashmë janë duke u zbatuar","Ka masa aktive si për të reduktuar humbjen e karbonit nga zona e mbrojtur dhe për të rritur thithjen e dioksidit të karbonit","Shërbimet e ekosistemit të ofruara nga zona e mbrojtur kuptohen dhe janë marrë të gjitha veprimet e menaxhimit të nevojshme për të siguruar ofrimin e tyre të vazhdueshëm","Ekziston një program edukimi dhe ndërgjegjësimi i duhur dhe efektiv","Ka kontakte të rregullta ndërmjet menaxherëve dhe përdoruesve fqinjë shtetërorë dhe komercialë të tokës/detit, dhe bashkëpunim thelbësor për menaxhimin","Ekziston një bashkëpunim i mirë midis menaxherëve dhe operatorëve turistikë për të rritur përvojat e vizitorëve dhe për të ruajtur vlerat e zonës së mbrojtur","Taksat mblidhen dhe japin një kontribut të konsiderueshëm për zonën e mbrojtur dhe mjediset e saj","Objektet dhe shërbimet për vizitorët  janë të shkëlqyera për nivelet aktuale të vizitave","Indigjenët marrin pjesë drejtpërdrejt në të gjitha vendimet përkatëse që kanë të bëjnë me menaxhimin, p.sh. bashkëmenaxhimi","Komunitetet lokale marrin pjesë drejtpërdrejt në të gjitha vendimet që kanë të bëjnë me menaxhimin, p.sh. bashkëmenaxhimi",null,"Ekziston një rrjedhë e madhe e përfitimeve të qëndrueshme nga zona e mbrojtur për jetesën e komuniteteve lokale/popullsinë indigjene","Kërcënimet ndaj vlerave kryesore po trajtohen në mënyrë gjithëpërfshirëse nga menaxhimi","Kërkesat për lidhje funksionale janë vlerësuar dhe janë ndërmarrë veprimet e nevojshme për të arritur lidhjen funksionale","Vlerat natyrore janë kryesisht të paprekura",null,"Vlerat kulturore janë kryesisht të paprekura",null,"Statusi i ruajtjes së llojeve kryesore treguese është në nivelin e dëshiruar ose është përmirësuar ndjeshëm gjatë pesë viteve të fundit","Statusi i ruajtjes së habitateve është në nivelin e dëshiruar ose është përmirësuar ndjeshëm gjatë pesë viteve të fundit"]

{"sheet":"37.","index":57,"n_rows":28,"n_cols":4,"rows_kept":28,"cut":false,"hidden":false,"merged":[]}
[null,{"$f":"'Q&A_Alb'!AO2","v":"37. Statusi i ruajtjes së llojeve kryesore tregues"},null,{"$f":"'Common text'!A23","v":"Kthehu tek METT4 Pyetjet dhe Rezultatet"}]
[null,{"$f":"'Common text'!A34","v":"Kjo pyetje nuk është e rëndësishme për këtë ZM.            Nëse zgjidhni këtë, ju lutemi shpjegoni më poshtë pse kjo nuk është e rëndësishme"}]
[{"$f":"'Common text'!A37","v":"Shpjegimi"},null,null,{"$f":"'Common text'!A24","v":"Shko tek Treguesi pasardhës"}]
[]
[null,{"$f":"'Q&A_Alb'!AO3","v":"A ka ndryshuar statusi i llojeve kryesore treguese gjatë 5 viteve të fundit?"}]
[{"$f":"'Common text'!A38","v":"Ndihmë për t'iu përgjigjur kësaj pyetjeje:"},{"$f":"'Q&A_Alb'!AO4","v":"Kjo është një nga pyetjet kryesore për të zbuluar se sa mirë po ecën zona e mbrojtur. Nëse zona juaj e mbrojtur zbaton një protokoll monitorimi për të matur rregullisht gjendjen e llojeve kryesore tregues duke përdorur tregues specifikë dhe nivele të përcaktuara, përfundimet nga aktivitetet tuaja të monitorimit do t'ju ndihmojnë t'i përgjigjeni kësaj pyetjeje. Ju duhet të merrni parasysh rezultatet e Vlerësimit të Detajuar të llojeve nga fleta e mëparshme e punës kur kjo është përfunduar. Në mungesë të këtij vlerësimi të detajuar për shkak të mungesës së të dhënave për llojet individuale, kjo pyetje duhet të përgjigjet bazuar në njohuritë e disponueshme."}]
[null,{"$f":"'Common text'!A39","v":"Përgjigjet e mundshme"}]
["A     ",{"$f":"'Q&A_Alb'!AO5","v":"Statusi i ruajtjes së llojeve kryesore treguese nuk është në nivelin e dëshiruar dhe është përkeqësuar gjatë pesë viteve të fundit"}]
["B",{"$f":"'Q&A_Alb'!AO6","v":"Statusi i ruajtjes së llojeve kryesore treguese nuk është në nivelin e dëshiruar dhe ka mbetur i pandryshuar gjatë pesë viteve të fundit"}]
["C",{"$f":"'Q&A_Alb'!AO7","v":"Statusi i ruajtjes së llojeve kryesore treguese nuk është në nivelin e dëshiruar, por është përmirësuar gjatë pesë viteve të fundit"}]
["D",{"$f":"'Q&A_Alb'!AO8","v":"Statusi i ruajtjes së llojeve kryesore treguese është në nivelin e dëshiruar ose është përmirësuar ndjeshëm gjatë pesë viteve të fundit"}]
[]
[null,{"$f":"'Common text'!A40","v":"Dëshmitë dhe arsyetimi: Cilat janë arsyet e zgjedhjes së kësaj përgjigje?"}]
[]
[]
[]
[null,{"$f":"'Common text'!A41","v":"Veprimet për të përmirësuar menaxhimin: A ka ndonjë gjë që mund të bëni për të përmirësuar menaxhimin?"}]
[]
[]
[]
[null,{"$f":"'Common text'!A42","v":"Burimet e informacionit: Çfarë informacioni (provash) keni përdorur për t'iu përgjigjur kësaj pyetjeje? (Ju lutemi, shënoni kutitë përkatëse dhe shtoni detaje në kolonën më poshtë)"}]
[]
[{"$f":"'Common text'!A50","v":"Vrojtimi dhe Monitorimi"}]
[{"$f":"'Common text'!A51","v":"Plani i menaxhimit apo dokumente të tjera zyrtare"}]
[{"$f":"'Common text'!A52","v":"Përvoja e stafit"}]
[{"$f":"'Common text'!A53","v":"Mendime të ekspertit të jashtëm"}]
[{"$f":"'Common text'!A54","v":"Opinioni i komunitetit /njohuri tradicionale"}]
[{"$f":"'Common text'!A55","v":"Të tjera (specifiko)"}]

{"sheet":"Vlerësimi i detajuar habitatet","index":58,"n_rows":17,"n_cols":10,"rows_kept":17,"cut":false,"hidden":false,"merged":[[17,0,17,7],[18,0,18,7],[0,4,0,7],[2,0,2,7],[3,0,3,7],[1,0,1,7],[8,0,8,7],[15,0,15,7],[16,0,16,7],[3,12,3,15],[4,0,4,7],[5,0,5,7],[6,0,6,7],[7,0,7,7]]}
["Vlerësimi i detajuar i habitatit",null,null,null,null,null,null,null,null,{"$f":"'Common text'!A23","v":"Kthehu tek METT4 Pyetjet dhe Rezultatet"}]
["Ky vlerësim duhet të plotësohet aty ku ka të dhëna të mjaftueshme në dispozicion për statusin e habitateve kryesore të pranishme në zonën e mbrojtur për të qenë në gjendje të bëhet një vlerësim. Ai nuk kontribuon në 'rezultatin' e përgjithshëm të efektivitetit të menaxhimit në METT, por mund të informojë vlerësimin mbi statusin e ruajtjes së habitateve kryesore që bëhet në pyetjen 38. Në plotësimin e tabelës më poshtë, do të jetë e rëndësishme të rishikohen rezultatet e disponueshme të monitorimit dhe për të mbështetur njohuritë e studiuesve, menaxherëve dhe anëtarëve të komunitetit në arritjen e një konsensusi për statusin e habitateve kryesore. Nëse nuk ka njohuri të mjaftueshme për të bërë këtë vlerësim, kjo duhet të tregohet në kutinë më poshtë\n​"]
["Nuk ka informacion të mjaftueshëm për të vlerësuar gjendjen dhe tendencën në vlerat e nominuara",null,null,null,null,null,null,null,null,"Shko tek indikatori tjeter"]
["Ndihmë për diskutimin e statusit të ruajtjes së habitateve"]
["1. Përcaktoni cilat janë habitatet kryesore të zonës së mbrojtur dhe vendosni emrat e pesë habitateve më të rëndësishme në tabelën e mëposhtme."]
["2. Konsideroni se si ka ndryshuar statusi i secilit prej habitateve në krahasim me pesë vjet më parë për katër atributet në tabelë (Shtrirja, Siperfaqja e habitatit, Struktura dhe funksioni, Shtrirja e kërcënimeve). Vlerësoni çdo atribut duke përdorur kriteret e mëposhtëme: në rritje, e qëndrueshme ose në rënie ose përmirësim, e qëndrueshme ose në rënie"]
["3. Jepni një arsye për vlerësimin e statusit dhe më pas tregoni se si mund të përmirësohet."]
["4. Në fund, merrni parasysh rezultatet kur i përgjigjeni pyetjes në fletën tjetër të punës (pyetja 38)."]
[]
["Habitatet kryesore","Shtrirja","Sipërfaqja e habitatit","Struktura dhe funksioni","Shtrirja e kërcënimeve","Arsyeja e vlerësimit","Mënyrat për të përmirësuar statusin e ruajtjes së habitatit"]
[]
[]
[]
[]
[]
[]
["I adoptuar nga:\nKomisioni Evropian (2006): Vlerësimi, monitorimi dhe raportimi sipas nenit 17 të Direktivës së Habitateve, shih https://www.bfn.de/fileadmin/MDB/documents/themen/natura2000/ec_guidance_2006_art17.pdf"]

{"sheet":"38.","index":59,"n_rows":28,"n_cols":4,"rows_kept":28,"cut":false,"hidden":false,"merged":[]}
[null,{"$f":"'Q&A_Alb'!AP2","v":"38. Statusi i ruajtjes së habitateve"},null,{"$f":"'Common text'!A23","v":"Kthehu tek METT4 Pyetjet dhe Rezultatet"}]
[null,{"$f":"'Common text'!A34","v":"Kjo pyetje nuk është e rëndësishme për këtë ZM.            Nëse zgjidhni këtë, ju lutemi shpjegoni më poshtë pse kjo nuk është e rëndësishme"}]
[{"$f":"'Common text'!A37","v":"Shpjegimi"},null,null,{"$f":"'Common text'!A25","v":"Shko tek Plani i Veprimeve për menaxhim"}]
[]
[null,{"$f":"'Q&A_Alb'!AP3","v":"A ka ndryshuar statusi i habitateve gjatë 5 viteve të fundit?"}]
[{"$f":"'Common text'!A38","v":"Ndihmë për t'iu përgjigjur kësaj pyetjeje:"},{"$f":"'Q&A_Alb'!AP4","v":"Kjo pyetje fokusohet në statusin e habitateve brenda zonës së mbrojtur gjatë pesë viteve të fundit nga data e vlerësimit. Nëse zona juaj e mbrojtur zbaton një protokoll monitorimi për të vlerësuar rregullisht gjendjen e habitateve duke përdorur tregues specifikë dhe nivele të përcaktuara, përfundimet nga aktivitetet tuaja monitoruese do t'ju ndihmojnë t'i përgjigjeni kësaj pyetjeje. Ne ju sugjerojmë pikën C në rastet kur disa, por jo të gjitha habitatet janë përmirësuar ndjeshëm."}]
[null,{"$f":"'Common text'!A39","v":"Përgjigjet e mundshme"}]
["A     ",{"$f":"'Q&A_Alb'!AP5","v":"Statusi i ruajtjes së habitateve nuk është në nivelin e dëshiruar dhe është përkeqësuar gjatë pesë viteve të fundit"}]
["B",{"$f":"'Q&A_Alb'!AP6","v":"Statusi i ruajtjes së habitateve nuk është në nivelin e dëshiruar dhe ka mbetur i pandryshuar gjatë pesë viteve të fundit"}]
["C",{"$f":"'Q&A_Alb'!AP7","v":"Statusi i ruajtjes së habitateve nuk është në nivelin e dëshiruar, por është përmirësuar gjatë pesë viteve të fundit"}]
["D",{"$f":"'Q&A_Alb'!AP8","v":"Statusi i ruajtjes së habitateve është në nivelin e dëshiruar ose është përmirësuar ndjeshëm gjatë pesë viteve të fundit"}]
[]
[null,{"$f":"'Common text'!A40","v":"Dëshmitë dhe arsyetimi: Cilat janë arsyet e zgjedhjes së kësaj përgjigje?"}]
[]
[]
[]
[null,{"$f":"'Common text'!A41","v":"Veprimet për të përmirësuar menaxhimin: A ka ndonjë gjë që mund të bëni për të përmirësuar menaxhimin?"}]
[]
[]
[]
[null,{"$f":"'Common text'!A42","v":"Burimet e informacionit: Çfarë informacioni (provash) keni përdorur për t'iu përgjigjur kësaj pyetjeje? (Ju lutemi, shënoni kutitë përkatëse dhe shtoni detaje në kolonën më poshtë)"}]
[]
[{"$f":"'Common text'!A50","v":"Vrojtimi dhe Monitorimi"}]
[{"$f":"'Common text'!A51","v":"Plani i menaxhimit apo dokumente të tjera zyrtare"}]
[{"$f":"'Common text'!A52","v":"Përvoja e stafit"}]
[{"$f":"'Common text'!A53","v":"Mendime të ekspertit të jashtëm"}]
[{"$f":"'Common text'!A54","v":"Opinioni i komunitetit /njohuri tradicionale"}]
["Të tjera (specifiko)"]

{"sheet":"Plani i Veprimeve për menaxhim","index":60,"n_rows":46,"n_cols":11,"rows_kept":46,"cut":false,"hidden":false,"merged":[[0,0,0,9],[1,6,2,7],[1,8,2,9],[1,0,2,5]]}
[null,null,null,null,null,null,null,null,null,null,{"$f":"'Common text'!A23","v":"Kthehu tek METT4 Pyetjet dhe Rezultatet"}]
["Veprimet që keni identifikuar për të përmirësuar efektivitetin tuaj të menaxhimit"]
["Actions you have identified to improve your management effectiveness"]
[null,"Pyetjet","Piket e tanishme","piket e meparshme (nese jane te vlefshme)","Veprimet per permiresimine menaxhimit","Deri kur?","Kush eshte pergjegjsi?","Kush nevojitet te angazhohet?","Buxheti I nevojshme","Komente te tjera"]
[1,{"$f":"'METT 4 Pyetjet dhe Rezultatet'!C6","v":"A ka ZM status ligjor apo është krijuar nëpërmjet \"mjeteve të tjera efektive\"?"},{"$f":"'METT 4 Pyetjet dhe Rezultatet'!E6","v":0},{"$f":"'METT 4 Pyetjet dhe Rezultatet'!F6","v":0},{"$f":"'1.'!B19","v":0}]
[2,{"$f":"'METT 4 Pyetjet dhe Rezultatet'!C7","v":"A ndërmerret menaxhimi për të arritur objektivat e zonës së mbrojtur?"},{"$f":"'METT 4 Pyetjet dhe Rezultatet'!E7","v":0},{"$f":"'METT 4 Pyetjet dhe Rezultatet'!F7","v":0},{"$f":"'2.'!B19","v":0}]
[3,{"$f":"'METT 4 Pyetjet dhe Rezultatet'!C8","v":"A janë përcaktuar dhe zbatuar rregullat/kontrollet e duhura për të menaxhuar përdorimin dhe aktivitetet në përputhje me objektivat e menaxhimit të zonës së mbrojtur?"},{"$f":"'METT 4 Pyetjet dhe Rezultatet'!E8","v":0},{"$f":"'METT 4 Pyetjet dhe Rezultatet'!F8","v":0},{"$f":"'3.'!B19","v":0}]
[4,{"$f":"'METT 4 Pyetjet dhe Rezultatet'!C9","v":"A e njeh zonën e mbrojtur planifikimi i përdorimit të tokës dhe detit jashtë zonës së mbrojtur dhe a kontribuon në arritjen e objektivave të menaxhimit?"},{"$f":"'METT 4 Pyetjet dhe Rezultatet'!E9","v":0},{"$f":"'METT 4 Pyetjet dhe Rezultatet'!F9","v":0},{"$f":"'4.'!B19","v":0}]
[5,{"$f":"'METT 4 Pyetjet dhe Rezultatet'!C10","v":"A ka zona e mbrojtur madhësinë dhe formën e duhur për të mbrojtur llojet, habitatet, proceset ekologjike dhe basenet ujëmbledhëse me rëndësi kryesore për ruajtjen e natyrës?"},{"$f":"'METT 4 Pyetjet dhe Rezultatet'!E10","v":0},{"$f":"'METT 4 Pyetjet dhe Rezultatet'!F10","v":0},{"$f":"'5.'!B19","v":0}]
[6,{"$f":"'METT 4 Pyetjet dhe Rezultatet'!C11","v":"A është i njohur dhe i përcaktuar kufiri?"},{"$f":"'METT 4 Pyetjet dhe Rezultatet'!E11","v":0},{"$f":"'METT 4 Pyetjet dhe Rezultatet'!F11","v":0},{"$f":"'6.'!B19","v":0}]
[7,{"$f":"'METT 4 Pyetjet dhe Rezultatet'!C12","v":"A ekziston një plan menaxhimi apo një dokument i ngjashëm dhe a po zbatohet?"},{"$f":"'METT 4 Pyetjet dhe Rezultatet'!E12","v":0},{"$f":"'METT 4 Pyetjet dhe Rezultatet'!F12","v":0},{"$f":"'7.'!B19","v":0}]
["7a-c",{"$f":"'METT 4 Pyetjet dhe Rezultatet'!C13","v":"Pikat shtesë për pyetjen  7. Plani i menaxhimit"},{"$f":"'METT 4 Pyetjet dhe Rezultatet'!E13","v":0},{"$f":"'METT 4 Pyetjet dhe Rezultatet'!F13","v":0},{"$f":"'7A.'!B17","v":0}]
[8,{"$f":"'METT 4 Pyetjet dhe Rezultatet'!C14","v":"A ekziston një plan pune i vazhdueshëm (me afate të paracaktuara, p.sh., vjetor) dhe a po zbatohet?"},{"$f":"'METT 4 Pyetjet dhe Rezultatet'!E14","v":0},{"$f":"'METT 4 Pyetjet dhe Rezultatet'!F14","v":0},{"$f":"'8.'!B19","v":0}]
[9,{"$f":"'METT 4 Pyetjet dhe Rezultatet'!C15","v":"A keni informacion të mjaftueshëm për të menaxhuar zonën?"},{"$f":"'METT 4 Pyetjet dhe Rezultatet'!E15","v":0},{"$f":"'METT 4 Pyetjet dhe Rezultatet'!F15","v":0},{"$f":"'9.'!B19","v":0}]
[10,{"$f":"'METT 4 Pyetjet dhe Rezultatet'!C16","v":"A ka njerëz mjaftueshëm për të menaxhuar zonën e mbrojtur?"},{"$f":"'METT 4 Pyetjet dhe Rezultatet'!E16","v":0},{"$f":"'METT 4 Pyetjet dhe Rezultatet'!F16","v":0},{"$f":"'10.'!B19","v":0}]
[11,{"$f":"'METT 4 Pyetjet dhe Rezultatet'!C17","v":"A kanë njerëzit e përfshirë në menaxhimin e zonës së mbrojtur njohuritë dhe aftësitë e nevojshme?"},{"$f":"'METT 4 Pyetjet dhe Rezultatet'!E17","v":0},{"$f":"'METT 4 Pyetjet dhe Rezultatet'!F17","v":0},{"$f":"'11.'!B19","v":0}]
[12,{"$f":"'METT 4 Pyetjet dhe Rezultatet'!C18","v":"A është buxheti aktual i mjaftueshëm?"},{"$f":"'METT 4 Pyetjet dhe Rezultatet'!E18","v":0},{"$f":"'METT 4 Pyetjet dhe Rezultatet'!F18","v":0},{"$f":"'12.'!B19","v":0}]
[13,{"$f":"'METT 4 Pyetjet dhe Rezultatet'!C19","v":"A është buxheti i sigurt?"},{"$f":"'METT 4 Pyetjet dhe Rezultatet'!E19","v":0},{"$f":"'METT 4 Pyetjet dhe Rezultatet'!F19","v":0},{"$f":"'13.'!B19","v":0}]
[14,{"$f":"'METT 4 Pyetjet dhe Rezultatet'!C20","v":"A menaxhohet buxheti për të siguruar administrim efektiv të zonës së mbrojtur?"},{"$f":"'METT 4 Pyetjet dhe Rezultatet'!E20","v":0},{"$f":"'METT 4 Pyetjet dhe Rezultatet'!F20","v":0},{"$f":"'14.'!B19","v":0}]
[15,{"$f":"'METT 4 Pyetjet dhe Rezultatet'!C21","v":"A janë pajisjet dhe shërbimet ndihmëse të mjaftueshme për nevojat e menaxhimit?"},{"$f":"'METT 4 Pyetjet dhe Rezultatet'!E21","v":0},{"$f":"'METT 4 Pyetjet dhe Rezultatet'!F21","v":0},{"$f":"'15.'!B19","v":0}]
[16,{"$f":"'METT 4 Pyetjet dhe Rezultatet'!C22","v":"A mundet personeli (d.m.th. ata që janë përgjegjës për menaxhimin e zonës) të zbatojnë legjislacionin dhe rregulloret e zonës së mbrojtur?"},{"$f":"'METT 4 Pyetjet dhe Rezultatet'!E22","v":0},{"$f":"'METT 4 Pyetjet dhe Rezultatet'!F22","v":0},{"$f":"'16.'!B19","v":0}]
[17,{"$f":"'METT 4 Pyetjet dhe Rezultatet'!C23","v":"A ka sisteme (p.sh. patrulla, leje, vrojtim-sinjalizim, etj.) për të kontrolluar aksesin/përdorimin e burimeve në zonën e mbrojtur?"},{"$f":"'METT 4 Pyetjet dhe Rezultatet'!E23","v":0},{"$f":"'METT 4 Pyetjet dhe Rezultatet'!F23","v":0},{"$f":"'17.'!B19","v":0}]
[18,{"$f":"'METT 4 Pyetjet dhe Rezultatet'!C24","v":"A ka personeli i zonës së mbrojtur kushte të sigurta pune dhe a është siguria në punë prioritet i menaxhimit?"},{"$f":"'METT 4 Pyetjet dhe Rezultatet'!E24","v":0},{"$f":"'METT 4 Pyetjet dhe Rezultatet'!F24","v":0},{"$f":"'18.'!B19","v":0}]
[19,{"$f":"'METT 4 Pyetjet dhe Rezultatet'!C25","v":"A ekziston një program për kërkimin shkencor I orientuar nga nevojat e menaxhimit?"},{"$f":"'METT 4 Pyetjet dhe Rezultatet'!E25","v":0},{"$f":"'METT 4 Pyetjet dhe Rezultatet'!F25","v":0},{"$f":"'19.'!B19","v":0}]
[20,{"$f":"'METT 4 Pyetjet dhe Rezultatet'!C26","v":"A monitorohen, vlerësohen dhe përshtaten rregullisht aktivitetet e menaxhimit?"},{"$f":"'METT 4 Pyetjet dhe Rezultatet'!E26","v":0},{"$f":"'METT 4 Pyetjet dhe Rezultatet'!F26","v":0},{"$f":"'20.'!B19","v":0}]
[21,{"$f":"'METT 4 Pyetjet dhe Rezultatet'!C27","v":"A  kryhet menaxhim aktiv i burimeve natyrore e kulturore?"},{"$f":"'METT 4 Pyetjet dhe Rezultatet'!E27","v":0},{"$f":"'METT 4 Pyetjet dhe Rezultatet'!F27","v":0},{"$f":"'21.'!B19","v":0}]
[22,{"$f":"'METT 4 Pyetjet dhe Rezultatet'!C28","v":"A menaxhohet me vetëdije zona e mbrojtur për t'iu përshtatur ndryshimeve klimatike?"},{"$f":"'METT 4 Pyetjet dhe Rezultatet'!E28","v":0},{"$f":"'METT 4 Pyetjet dhe Rezultatet'!F28","v":0},{"$f":"'22.'!B19","v":0}]
[23,{"$f":"'METT 4 Pyetjet dhe Rezultatet'!C29","v":"A menaxhohet me vetëdije zona e mbrojtur për t'iu përshtatur ndryshimeve klimatike?"},{"$f":"'METT 4 Pyetjet dhe Rezultatet'!E29","v":0},{"$f":"'METT 4 Pyetjet dhe Rezultatet'!F29","v":0},{"$f":"'23.'!B19","v":0}]
[24,{"$f":"'METT 4 Pyetjet dhe Rezultatet'!C30","v":"A po menaxhohet me vetëdije zona e mbrojtur për të parandaluar çlirimin e karbonit dhe për të inkurajuar sekustrimin e mëtejshëm të karbonit?"},{"$f":"'METT 4 Pyetjet dhe Rezultatet'!E30","v":0},{"$f":"'METT 4 Pyetjet dhe Rezultatet'!F30","v":0},{"$f":"'24.'!B19","v":0}]
[25,{"$f":"'METT 4 Pyetjet dhe Rezultatet'!C31","v":"A e konsideron menaxhimi ofrimin e shërbimeve të ekosistemit?"},{"$f":"'METT 4 Pyetjet dhe Rezultatet'!E31","v":0},{"$f":"'METT 4 Pyetjet dhe Rezultatet'!F31","v":0},{"$f":"'25.'!B19","v":0}]
[26,{"$f":"'METT 4 Pyetjet dhe Rezultatet'!C32","v":"A ekziston një program edukimi i planifikuar dhe i lidhur me nevojat e menaxhimit?"},{"$f":"'METT 4 Pyetjet dhe Rezultatet'!E32","v":0},{"$f":"'METT 4 Pyetjet dhe Rezultatet'!F32","v":0},{"$f":"'26.'!B19","v":0}]
[27,{"$f":"'METT 4 Pyetjet dhe Rezultatet'!C33","v":"A ka bashkëpunim me përdoruesit fqinjë shtetërorë dhe komercialë të tokës/detit?"},{"$f":"'METT 4 Pyetjet dhe Rezultatet'!E33","v":0},{"$f":"'METT 4 Pyetjet dhe Rezultatet'!F33","v":0},{"$f":"'27.'!B19","v":0}]
[28,{"$f":"'METT 4 Pyetjet dhe Rezultatet'!C34","v":"Nëse aplikohen tarifa (d.m.th. tarifat e hyrjes ose gjobat), a ndihmojnë ato menaxhimin e zonës së mbrojtur?"},{"$f":"'METT 4 Pyetjet dhe Rezultatet'!E34","v":0},{"$f":"'METT 4 Pyetjet dhe Rezultatet'!F34","v":0},{"$f":"'28.'!B19","v":0}]
[29,{"$f":"'METT 4 Pyetjet dhe Rezultatet'!C35","v":"A janë objektet dhe shërbimet për vizitorë t të përshtatshme?"},{"$f":"'METT 4 Pyetjet dhe Rezultatet'!E35","v":0},{"$f":"'METT 4 Pyetjet dhe Rezultatet'!F35","v":0},{"$f":"'29.'!B19","v":0}]
[30,{"$f":"'METT 4 Pyetjet dhe Rezultatet'!C36","v":"A përfshihen banorët indigjenë në vendimet e menaxhimit?"},{"$f":"'METT 4 Pyetjet dhe Rezultatet'!E36","v":0},{"$f":"'METT 4 Pyetjet dhe Rezultatet'!F36","v":0},{"$f":"'30.'!B19","v":0}]
[31,{"$f":"'METT 4 Pyetjet dhe Rezultatet'!C37","v":"A kanë komunitetet lokale që jetojnë brenda ose afër zonës së mbrojtur kontribut në vendimet e menaxhimit?"},{"$f":"'METT 4 Pyetjet dhe Rezultatet'!E37","v":0},{"$f":"'METT 4 Pyetjet dhe Rezultatet'!F37","v":0},{"$f":"'31.'!B19","v":0}]
["31 a-c",{"$f":"'METT 4 Pyetjet dhe Rezultatet'!C38","v":"31a-c Pika shtesë - Ndikimi në komunitet/popullsi indigjene"},{"$f":"'METT 4 Pyetjet dhe Rezultatet'!E38","v":0},{"$f":"'METT 4 Pyetjet dhe Rezultatet'!F38","v":0},{"$f":"'31A.'!B17","v":0}]
[32,{"$f":"'METT 4 Pyetjet dhe Rezultatet'!C39","v":"A ofron zona e mbrojtur përfitime të qëndrueshme për jetesën e komuniteteve lokale dhe/ose njerëzit indigjenë, p.sh. të ardhurat, punësimi, pagesa për shërbimet e ekosistemit?"},{"$f":"'METT 4 Pyetjet dhe Rezultatet'!E39","v":0},{"$f":"'METT 4 Pyetjet dhe Rezultatet'!F39","v":0},{"$f":"'32.'!B19","v":0}]
[33,{"$f":"'METT 4 Pyetjet dhe Rezultatet'!C40","v":"A trajtohen në mënyrë efektive kërcënimet ndaj vlerave kryesore të zonës së mbrojtur?"},{"$f":"'METT 4 Pyetjet dhe Rezultatet'!E40","v":0},{"$f":"'METT 4 Pyetjet dhe Rezultatet'!F40","v":0},{"$f":"'33.'!B19","v":0}]
[34,{"$f":"'METT 4 Pyetjet dhe Rezultatet'!C41","v":"A janë vlerësuar dhe zbatuar nevojat për lidhje funksionale me ekosisteme të tjera natyrore?"},{"$f":"'METT 4 Pyetjet dhe Rezultatet'!E41","v":0},{"$f":"'METT 4 Pyetjet dhe Rezultatet'!F41","v":0},{"$f":"'34.'!B19","v":0}]
[35,{"$f":"'METT 4 Pyetjet dhe Rezultatet'!C43","v":"Cila është gjendja e vlerave të rëndësishme natyrore të zonës së mbrojtur në krahasim me kohën kur është vlerësuar gjendja e tyre për herë të parë?"},{"$f":"'METT 4 Pyetjet dhe Rezultatet'!E42","v":0},{"$f":"'METT 4 Pyetjet dhe Rezultatet'!F42","v":0},{"$f":"'35.'!B19","v":0}]
["35 a-c",{"$f":"'METT 4 Pyetjet dhe Rezultatet'!C44","v":"35 a-c Pika shtesë - Gjendja e vlerave natyrore"},{"$f":"'METT 4 Pyetjet dhe Rezultatet'!E43","v":0},{"$f":"'METT 4 Pyetjet dhe Rezultatet'!F43","v":0},{"$f":"'35A.'!B17","v":0}]
[36,{"$f":"'METT 4 Pyetjet dhe Rezultatet'!C45","v":"Cila është gjendja e vlerave të rëndësishme kulturore të zonës së mbrojtur në krahasim me kohën kur është vlerësuar gjendja e tyre për herë të parë?"},{"$f":"'METT 4 Pyetjet dhe Rezultatet'!E44","v":0},{"$f":"'METT 4 Pyetjet dhe Rezultatet'!F44","v":0},{"$f":"'36.'!B19","v":0}]
["36 a-c",{"$f":"'METT 4 Pyetjet dhe Rezultatet'!C46","v":"36 a-c Pika shtesë - Gjendja e vlerave kulturore"},{"$f":"'METT 4 Pyetjet dhe Rezultatet'!E45","v":0},{"$f":"'METT 4 Pyetjet dhe Rezultatet'!F45","v":0},{"$f":"'36A.'!B17","v":0}]
[37,{"$f":"'METT 4 Pyetjet dhe Rezultatet'!C48","v":"A ka ndryshuar statusi i llojeve kryesore treguese gjatë 5 viteve të fundit?"},{"$f":"'METT 4 Pyetjet dhe Rezultatet'!E46","v":0},{"$f":"'METT 4 Pyetjet dhe Rezultatet'!F46","v":0},{"$f":"'37.'!B19","v":0}]
[38,{"$f":"'METT 4 Pyetjet dhe Rezultatet'!C50","v":"A ka ndryshuar statusi i habitateve gjatë 5 viteve të fundit?"},{"$f":"'METT 4 Pyetjet dhe Rezultatet'!E47","v":0},{"$f":"'METT 4 Pyetjet dhe Rezultatet'!F47","v":0},{"$f":"'38.'!B19","v":0}]

{"sheet":"Identifikimi i vlerave","index":61,"n_rows":28,"n_cols":15,"rows_kept":28,"cut":false,"hidden":false,"merged":[[1,16328,2,16340],[1,16341,2,16353],[1,16354,2,16366],[1,16367,2,16379],[1,16380,2,16383],[1,16263,2,16275],[1,16276,2,16288],[1,16289,2,16301],[1,16302,2,16314],[1,16315,2,16327],[1,16198,2,16210],[1,16211,2,16223],[1,16224,2,16236],[1,16237,2,16249],[1,16250,2,16262],[1,16133,2,16145],[1,16146,2,16158],[1,16159,2,16171],[1,16172,2,16184],[1,16185,2,16197],[1,16068,2,16080],[1,16081,2,16093],[1,16094,2,16106],[1,16107,2,16119],[1,16120,2,16132],[1,16003,2,16015],[1,16016,2,16028],[1,16029,2,16041],[1,16042,2,16054],[1,16055,2,16067],[1,15938,2,15950],[1,15951,2,15963],[1,15964,2,15976],[1,15977,2,15989],[1,15990,2,16002],[1,15873,2,15885],[1,15886,2,15898],[1,15899,2,15911],[1,15912,2,15924],[1,15925,2,15937],[1,15808,2,15820],[1,15821,2,15833],[1,15834,2,15846],[1,15847,2,15859],[1,15860,2,15872],[1,15743,2,15755],[1,15756,2,15768],[1,15769,2,15781],[1,15782,2,15794],[1,15795,2,15807],[1,15678,2,15690],[1,15691,2,15703],[1,15704,2,15716],[1,15717,2,15729],[1,15730,2,15742],[1,15613,2,15625],[1,15626,2,15638],[1,15639,2,15651],[1,15652,2,15664],[1,15665,2,15677],[1,15548,2,15560],[1,15561,2,15573],[1,15574,2,15586],[1,15587,2,15599],[1,15600,2,15612],[1,15483,2,15495],[1,15496,2,15508],[1,15509,2,15521],[1,15522,2,15534],[1,15535,2,15547],[1,15418,2,15430],[1,15431,2,15443],[1,15444,2,15456],[1,15457,2,15469],[1,15470,2,15482],[1,15353,2,15365],[1,15366,2,15378],[1,15379,2,15391],[1,15392,2,15404],[1,15405,2,15417],[1,15288,2,15300],[1,15301,2,15313],[1,15314,2,15326],[1,15327,2,15339],[1,15340,2,15352],[1,15223,2,15235],[1,15236,2,15248],[1,15249,2,15261],[1,15262,2,15274],[1,15275,2,15287],[1,15158,2,15170],[1,15171,2,15183],[1,15184,2,15196],[1,15197,2,15209],[1,15210,2,15222],[1,15093,2,15105],[1,15106,2,15118],[1,15119,2,15131],[1,15132,2,15144],[1,15145,2,15157],[1,15028,2,15040],[1,15041,2,15053],[1,15054,2,15066],[1,15067,2,15079],[1,15080,2,15092],[1,14963,2,14975],[1,14976,2,14988],[1,14989,2,15001],[1,15002,2,15014],[1,15015,2,15027],[1,14898,2,14910],[1,14911,2,14923],[1,14924,2,14936],[1,14937,2,14949],[1,14950,2,14962],[1,14833,2,14845],[1,14846,2,14858],[1,14859,2,14871],[1,14872,2,14884],[1,14885,2,14897],[1,14768,2,14780],[1,14781,2,14793],[1,14794,2,14806],[1,14807,2,14819],[1,14820,2,14832],[1,14703,2,14715],[1,14716,2,14728],[1,14729,2,14741],[1,14742,2,14754],[1,14755,2,14767],[1,14638,2,14650],[1,14651,2,14663],[1,14664,2,14676],[1,14677,2,14689],[1,14690,2,14702],[1,14573,2,14585],[1,14586,2,14598],[1,14599,2,14611],[1,14612,2,14624],[1,14625,2,14637],[1,14508,2,14520],[1,14521,2,14533],[1,14534,2,14546],[1,14547,2,14559],[1,14560,2,14572],[1,14443,2,14455],[1,14456,2,14468],[1,14469,2,14481],[1,14482,2,14494],[1,14495,2,14507],[1,14378,2,14390],[1,14391,2,14403],[1,14404,2,14416],[1,14417,2,14429],[1,14430,2,14442],[1,14313,2,14325],[1,14326,2,14338],[1,14339,2,14351],[1,14352,2,14364],[1,14365,2,14377],[1,14248,2,14260],[1,14261,2,14273],[1,14274,2,14286],[1,14287,2,14299],[1,14300,2,14312],[1,14183,2,14195],[1,14196,2,14208],[1,14209,2,14221],[1,14222,2,14234],[1,14235,2,14247],[1,14118,2,14130],[1,14131,2,14143],[1,14144,2,14156],[1,14157,2,14169],[1,14170,2,14182],[1,14053,2,14065],[1,14066,2,14078],[1,14079,2,14091],[1,14092,2,14104],[1,14105,2,14117],[1,13988,2,14000],[1,14001,2,14013],[1,14014,2,14026],[1,14027,2,14039],[1,14040,2,14052],[1,13923,2,13935],[1,13936,2,13948],[1,13949,2,13961],[1,13962,2,13974],[1,13975,2,13987],[1,13858,2,13870],[1,13871,2,13883],[1,13884,2,13896],[1,13897,2,13909],[1,13910,2,13922],[1,13793,2,13805],[1,13806,2,13818],[1,13819,2,13831],[1,13832,2,13844],[1,13845,2,13857],[1,13728,2,13740],[1,13741,2,13753],[1,13754,2,13766],[1,13767,2,13779],[1,13780,2,13792],[1,13663,2,13675],[1,13676,2,13688],[1,13689,2,13701],[1,13702,2,13714],[1,13715,2,13727],[1,13598,2,13610],[1,13611,2,13623],[1,13624,2,13636],[1,13637,2,13649],[1,13650,2,13662],[1,13533,2,13545],[1,13546,2,13558],[1,13559,2,13571],[1,13572,2,13584],[1,13585,2,13597],[1,13468,2,13480],[1,13481,2,13493],[1,13494,2,13506],[1,13507,2,13519],[1,13520,2,13532],[1,13403,2,13415],[1,13416,2,13428],[1,13429,2,13441],[1,13442,2,13454],[1,13455,2,13467],[1,13338,2,13350],[1,13351,2,13363],[1,13364,2,13376],[1,13377,2,13389],[1,13390,2,13402],[1,13273,2,13285],[1,13286,2,13298],[1,13299,2,13311],[1,13312,2,13324],[1,13325,2,13337],[1,13208,2,13220],[1,13221,2,13233],[1,13234,2,13246],[1,13247,2,13259],[1,13260,2,13272],[1,13143,2,13155],[1,13156,2,13168],[1,13169,2,13181],[1,13182,2,13194],[1,13195,2,13207],[1,13078,2,13090],[1,13091,2,13103],[1,13104,2,13116],[1,13117,2,13129],[1,13130,2,13142],[1,13013,2,13025],[1,13026,2,13038],[1,13039,2,13051],[1,13052,2,13064],[1,13065,2,13077],[1,12948,2,12960],[1,12961,2,12973],[1,12974,2,12986],[1,12987,2,12999],[1,13000,2,13012],[1,12883,2,12895],[1,12896,2,12908],[1,12909,2,12921],[1,12922,2,12934],[1,12935,2,12947],[1,12818,2,12830],[1,12831,2,12843],[1,12844,2,12856],[1,12857,2,12869],[1,12870,2,12882],[1,12753,2,12765],[1,12766,2,12778],[1,12779,2,12791],[1,12792,2,12804],[1,12805,2,12817],[1,12688,2,12700],[1,12701,2,12713],[1,12714,2,12726],[1,12727,2,12739],[1,12740,2,12752],[1,12623,2,12635],[1,12636,2,12648],[1,12649,2,12661],[1,12662,2,12674],[1,12675,2,12687],[1,12558,2,12570],[1,12571,2,12583],[1,12584,2,12596],[1,12597,2,12609],[1,12610,2,12622],[1,12493,2,12505],[1,12506,2,12518],[1,12519,2,12531],[1,12532,2,12544],[1,12545,2,12557],[1,12428,2,12440],[1,12441,2,12453],[1,12454,2,12466],[1,12467,2,12479],[1,12480,2,12492],[1,12363,2,12375],[1,12376,2,12388],[1,12389,2,12401],[1,12402,2,12414],[1,12415,2,12427],[1,12298,2,12310],[1,12311,2,12323],[1,12324,2,12336],[1,12337,2,12349],[1,12350,2,12362],[1,12233,2,12245],[1,12246,2,12258],[1,12259,2,12271],[1,12272,2,12284],[1,12285,2,12297],[1,12168,2,12180],[1,12181,2,12193],[1,12194,2,12206],[1,12207,2,12219],[1,12220,2,12232],[1,12103,2,12115],[1,12116,2,12128],[1,12129,2,12141],[1,12142,2,12154],[1,12155,2,12167],[1,12038,2,12050],[1,12051,2,12063],[1,12064,2,12076],[1,12077,2,12089],[1,12090,2,12102],[1,11973,2,11985],[1,11986,2,11998],[1,11999,2,12011],[1,12012,2,12024],[1,12025,2,12037],[1,11908,2,11920],[1,11921,2,11933],[1,11934,2,11946],[1,11947,2,11959],[1,11960,2,11972],[1,11843,2,11855],[1,11856,2,11868],[1,11869,2,11881],[1,11882,2,11894],[1,11895,2,11907],[1,11778,2,11790],[1,11791,2,11803],[1,11804,2,11816],[1,11817,2,11829],[1,11830,2,11842],[1,11713,2,11725],[1,11726,2,11738],[1,11739,2,11751],[1,11752,2,11764],[1,11765,2,11777],[1,11648,2,11660],[1,11661,2,11673],[1,11674,2,11686],[1,11687,2,11699],[1,11700,2,11712],[1,11583,2,11595],[1,11596,2,11608],[1,11609,2,11621],[1,11622,2,11634],[1,11635,2,11647],[1,11518,2,11530],[1,11531,2,11543],[1,11544,2,11556],[1,11557,2,11569],[1,11570,2,11582],[1,11453,2,11465],[1,11466,2,11478],[1,11479,2,11491],[1,11492,2,11504],[1,11505,2,11517],[1,11388,2,11400],[1,11401,2,11413],[1,11414,2,11426],[1,11427,2,11439],[1,11440,2,11452],[1,11323,2,11335],[1,11336,2,11348],[1,11349,2,11361],[1,11362,2,11374],[1,11375,2,11387],[1,11258,2,11270],[1,11271,2,11283],[1,11284,2,11296],[1,11297,2,11309],[1,11310,2,11322],[1,11193,2,11205],[1,11206,2,11218],[1,11219,2,11231],[1,11232,2,11244],[1,11245,2,11257],[1,11128,2,11140],[1,11141,2,11153],[1,11154,2,11166],[1,11167,2,11179],[1,11180,2,11192],[1,11063,2,11075],[1,11076,2,11088],[1,11089,2,11101],[1,11102,2,11114],[1,11115,2,11127],[1,10998,2,11010],[1,11011,2,11023],[1,11024,2,11036],[1,11037,2,11049],[1,11050,2,11062],[1,10933,2,10945],[1,10946,2,10958],[1,10959,2,10971],[1,10972,2,10984],[1,10985,2,10997],[1,10868,2,10880],[1,10881,2,10893],[1,10894,2,10906],[1,10907,2,10919],[1,10920,2,10932],[1,10803,2,10815],[1,10816,2,10828],[1,10829,2,10841],[1,10842,2,10854],[1,10855,2,10867],[1,10738,2,10750],[1,10751,2,10763],[1,10764,2,10776],[1,10777,2,10789],[1,10790,2,10802],[1,10673,2,10685],[1,10686,2,10698],[1,10699,2,10711],[1,10712,2,10724],[1,10725,2,10737],[1,10608,2,10620],[1,10621,2,10633],[1,10634,2,10646],[1,10647,2,10659],[1,10660,2,10672],[1,10543,2,10555],[1,10556,2,10568],[1,10569,2,10581],[1,10582,2,10594],[1,10595,2,10607],[1,10478,2,10490],[1,10491,2,10503],[1,10504,2,10516],[1,10517,2,10529],[1,10530,2,10542],[1,10413,2,10425],[1,10426,2,10438],[1,10439,2,10451],[1,10452,2,10464],[1,10465,2,10477],[1,10348,2,10360],[1,10361,2,10373],[1,10374,2,10386],[1,10387,2,10399],[1,10400,2,10412],[1,10283,2,10295],[1,10296,2,10308],[1,10309,2,10321],[1,10322,2,10334],[1,10335,2,10347],[1,10218,2,10230],[1,10231,2,10243],[1,10244,2,10256],[1,10257,2,10269],[1,10270,2,10282],[1,10153,2,10165],[1,10166,2,10178],[1,10179,2,10191],[1,10192,2,10204],[1,10205,2,10217],[1,10088,2,10100],[1,10101,2,10113],[1,10114,2,10126],[1,10127,2,10139],[1,10140,2,10152],[1,10023,2,10035],[1,10036,2,10048],[1,10049,2,10061],[1,10062,2,10074],[1,10075,2,10087],[1,9958,2,9970],[1,9971,2,9983],[1,9984,2,9996],[1,9997,2,10009],[1,10010,2,10022],[1,9893,2,9905],[1,9906,2,9918],[1,9919,2,9931],[1,9932,2,9944],[1,9945,2,9957],[1,9828,2,9840],[1,9841,2,9853],[1,9854,2,9866],[1,9867,2,9879],[1,9880,2,9892],[1,9763,2,9775],[1,9776,2,9788],[1,9789,2,9801],[1,9802,2,9814],[1,9815,2,9827],[1,9698,2,9710],[1,9711,2,9723],[1,9724,2,9736],[1,9737,2,9749],[1,9750,2,9762],[1,9633,2,9645],[1,9646,2,9658],[1,9659,2,9671],[1,9672,2,9684],[1,9685,2,9697],[1,9568,2,9580],[1,9581,2,9593],[1,9594,2,9606],[1,9607,2,9619],[1,9620,2,9632],[1,9503,2,9515],[1,9516,2,9528],[1,9529,2,9541],[1,9542,2,9554],[1,9555,2,9567],[1,9438,2,9450],[1,9451,2,9463],[1,9464,2,9476],[1,9477,2,9489],[1,9490,2,9502],[1,9373,2,9385],[1,9386,2,9398],[1,9399,2,9411],[1,9412,2,9424],[1,9425,2,9437],[1,9308,2,9320],[1,9321,2,9333],[1,9334,2,9346],[1,9347,2,9359],[1,9360,2,9372],[1,9243,2,9255],[1,9256,2,9268],[1,9269,2,9281],[1,9282,2,9294],[1,9295,2,9307],[1,9178,2,9190],[1,9191,2,9203],[1,9204,2,9216],[1,9217,2,9229],[1,9230,2,9242],[1,9113,2,9125],[1,9126,2,9138],[1,9139,2,9151],[1,9152,2,9164],[1,9165,2,9177],[1,9048,2,9060],[1,9061,2,9073],[1,9074,2,9086],[1,9087,2,9099],[1,9100,2,9112],[1,8983,2,8995],[1,8996,2,9008],[1,9009,2,9021],[1,9022,2,9034],[1,9035,2,9047],[1,8918,2,8930],[1,8931,2,8943],[1,8944,2,8956],[1,8957,2,8969],[1,8970,2,8982],[1,8853,2,8865],[1,8866,2,8878],[1,8879,2,8891],[1,8892,2,8904],[1,8905,2,8917],[1,8788,2,8800],[1,8801,2,8813],[1,8814,2,8826],[1,8827,2,8839],[1,8840,2,8852],[1,8723,2,8735],[1,8736,2,8748],[1,8749,2,8761],[1,8762,2,8774],[1,8775,2,8787],[1,8658,2,8670],[1,8671,2,8683],[1,8684,2,8696],[1,8697,2,8709],[1,8710,2,8722],[1,8593,2,8605],[1,8606,2,8618],[1,8619,2,8631],[1,8632,2,8644],[1,8645,2,8657],[1,8528,2,8540],[1,8541,2,8553],[1,8554,2,8566],[1,8567,2,8579],[1,8580,2,8592],[1,8463,2,8475],[1,8476,2,8488],[1,8489,2,8501],[1,8502,2,8514],[1,8515,2,8527],[1,8398,2,8410],[1,8411,2,8423],[1,8424,2,8436],[1,8437,2,8449],[1,8450,2,8462],[1,8333,2,8345],[1,8346,2,8358],[1,8359,2,8371],[1,8372,2,8384],[1,8385,2,8397],[1,8268,2,8280],[1,8281,2,8293],[1,8294,2,8306],[1,8307,2,8319],[1,8320,2,8332],[1,8203,2,8215],[1,8216,2,8228],[1,8229,2,8241],[1,8242,2,8254],[1,8255,2,8267],[1,8138,2,8150],[1,8151,2,8163],[1,8164,2,8176],[1,8177,2,8189],[1,8190,2,8202],[1,8073,2,8085],[1,8086,2,8098],[1,8099,2,8111],[1,8112,2,8124],[1,8125,2,8137],[1,8008,2,8020],[1,8021,2,8033],[1,8034,2,8046],[1,8047,2,8059],[1,8060,2,8072],[1,7943,2,7955],[1,7956,2,7968],[1,7969,2,7981],[1,7982,2,7994],[1,7995,2,8007],[1,7878,2,7890],[1,7891,2,7903],[1,7904,2,7916],[1,7917,2,7929],[1,7930,2,7942],[1,7813,2,7825],[1,7826,2,7838],[1,7839,2,7851],[1,7852,2,7864],[1,7865,2,7877],[1,7748,2,7760],[1,7761,2,7773],[1,7774,2,7786],[1,7787,2,7799],[1,7800,2,7812],[1,7683,2,7695],[1,7696,2,7708],[1,7709,2,7721],[1,7722,2,7734],[1,7735,2,7747],[1,7618,2,7630],[1,7631,2,7643],[1,7644,2,7656],[1,7657,2,7669],[1,7670,2,7682],[1,7553,2,7565],[1,7566,2,7578],[1,7579,2,7591],[1,7592,2,7604],[1,7605,2,7617],[1,7488,2,7500],[1,7501,2,7513],[1,7514,2,7526],[1,7527,2,7539],[1,7540,2,7552],[1,7423,2,7435],[1,7436,2,7448],[1,7449,2,7461],[1,7462,2,7474],[1,7475,2,7487],[1,7358,2,7370],[1,7371,2,7383],[1,7384,2,7396],[1,7397,2,7409],[1,7410,2,7422],[1,7293,2,7305],[1,7306,2,7318],[1,7319,2,7331],[1,7332,2,7344],[1,7345,2,7357],[1,7228,2,7240],[1,7241,2,7253],[1,7254,2,7266],[1,7267,2,7279],[1,7280,2,7292],[1,7163,2,7175],[1,7176,2,7188],[1,7189,2,7201],[1,7202,2,7214],[1,7215,2,7227],[1,7098,2,7110],[1,7111,2,7123],[1,7124,2,7136],[1,7137,2,7149],[1,7150,2,7162],[1,7033,2,7045],[1,7046,2,7058],[1,7059,2,7071],[1,7072,2,7084],[1,7085,2,7097],[1,6968,2,6980],[1,6981,2,6993],[1,6994,2,7006],[1,7007,2,7019],[1,7020,2,7032],[1,6903,2,6915],[1,6916,2,6928],[1,6929,2,6941],[1,6942,2,6954],[1,6955,2,6967],[1,6838,2,6850],[1,6851,2,6863],[1,6864,2,6876],[1,6877,2,6889],[1,6890,2,6902],[1,6773,2,6785],[1,6786,2,6798],[1,6799,2,6811],[1,6812,2,6824],[1,6825,2,6837],[1,6708,2,6720],[1,6721,2,6733],[1,6734,2,6746],[1,6747,2,6759],[1,6760,2,6772],[1,6643,2,6655],[1,6656,2,6668],[1,6669,2,6681],[1,6682,2,6694],[1,6695,2,6707],[1,6578,2,6590],[1,6591,2,6603],[1,6604,2,6616],[1,6617,2,6629],[1,6630,2,6642],[1,6513,2,6525],[1,6526,2,6538],[1,6539,2,6551],[1,6552,2,6564],[1,6565,2,6577],[1,6448,2,6460],[1,6461,2,6473],[1,6474,2,6486],[1,6487,2,6499],[1,6500,2,6512],[1,6383,2,6395],[1,6396,2,6408],[1,6409,2,6421],[1,6422,2,6434],[1,6435,2,6447],[1,6318,2,6330],[1,6331,2,6343],[1,6344,2,6356],[1,6357,2,6369],[1,6370,2,6382],[1,6253,2,6265],[1,6266,2,6278],[1,6279,2,6291],[1,6292,2,6304],[1,6305,2,6317],[1,6188,2,6200],[1,6201,2,6213],[1,6214,2,6226],[1,6227,2,6239],[1,6240,2,6252],[1,6123,2,6135],[1,6136,2,6148],[1,6149,2,6161],[1,6162,2,6174],[1,6175,2,6187],[1,6058,2,6070],[1,6071,2,6083],[1,6084,2,6096],[1,6097,2,6109],[1,6110,2,6122],[1,5993,2,6005],[1,6006,2,6018],[1,6019,2,6031],[1,6032,2,6044],[1,6045,2,6057],[1,5928,2,5940],[1,5941,2,5953],[1,5954,2,5966],[1,5967,2,5979],[1,5980,2,5992],[1,5863,2,5875],[1,5876,2,5888],[1,5889,2,5901],[1,5902,2,5914],[1,5915,2,5927],[1,5798,2,5810],[1,5811,2,5823],[1,5824,2,5836],[1,5837,2,5849],[1,5850,2,5862],[1,5733,2,5745],[1,5746,2,5758],[1,5759,2,5771],[1,5772,2,5784],[1,5785,2,5797],[1,5668,2,5680],[1,5681,2,5693],[1,5694,2,5706],[1,5707,2,5719],[1,5720,2,5732],[1,5603,2,5615],[1,5616,2,5628],[1,5629,2,5641],[1,5642,2,5654],[1,5655,2,5667],[1,5538,2,5550],[1,5551,2,5563],[1,5564,2,5576],[1,5577,2,5589],[1,5590,2,5602],[1,5473,2,5485],[1,5486,2,5498],[1,5499,2,5511],[1,5512,2,5524],[1,5525,2,5537],[1,5408,2,5420],[1,5421,2,5433],[1,5434,2,5446],[1,5447,2,5459],[1,5460,2,5472],[1,5343,2,5355],[1,5356,2,5368],[1,5369,2,5381],[1,5382,2,5394],[1,5395,2,5407],[1,5278,2,5290],[1,5291,2,5303],[1,5304,2,5316],[1,5317,2,5329],[1,5330,2,5342],[1,5213,2,5225],[1,5226,2,5238],[1,5239,2,5251],[1,5252,2,5264],[1,5265,2,5277],[1,5148,2,5160],[1,5161,2,5173],[1,5174,2,5186],[1,5187,2,5199],[1,5200,2,5212],[1,5083,2,5095],[1,5096,2,5108],[1,5109,2,5121],[1,5122,2,5134],[1,5135,2,5147],[1,5018,2,5030],[1,5031,2,5043],[1,5044,2,5056],[1,5057,2,5069],[1,5070,2,5082],[1,4953,2,4965],[1,4966,2,4978],[1,4979,2,4991],[1,4992,2,5004],[1,5005,2,5017],[1,4888,2,4900],[1,4901,2,4913],[1,4914,2,4926],[1,4927,2,4939],[1,4940,2,4952],[1,4823,2,4835],[1,4836,2,4848],[1,4849,2,4861],[1,4862,2,4874],[1,4875,2,4887],[1,4758,2,4770],[1,4771,2,4783],[1,4784,2,4796],[1,4797,2,4809],[1,4810,2,4822],[1,4693,2,4705],[1,4706,2,4718],[1,4719,2,4731],[1,4732,2,4744],[1,4745,2,4757],[1,4628,2,4640],[1,4641,2,4653],[1,4654,2,4666],[1,4667,2,4679],[1,4680,2,4692],[1,4563,2,4575],[1,4576,2,4588],[1,4589,2,4601],[1,4602,2,4614],[1,4615,2,4627],[1,4498,2,4510],[1,4511,2,4523],[1,4524,2,4536],[1,4537,2,4549],[1,4550,2,4562],[1,4433,2,4445],[1,4446,2,4458],[1,4459,2,4471],[1,4472,2,4484],[1,4485,2,4497],[1,4368,2,4380],[1,4381,2,4393],[1,4394,2,4406],[1,4407,2,4419],[1,4420,2,4432],[1,4303,2,4315],[1,4316,2,4328],[1,4329,2,4341],[1,4342,2,4354],[1,4355,2,4367],[1,4238,2,4250],[1,4251,2,4263],[1,4264,2,4276],[1,4277,2,4289],[1,4290,2,4302],[1,4173,2,4185],[1,4186,2,4198],[1,4199,2,4211],[1,4212,2,4224],[1,4225,2,4237],[1,4108,2,4120],[1,4121,2,4133],[1,4134,2,4146],[1,4147,2,4159],[1,4160,2,4172],[1,4043,2,4055],[1,4056,2,4068],[1,4069,2,4081],[1,4082,2,4094],[1,4095,2,4107],[1,3978,2,3990],[1,3991,2,4003],[1,4004,2,4016],[1,4017,2,4029],[1,4030,2,4042],[1,3913,2,3925],[1,3926,2,3938],[1,3939,2,3951],[1,3952,2,3964],[1,3965,2,3977],[1,3848,2,3860],[1,3861,2,3873],[1,3874,2,3886],[1,3887,2,3899],[1,3900,2,3912],[1,3783,2,3795],[1,3796,2,3808],[1,3809,2,3821],[1,3822,2,3834],[1,3835,2,3847],[1,3718,2,3730],[1,3731,2,3743],[1,3744,2,3756],[1,3757,2,3769],[1,3770,2,3782],[1,3653,2,3665],[1,3666,2,3678],[1,3679,2,3691],[1,3692,2,3704],[1,3705,2,3717],[1,3588,2,3600],[1,3601,2,3613],[1,3614,2,3626],[1,3627,2,3639],[1,3640,2,3652],[1,3523,2,3535],[1,3536,2,3548],[1,3549,2,3561],[1,3562,2,3574],[1,3575,2,3587],[1,3458,2,3470],[1,3471,2,3483],[1,3484,2,3496],[1,3497,2,3509],[1,3510,2,3522],[1,3393,2,3405],[1,3406,2,3418],[1,3419,2,3431],[1,3432,2,3444],[1,3445,2,3457]],"merged_total":1269,"flags":["merged_cut"]}
["Ndihmë për identifikimin e vlerave"]
["Vlerat kryesore mund të përbëhen nga atributet natyrore, kulturore, sociale ose ekonomike të zonës.\nVlerat mund të identifikohen në një nivel specificiteti që ka kuptim për sa i përket menaxhimit të zonës së mbrojtur. Mund të jetë një komunitet i caktuar ekologjik ose një specie e veçantë me rëndësi të veçantë.\nNë shumë raste këto vlera do të identifikohen me një plan menaxhimi ose në dokumentacionin origjinal që përcakton zonën e mbrojtur.",null,null,null,null,null,null,null,null,null,null,null,null,"Atributet e zonës së mbrojtur'!A1"]
[null,null,null,null,null,null,null,null,null,null,null,null,null,null,{"$f":"'Common text'!A32","v":"Kthehu te Atributet Kryesore të ZM"}]
["VLERAT NATYRORE"]
[]
["\"Vlerat kryesore natyrore duhet të përfshijnë vlerat e natyrës ose biodiversitetit (p.sh. speciet e kërcënuara, habitatet me përparësi ose ekosistemet); dhe gjithashtu mund të përfshijë:\n• Proceset ekologjike\n• Vlerat e peizazhit dhe lidhjes\n• Veçoritë gjeologjike dhe gjeomorfologjike\n• Vlerat paleontologjike\n• Vlerat piktoreske dhe bukuria e jashtëzakonshme natyrore.\"\t"]
[]
[]
[]
[]
[]
["VLERAT SOCIALE"]
[]
["Vlerat kryesore sociale mund të përfshijnë: \n• Përdorimin rekreativ \n• Rëndësia sociale për komunitetet lokale, rajonale ose kombëtare \n• Vendet dhe strukturat historike"]
[]
[]
[]
["VLERAT KULTURORE"]
[]
["Vlerat kryesore kulturore mund të përfshijnë:\n• Rëndësia për njerëzit indigjenë\n• Vende dhe objekte me rëndësi indigjene\n• Vende me rëndësi për grupet dhe fetë fetare\n• Rëndësia historike ose arkeologjike\n• Qasja në burimet me rëndësi kulturore (p.sh. bimët mjekësore dhe burimet e korrura tradicionalisht)\t"]
[]
[]
[]
[]
[]
["VLERAT EKONOMIKE"]
[]
["Vlerat kryesore ekonomike mund të përfshijnë:\n• Të ardhura të rëndësishme në nivel lokal, rajonal ose kombëtar nga:\n• Përdorimi turistik ose rekreativ i zonës\n• Përdorimi i qëndrueshëm i burimeve\n• Pagesat për shërbimet e ekosistemit\t\t\t\t\t\t\t\t\t\t"]